Workbook

Sheet A venir

Sheet Feuil3
A1: http://commerciaux.celca.caisse-epargne.fr/download/166/segmentation-activation/8760/segmentation_cegee.pdf

Sheet EDS
A1: eds pdv | B1: pdv | C1: eds pdv | D1: agence | E1: territoire | F1: région | I1: AUBE_HAUTE_MARNE | J1: BAS_RHIN | K1: HAUT_RHIN | L1: MARNE_ARDENNES | M1: MEURTHE_ET_MOSELLE_MEUSE | N1: MOSELLE | O1: VOSGES | P1: MULTIMEDIA | Q1: CEGEE | R1: CHAUMONT | S1: TROYES | T1: HAGUENAU | U1: SELESTAT | V1: STRASBOURG | W1: COLMAR | X1: MULHOUSE | Y1: CHALONS_EN_CHAMPAGNE | Z1: CHARLEVILLE_MEZIERES | AA1: REIMS | AB1: NANCY | AC1: PONT_A_MOUSSON | AD1: VERDUN | AE1: METZ | AF1: MOSELLE_EST | AG1: MOSELLE_NORD | AH1: EPINAL | AI1: SAINT_DIE | AJ1: MON_AGENCE | AK1: MON_BANQUIER_EN_LIGNE
A2: 10560 | B2: BOURBONNE LES BAINS | C2: 410560 | D2: BOURBONNE LES BAINS | E2: CHAUMONT | F2: AUBE_HAUTE_MARNE | I2: CHAUMONT | J2: HAGUENAU | K2: COLMAR | L2: CHALONS_EN_CHAMPAGNE | M2: NANCY | N2: METZ | O2: EPINAL | P2: MON_AGENCE | R2: BOURBONNE LES BAINS | S2: AIX EN OTHE | T2: BISCHWILLER | U2: BARR | V2: BISCHHEIM | W2: COLMAR MARAICHERS | X2: ALTKIRCH | Y2: CHALONS ROOSEVELT | Z2: CARIGNAN | AA2: AY CHAMPAGNE | AB2: BACCARAT | AC2: BRIEY | AD2: BAR LE DUC | AE2: ARS SUR MOSELLE | AF2: BEHREN LES FORBACH | AG2: AUDUN LE TICHE | AH2: CHANTRAINE | AI2: BRUYERES | AJ2: MON AGENCE | AK2: MON BANQUIER EN LIGNE
A3: 10558 | B3: CHALINDREY | C3: 510558 | D3: CHALINDREY | E3: CHAUMONT | F3: AUBE_HAUTE_MARNE | I3: TROYES | J3: SELESTAT | K3: MULHOUSE | L3: CHARLEVILLE_MEZIERES | M3: PONT_A_MOUSSON | N3: MOSELLE_EST | O3: SAINT_DIE | P3: MON_BANQUIER_EN_LIGNE | R3: CHALINDREY | S3: ARCIS SUR AUBE | T3: DRUSENHEIM | U3: BENFELD | V3: LA WANTZENAU | W3: COLMAR REPUBLIQUE | X3: FERRETTE | Y3: CHALONS VIVIERS | Z3: CHARLEVILLE JEAN JAURES | AA3: BETHENY | AB3: BAYON | AC3: CHALIGNY NEUVES MAISONS | AD3: COMMERCY | AE3: BOULAY | AF3: BITCHE | AG3: BOUSSE | AH3: CHARMES | AI3: CORNIMONT LA BRESSE
A4: 10539 | B4: CHATEAUVILLAIN | C4: 410539 | D4: CHATEAUVILLAIN | E4: CHAUMONT | F4: AUBE_HAUTE_MARNE | J4: STRASBOURG | L4: REIMS | M4: VERDUN | N4: MOSELLE_NORD | R4: CHATEAUVILLAIN | S4: BAR SUR AUBE | T4: HERRLISHEIM | U4: ERSTEIN | V4: VENDENHEIM | W4: COLMAR SAINT JOSEPH | X4: BRUNSTATT | Y4: FAGNIERES LECLERC | Z4: CHARLEVILLE MEZIERES | AA4: DAMERY | AB4: BLAINVILLE | AC4: CHAMPIGNEULLES | AD4: ETAIN | AE4: CLOUANGE | AF4: CHATEAU SALINS | AG4: BOUZONVILLE | AH4: CHATENOIS VOSGES | AI4: FRAIZE
A5: 10566 | B5: CHAUMONT HOTEL DE VILLE | C5: 410566 | D5: CHAUMONT HOTEL DE VILLE | E5: CHAUMONT | F5: AUBE_HAUTE_MARNE | R5: CHAUMONT HOTEL DE VILLE | S5: BAR SUR SEINE | T5: BOUXWILLER | U5: FEGERSHEIM | V5: MUNDOLSHEIM | W5: COLMAR SAINTE MARIE | X5: CERNAY | Y5: MONTMIRAIL | Z5: CHARLEVILLE MOHON | AA5: DORMANS | AB5: BLAMONT | AC5: DIEULOUARD | AD5: LIGNY EN BARROIS | AE5: MAIZIERES LES METZ | AF5: CREUTZWALD | AG5: CATTENOM | AH5: DARNEY | AI5: GERARDMER
A6: 10590 | B6: CHAUMONT REPUBLIQUE | C6: 510590 | D6: CHAUMONT REPUBLIQUE | E6: CHAUMONT | F6: AUBE_HAUTE_MARNE | R6: CHAUMONT REPUBLIQUE | S6: BRIENNE LE CHATEAU | T6: BRUMATH | U6: ILLKIRCH CENTRE | V6: OBERHAUSBERGEN | W6: COLMAR VAUBAN | X6: SEPPOIS LE BAS | Y6: SUIPPES | Z6: CHARLEVILLE NEVERS | AA6: EPERNAY | AB6: DOMBASLE SUR MEURTHE | AC6: FROUARD | AD6: LONGUYON | AE6: MARANGE SILVANGE | AF6: DIEUZE | AG6: FAMECK | AH6: DOCELLES | AI6: GRANGES AUMONTZEY
A7: 51154 | B7: JOINVILLE | C7: 451154 | D7: JOINVILLE | E7: CHAUMONT | F7: AUBE_HAUTE_MARNE | R7: JOINVILLE | S7: LA CHAPELLE ST LUC | T7: WEITBRUCH | U7: ILLKIRCH NORD | V7: REICHSTETT | W7: ENSISHEIM | X7: DANNEMARIE | Y7: MOURMELON LE GRAND | Z7: GIVET | AA7: FISMES | AB7: ESSEY LES NANCY | AC7: JARNY | AD7: LONGWY BAS | AE7: MARLY | AF7: FAULQUEMONT | AG7: FLORANGE | AH7: ELOYES | AI7: LE THILLOT
A8: 10541 | B8: LANGRES | C8: 410541 | D8: LANGRES | E8: CHAUMONT | F8: AUBE_HAUTE_MARNE | R8: LANGRES | S8: NOGENT SUR SEINE | T8: HAGUENAU HOUBLON | U8: OSTWALD | V8: SCHILTIGHEIM CENTRE | W8: PULVERSHEIM | X8: ILLZACH | Y8: SAINTE MENEHOULD | Z8: MOUZON | AA8: PIERRY LECLERC | AB8: JARVILLE LA MALGRANGE | AC8: JOEUF | AD8: LONGWY HAUT | AE8: METZ CATHEDRALE | AF8: FORBACH CENTRALE | AG8: FONTOY | AH8: EPINAL ARISTIDE BRIAND | AI8: MOYENMOUTIER
A9: 10582 | B9: NOGENT | C9: 410582 | D9: NOGENT | E9: CHAUMONT | F9: AUBE_HAUTE_MARNE | R9: NOGENT | S9: ROMILLY SUR SEINE | T9: HAGUENAU MUSAU | U9: LINGOLSHEIM | V9: SCHILTIGHEIM KLEBER | W9: GUEBWILLER | X9: MASEVAUX | Y9: SARRY | Z9: RETHEL | AA9: REIMS CENTRE VILLE | AB9: LUNEVILLE CARNOT | AC9: LAXOU ARISTIDE BRIAND | AD9: MONTMEDY | AE9: METZ MOZART | AF9: GROSBLIEDERSTROFF | AG9: GUENANGE | AH9: EPINAL AVRINSART | AI9: RAMBERVILLERS
A10: 51156 | B10: SAINT DIZIER CENTRE | C10: 451156 | D10: SAINT DIZIER CENTRE | E10: CHAUMONT | F10: AUBE_HAUTE_MARNE | R10: SAINT DIZIER CENTRE | S10: SAINT ANDRE LES VERGERS | T10: HOCHFELDEN | U10: MARCKOLSHEIM | V10: STRASBOURG ANVERS | W10: HORBOURG WIHR | X10: MULHOUSE DORNACH | Y10: SEZANNE | Z10: REVIN | AA10: REIMS CHATILLONS | AB10: LUNEVILLE CHATEAU | AC10: LAXOU SAPINIERE | AD10: REVIGNY SUR ORNAIN | AE10: METZ PLAPPEVILLE | AF10: HOMBOURG HAUT | AG10: HAGONDANGE | AH10: EPINAL LEOPOLD BOURG | AI10: RAON L ETAPE
A11: 51157 | B11: SAINT DIZIER EUROPE | C11: 551157 | D11: SAINT DIZIER EUROPE | E11: CHAUMONT | F11: AUBE_HAUTE_MARNE | R11: SAINT DIZIER EUROPE | S11: SAINT JULIEN LES VILLAS | T11: HOERDT | U11: MARLENHEIM | V11: STRASBOURG AUSTERLITZ | W11: INGERSHEIM | X11: MULHOUSE REUNION | Y11: VERTUS | Z11: ROCROI | AA11: REIMS EUROPE | AB11: NANCY ARTEM | AC11: LUDRES | AD11: SAINT MIHIEL | AE11: METZ POMPIDOU | AF11: MERLEBACH | AG11: HAYANGE | AH11: GOLBEY | AI11: SAINT DIE
A12: 51151 | B12: WASSY | C12: 451151 | D12: WASSY | E12: CHAUMONT | F12: AUBE_HAUTE_MARNE | R12: WASSY | S12: SAINTE SAVINE | T12: INGWILLER | U12: MOLSHEIM | V12: STRASBOURG CRONENBOURG | W12: KAYSERSBERG | X12: MULHOUSE ROOSEVELT | Y12: VITRY LE FRANCOIS | Z12: SEDAN | AA12: REIMS HIPPODROME | AB12: NANCY JEAN JAURES | AC12: NANCY PLATEAU DE HAYE | AD12: STENAY | AE12: METZ REPUBLIQUE | AF12: MORHANGE | AG12: HETTANGE GRANDE | AH12: LE VAL D AJOL | AI12: SAINT DIE CATHEDRALE
A13: 10583 | B13: AIX EN OTHE | C13: 410583 | D13: AIX EN OTHE | E13: TROYES | F13: AUBE_HAUTE_MARNE | S13: TROYES 1ER MAI | T13: WINGEN SUR MODER | U13: MUTZIG | V13: STRASBOURG DANUBE | W13: MUNSTER | X13: PFASTATT | Z13: VILLERS SEMEUSE CORA | AA13: REIMS HOTEL DE VILLE | AB13: NANCY PLACE DOMBASLE | AC13: NANCY TROIS MAISONS | AD13: VAUCOULEURS | AE13: METZ SAINT LIVIER | AF13: NEUNKIRCH | AG13: METZERVISSE | AH13: MIRECOURT | AI13: SENONES
A14: 10530 | B14: ARCIS SUR AUBE | C14: 510530 | D14: ARCIS SUR AUBE | E14: TROYES | F14: AUBE_HAUTE_MARNE | S14: TROYES BROSSOLETTE | T14: NIEDERBRONN LES BAINS | U14: OBERNAI | V14: STRASBOURG ESPLANADE | W14: MUNTZENHEIM | X14: RIEDISHEIM | Z14: VOUZIERS | AA14: REIMS JEAN JAURES | AB14: NANCY POINT CENTRAL | AC14: PAGNY SUR MOSELLE | AD14: VERDUN CENTRALE | AE14: METZ SAINT LOUIS | AF14: PHALSBOURG | AG14: NILVANGE | AH14: NEUFCHATEAU | AI14: VAGNEY
A15: 10550 | B15: BAR SUR AUBE | C15: 410550 | D15: BAR SUR AUBE | E15: TROYES | F15: AUBE_HAUTE_MARNE | S15: TROYES CHARTREUX | T15: REICHSHOFFEN | U15: ROSHEIM | V15: STRASBOURG FRANCS BOURGEOIS | W15: NEUF BRISACH | X15: RIXHEIM | Z15: VRIGNE AUX BOIS | AA15: REIMS SAINT MARCEAUX | AB15: NANCY SAINT SEBASTIEN | AC15: PIENNES | AD15: VERDUN MAZEL | AE15: METZ SAINT MAXIMIN | AF15: PUTTELANGE AUX LACS | AG15: SIERCK LES BAINS | AH15: NOMEXY
A16: 10556 | B16: BAR SUR SEINE | C16: 510556 | D16: BAR SUR SEINE | E16: TROYES | F16: AUBE_HAUTE_MARNE | S16: TROYES GAMBETTA | T16: GUNDERSHOFFEN | U16: SCHIRMECK | V16: ESPACE MESANGE | W16: ORBEY | X16: SAINT LOUIS | AA16: REIMS SAINT REMI | AB16: SAINT MAX | AC16: POMPEY | AD16: VILLERUPT | AE16: METZ SARRE | AF16: SAINT AVOLD | AG16: TERVILLE | AH16: REMIREMONT
A17: 10551 | B17: BRIENNE LE CHATEAU | C17: 410551 | D17: BRIENNE LE CHATEAU | E17: TROYES | F17: AUBE_HAUTE_MARNE | S17: TROYES ZOLA | T17: PFAFFENHOFFEN | U17: SELESTAT CENTRE | V17: STRASBOURG HALLES | W17: LAPOUTROIE | X17: HUNINGUE | AA17: REIMS SAINT THOMAS | AB17: SAINT NICOLAS DE PORT | AC17: PONT A MOUSSON BREUIL | AE17: MONTIGNY LES METZ | AF17: SARREBOURG | AG17: THIONVILLE CENTRALE | AH17: THAON LES VOSGES
A18: 10523 | B18: LA CHAPELLE ST LUC | C18: 510523 | D18: LA CHAPELLE ST LUC | E18: TROYES | F18: AUBE_HAUTE_MARNE | T18: DIEMERINGEN | U18: CHATENOIS | V18: STRASBOURG GARE | W18: RIBEAUVILLE | X18: SIERENTZ | AA18: REIMS SAINTE ANNE | AB18: TOMBLAINE | AC18: PONT A MOUSSON CENTRALE | AE18: MOULINS LES METZ | AF18: SARREGUEMINES | AG18: THIONVILLE COTE DES ROSES | AH18: VITTEL
A19: 10570 | B19: NOGENT SUR SEINE | C19: 510570 | D19: NOGENT SUR SEINE | E19: TROYES | F19: AUBE_HAUTE_MARNE | T19: SARRE UNION | U19: SELESTAT OUEST | V19: ECKBOLSHEIM | W19: ROUFFACH | X19: THANN | AA19: TINQUEUX | AB19: VANDOEUVRE LES NANCY | AC19: TOUL | AE19: REMILLY | AF19: STIRING WENDEL | AG19: THIONVILLE LA MILLIAIRE | AH19: XERTIGNY
A20: 10571 | B20: ROMILLY SUR SEINE | C20: 410571 | D20: ROMILLY SUR SEINE | E20: TROYES | F20: AUBE_HAUTE_MARNE | T20: SAVERNE | U20: VILLE | V20: STRASBOURG KOENIGSHOFFEN | W20: SOULTZMATT | X20: SAINT AMARIN | AA20: VERZY | AC20: VEZELISE | AE20: ROMBAS | AF20: VALMONT | AG20: UCKANGE
A21: 10520 | B21: SAINT ANDRE LES VERGERS | C21: 510520 | D21: SAINT ANDRE LES VERGERS | E21: TROYES | F21: AUBE_HAUTE_MARNE | T21: MARMOUTIER | U21: WASSELONNE | V21: STRASBOURG MEINAU | W21: SAINTE MARIE AUX MINES | X21: WITTELSHEIM | AC21: VILLERS GENERAL LECLERC | AE21: SAINT JULIEN LES METZ | AG21: YUTZ
A22: 10524 | B22: SAINT JULIEN LES VILLAS | C22: 410524 | D22: SAINT JULIEN LES VILLAS | E22: TROYES | F22: AUBE_HAUTE_MARNE | T22: SCHWEIGHOUSE SUR MODER | V22: STRASBOURG MONTAGNE VERTE | W22: LIEPVRE | X22: WITTENHEIM | AE22: SAINTE MARIE AUX CHENES
A23: 10521 | B23: SAINTE SAVINE | C23: 410521 | D23: SAINTE SAVINE | E23: TROYES | F23: AUBE_HAUTE_MARNE | T23: SOUFFLENHEIM | V23: STRASBOURG NEUDORF | W23: SOULTZ | AE23: WOIPPY
A24: 10513 | B24: TROYES 1ER MAI | C24: 510513 | D24: TROYES 1ER MAI | E24: TROYES | F24: AUBE_HAUTE_MARNE | T24: SOULTZ SOUS FORETS | V24: STRASBOURG ROBERTSAU | W24: WINTZENHEIM
A25: 10511 | B25: TROYES BROSSOLETTE | C25: 510511 | D25: TROYES BROSSOLETTE | E25: TROYES | F25: AUBE_HAUTE_MARNE | T25: TRUCHTERSHEIM | V25: STRASBOURG STOCKFELD
A26: 10522 | B26: TROYES CHARTREUX | C26: 510522 | D26: TROYES CHARTREUX | E26: TROYES | F26: AUBE_HAUTE_MARNE | T26: WISSEMBOURG | V26: STRASBOURG VOSGES
A27: 10510 | B27: TROYES GAMBETTA | C27: 410510 | D27: TROYES GAMBETTA | E27: TROYES | F27: AUBE_HAUTE_MARNE | T27: BETSCHDORF
A28: 10512 | B28: TROYES ZOLA | C28: 410512 | D28: TROYES ZOLA | E28: TROYES | F28: AUBE_HAUTE_MARNE | T28: SELTZ
A29: 57 | B29: BISCHWILLER | C29: 4057 | D29: BISCHWILLER | E29: HAGUENAU | F29: BAS_RHIN | T29: LAUTERBOURG
A30: 58 | B30: DRUSENHEIM | C30: 4057 | D30: BISCHWILLER | E30: HAGUENAU | F30: BAS_RHIN | T30: WOERTH
A31: 59 | B31: HERRLISHEIM | C31: 4057 | D31: BISCHWILLER | E31: HAGUENAU | F31: BAS_RHIN
A32: 82 | B32: BOUXWILLER | C32: 4082 | D32: BOUXWILLER | E32: HAGUENAU | F32: BAS_RHIN
A33: 30 | B33: BRUMATH | C33: 4030 | D33: BRUMATH | E33: HAGUENAU | F33: BAS_RHIN
A34: 65 | B34: WEITBRUCH | C34: 4030 | D34: BRUMATH | E34: HAGUENAU | F34: BAS_RHIN
A35: 60 | B35: HAGUENAU HOUBLON | C35: 4060 | D35: HAGUENAU HOUBLON | E35: HAGUENAU | F35: BAS_RHIN
A36: 64 | B36: HAGUENAU MUSAU | C36: 4064 | D36: HAGUENAU MUSAU | E36: HAGUENAU | F36: BAS_RHIN
A37: 92 | B37: HOCHFELDEN | C37: 4092 | D37: HOCHFELDEN | E37: HAGUENAU | F37: BAS_RHIN
A38: 41 | B38: HOERDT | C38: 4041 | D38: HOERDT | E38: HAGUENAU | F38: BAS_RHIN
A39: 85 | B39: INGWILLER | C39: 4085 | D39: INGWILLER | E39: HAGUENAU | F39: BAS_RHIN
A40: 86 | B40: WINGEN SUR MODER | C40: 4085 | D40: INGWILLER | E40: HAGUENAU | F40: BAS_RHIN
A41: 66 | B41: NIEDERBRONN LES BAINS | C41: 4066 | D41: NIEDERBRONN LES BAINS | E41: HAGUENAU | F41: BAS_RHIN
A42: 68 | B42: REICHSHOFFEN | C42: 4066 | D42: NIEDERBRONN LES BAINS | E42: HAGUENAU | F42: BAS_RHIN
A43: 70 | B43: GUNDERSHOFFEN | C43: 4066 | D43: NIEDERBRONN LES BAINS | E43: HAGUENAU | F43: BAS_RHIN
A44: 67 | B44: PFAFFENHOFFEN | C44: 4067 | D44: PFAFFENHOFFEN | E44: HAGUENAU | F44: BAS_RHIN
A45: 89 | B45: DIEMERINGEN | C45: 4095 | D45: SARRE UNION | E45: HAGUENAU | F45: BAS_RHIN
A46: 95 | B46: SARRE UNION | C46: 4095 | D46: SARRE UNION | E46: HAGUENAU | F46: BAS_RHIN
A47: 87 | B47: SAVERNE | C47: 4087 | D47: SAVERNE | E47: HAGUENAU | F47: BAS_RHIN
A48: 93 | B48: MARMOUTIER | C48: 4087 | D48: SAVERNE | E48: HAGUENAU | F48: BAS_RHIN
A49: 73 | B49: SCHWEIGHOUSE SUR MODER | C49: 4073 | D49: SCHWEIGHOUSE SUR MODER | E49: HAGUENAU | F49: BAS_RHIN
A50: 74 | B50: SOUFFLENHEIM | C50: 4074 | D50: SOUFFLENHEIM | E50: HAGUENAU | F50: BAS_RHIN
A51: 79 | B51: SOULTZ SOUS FORETS | C51: 4079 | D51: SOULTZ SOUS FORETS | E51: HAGUENAU | F51: BAS_RHIN
A52: 31 | B52: TRUCHTERSHEIM | C52: 4031 | D52: TRUCHTERSHEIM | E52: HAGUENAU | F52: BAS_RHIN
A53: 71 | B53: WISSEMBOURG | C53: 4071 | D53: WISSEMBOURG | E53: HAGUENAU | F53: BAS_RHIN
A54: 76 | B54: BETSCHDORF | C54: 4071 | D54: WISSEMBOURG | E54: HAGUENAU | F54: BAS_RHIN
A55: 77 | B55: SELTZ | C55: 4071 | D55: WISSEMBOURG | E55: HAGUENAU | F55: BAS_RHIN
A56: 78 | B56: LAUTERBOURG | C56: 4071 | D56: WISSEMBOURG | E56: HAGUENAU | F56: BAS_RHIN
A57: 80 | B57: WOERTH | C57: 4080 | D57: WOERTH | E57: HAGUENAU | F57: BAS_RHIN
A58: 113 | B58: BARR | C58: 4113 | D58: BARR | E58: SELESTAT | F58: BAS_RHIN
A59: 111 | B59: BENFELD | C59: 4111 | D59: BENFELD | E59: SELESTAT | F59: BAS_RHIN
A60: 104 | B60: ERSTEIN | C60: 4104 | D60: ERSTEIN | E60: SELESTAT | F60: BAS_RHIN
A61: 8 | B61: FEGERSHEIM | C61: 4008 | D61: FEGERSHEIM | E61: SELESTAT | F61: BAS_RHIN
A62: 7 | B62: ILLKIRCH CENTRE | C62: 4007 | D62: ILLKIRCH CENTRE | E62: SELESTAT | F62: BAS_RHIN
A63: 13 | B63: ILLKIRCH NORD | C63: 4007 | D63: ILLKIRCH CENTRE | E63: SELESTAT | F63: BAS_RHIN
A64: 14 | B64: OSTWALD | C64: 4015 | D64: LINGOLSHEIM | E64: SELESTAT | F64: BAS_RHIN
A65: 15 | B65: LINGOLSHEIM | C65: 4015 | D65: LINGOLSHEIM | E65: SELESTAT | F65: BAS_RHIN
A66: 109 | B66: MARCKOLSHEIM | C66: 4109 | D66: MARCKOLSHEIM | E66: SELESTAT | F66: BAS_RHIN
A67: 129 | B67: MARLENHEIM | C67: 4129 | D67: MARLENHEIM | E67: SELESTAT | F67: BAS_RHIN
A68: 116 | B68: MOLSHEIM | C68: 4116 | D68: MOLSHEIM | E68: SELESTAT | F68: BAS_RHIN
A69: 126 | B69: MUTZIG | C69: 4126 | D69: MUTZIG | E69: SELESTAT | F69: BAS_RHIN
A70: 119 | B70: OBERNAI | C70: 4119 | D70: OBERNAI | E70: SELESTAT | F70: BAS_RHIN
A71: 127 | B71: ROSHEIM | C71: 4127 | D71: ROSHEIM | E71: SELESTAT | F71: BAS_RHIN
A72: 121 | B72: SCHIRMECK | C72: 4121 | D72: SCHIRMECK | E72: SELESTAT | F72: BAS_RHIN
A73: 101 | B73: SELESTAT CENTRE | C73: 4101 | D73: SELESTAT CENTRE | E73: SELESTAT | F73: BAS_RHIN
A74: 108 | B74: CHATENOIS | C74: 4101 | D74: SELESTAT CENTRE | E74: SELESTAT | F74: BAS_RHIN
A75: 110 | B75: SELESTAT OUEST | C75: 4110 | D75: SELESTAT OUEST | E75: SELESTAT | F75: BAS_RHIN
A76: 107 | B76: VILLE | C76: 4107 | D76: VILLE | E76: SELESTAT | F76: BAS_RHIN
A77: 120 | B77: WASSELONNE | C77: 4120 | D77: WASSELONNE | E77: SELESTAT | F77: BAS_RHIN
A78: 28 | B78: BISCHHEIM | C78: 4028 | D78: BISCHHEIM | E78: STRASBOURG | F78: BAS_RHIN
A79: 33 | B79: LA WANTZENAU | C79: 4033 | D79: LA WANTZENAU | E79: STRASBOURG | F79: BAS_RHIN
A80: 34 | B80: VENDENHEIM | C80: 4037 | D80: MUNDOLSHEIM | E80: STRASBOURG | F80: BAS_RHIN
A81: 37 | B81: MUNDOLSHEIM | C81: 4037 | D81: MUNDOLSHEIM | E81: STRASBOURG | F81: BAS_RHIN
A82: 38 | B82: OBERHAUSBERGEN | C82: 4038 | D82: OBERHAUSBERGEN | E82: STRASBOURG | F82: BAS_RHIN
A83: 39 | B83: REICHSTETT | C83: 4039 | D83: REICHSTETT | E83: STRASBOURG | F83: BAS_RHIN
A84: 27 | B84: SCHILTIGHEIM CENTRE | C84: 4027 | D84: SCHILTIGHEIM CENTRE | E84: STRASBOURG | F84: BAS_RHIN
A85: 29 | B85: SCHILTIGHEIM KLEBER | C85: 4029 | D85: SCHILTIGHEIM KLEBER | E85: STRASBOURG | F85: BAS_RHIN
A86: 19 | B86: STRASBOURG ANVERS | C86: 4019 | D86: STRASBOURG ANVERS | E86: STRASBOURG | F86: BAS_RHIN
A87: 24 | B87: STRASBOURG AUSTERLITZ | C87: 4024 | D87: STRASBOURG AUSTERLITZ | E87: STRASBOURG | F87: BAS_RHIN
A88: 47 | B88: STRASBOURG CRONENBOURG | C88: 4047 | D88: STRASBOURG CRONENBOURG | E88: STRASBOURG | F88: BAS_RHIN
A89: 26 | B89: STRASBOURG DANUBE | C89: 4026 | D89: STRASBOURG DANUBE | E89: STRASBOURG | F89: BAS_RHIN
A90: 25 | B90: STRASBOURG ESPLANADE | C90: 4025 | D90: STRASBOURG ESPLANADE | E90: STRASBOURG | F90: BAS_RHIN
A91: 45 | B91: STRASBOURG FRANCS BOURGEOIS | C91: 4045 | D91: STRASBOURG FRANCS BOURGEOIS | E91: STRASBOURG | F91: BAS_RHIN
A92: 18 | B92: ESPACE MESANGE | C92: 4043 | D92: STRASBOURG HALLES | E92: STRASBOURG | F92: BAS_RHIN
A93: 43 | B93: STRASBOURG HALLES | C93: 4043 | D93: STRASBOURG HALLES | E93: STRASBOURG | F93: BAS_RHIN
A94: 50 | B94: STRASBOURG GARE | C94: 4043 | D94: STRASBOURG HALLES | E94: STRASBOURG | F94: BAS_RHIN
A95: 40 | B95: ECKBOLSHEIM | C95: 4048 | D95: STRASBOURG KOENIGSHOFFEN | E95: STRASBOURG | F95: BAS_RHIN
A96: 48 | B96: STRASBOURG KOENIGSHOFFEN | C96: 4048 | D96: STRASBOURG KOENIGSHOFFEN | E96: STRASBOURG | F96: BAS_RHIN
A97: 10 | B97: STRASBOURG MEINAU | C97: 4010 | D97: STRASBOURG MEINAU | E97: STRASBOURG | F97: BAS_RHIN
A98: 54 | B98: STRASBOURG MONTAGNE VERTE | C98: 4054 | D98: STRASBOURG MONTAGNE VERTE | E98: STRASBOURG | F98: BAS_RHIN
A99: 6 | B99: STRASBOURG NEUDORF | C99: 4006 | D99: STRASBOURG NEUDORF | E99: STRASBOURG | F99: BAS_RHIN
A100: 20 | B100: STRASBOURG ROBERTSAU | C100: 4020 | D100: STRASBOURG ROBERTSAU | E100: STRASBOURG | F100: BAS_RHIN
A101: 12 | B101: STRASBOURG STOCKFELD | C101: 4012 | D101: STRASBOURG STOCKFELD | E101: STRASBOURG | F101: BAS_RHIN
A102: 23 | B102: STRASBOURG VOSGES | C102: 4023 | D102: STRASBOURG VOSGES | E102: STRASBOURG | F102: BAS_RHIN
A103: 132 | B103: COLMAR MARAICHERS | C103: 4132 | D103: COLMAR MARAICHERS | E103: COLMAR | F103: HAUT_RHIN
A104: 130 | B104: COLMAR REPUBLIQUE | C104: 4130 | D104: COLMAR REPUBLIQUE | E104: COLMAR | F104: HAUT_RHIN
A105: 134 | B105: COLMAR SAINT JOSEPH | C105: 4134 | D105: COLMAR SAINT JOSEPH | E105: COLMAR | F105: HAUT_RHIN
A106: 135 | B106: COLMAR SAINTE MARIE | C106: 4135 | D106: COLMAR SAINTE MARIE | E106: COLMAR | F106: HAUT_RHIN
A107: 133 | B107: COLMAR VAUBAN | C107: 4133 | D107: COLMAR VAUBAN | E107: COLMAR | F107: HAUT_RHIN
A108: 162 | B108: ENSISHEIM | C108: 4162 | D108: ENSISHEIM | E108: COLMAR | F108: HAUT_RHIN
A109: 163 | B109: PULVERSHEIM | C109: 4162 | D109: ENSISHEIM | E109: COLMAR | F109: HAUT_RHIN
A110: 147 | B110: GUEBWILLER | C110: 4147 | D110: GUEBWILLER | E110: COLMAR | F110: HAUT_RHIN
A111: 141 | B111: HORBOURG WIHR | C111: 4141 | D111: HORBOURG WIHR | E111: COLMAR | F111: HAUT_RHIN
A112: 139 | B112: INGERSHEIM | C112: 4139 | D112: INGERSHEIM | E112: COLMAR | F112: HAUT_RHIN
A113: 152 | B113: KAYSERSBERG | C113: 4139 | D113: INGERSHEIM | E113: COLMAR | F113: HAUT_RHIN
A114: 143 | B114: MUNSTER | C114: 4143 | D114: MUNSTER | E114: COLMAR | F114: HAUT_RHIN
A115: 159 | B115: MUNTZENHEIM | C115: 4159 | D115: MUNTZENHEIM | E115: COLMAR | F115: HAUT_RHIN
A116: 157 | B116: NEUF BRISACH | C116: 4157 | D116: NEUF BRISACH | E116: COLMAR | F116: HAUT_RHIN
A117: 148 | B117: ORBEY | C117: 4148 | D117: ORBEY | E117: COLMAR | F117: HAUT_RHIN
A118: 154 | B118: LAPOUTROIE | C118: 4148 | D118: ORBEY | E118: COLMAR | F118: HAUT_RHIN
A119: 144 | B119: RIBEAUVILLE | C119: 4144 | D119: RIBEAUVILLE | E119: COLMAR | F119: HAUT_RHIN
A120: 153 | B120: ROUFFACH | C120: 4153 | D120: ROUFFACH | E120: COLMAR | F120: HAUT_RHIN
A121: 156 | B121: SOULTZMATT | C121: 4153 | D121: ROUFFACH | E121: COLMAR | F121: HAUT_RHIN
A122: 164 | B122: SAINTE MARIE AUX MINES | C122: 4164 | D122: SAINTE MARIE AUX MINES | E122: COLMAR | F122: HAUT_RHIN
A123: 167 | B123: LIEPVRE | C123: 4164 | D123: SAINTE MARIE AUX MINES | E123: COLMAR | F123: HAUT_RHIN
A124: 160 | B124: SOULTZ | C124: 4160 | D124: SOULTZ | E124: COLMAR | F124: HAUT_RHIN
A125: 140 | B125: WINTZENHEIM | C125: 4140 | D125: WINTZENHEIM | E125: COLMAR | F125: HAUT_RHIN
A126: 189 | B126: ALTKIRCH | C126: 4189 | D126: ALTKIRCH | E126: MULHOUSE | F126: HAUT_RHIN
A127: 191 | B127: FERRETTE | C127: 4189 | D127: ALTKIRCH | E127: MULHOUSE | F127: HAUT_RHIN
A128: 186 | B128: BRUNSTATT | C128: 4186 | D128: BRUNSTATT | E128: MULHOUSE | F128: HAUT_RHIN
A129: 195 | B129: CERNAY | C129: 4195 | D129: CERNAY | E129: MULHOUSE | F129: HAUT_RHIN
A130: 192 | B130: SEPPOIS LE BAS | C130: 4193 | D130: DANNEMARIE | E130: MULHOUSE | F130: HAUT_RHIN
A131: 193 | B131: DANNEMARIE | C131: 4193 | D131: DANNEMARIE | E131: MULHOUSE | F131: HAUT_RHIN
A132: 184 | B132: ILLZACH | C132: 4184 | D132: ILLZACH | E132: MULHOUSE | F132: HAUT_RHIN
A133: 196 | B133: MASEVAUX | C133: 4196 | D133: MASEVAUX | E133: MULHOUSE | F133: HAUT_RHIN
A134: 174 | B134: MULHOUSE DORNACH | C134: 4174 | D134: MULHOUSE DORNACH | E134: MULHOUSE | F134: HAUT_RHIN
A135: 170 | B135: MULHOUSE REUNION | C135: 4170 | D135: MULHOUSE REUNION | E135: MULHOUSE | F135: HAUT_RHIN
A136: 169 | B136: MULHOUSE ROOSEVELT | C136: 4169 | D136: MULHOUSE ROOSEVELT | E136: MULHOUSE | F136: HAUT_RHIN
A137: 188 | B137: PFASTATT | C137: 4188 | D137: PFASTATT | E137: MULHOUSE | F137: HAUT_RHIN
A138: 180 | B138: RIEDISHEIM | C138: 4180 | D138: RIEDISHEIM | E138: MULHOUSE | F138: HAUT_RHIN
A139: 185 | B139: RIXHEIM | C139: 4185 | D139: RIXHEIM | E139: MULHOUSE | F139: HAUT_RHIN
A140: 178 | B140: SAINT LOUIS | C140: 4178 | D140: SAINT LOUIS | E140: MULHOUSE | F140: HAUT_RHIN
A141: 187 | B141: HUNINGUE | C141: 4178 | D141: SAINT LOUIS | E141: MULHOUSE | F141: HAUT_RHIN
A142: 179 | B142: SIERENTZ | C142: 4179 | D142: SIERENTZ | E142: MULHOUSE | F142: HAUT_RHIN
A143: 194 | B143: THANN | C143: 4194 | D143: THANN | E143: MULHOUSE | F143: HAUT_RHIN
A144: 198 | B144: SAINT AMARIN | C144: 4194 | D144: THANN | E144: MULHOUSE | F144: HAUT_RHIN
A145: 181 | B145: WITTELSHEIM | C145: 4181 | D145: WITTELSHEIM | E145: MULHOUSE | F145: HAUT_RHIN
A146: 183 | B146: WITTENHEIM | C146: 4183 | D146: WITTENHEIM | E146: MULHOUSE | F146: HAUT_RHIN
A147: 51110 | B147: CHALONS ROOSEVELT | C147: 551110 | D147: CHALONS ROOSEVELT | E147: CHALONS_EN_CHAMPAGNE | F147: MARNE_ARDENNES
A148: 51101 | B148: CHALONS VIVIERS | C148: 451101 | D148: CHALONS VIVIERS | E148: CHALONS_EN_CHAMPAGNE | F148: MARNE_ARDENNES
A149: 51103 | B149: FAGNIERES LECLERC | C149: 551103 | D149: FAGNIERES LECLERC | E149: CHALONS_EN_CHAMPAGNE | F149: MARNE_ARDENNES
A150: 51330 | B150: MONTMIRAIL | C150: 551330 | D150: MONTMIRAIL | E150: CHALONS_EN_CHAMPAGNE | F150: MARNE_ARDENNES
A151: 51114 | B151: SUIPPES | C151: 451115 | D151: MOURMELON LE GRAND | E151: CHALONS_EN_CHAMPAGNE | F151: MARNE_ARDENNES
A152: 51115 | B152: MOURMELON LE GRAND | C152: 451115 | D152: MOURMELON LE GRAND | E152: CHALONS_EN_CHAMPAGNE | F152: MARNE_ARDENNES
A153: 51128 | B153: SAINTE MENEHOULD | C153: 551128 | D153: SAINTE MENEHOULD | E153: CHALONS_EN_CHAMPAGNE | F153: MARNE_ARDENNES
A154: 51120 | B154: SARRY | C154: 451120 | D154: SARRY | E154: CHALONS_EN_CHAMPAGNE | F154: MARNE_ARDENNES
A155: 51381 | B155: SEZANNE | C155: 451381 | D155: SEZANNE | E155: CHALONS_EN_CHAMPAGNE | F155: MARNE_ARDENNES
A156: 51354 | B156: VERTUS | C156: 551354 | D156: VERTUS | E156: CHALONS_EN_CHAMPAGNE | F156: MARNE_ARDENNES
A157: 51166 | B157: VITRY LE FRANCOIS | C157: 451166 | D157: VITRY LE FRANCOIS | E157: CHALONS_EN_CHAMPAGNE | F157: MARNE_ARDENNES
A158: 8815 | B158: CARIGNAN | C158: 508815 | D158: CARIGNAN | E158: CHARLEVILLE_MEZIERES | F158: MARNE_ARDENNES
A159: 8801 | B159: CHARLEVILLE JEAN JAURES | C159: 408801 | D159: CHARLEVILLE JEAN JAURES | E159: CHARLEVILLE_MEZIERES | F159: MARNE_ARDENNES
A160: 8822 | B160: CHARLEVILLE MEZIERES | C160: 408822 | D160: CHARLEVILLE MEZIERES | E160: CHARLEVILLE_MEZIERES | F160: MARNE_ARDENNES
A161: 8817 | B161: CHARLEVILLE MOHON | C161: 508817 | D161: CHARLEVILLE MOHON | E161: CHARLEVILLE_MEZIERES | F161: MARNE_ARDENNES
A162: 8802 | B162: CHARLEVILLE NEVERS | C162: 508802 | D162: CHARLEVILLE NEVERS | E162: CHARLEVILLE_MEZIERES | F162: MARNE_ARDENNES
A163: 8839 | B163: GIVET | C163: 508839 | D163: GIVET | E163: CHARLEVILLE_MEZIERES | F163: MARNE_ARDENNES
A164: 8819 | B164: MOUZON | C164: 508819 | D164: MOUZON | E164: CHARLEVILLE_MEZIERES | F164: MARNE_ARDENNES
A165: 8840 | B165: RETHEL | C165: 408840 | D165: RETHEL | E165: CHARLEVILLE_MEZIERES | F165: MARNE_ARDENNES
A166: 8862 | B166: REVIN | C166: 408862 | D166: REVIN | E166: CHARLEVILLE_MEZIERES | F166: MARNE_ARDENNES
A167: 8860 | B167: ROCROI | C167: 508860 | D167: ROCROI | E167: CHARLEVILLE_MEZIERES | F167: MARNE_ARDENNES
A168: 8806 | B168: SEDAN | C168: 408806 | D168: SEDAN | E168: CHARLEVILLE_MEZIERES | F168: MARNE_ARDENNES
A169: 8833 | B169: VILLERS SEMEUSE CORA | C169: 508833 | D169: VILLERS SEMEUSE CORA | E169: CHARLEVILLE_MEZIERES | F169: MARNE_ARDENNES
A170: 8820 | B170: VOUZIERS | C170: 508820 | D170: VOUZIERS | E170: CHARLEVILLE_MEZIERES | F170: MARNE_ARDENNES
A171: 8814 | B171: VRIGNE AUX BOIS | C171: 408814 | D171: VRIGNE AUX BOIS | E171: CHARLEVILLE_MEZIERES | F171: MARNE_ARDENNES
A172: 51367 | B172: AY CHAMPAGNE | C172: 551367 | D172: AY CHAMPAGNE | E172: REIMS | F172: MARNE_ARDENNES
A173: 51340 | B173: BETHENY | C173: 551340 | D173: BETHENY | E173: REIMS | F173: MARNE_ARDENNES
A174: 51369 | B174: DAMERY | C174: 551369 | D174: DAMERY | E174: REIMS | F174: MARNE_ARDENNES
A175: 51365 | B175: DORMANS | C175: 551365 | D175: DORMANS | E175: REIMS | F175: MARNE_ARDENNES
A176: 51370 | B176: EPERNAY | C176: 451370 | D176: EPERNAY | E176: REIMS | F176: MARNE_ARDENNES
A177: 51314 | B177: FISMES | C177: 551314 | D177: FISMES | E177: REIMS | F177: MARNE_ARDENNES
A178: 51361 | B178: PIERRY LECLERC | C178: 451361 | D178: PIERRY LECLERC | E178: REIMS | F178: MARNE_ARDENNES
A179: 51350 | B179: REIMS CENTRE VILLE | C179: 451350 | D179: REIMS CENTRE VILLE | E179: REIMS | F179: MARNE_ARDENNES
A180: 51310 | B180: REIMS CHATILLONS | C180: 551310 | D180: REIMS CHATILLONS | E180: REIMS | F180: MARNE_ARDENNES
A181: 51309 | B181: REIMS EUROPE | C181: 551309 | D181: REIMS EUROPE | E181: REIMS | F181: MARNE_ARDENNES
A182: 51305 | B182: REIMS HIPPODROME | C182: 551305 | D182: REIMS HIPPODROME | E182: REIMS | F182: MARNE_ARDENNES
A183: 51301 | B183: REIMS HOTEL DE VILLE | C183: 451301 | D183: REIMS HOTEL DE VILLE | E183: REIMS | F183: MARNE_ARDENNES
A184: 51341 | B184: REIMS JEAN JAURES | C184: 551341 | D184: REIMS JEAN JAURES | E184: REIMS | F184: MARNE_ARDENNES
A185: 51306 | B185: REIMS SAINT MARCEAUX | C185: 551306 | D185: REIMS SAINT MARCEAUX | E185: REIMS | F185: MARNE_ARDENNES
A186: 51349 | B186: REIMS SAINT REMI | C186: 551349 | D186: REIMS SAINT REMI | E186: REIMS | F186: MARNE_ARDENNES
A187: 51308 | B187: REIMS SAINT THOMAS | C187: 451308 | D187: REIMS SAINT THOMAS | E187: REIMS | F187: MARNE_ARDENNES
A188: 51307 | B188: REIMS SAINTE ANNE | C188: 551307 | D188: REIMS SAINTE ANNE | E188: REIMS | F188: MARNE_ARDENNES
A189: 51336 | B189: TINQUEUX | C189: 451336 | D189: TINQUEUX | E189: REIMS | F189: MARNE_ARDENNES
A190: 51318 | B190: VERZY | C190: 451318 | D190: VERZY | E190: REIMS | F190: MARNE_ARDENNES
A191: 54116 | B191: BACCARAT | C191: 554116 | D191: BACCARAT | E191: NANCY | F191: MEURTHE_ET_MOSELLE_MEUSE
A192: 54161 | B192: BAYON | C192: 454161 | D192: BAYON | E192: NANCY | F192: MEURTHE_ET_MOSELLE_MEUSE
A193: 54166 | B193: BLAINVILLE | C193: 554166 | D193: BLAINVILLE | E193: NANCY | F193: MEURTHE_ET_MOSELLE_MEUSE
A194: 54171 | B194: BLAMONT | C194: 454171 | D194: BLAMONT | E194: NANCY | F194: MEURTHE_ET_MOSELLE_MEUSE
A195: 54266 | B195: DOMBASLE SUR MEURTHE | C195: 554266 | D195: DOMBASLE SUR MEURTHE | E195: NANCY | F195: MEURTHE_ET_MOSELLE_MEUSE
A196: 54296 | B196: ESSEY LES NANCY | C196: 554296 | D196: ESSEY LES NANCY | E196: NANCY | F196: MEURTHE_ET_MOSELLE_MEUSE
A197: 54356 | B197: JARVILLE LA MALGRANGE | C197: 554356 | D197: JARVILLE LA MALGRANGE | E197: NANCY | F197: MEURTHE_ET_MOSELLE_MEUSE
A198: 54426 | B198: LUNEVILLE CARNOT | C198: 454426 | D198: LUNEVILLE CARNOT | E198: NANCY | F198: MEURTHE_ET_MOSELLE_MEUSE
A199: 54431 | B199: LUNEVILLE CHATEAU | C199: 554431 | D199: LUNEVILLE CHATEAU | E199: NANCY | F199: MEURTHE_ET_MOSELLE_MEUSE
A200: 54476 | B200: NANCY ARTEM | C200: 554476 | D200: NANCY ARTEM | E200: NANCY | F200: MEURTHE_ET_MOSELLE_MEUSE
... 137 more rows

Sheet EDS 2
A1: territoire | B1: territoire | C1: région | D1: région
A2: CHAUMONT | B2: CHAUMONT | C2: AUBE HAUTE MARNE | D2: AUBE_HAUTE_MARNE
A3: CHAUMONT | B3: CHAUMONT | C3: AUBE HAUTE MARNE | D3: AUBE_HAUTE_MARNE
A4: CHAUMONT | B4: CHAUMONT | C4: AUBE HAUTE MARNE | D4: AUBE_HAUTE_MARNE
A5: CHAUMONT | B5: CHAUMONT | C5: AUBE HAUTE MARNE | D5: AUBE_HAUTE_MARNE
A6: CHAUMONT | B6: CHAUMONT | C6: AUBE HAUTE MARNE | D6: AUBE_HAUTE_MARNE
A7: CHAUMONT | B7: CHAUMONT | C7: AUBE HAUTE MARNE | D7: AUBE_HAUTE_MARNE
A8: CHAUMONT | B8: CHAUMONT | C8: AUBE HAUTE MARNE | D8: AUBE_HAUTE_MARNE
A9: CHAUMONT | B9: CHAUMONT | C9: AUBE HAUTE MARNE | D9: AUBE_HAUTE_MARNE
A10: CHAUMONT | B10: CHAUMONT | C10: AUBE HAUTE MARNE | D10: AUBE_HAUTE_MARNE
A11: CHAUMONT | B11: CHAUMONT | C11: AUBE HAUTE MARNE | D11: AUBE_HAUTE_MARNE
A12: CHAUMONT | B12: CHAUMONT | C12: AUBE HAUTE MARNE | D12: AUBE_HAUTE_MARNE
A13: TROYES | B13: TROYES | C13: AUBE HAUTE MARNE | D13: AUBE_HAUTE_MARNE
A14: TROYES | B14: TROYES | C14: AUBE HAUTE MARNE | D14: AUBE_HAUTE_MARNE
A15: TROYES | B15: TROYES | C15: AUBE HAUTE MARNE | D15: AUBE_HAUTE_MARNE
A16: TROYES | B16: TROYES | C16: AUBE HAUTE MARNE | D16: AUBE_HAUTE_MARNE
A17: TROYES | B17: TROYES | C17: AUBE HAUTE MARNE | D17: AUBE_HAUTE_MARNE
A18: TROYES | B18: TROYES | C18: AUBE HAUTE MARNE | D18: AUBE_HAUTE_MARNE
A19: TROYES | B19: TROYES | C19: AUBE HAUTE MARNE | D19: AUBE_HAUTE_MARNE
A20: TROYES | B20: TROYES | C20: AUBE HAUTE MARNE | D20: AUBE_HAUTE_MARNE
A21: TROYES | B21: TROYES | C21: AUBE HAUTE MARNE | D21: AUBE_HAUTE_MARNE
A22: TROYES | B22: TROYES | C22: AUBE HAUTE MARNE | D22: AUBE_HAUTE_MARNE
A23: TROYES | B23: TROYES | C23: AUBE HAUTE MARNE | D23: AUBE_HAUTE_MARNE
A24: TROYES | B24: TROYES | C24: AUBE HAUTE MARNE | D24: AUBE_HAUTE_MARNE
A25: TROYES | B25: TROYES | C25: AUBE HAUTE MARNE | D25: AUBE_HAUTE_MARNE
A26: TROYES | B26: TROYES | C26: AUBE HAUTE MARNE | D26: AUBE_HAUTE_MARNE
A27: TROYES | B27: TROYES | C27: AUBE HAUTE MARNE | D27: AUBE_HAUTE_MARNE
A28: TROYES | B28: TROYES | C28: AUBE HAUTE MARNE | D28: AUBE_HAUTE_MARNE
A29: HAGUENAU | B29: HAGUENAU | C29: BAS RHIN | D29: BAS_RHIN
A30: HAGUENAU | B30: HAGUENAU | C30: BAS RHIN | D30: BAS_RHIN
A31: HAGUENAU | B31: HAGUENAU | C31: BAS RHIN | D31: BAS_RHIN
A32: HAGUENAU | B32: HAGUENAU | C32: BAS RHIN | D32: BAS_RHIN
A33: HAGUENAU | B33: HAGUENAU | C33: BAS RHIN | D33: BAS_RHIN
A34: HAGUENAU | B34: HAGUENAU | C34: BAS RHIN | D34: BAS_RHIN
A35: HAGUENAU | B35: HAGUENAU | C35: BAS RHIN | D35: BAS_RHIN
A36: HAGUENAU | B36: HAGUENAU | C36: BAS RHIN | D36: BAS_RHIN
A37: HAGUENAU | B37: HAGUENAU | C37: BAS RHIN | D37: BAS_RHIN
A38: HAGUENAU | B38: HAGUENAU | C38: BAS RHIN | D38: BAS_RHIN
A39: HAGUENAU | B39: HAGUENAU | C39: BAS RHIN | D39: BAS_RHIN
A40: HAGUENAU | B40: HAGUENAU | C40: BAS RHIN | D40: BAS_RHIN
A41: HAGUENAU | B41: HAGUENAU | C41: BAS RHIN | D41: BAS_RHIN
A42: HAGUENAU | B42: HAGUENAU | C42: BAS RHIN | D42: BAS_RHIN
A43: HAGUENAU | B43: HAGUENAU | C43: BAS RHIN | D43: BAS_RHIN
A44: HAGUENAU | B44: HAGUENAU | C44: BAS RHIN | D44: BAS_RHIN
A45: HAGUENAU | B45: HAGUENAU | C45: BAS RHIN | D45: BAS_RHIN
A46: HAGUENAU | B46: HAGUENAU | C46: BAS RHIN | D46: BAS_RHIN
A47: HAGUENAU | B47: HAGUENAU | C47: BAS RHIN | D47: BAS_RHIN
A48: HAGUENAU | B48: HAGUENAU | C48: BAS RHIN | D48: BAS_RHIN
A49: HAGUENAU | B49: HAGUENAU | C49: BAS RHIN | D49: BAS_RHIN
A50: HAGUENAU | B50: HAGUENAU | C50: BAS RHIN | D50: BAS_RHIN
A51: HAGUENAU | B51: HAGUENAU | C51: BAS RHIN | D51: BAS_RHIN
A52: HAGUENAU | B52: HAGUENAU | C52: BAS RHIN | D52: BAS_RHIN
A53: HAGUENAU | B53: HAGUENAU | C53: BAS RHIN | D53: BAS_RHIN
A54: HAGUENAU | B54: HAGUENAU | C54: BAS RHIN | D54: BAS_RHIN
A55: HAGUENAU | B55: HAGUENAU | C55: BAS RHIN | D55: BAS_RHIN
A56: HAGUENAU | B56: HAGUENAU | C56: BAS RHIN | D56: BAS_RHIN
A57: HAGUENAU | B57: HAGUENAU | C57: BAS RHIN | D57: BAS_RHIN
A58: SELESTAT | B58: SELESTAT | C58: BAS RHIN | D58: BAS_RHIN
A59: SELESTAT | B59: SELESTAT | C59: BAS RHIN | D59: BAS_RHIN
A60: SELESTAT | B60: SELESTAT | C60: BAS RHIN | D60: BAS_RHIN
A61: SELESTAT | B61: SELESTAT | C61: BAS RHIN | D61: BAS_RHIN
A62: SELESTAT | B62: SELESTAT | C62: BAS RHIN | D62: BAS_RHIN
A63: SELESTAT | B63: SELESTAT | C63: BAS RHIN | D63: BAS_RHIN
A64: SELESTAT | B64: SELESTAT | C64: BAS RHIN | D64: BAS_RHIN
A65: SELESTAT | B65: SELESTAT | C65: BAS RHIN | D65: BAS_RHIN
A66: SELESTAT | B66: SELESTAT | C66: BAS RHIN | D66: BAS_RHIN
A67: SELESTAT | B67: SELESTAT | C67: BAS RHIN | D67: BAS_RHIN
A68: SELESTAT | B68: SELESTAT | C68: BAS RHIN | D68: BAS_RHIN
A69: SELESTAT | B69: SELESTAT | C69: BAS RHIN | D69: BAS_RHIN
A70: SELESTAT | B70: SELESTAT | C70: BAS RHIN | D70: BAS_RHIN
A71: SELESTAT | B71: SELESTAT | C71: BAS RHIN | D71: BAS_RHIN
A72: SELESTAT | B72: SELESTAT | C72: BAS RHIN | D72: BAS_RHIN
A73: SELESTAT | B73: SELESTAT | C73: BAS RHIN | D73: BAS_RHIN
A74: SELESTAT | B74: SELESTAT | C74: BAS RHIN | D74: BAS_RHIN
A75: SELESTAT | B75: SELESTAT | C75: BAS RHIN | D75: BAS_RHIN
A76: SELESTAT | B76: SELESTAT | C76: BAS RHIN | D76: BAS_RHIN
A77: SELESTAT | B77: SELESTAT | C77: BAS RHIN | D77: BAS_RHIN
A78: STRASBOURG | B78: STRASBOURG | C78: BAS RHIN | D78: BAS_RHIN
A79: STRASBOURG | B79: STRASBOURG | C79: BAS RHIN | D79: BAS_RHIN
A80: STRASBOURG | B80: STRASBOURG | C80: BAS RHIN | D80: BAS_RHIN
A81: STRASBOURG | B81: STRASBOURG | C81: BAS RHIN | D81: BAS_RHIN
A82: STRASBOURG | B82: STRASBOURG | C82: BAS RHIN | D82: BAS_RHIN
A83: STRASBOURG | B83: STRASBOURG | C83: BAS RHIN | D83: BAS_RHIN
A84: STRASBOURG | B84: STRASBOURG | C84: BAS RHIN | D84: BAS_RHIN
A85: STRASBOURG | B85: STRASBOURG | C85: BAS RHIN | D85: BAS_RHIN
A86: STRASBOURG | B86: STRASBOURG | C86: BAS RHIN | D86: BAS_RHIN
A87: STRASBOURG | B87: STRASBOURG | C87: BAS RHIN | D87: BAS_RHIN
A88: STRASBOURG | B88: STRASBOURG | C88: BAS RHIN | D88: BAS_RHIN
A89: STRASBOURG | B89: STRASBOURG | C89: BAS RHIN | D89: BAS_RHIN
A90: STRASBOURG | B90: STRASBOURG | C90: BAS RHIN | D90: BAS_RHIN
A91: STRASBOURG | B91: STRASBOURG | C91: BAS RHIN | D91: BAS_RHIN
A92: STRASBOURG | B92: STRASBOURG | C92: BAS RHIN | D92: BAS_RHIN
A93: STRASBOURG | B93: STRASBOURG | C93: BAS RHIN | D93: BAS_RHIN
A94: STRASBOURG | B94: STRASBOURG | C94: BAS RHIN | D94: BAS_RHIN
A95: STRASBOURG | B95: STRASBOURG | C95: BAS RHIN | D95: BAS_RHIN
A96: STRASBOURG | B96: STRASBOURG | C96: BAS RHIN | D96: BAS_RHIN
A97: STRASBOURG | B97: STRASBOURG | C97: BAS RHIN | D97: BAS_RHIN
A98: STRASBOURG | B98: STRASBOURG | C98: BAS RHIN | D98: BAS_RHIN
A99: STRASBOURG | B99: STRASBOURG | C99: BAS RHIN | D99: BAS_RHIN
A100: STRASBOURG | B100: STRASBOURG | C100: BAS RHIN | D100: BAS_RHIN
A101: STRASBOURG | B101: STRASBOURG | C101: BAS RHIN | D101: BAS_RHIN
A102: STRASBOURG | B102: STRASBOURG | C102: BAS RHIN | D102: BAS_RHIN
A103: COLMAR | B103: COLMAR | C103: HAUT RHIN | D103: HAUT_RHIN
A104: COLMAR | B104: COLMAR | C104: HAUT RHIN | D104: HAUT_RHIN
A105: COLMAR | B105: COLMAR | C105: HAUT RHIN | D105: HAUT_RHIN
A106: COLMAR | B106: COLMAR | C106: HAUT RHIN | D106: HAUT_RHIN
A107: COLMAR | B107: COLMAR | C107: HAUT RHIN | D107: HAUT_RHIN
A108: COLMAR | B108: COLMAR | C108: HAUT RHIN | D108: HAUT_RHIN
A109: COLMAR | B109: COLMAR | C109: HAUT RHIN | D109: HAUT_RHIN
A110: COLMAR | B110: COLMAR | C110: HAUT RHIN | D110: HAUT_RHIN
A111: COLMAR | B111: COLMAR | C111: HAUT RHIN | D111: HAUT_RHIN
A112: COLMAR | B112: COLMAR | C112: HAUT RHIN | D112: HAUT_RHIN
A113: COLMAR | B113: COLMAR | C113: HAUT RHIN | D113: HAUT_RHIN
A114: COLMAR | B114: COLMAR | C114: HAUT RHIN | D114: HAUT_RHIN
A115: COLMAR | B115: COLMAR | C115: HAUT RHIN | D115: HAUT_RHIN
A116: COLMAR | B116: COLMAR | C116: HAUT RHIN | D116: HAUT_RHIN
A117: COLMAR | B117: COLMAR | C117: HAUT RHIN | D117: HAUT_RHIN
A118: COLMAR | B118: COLMAR | C118: HAUT RHIN | D118: HAUT_RHIN
A119: COLMAR | B119: COLMAR | C119: HAUT RHIN | D119: HAUT_RHIN
A120: COLMAR | B120: COLMAR | C120: HAUT RHIN | D120: HAUT_RHIN
A121: COLMAR | B121: COLMAR | C121: HAUT RHIN | D121: HAUT_RHIN
A122: COLMAR | B122: COLMAR | C122: HAUT RHIN | D122: HAUT_RHIN
A123: COLMAR | B123: COLMAR | C123: HAUT RHIN | D123: HAUT_RHIN
A124: COLMAR | B124: COLMAR | C124: HAUT RHIN | D124: HAUT_RHIN
A125: COLMAR | B125: COLMAR | C125: HAUT RHIN | D125: HAUT_RHIN
A126: MULHOUSE | B126: MULHOUSE | C126: HAUT RHIN | D126: HAUT_RHIN
A127: MULHOUSE | B127: MULHOUSE | C127: HAUT RHIN | D127: HAUT_RHIN
A128: MULHOUSE | B128: MULHOUSE | C128: HAUT RHIN | D128: HAUT_RHIN
A129: MULHOUSE | B129: MULHOUSE | C129: HAUT RHIN | D129: HAUT_RHIN
A130: MULHOUSE | B130: MULHOUSE | C130: HAUT RHIN | D130: HAUT_RHIN
A131: MULHOUSE | B131: MULHOUSE | C131: HAUT RHIN | D131: HAUT_RHIN
A132: MULHOUSE | B132: MULHOUSE | C132: HAUT RHIN | D132: HAUT_RHIN
A133: MULHOUSE | B133: MULHOUSE | C133: HAUT RHIN | D133: HAUT_RHIN
A134: MULHOUSE | B134: MULHOUSE | C134: HAUT RHIN | D134: HAUT_RHIN
A135: MULHOUSE | B135: MULHOUSE | C135: HAUT RHIN | D135: HAUT_RHIN
A136: MULHOUSE | B136: MULHOUSE | C136: HAUT RHIN | D136: HAUT_RHIN
A137: MULHOUSE | B137: MULHOUSE | C137: HAUT RHIN | D137: HAUT_RHIN
A138: MULHOUSE | B138: MULHOUSE | C138: HAUT RHIN | D138: HAUT_RHIN
A139: MULHOUSE | B139: MULHOUSE | C139: HAUT RHIN | D139: HAUT_RHIN
A140: MULHOUSE | B140: MULHOUSE | C140: HAUT RHIN | D140: HAUT_RHIN
A141: MULHOUSE | B141: MULHOUSE | C141: HAUT RHIN | D141: HAUT_RHIN
A142: MULHOUSE | B142: MULHOUSE | C142: HAUT RHIN | D142: HAUT_RHIN
A143: MULHOUSE | B143: MULHOUSE | C143: HAUT RHIN | D143: HAUT_RHIN
A144: MULHOUSE | B144: MULHOUSE | C144: HAUT RHIN | D144: HAUT_RHIN
A145: MULHOUSE | B145: MULHOUSE | C145: HAUT RHIN | D145: HAUT_RHIN
A146: MULHOUSE | B146: MULHOUSE | C146: HAUT RHIN | D146: HAUT_RHIN
A147: CHALONS EN CHAMPAGNE | B147: CHALONS_EN_CHAMPAGNE | C147: MARNE ARDENNES | D147: MARNE_ARDENNES
A148: CHALONS EN CHAMPAGNE | B148: CHALONS_EN_CHAMPAGNE | C148: MARNE ARDENNES | D148: MARNE_ARDENNES
A149: CHALONS EN CHAMPAGNE | B149: CHALONS_EN_CHAMPAGNE | C149: MARNE ARDENNES | D149: MARNE_ARDENNES
A150: CHALONS EN CHAMPAGNE | B150: CHALONS_EN_CHAMPAGNE | C150: MARNE ARDENNES | D150: MARNE_ARDENNES
A151: CHALONS EN CHAMPAGNE | B151: CHALONS_EN_CHAMPAGNE | C151: MARNE ARDENNES | D151: MARNE_ARDENNES
A152: CHALONS EN CHAMPAGNE | B152: CHALONS_EN_CHAMPAGNE | C152: MARNE ARDENNES | D152: MARNE_ARDENNES
A153: CHALONS EN CHAMPAGNE | B153: CHALONS_EN_CHAMPAGNE | C153: MARNE ARDENNES | D153: MARNE_ARDENNES
A154: CHALONS EN CHAMPAGNE | B154: CHALONS_EN_CHAMPAGNE | C154: MARNE ARDENNES | D154: MARNE_ARDENNES
A155: CHALONS EN CHAMPAGNE | B155: CHALONS_EN_CHAMPAGNE | C155: MARNE ARDENNES | D155: MARNE_ARDENNES
A156: CHALONS EN CHAMPAGNE | B156: CHALONS_EN_CHAMPAGNE | C156: MARNE ARDENNES | D156: MARNE_ARDENNES
A157: CHALONS EN CHAMPAGNE | B157: CHALONS_EN_CHAMPAGNE | C157: MARNE ARDENNES | D157: MARNE_ARDENNES
A158: CHARLEVILLE MEZIERES | B158: CHARLEVILLE_MEZIERES | C158: MARNE ARDENNES | D158: MARNE_ARDENNES
A159: CHARLEVILLE MEZIERES | B159: CHARLEVILLE_MEZIERES | C159: MARNE ARDENNES | D159: MARNE_ARDENNES
A160: CHARLEVILLE MEZIERES | B160: CHARLEVILLE_MEZIERES | C160: MARNE ARDENNES | D160: MARNE_ARDENNES
A161: CHARLEVILLE MEZIERES | B161: CHARLEVILLE_MEZIERES | C161: MARNE ARDENNES | D161: MARNE_ARDENNES
A162: CHARLEVILLE MEZIERES | B162: CHARLEVILLE_MEZIERES | C162: MARNE ARDENNES | D162: MARNE_ARDENNES
A163: CHARLEVILLE MEZIERES | B163: CHARLEVILLE_MEZIERES | C163: MARNE ARDENNES | D163: MARNE_ARDENNES
A164: CHARLEVILLE MEZIERES | B164: CHARLEVILLE_MEZIERES | C164: MARNE ARDENNES | D164: MARNE_ARDENNES
A165: CHARLEVILLE MEZIERES | B165: CHARLEVILLE_MEZIERES | C165: MARNE ARDENNES | D165: MARNE_ARDENNES
A166: CHARLEVILLE MEZIERES | B166: CHARLEVILLE_MEZIERES | C166: MARNE ARDENNES | D166: MARNE_ARDENNES
A167: CHARLEVILLE MEZIERES | B167: CHARLEVILLE_MEZIERES | C167: MARNE ARDENNES | D167: MARNE_ARDENNES
A168: CHARLEVILLE MEZIERES | B168: CHARLEVILLE_MEZIERES | C168: MARNE ARDENNES | D168: MARNE_ARDENNES
A169: CHARLEVILLE MEZIERES | B169: CHARLEVILLE_MEZIERES | C169: MARNE ARDENNES | D169: MARNE_ARDENNES
A170: CHARLEVILLE MEZIERES | B170: CHARLEVILLE_MEZIERES | C170: MARNE ARDENNES | D170: MARNE_ARDENNES
A171: CHARLEVILLE MEZIERES | B171: CHARLEVILLE_MEZIERES | C171: MARNE ARDENNES | D171: MARNE_ARDENNES
A172: REIMS | B172: REIMS | C172: MARNE ARDENNES | D172: MARNE_ARDENNES
A173: REIMS | B173: REIMS | C173: MARNE ARDENNES | D173: MARNE_ARDENNES
A174: REIMS | B174: REIMS | C174: MARNE ARDENNES | D174: MARNE_ARDENNES
A175: REIMS | B175: REIMS | C175: MARNE ARDENNES | D175: MARNE_ARDENNES
A176: REIMS | B176: REIMS | C176: MARNE ARDENNES | D176: MARNE_ARDENNES
A177: REIMS | B177: REIMS | C177: MARNE ARDENNES | D177: MARNE_ARDENNES
A178: REIMS | B178: REIMS | C178: MARNE ARDENNES | D178: MARNE_ARDENNES
A179: REIMS | B179: REIMS | C179: MARNE ARDENNES | D179: MARNE_ARDENNES
A180: REIMS | B180: REIMS | C180: MARNE ARDENNES | D180: MARNE_ARDENNES
A181: REIMS | B181: REIMS | C181: MARNE ARDENNES | D181: MARNE_ARDENNES
A182: REIMS | B182: REIMS | C182: MARNE ARDENNES | D182: MARNE_ARDENNES
A183: REIMS | B183: REIMS | C183: MARNE ARDENNES | D183: MARNE_ARDENNES
A184: REIMS | B184: REIMS | C184: MARNE ARDENNES | D184: MARNE_ARDENNES
A185: REIMS | B185: REIMS | C185: MARNE ARDENNES | D185: MARNE_ARDENNES
A186: REIMS | B186: REIMS | C186: MARNE ARDENNES | D186: MARNE_ARDENNES
A187: REIMS | B187: REIMS | C187: MARNE ARDENNES | D187: MARNE_ARDENNES
A188: REIMS | B188: REIMS | C188: MARNE ARDENNES | D188: MARNE_ARDENNES
A189: REIMS | B189: REIMS | C189: MARNE ARDENNES | D189: MARNE_ARDENNES
A190: REIMS | B190: REIMS | C190: MARNE ARDENNES | D190: MARNE_ARDENNES
A191: NANCY | B191: NANCY | C191: MEURTHE ET MOSELLE MEUSE | D191: MEURTHE_ET_MOSELLE_MEUSE
A192: NANCY | B192: NANCY | C192: MEURTHE ET MOSELLE MEUSE | D192: MEURTHE_ET_MOSELLE_MEUSE
A193: NANCY | B193: NANCY | C193: MEURTHE ET MOSELLE MEUSE | D193: MEURTHE_ET_MOSELLE_MEUSE
A194: NANCY | B194: NANCY | C194: MEURTHE ET MOSELLE MEUSE | D194: MEURTHE_ET_MOSELLE_MEUSE
A195: NANCY | B195: NANCY | C195: MEURTHE ET MOSELLE MEUSE | D195: MEURTHE_ET_MOSELLE_MEUSE
A196: NANCY | B196: NANCY | C196: MEURTHE ET MOSELLE MEUSE | D196: MEURTHE_ET_MOSELLE_MEUSE
A197: NANCY | B197: NANCY | C197: MEURTHE ET MOSELLE MEUSE | D197: MEURTHE_ET_MOSELLE_MEUSE
A198: NANCY | B198: NANCY | C198: MEURTHE ET MOSELLE MEUSE | D198: MEURTHE_ET_MOSELLE_MEUSE
A199: NANCY | B199: NANCY | C199: MEURTHE ET MOSELLE MEUSE | D199: MEURTHE_ET_MOSELLE_MEUSE
A200: NANCY | B200: NANCY | C200: MEURTHE ET MOSELLE MEUSE | D200: MEURTHE_ET_MOSELLE_MEUSE
... 137 more rows

Sheet Menu
C2: Evolution du Fonds de Commerce

Sheet FDC
A2: FDC
E4: ENTITE :
C7: Total BDD | E7: Clients particuliers | G7: dont clients Premium | I7: dont Bancarisés (BP JBP) | K7: Clients pros | M7: dont clients en double relation | O7: dont clients proactifs | Q7: dont clients proactifs équipés | V7: Relations | X7: Relations en ptf | Z7: Relations premium
C8: 2018-12-01 | D8: 2019-01-01 | E8: 2018-12-01 | F8: 2019-01-01 | G8: 2018-12-01 | H8: 2019-01-01 | I8: 2018-12-01 | J8: 2019-01-01 | K8: 2018-12-01 | L8: 2019-01-01 | M8: 2018-12-01 | N8: 2019-01-01 | O8: 2018-12-01 | P8: 2019-01-01 | Q8: 2018-12-01 | R8: 2019-01-01 | V8: 2018-12-01 | W8: 2019-01-01 | X8: 2018-12-01 | Y8: 2019-01-01 | Z8: 2018-12-01 | AA8: 2019-01-01
A9: Fonds de commerce en clients | B9: Nombre clients | T9: Fonds de commerce en relations | U9: Nombre relations | V9: 1083090 | X9: 800904 | Z9: 117152
B10: Poids | U10: Poids | Z10: =Z9/V9 -> 0.1081646031
B11: Poids CEGEE | U11: Poids CEGEE
B12: Variation en nb | U12: Variation en nb
B13: Variation en % | U13: Variation en %
B14: Variation en % CEGEE | U14: Variation en % CEGEE
B15: Nouveaux clients
B16: % Conquête
B17: % Conquête CEGEE
B18: Clients sortants
B19: Clients sortants hors inactifs
B20: % Attrition
B21: % Attrition CEGEE
M65: pros | P65: double relation | S65: pros | X65: double relation
A66: mois | B66: 2018 CEGEE | C66: 2019 CEGEE | F66: PERD_ARRT_INFO | G66: 2018 PDV | H66: 2019 PDV | L66: PERD_ARRT_INFO | M66: CompteDeNUMR_PERS | O66: PERD_ARRT_INFO | P66: CompteDeNUMR_PERS | R66: PERD_ARRT_INFO | S66: CompteDeNUMR_PERS | W66: PERD_ARRT_INFO | X66: CompteDeNUMR_PERS
A67: janvier | B67: 1643120 | C67: 1529480 | D67: -0.06916110814 | F67: 201801 | G67: 3565 | H67: 3400 | K67: =(H67-G67)/G67 -> -0.04628330996 | L67: 201801 | M67: 43 | O67: 201801 | P67: 18 | R67: 201801 | S67: 23635 | W67: 201801 | X67: 8854
A68: février | B68: 1598764 | C68: 1524071 | F68: 201802 | G68: 3521 | H68: 3389 | L68: 201802 | M68: 42 | O68: 201802 | P68: 18 | R68: 201802 | S68: 23678 | V68: =(S68-S67)/S67 -> 0.001819335731 | W68: 201802 | X68: 8880 | Y68: =(X68-X67)/X67 -> 0.002936525864
A69: mars | B69: 1561420 | F69: 201803 | G69: 3507 | L69: 201803 | M69: 42 | O69: 201803 | P69: 18 | R69: 201803 | S69: 23708 | V69: 0.001266998902 | W69: 201803 | X69: 8920 | Y69: =(X69-X68)/X68 -> 0.004504504505
A70: avril | B70: 1558492 | F70: 201804 | G70: 3506 | L70: 201804 | M70: 41 | O70: 201804 | P70: 17 | R70: 201804 | S70: 23787 | V70: 0.003332208537 | W70: 201804 | X70: 8964 | Y70: 0.004932735426
A71: mai | B71: 1557854 | F71: 201805 | G71: 3502 | L71: 201805 | M71: 42 | O71: 201805 | P71: 18 | R71: 201805 | S71: 23876 | V71: 0.003741539496 | W71: 201805 | X71: 9009 | Y71: 0.005020080321
A72: juin | B72: 1554807 | F72: 201806 | G72: 3489 | L72: 201806 | M72: 40 | O72: 201806 | P72: 17 | R72: 201806 | S72: 23931 | V72: 0.002303568437 | W72: 201806 | X72: 9029 | Y72: 0.00222000222
A73: juillet | B73: 1550104 | F73: 201807 | G73: 3485 | L73: 201807 | M73: 41 | O73: 201807 | P73: 17 | R73: 201807 | S73: 23959 | V73: 0.001170030504 | W73: 201807 | X73: 9037 | Y73: 0.0008860338908
A74: août | B74: 1546942 | F74: 201808 | G74: 3481 | L74: 201808 | M74: 42 | O74: 201808 | P74: 18 | R74: 201808 | S74: 23945 | V74: -0.0005843315664 | W74: 201808 | X74: 9034 | Y74: -0.0003319685736
A75: septembre | B75: 1544150 | F75: 201809 | G75: 3472 | L75: 201809 | M75: 44 | O75: 201809 | P75: 20 | R75: 201809 | S75: 24012 | V75: 0.002798078931 | W75: 201809 | X75: 9055 | Y75: 0.002324551694
A76: octobre | B76: 1541268 | F76: 201810 | G76: 3465 | L76: 201810 | M76: 43 | O76: 201810 | P76: 20 | R76: 201810 | S76: 24115 | V76: 0.004289521906 | W76: 201810 | X76: 9081 | Y76: 0.0028713418
A77: novembre | B77: 1537786 | F77: 201811 | G77: 3454 | L77: 201811 | M77: 43 | O77: 201811 | P77: 20 | R77: 201811 | S77: 24035 | V77: -0.00331743728 | W77: 201811 | X77: 9006 | Y77: -0.008259002313
A78: décembre | B78: 1532463 | F78: 201812 | G78: 3441 | L78: 201812 | M78: 42 | O78: 201812 | P78: 19 | R78: 201812 | S78: 23916 | V78: -0.00495111296 | W78: 201812 | X78: 8932 | Y78: -0.008216744393
L79: 201901 | M79: 42 | O79: 201901 | P79: 19 | R79: 201901 | S79: 24017 | V79: 0.004223114233 | W79: 201901 | X79: 8982 | Y79: =(X79-X78)/X78 -> 0.005597850425 | Z79: =X79/S79 -> 0.3739850939
B80: Clients particuliers | C80: Clients pros | D80: Clients proactifs | E80: Clients en double relation | H80: Clients en double relation | L80: 201902 | M80: 43 | O80: 201902 | P80: 19 | R80: 201902 | S80: 24035 | W80: 201902 | X80: 8941
A81: PDV | B81: -0.04628330996 | C81: 0 | D81: 0 | E81: 0
A82: CEGEE | B82: -0.06916110814 | C82: 0.003403630539 | D82: -0.006530101082 | E82: 0.005597850425 | K82: Pro actifs | L82: PERD_ARRT_INFO | M82: CompteDeNUMR_PERS | N82: DATE_FIN_VALD | P82: PERD_ARRT_INFO | Q82: CompteDeNUMR_PERS | R82: DATE_FIN_VALD
L83: 201801 | M83: 21 | N83: 2018-01-31 | P83: 201801 | Q83: 10995 | R83: 2018-01-31
B84: Pros | C84: Clients proactifs | D84: Clients en double relation | E84: Clients proactifs | F84: Clients en double relation | K84: 201802 | L84: 22 | M84: 2018-02-28 | N84: =(L84-M83)/M83 -> 0.04761904762 | O84: 201802 | P84: 10971 | Q84: 2018-02-28 | R84: =(P84-Q83)/Q83 -> -0.002182810368
A85: 201901 | B85: 42 | C85: 20 | D85: 19 | E85: =C85/B85 -> 0.4761904762 | F85: =D85/B85 -> 0.4523809524 | G85: 5 | K85: 201803 | L85: 21 | M85: 2018-03-31 | N85: =(L85-L84)/L84 -> -0.04545454545 | O85: 201803 | P85: 10979 | Q85: 2018-03-31 | R85: =(P85-P84)/P84 -> 0.0007291951509
A86: 201902 | B86: 43 | C86: 20 | D86: 19 | E86: =C86/B86 -> 0.4651162791 | F86: =D86/B86 -> 0.4418604651 | G86: 4553 | K86: 201804 | L86: 19 | M86: 2018-04-30 | N86: -0.09523809524 | O86: 201804 | P86: 10986 | Q86: 2018-04-30 | R86: 0.0006375808361
B87: Pros | C87: Clients proactifs | D87: Clients en double relation | E87: Clients proactifs équipés | L87: 201805 | M87: 19 | N87: 2018-05-31 | O87: =(M87-L86)/L86 -> 0 | P87: 201805 | Q87: 11080 | R87: 2018-05-31 | S87: =(Q87-P86)/P86 -> 0.008556344438
A88: PDV | B88: 1 | C88: 0.4761904762 | D88: 0.4523809524 | E88: =G85/B85 -> 0.119047619 | L88: 201806 | M88: 20 | N88: 2018-06-30 | O88: 0.05263157895 | P88: 201806 | Q88: 11107 | R88: 2018-06-30 | S88: 0.002436823105
A89: CEGEE | B89: 1 | C89: 0.4624224508 | D89: 0.3739850939 | E89: =C93/S79 -> 0.1895740517 | L89: 201807 | M89: 20 | N89: 2018-07-31 | O89: 0 | P89: 201807 | Q89: 11199 | R89: 2018-07-31 | S89: 0.008283064734
L90: 201808 | M90: 20 | N90: 2018-08-31 | O90: 0 | P90: 201808 | Q90: 11132 | R90: 2018-08-31 | S90: -0.005982677025
L91: 201809 | M91: 21 | N91: 2018-09-30 | O91: 0.05 | P91: 201809 | Q91: 11066 | R91: 2018-09-30 | S91: -0.005928853755
C92: CompteDeNUMR_PERS | L92: 201810 | M92: 20 | N92: 2018-10-31 | O92: -0.04761904762 | P92: 201810 | Q92: 11041 | R92: 2018-10-31 | S92: -0.002259172239
C93: 4553 | L93: 201811 | M93: 20 | N93: 2018-11-30 | O93: 0 | P93: 201811 | Q93: 11071 | R93: 2018-11-30 | S93: 0.002717145186
L94: 201812 | M94: 20 | N94: 2018-12-31 | O94: =(M94-M93)/M93 -> 0 | P94: 201812 | Q94: 11179 | R94: 2018-12-31 | S94: 0.009755216331
L95: 201901 | M95: 20 | N95: 2019-01-31 | P95: 201901 | Q95: 11106 | R95: 2019-01-31 | S95: =(Q95-Q94)/Q94 -> -0.006530101082 | T95: =Q95/S79 -> 0.4624224508
M96: 20 | P96: 201902 | Q96: 11128 | R96: 2019-02-28
A120: COUNT_of_NUMR_PERS | B120: SEG_ACTI_V2 | C120: SEG_BANCO_2020 | F120: Somme de COUNT_of_NUMR_PERS | G120: Étiquettes de colonnes
A121: 61018 | B121: De | C121: POT_PREM | F121: Étiquettes de lignes | G121: CLT_COUR | H121: FRAGILE | I121: GD_PUBL | J121: GDP_ESS_F | K121: GDP_ESS_R | L121: POT_PREM | M121: PREM_BQP | N121: PREM_GP | O121: PREM_HDG | P121: Total général
A122: 14366 | B122: BPe | C122: GD_PUBL | F122: BPe | G122: 1248 | H122: 5653 | I122: 14366 | J122: 57059 | K122: 418 | L122: 114397 | M122: 1056 | N122: 18504 | O122: 61427 | P122: 274128
A123: 2004 | B123: De | C123: CLT_COUR | F123: BPne | G123: 4069 | H123: 7589 | I123: 35632 | J123: 49008 | K123: 828 | L123: 44351 | M123: 233 | N123: 4626 | O123: 17357 | P123: 163693
A124: 44351 | B124: BPne | C124: POT_PREM | F124: De | G124: 2004 | H124: 1544 | I124: 2675 | J124: 14615 | K124: 30568 | L124: 61018 | M124: 507 | N124: 17976 | O124: 43661 | P124: 174568
A125: 2597 | B125: Dne | C125: PREM_GP | F125: Dne | G125: 81517 | H125: 4807 | I125: 13784 | J125: 22213 | K125: 147599 | L125: 81603 | M125: 183 | N125: 2597 | O125: 12325 | P125: 366628
A126: 4807 | B126: Dne | C126: FRAGILE | F126: JBPe | G126: 1296 | H126: 1726 | I126: 2326 | J126: 11046 | K126: 75 | L126: 30226 | M126: 191 | N126: 2888 | O126: 8826 | P126: 58600
A127: 1726 | B127: JBPe | C127: FRAGILE | F127: JBPne | G127: 3423 | H127: 851 | I127: 2987 | J127: 3881 | K127: 137 | L127: 5346 | M127: 15 | N127: 113 | O127: 841 | P127: 17594
A128: 75 | B128: JBPe | C128: GDP_ESS_R | F128: JDe | G128: 38 | H128: 28 | I128: 36 | J128: 297 | K128: 642 | L128: 3394 | M128: 32 | N128: 612 | O128: 1292 | P128: 6371
A129: 113 | B129: JBPne | C129: PREM_GP | F129: JDne | G129: 697 | H129: 495 | I129: 855 | J129: 2193 | K129: 37388 | L129: 12156 | M129: 28 | N129: 429 | O129: 1947 | P129: 56188
A130: 38 | B130: JDe | C130: CLT_COUR | F130: Total général | G130: 94292 | H130: 22693 | I130: 72661 | J130: 160312 | K130: 217655 | L130: 352491 | M130: 2245 | N130: 47745 | O130: 147676 | P130: 1117770
A131: 147599 | B131: Dne | C131: GDP_ESS_R
A132: 4069 | B132: BPne | C132: CLT_COUR
A133: 57059 | B133: BPe | C133: GDP_ESS_F | F133: Somme de COUNT_of_NUMR_PERS | G133: Étiquettes de colonnes
A134: 7589 | B134: BPne | C134: FRAGILE | F134: Étiquettes de lignes | G134: CLT_COUR | H134: FRAGILE | I134: GD_PUBL | J134: GDP_ESS_F | K134: GDP_ESS_R | L134: POT_PREM | M134: PREM_BQP | N134: PREM_GP | O134: PREM_HDG | P134: Total général
A135: 5653 | B135: BPe | C135: FRAGILE | F135: BPe | G135: 1248 | H135: 5653 | I135: 14366 | J135: 57059 | K135: 418 | L135: 114397 | M135: 1056 | N135: 18504 | O135: 61427 | P135: 274128
A136: 507 | B136: De | C136: PREM_BQP | F136: BPne | G136: 4069 | H136: 7589 | I136: 35632 | J136: 49008 | K136: 828 | L136: 44351 | M136: 233 | N136: 4626 | O136: 17357 | P136: 163693
A137: 1296 | B137: JBPe | C137: CLT_COUR | F137: De | G137: 2004 | H137: 1544 | I137: 2675 | J137: 14615 | K137: 30568 | L137: 61018 | M137: 507 | N137: 17976 | O137: 43661 | P137: 174568
A138: 841 | B138: JBPne | C138: PREM_HDG | F138: Dne | G138: 81517 | H138: 4807 | I138: 13784 | J138: 22213 | K138: 147599 | L138: 81603 | M138: 183 | N138: 2597 | O138: 12325 | P138: 366628
A139: 28 | B139: JDne | C139: PREM_BQP | F139: JBPe | G139: 1296 | H139: 1726 | I139: 2326 | J139: 11046 | K139: 75 | L139: 30226 | M139: 191 | N139: 2888 | O139: 8826 | P139: 58600
A140: 43661 | B140: De | C140: PREM_HDG | F140: JBPne | G140: 3423 | H140: 851 | I140: 2987 | J140: 3881 | K140: 137 | L140: 5346 | M140: 15 | N140: 113 | O140: 841 | P140: 17594
A141: 61427 | B141: BPe | C141: PREM_HDG | F141: JDe | G141: 38 | H141: 28 | I141: 36 | J141: 297 | K141: 642 | L141: 3394 | M141: 32 | N141: 612 | O141: 1292 | P141: 6371
A142: 828 | B142: BPne | C142: GDP_ESS_R | F142: JDne | G142: 697 | H142: 495 | I142: 855 | J142: 2193 | K142: 37388 | L142: 12156 | M142: 28 | N142: 429 | O142: 1947 | P142: 56188
A143: 2675 | B143: De | C143: GD_PUBL | F143: Total général | G143: 94292 | H143: 22693 | I143: 72661 | J143: 160312 | K143: 217655 | L143: 352491 | M143: 2245 | N143: 47745 | O143: 147676 | P143: 1117770
A144: 233 | B144: BPne | C144: PREM_BQP
A145: 3423 | B145: JBPne | C145: CLT_COUR | F145: Somme de COUNT_of_NUMR_PERS | G145: Étiquettes de colonnes
A146: 855 | B146: JDne | C146: GD_PUBL | F146: Étiquettes de lignes | G146: CLT_COUR | H146: FRAGILE | I146: GD_PUBL | J146: GDP_ESS_F | K146: GDP_ESS_R | L146: POT_PREM | M146: PREM_BQP | N146: PREM_GP | O146: PREM_HDG | P146: Total général
A147: 32 | B147: JDe | C147: PREM_BQP | F147: BPe | G147: =G135/G$143 -> 0.01323548127 | H147: =H135/H$143 -> 0.2491076543 | I147: 0.1977126657 | J147: 0.3559246968 | K147: 0.001920470469 | L147: 0.3245387826 | M147: 0.4703786192 | N147: 0.3875589067 | O147: 0.4159579079 | P147: 0.2452454441
A148: 28 | B148: JDe | C148: FRAGILE | F148: BPne | G148: =G136/G$143 -> 0.04315318373 | H148: 0.3344203058 | I148: 0.490386865 | J148: 0.3057038774 | K148: 0.003804185523 | L148: 0.1258216522 | M148: 0.1037861915 | N148: 0.09688972667 | O148: 0.1175343319 | P148: 0.1464460488
A149: 12325 | B149: Dne | C149: PREM_HDG | F149: De | G149: 0.02125312858 | H149: 0.06803860221 | I149: 0.03681479748 | J149: 0.09116597635 | K149: 0.1404424433 | L149: 0.1731051289 | M149: 0.2258351893 | N149: 0.3765001571 | O149: 0.2956539993 | P149: 0.1561752418
A150: 49008 | B150: BPne | C150: GDP_ESS_F | F150: Dne | G150: 0.864516608 | H150: 0.2118274358 | I150: 0.1897028667 | J150: 0.1385610559 | K150: 0.6781328249 | L150: 0.2315037831 | M150: 0.08151447661 | N150: 0.05439313017 | O150: 0.08345973618 | P150: 0.327999499
A151: 30226 | B151: JBPe | C151: POT_PREM | F151: JBPe | G151: 0.01374453824 | H151: 0.07605869651 | I151: 0.03201167063 | J151: 0.06890313888 | K151: 0.000344582022 | L151: 0.08574970708 | M151: 0.085077951 | N151: 0.06048800922 | O151: 0.05976597416 | P151: 0.05242581211
A152: 2987 | B152: JBPne | C152: GD_PUBL | F152: JBPne | G152: 0.03630212531 | H152: 0.03750055083 | I152: 0.04110871031 | J152: 0.02420904237 | K152: 0.0006294364935 | L152: 0.01516634467 | M152: 0.006681514477 | N152: 0.002366739973 | O152: 0.005694899645 | P152: 0.01574026857
A153: 11046 | B153: JBPe | C153: GDP_ESS_F | F153: JDe | G153: 0.0004030034361 | H153: 0.001233860662 | I153: 0.0004954514802 | J153: 0.001852637357 | K153: 0.002949622108 | L153: 0.009628614631 | M153: 0.01425389755 | N153: 0.01281809614 | O153: 0.008748882689 | P153: 0.005699741449
A154: 2193 | B154: JDne | C154: GDP_ESS_F | F154: JDne | G154: 0.007391931447 | H154: 0.02181289384 | I154: 0.01176697265 | J154: 0.01367957483 | K154: 0.1717764352 | L154: 0.03448598688 | M154: 0.01247216036 | N154: 0.008985234056 | O154: 0.01318426826 | P154: 0.05026794421
A155: 3881 | B155: JBPne | C155: GDP_ESS_F | F155: Total général | G155: 1 | H155: 1 | I155: 1 | J155: 1 | K155: 1 | L155: 1 | M155: 1 | N155: 1 | O155: 1 | P155: 1
A156: 37388 | B156: JDne | C156: GDP_ESS_R
A157: 14615 | B157: De | C157: GDP_ESS_F | F157: Étiquettes de lignes | G157: CLT_COUR | H157: FRAGILE | I157: GD_PUBL | J157: GDP_ESS_F | K157: GDP_ESS_R | L157: POT_PREM | M157: PREM_BQP | N157: PREM_GP | O157: PREM_HDG | P157: Total général
A158: 183 | B158: Dne | C158: PREM_BQP | F158: BPe | G158: =G135/$P135 -> 0.004552617755 | H158: =H135/$P135 -> 0.02062175334 | I158: 0.05240617522 | J158: 0.2081472889 | K158: 0.001524835114 | L158: 0.4173123504 | M158: 0.003852215024 | N158: 0.06750131326 | O158: 0.224081451 | P158: 1
A159: 851 | B159: JBPne | C159: FRAGILE | F159: BPne | G159: =G136/$P136 -> 0.02485750765 | H159: 0.0463611761 | I159: 0.2176757711 | J159: 0.2993897112 | K159: 0.005058249284 | L159: 0.2709401135 | M159: 0.001423396236 | N159: 0.02826021882 | O159: 0.1060338561 | P159: 1
A160: 429 | B160: JDne | C160: PREM_GP | F160: De | G160: 0.0114797672 | H160: 0.008844690894 | I160: 0.01532354154 | J160: 0.08372095688 | K160: 0.1751065487 | L160: 0.3495371431 | M160: 0.00290431236 | N160: 0.1029741992 | O160: 0.2501088401 | P160: 1
A161: 2326 | B161: JBPe | C161: GD_PUBL | F161: Dne | G161: 0.2223425379 | H161: 0.01311138265 | I161: 0.03759669201 | J161: 0.0605872983 | K161: 0.4025851817 | L161: 0.2225771081 | M161: 0.000499143546 | N161: 0.007083474257 | O161: 0.03361718145 | P161: 1
A162: 697 | B162: JDne | C162: CLT_COUR | F162: JBPe | G162: 0.02211604096 | H162: 0.02945392491 | I162: 0.03969283276 | J162: 0.1884982935 | K162: 0.001279863481 | L162: 0.5158020478 | M162: 0.003259385666 | N162: 0.04928327645 | O162: 0.1506143345 | P162: 1
A163: 36 | B163: JDe | C163: GD_PUBL | F163: JBPne | G163: 0.1945549619 | H163: 0.04836876208 | I163: 0.1697737865 | J163: 0.2205865636 | K163: 0.007786745481 | L163: 0.3038535864 | M163: 0.0008525633739 | N163: 0.006422644083 | O163: 0.0478003865 | P163: 1
A164: 30568 | B164: De | C164: GDP_ESS_R | F164: JDe | G164: 0.005964526762 | H164: 0.004394914456 | I164: 0.005650604301 | J164: 0.04661748548 | K164: 0.10076911 | L164: 0.5327264166 | M164: 0.005022759378 | N164: 0.09606027311 | O164: 0.2027939099 | P164: 1
A165: 17357 | B165: BPne | C165: PREM_HDG | F165: JDne | G165: 0.01240478394 | H165: 0.008809710258 | I165: 0.01521677226 | J165: 0.03902968605 | K165: 0.6654089841 | L165: 0.2163451271 | M165: 0.0004983270449 | N165: 0.007635082224 | O165: 0.03465152702 | P165: 1
A166: 13784 | B166: Dne | C166: GD_PUBL | F166: Total général | G166: 0.08435724702 | H166: 0.02030202993 | I166: 0.0650053231 | J166: 0.1434212763 | K166: 0.1947225279 | L166: 0.3153519955 | M166: 0.00200846328 | N166: 0.04271451193 | O166: 0.1321166251 | P166: 1
A167: 2888 | B167: JBPe | C167: PREM_GP
A168: 8826 | B168: JBPe | C168: PREM_HDG
A169: 612 | B169: JDe | C169: PREM_GP | F169: Étiquettes de lignes | G169: Premium Banque Privée | H169: Premium GP | I169: Premium HDG | J169: Potentiel Premium | K169: Grd Pub Ess à Fidéliser | L169: Grd Pub Ess à Réactiver | M169: Grd Public | N169: Clientèle courante | O169: Fragile | P169: Total général
A170: 191 | B170: JBPe | C170: PREM_BQP | F170: BPe | G170: 0.003852215024 | H170: 0.06750131326 | I170: 0.224081451 | J170: 0.4173123504 | K170: 0.2081472889 | L170: 0.001524835114 | M170: 0.05240617522 | N170: 0.004552617755 | O170: 0.02062175334 | P170: 1
A171: 642 | B171: JDe | C171: GDP_ESS_R | F171: BPne | G171: 0.001423396236 | H171: 0.02826021882 | I171: 0.1060338561 | J171: 0.2709401135 | K171: 0.2993897112 | L171: 0.005058249284 | M171: 0.2176757711 | N171: 0.02485750765 | O171: 0.0463611761 | P171: 1
A172: 495 | B172: JDne | C172: FRAGILE | F172: De | G172: 0.00290431236 | H172: 0.1029741992 | I172: 0.2501088401 | J172: 0.3495371431 | K172: 0.08372095688 | L172: 0.1751065487 | M172: 0.01532354154 | N172: 0.0114797672 | O172: 0.008844690894 | P172: 1
A173: 114397 | B173: BPe | C173: POT_PREM | F173: Dne | G173: 0.000499143546 | H173: 0.007083474257 | I173: 0.03361718145 | J173: 0.2225771081 | K173: 0.0605872983 | L173: 0.4025851817 | M173: 0.03759669201 | N173: 0.2223425379 | O173: 0.01311138265 | P173: 1
A174: 18504 | B174: BPe | C174: PREM_GP | F174: JBPe | G174: 0.003259385666 | H174: 0.04928327645 | I174: 0.1506143345 | J174: 0.5158020478 | K174: 0.1884982935 | L174: 0.001279863481 | M174: 0.03969283276 | N174: 0.02211604096 | O174: 0.02945392491 | P174: 1
A175: 4626 | B175: BPne | C175: PREM_GP | F175: JBPne | G175: 0.0008525633739 | H175: 0.006422644083 | I175: 0.0478003865 | J175: 0.3038535864 | K175: 0.2205865636 | L175: 0.007786745481 | M175: 0.1697737865 | N175: 0.1945549619 | O175: 0.04836876208 | P175: 1
A176: 3394 | B176: JDe | C176: POT_PREM | F176: JDe | G176: 0.005022759378 | H176: 0.09606027311 | I176: 0.2027939099 | J176: 0.5327264166 | K176: 0.04661748548 | L176: 0.10076911 | M176: 0.005650604301 | N176: 0.005964526762 | O176: 0.004394914456 | P176: 1
A177: 297 | B177: JDe | C177: GDP_ESS_F | F177: JDne | G177: 0.0004983270449 | H177: 0.007635082224 | I177: 0.03465152702 | J177: 0.2163451271 | K177: 0.03902968605 | L177: 0.6654089841 | M177: 0.01521677226 | N177: 0.01240478394 | O177: 0.008809710258 | P177: 1
A178: 1292 | B178: JDe | C178: PREM_HDG | F178: Total général | G178: 0.00200846328 | H178: 0.04271451193 | I178: 0.1321166251 | J178: 0.3153519955 | K178: 0.1434212763 | L178: 0.1947225279 | M178: 0.0650053231 | N178: 0.08435724702 | O178: 0.02030202993 | P178: 1
A179: 1947 | B179: JDne | C179: PREM_HDG
A180: 137 | B180: JBPne | C180: GDP_ESS_R
A181: 15 | B181: JBPne | C181: PREM_BQP
A182: 81603 | B182: Dne | C182: POT_PREM
A183: 81517 | B183: Dne | C183: CLT_COUR
A184: 12156 | B184: JDne | C184: POT_PREM
A185: 17976 | B185: De | C185: PREM_GP
A186: 22213 | B186: Dne | C186: GDP_ESS_F
A187: 35632 | B187: BPne | C187: GD_PUBL | F187: Étiquettes de lignes | G187: Premium Banque Privée | H187: Premium GP | I187: Premium HDG | J187: Potentiel Premium | K187: Grd Pub Ess à Fidéliser | L187: Grd Pub Ess à Réactiver | M187: Grd Public | N187: Clientèle courante | O187: Fragile
A188: 1056 | B188: BPe | C188: PREM_BQP | F188: BPe | G188: 0.4703786192 | H188: 0.3875589067 | I188: 0.4159579079 | J188: 0.3245387826 | K188: 0.3559246968 | L188: 0.001920470469 | M188: 0.1977126657 | N188: 0.01323548127 | O188: 0.2491076543
A189: 1544 | B189: De | C189: FRAGILE | F189: BPne | G189: 0.1037861915 | H189: 0.09688972667 | I189: 0.1175343319 | J189: 0.1258216522 | K189: 0.3057038774 | L189: 0.003804185523 | M189: 0.490386865 | N189: 0.04315318373 | O189: 0.3344203058
A190: 418 | B190: BPe | C190: GDP_ESS_R | F190: De | G190: 0.2258351893 | H190: 0.3765001571 | I190: 0.2956539993 | J190: 0.1731051289 | K190: 0.09116597635 | L190: 0.1404424433 | M190: 0.03681479748 | N190: 0.02125312858 | O190: 0.06803860221
A191: 1248 | B191: BPe | C191: CLT_COUR | F191: Dne | G191: 0.08151447661 | H191: 0.05439313017 | I191: 0.08345973618 | J191: 0.2315037831 | K191: 0.1385610559 | L191: 0.6781328249 | M191: 0.1897028667 | N191: 0.864516608 | O191: 0.2118274358
A192: 5346 | B192: JBPne | C192: POT_PREM | F192: JBPe | G192: 0.085077951 | H192: 0.06048800922 | I192: 0.05976597416 | J192: 0.08574970708 | K192: 0.06890313888 | L192: 0.000344582022 | M192: 0.03201167063 | N192: 0.01374453824 | O192: 0.07605869651
F193: JBPne | G193: 0.006681514477 | H193: 0.002366739973 | I193: 0.005694899645 | J193: 0.01516634467 | K193: 0.02420904237 | L193: 0.0006294364935 | M193: 0.04110871031 | N193: 0.03630212531 | O193: 0.03750055083
F194: JDe | G194: 0.01425389755 | H194: 0.01281809614 | I194: 0.008748882689 | J194: 0.009628614631 | K194: 0.001852637357 | L194: 0.002949622108 | M194: 0.0004954514802 | N194: 0.0004030034361 | O194: 0.001233860662
F195: JDne | G195: 0.01247216036 | H195: 0.008985234056 | I195: 0.01318426826 | J195: 0.03448598688 | K195: 0.01367957483 | L195: 0.1717764352 | M195: 0.01176697265 | N195: 0.007391931447 | O195: 0.02181289384
A198: CODE_SEGM_ACTV | B198: SEG_BANCO_2020 | C198: COUNT_of_NUMR_PERS | F198: Somme de COUNT_of_NUMR_PERS | G198: Étiquettes de colonnes | S198: EDS_EXTR_PERS | T198: CompteDeNUMR_PERS
A199: SA | C199: 277327 | F199: Étiquettes de lignes | G199: CLT_COUR | H199: FRAGILE | I199: GD_PUBL | J199: GDP_ESS_F | K199: GDP_ESS_R | L199: POT_PREM | M199: PREM_BQP | N199: PREM_GP | O199: PREM_HDG | P199: (vide) | Q199: Total général | S199: 6 | T199: 35
A200: SABPe | B200: CLT_COUR | C200: 1248 | F200: SA | P200: 277327 | Q200: 277327 | S200: 7 | T200: 34
A201: SABPe | B201: FRAGILE | C201: 5653 | F201: SABPe | G201: 1248 | H201: 5653 | I201: 14366 | J201: 57059 | K201: 418 | L201: 114397 | M201: 1056 | N201: 18504 | O201: 61427 | Q201: 274128 | S201: 8 | T201: 16
A202: SABPe | B202: GDP_ESS_F | C202: 57059 | F202: SABPne | G202: 4069 | H202: 7589 | I202: 35632 | J202: 49008 | K202: 828 | L202: 44351 | M202: 233 | N202: 4626 | O202: 17357 | Q202: 163693 | S202: 10 | T202: 11
A203: SABPe | B203: GDP_ESS_R | C203: 418 | F203: SADe | G203: 2004 | H203: 1544 | I203: 2675 | J203: 14615 | K203: 30568 | L203: 61018 | M203: 507 | N203: 17976 | O203: 43661 | Q203: 174568 | S203: 12 | T203: 6
A204: SABPe | B204: GD_PUBL | C204: 14366 | F204: SADne | G204: 81517 | H204: 4807 | I204: 13784 | J204: 22213 | K204: 147599 | L204: 81603 | M204: 183 | N204: 2597 | O204: 12325 | Q204: 366628 | S204: 13 | T204: 4
A205: SABPe | B205: POT_PREM | C205: 114397 | F205: SAEe | P205: 95950 | Q205: 95950 | S205: 14 | T205: 7
A206: SABPe | B206: PREM_BQP | C206: 1056 | F206: SAEne | P206: 64293 | Q206: 64293 | S206: 15 | T206: 19
A207: SABPe | B207: PREM_GP | C207: 18504 | F207: SAI | P207: 230584 | Q207: 230584 | S207: 16 | T207: 1
A208: SABPe | B208: PREM_HDG | C208: 61427 | F208: SAJBPe | G208: 1296 | H208: 1726 | I208: 2326 | J208: 11046 | K208: 75 | L208: 30226 | M208: 191 | N208: 2888 | O208: 8826 | P208: 2368 | Q208: 60968 | S208: 17 | T208: 10
A209: SABPne | B209: CLT_COUR | C209: 4069 | F209: SAJBPne | G209: 3423 | H209: 851 | I209: 2987 | J209: 3881 | K209: 137 | L209: 5346 | M209: 15 | N209: 113 | O209: 841 | P209: 1569 | Q209: 19163 | S209: 18 | T209: 65
A210: SABPne | B210: FRAGILE | C210: 7589 | F210: SAJDe | G210: 38 | H210: 28 | I210: 36 | J210: 297 | K210: 642 | L210: 3394 | M210: 32 | N210: 612 | O210: 1292 | P210: 4940 | Q210: 11311 | S210: 19 | T210: 32
A211: SABPne | B211: GDP_ESS_F | C211: 49008 | F211: SAJDne | G211: 697 | H211: 495 | I211: 855 | J211: 2193 | K211: 37388 | L211: 12156 | M211: 28 | N211: 429 | O211: 1947 | P211: 22511 | Q211: 78699 | S211: 20 | T211: 20
A212: SABPne | B212: GDP_ESS_R | C212: 828 | F212: Total général | G212: 94292 | H212: 22693 | I212: 72661 | J212: 160312 | K212: 217655 | L212: 352491 | M212: 2245 | N212: 47745 | O212: 147676 | P212: 699542 | Q212: 1817312 | S212: 23 | T212: 10
A213: SABPne | B213: GD_PUBL | C213: 35632 | S213: 24 | T213: 12
A214: SABPne | B214: POT_PREM | C214: 44351 | S214: 25 | T214: 12
A215: SABPne | B215: PREM_BQP | C215: 233 | S215: 26 | T215: 3
A216: SABPne | B216: PREM_GP | C216: 4626 | S216: 27 | T216: 35
A217: SABPne | B217: PREM_HDG | C217: 17357 | S217: 28 | T217: 17
A218: SADe | B218: CLT_COUR | C218: 2004 | S218: 29 | T218: 10
A219: SADe | B219: FRAGILE | C219: 1544 | S219: 30 | T219: 45
A220: SADe | B220: GDP_ESS_F | C220: 14615 | S220: 31 | T220: 22
A221: SADe | B221: GDP_ESS_R | C221: 30568 | S221: 33 | T221: 13
A222: SADe | B222: GD_PUBL | C222: 2675 | S222: 34 | T222: 11
A223: SADe | B223: POT_PREM | C223: 61018 | S223: 37 | T223: 12
A224: SADe | B224: PREM_BQP | C224: 507 | S224: 38 | T224: 25
A225: SADe | B225: PREM_GP | C225: 17976 | S225: 39 | T225: 8
A226: SADe | B226: PREM_HDG | C226: 43661 | S226: 40 | T226: 11
A227: SADne | B227: CLT_COUR | C227: 81517 | S227: 41 | T227: 12
A228: SADne | B228: FRAGILE | C228: 4807 | S228: 43 | T228: 35
A229: SADne | B229: GDP_ESS_F | C229: 22213 | S229: 45 | T229: 42
A230: SADne | B230: GDP_ESS_R | C230: 147599 | S230: 47 | T230: 23
A231: SADne | B231: GD_PUBL | C231: 13784 | S231: 48 | T231: 15
A232: SADne | B232: POT_PREM | C232: 81603 | S232: 54 | T232: 8
A233: SADne | B233: PREM_BQP | C233: 183 | S233: 57 | T233: 11
A234: SADne | B234: PREM_GP | C234: 2597 | S234: 58 | T234: 1
A235: SADne | B235: PREM_HDG | C235: 12325 | S235: 60 | T235: 47
A236: SAEe | C236: 95950 | S236: 64 | T236: 11
A237: SAEne | C237: 64293 | S237: 65 | T237: 8
A238: SAI | C238: 230584 | S238: 66 | T238: 11
A239: SAJBPe | C239: 2368 | S239: 67 | T239: 14
A240: SAJBPe | B240: CLT_COUR | C240: 1296 | S240: 68 | T240: 7
A241: SAJBPe | B241: FRAGILE | C241: 1726 | S241: 70 | T241: 3
A242: SAJBPe | B242: GDP_ESS_F | C242: 11046 | S242: 71 | T242: 14
A243: SAJBPe | B243: GDP_ESS_R | C243: 75 | S243: 73 | T243: 17
A244: SAJBPe | B244: GD_PUBL | C244: 2326 | S244: 74 | T244: 5
A245: SAJBPe | B245: POT_PREM | C245: 30226 | S245: 76 | T245: 8
A246: SAJBPe | B246: PREM_BQP | C246: 191 | S246: 77 | T246: 4
A247: SAJBPe | B247: PREM_GP | C247: 2888 | S247: 78 | T247: 6
A248: SAJBPe | B248: PREM_HDG | C248: 8826 | S248: 79 | T248: 12
A249: SAJBPne | C249: 1569 | S249: 80 | T249: 14
A250: SAJBPne | B250: CLT_COUR | C250: 3423 | S250: 82 | T250: 15
A251: SAJBPne | B251: FRAGILE | C251: 851 | S251: 85 | T251: 33
A252: SAJBPne | B252: GDP_ESS_F | C252: 3881 | S252: 86 | T252: 8
A253: SAJBPne | B253: GDP_ESS_R | C253: 137 | S253: 87 | T253: 25
A254: SAJBPne | B254: GD_PUBL | C254: 2987 | S254: 89 | T254: 4
A255: SAJBPne | B255: POT_PREM | C255: 5346 | S255: 92 | T255: 11
A256: SAJBPne | B256: PREM_BQP | C256: 15 | S256: 93 | T256: 3
A257: SAJBPne | B257: PREM_GP | C257: 113 | S257: 95 | T257: 15
A258: SAJBPne | B258: PREM_HDG | C258: 841 | S258: 101 | T258: 52
A259: SAJDe | C259: 4940 | S259: 104 | T259: 20
A260: SAJDe | B260: CLT_COUR | C260: 38 | S260: 107 | T260: 7
A261: SAJDe | B261: FRAGILE | C261: 28 | S261: 108 | T261: 8
A262: SAJDe | B262: GDP_ESS_F | C262: 297 | S262: 109 | T262: 13
A263: SAJDe | B263: GDP_ESS_R | C263: 642 | S263: 110 | T263: 6
A264: SAJDe | B264: GD_PUBL | C264: 36 | S264: 111 | T264: 19
A265: SAJDe | B265: POT_PREM | C265: 3394 | S265: 113 | T265: 14
A266: SAJDe | B266: PREM_BQP | C266: 32 | S266: 116 | T266: 26
A267: SAJDe | B267: PREM_GP | C267: 612 | S267: 119 | T267: 36
A268: SAJDe | B268: PREM_HDG | C268: 1292 | S268: 120 | T268: 14
A269: SAJDne | C269: 22511 | S269: 121 | T269: 19
A270: SAJDne | B270: CLT_COUR | C270: 697 | S270: 126 | T270: 10
A271: SAJDne | B271: FRAGILE | C271: 495 | S271: 127 | T271: 15
A272: SAJDne | B272: GDP_ESS_F | C272: 2193 | S272: 129 | T272: 7
... 255 more rows

Sheet Activation
B2: FDC ET EQUIPEMENT PAR SEGMENT ACTIVATION
C4: REGION | F4: TERRITOIRE | J4: PDV
C5: CEGEE
D8: Tous segments | F8: Segments Activation - 10/2019
D9: 2019-10-01 | E9: 2018-12-01 | F9: BPe | G9: BPne | H9: De | I9: Dne | J9: JBPe | K9: JBPne | L9: JDe | M9: JDne | N9: Ee | O9: Ene | P9: I
B10: Fonds de commerce | C10: Nombre clients | D10: =SUM(F10:P10) -> 1495520 | E10: =IF(ISBLANK($F$5),SUMIFS('Données FDC déc 2018'!$F:$F,'Données FDC déc 2018'!$A:$A,Activation!$C$5),IF(ISBLANK($J$5),SUMIFS('Données FDC déc 2018'!$F:$F,'Données FDC déc 2018'!$B:$B,Activation!$F$5),SUMIFS('Données FDC déc 2018'!$F:$F,'Données FDC déc 2018'!$C:$C,Activation!$J$5))) -> 1539985 | F10: =IF(ISBLANK($F$5),SUMIFS('Données FDC'!$F:$F,'Données FDC'!$A:$A,Activation!$C$5,'Données FDC'!$E:$E,Activation!F$9),IF(ISBLANK($J$5),SUMIFS('Données FDC'!$F:$F,'Données FDC'!$B:$B,Activation!$F$5,'Données FDC'!$E:$E,Activation!F$9),SUMIFS('Données FDC'!$F:$F,'Données FDC'!$C:$C,Activation!$J$5,'Données FDC'!$E:$E,Activation!F$9))) -> 275955 | G10: =IF(ISBLANK($F$5),SUMIFS('Données FDC'!$F:$F,'Données FDC'!$A:$A,Activation!$C$5,'Données FDC'!$E:$E,Activation!G$9),IF(ISBLANK($J$5),SUMIFS('Données FDC'!$F:$F,'Données FDC'!$B:$B,Activation!$F$5,'Données FDC'!$E:$E,Activation!G$9),SUMIFS('Données FDC'!$F:$F,'Données FDC'!$C:$C,Activation!$J$5,'Données FDC'!$E:$E,Activation!G$9))) -> 161361 | H10: =IF(ISBLANK($F$5),SUMIFS('Données FDC'!$F:$F,'Données FDC'!$A:$A,Activation!$C$5,'Données FDC'!$E:$E,Activation!H$9),IF(ISBLANK($J$5),SUMIFS('Données FDC'!$F:$F,'Données FDC'!$B:$B,Activation!$F$5,'Données FDC'!$E:$E,Activation!H$9),SUMIFS('Données FDC'!$F:$F,'Données FDC'!$C:$C,Activation!$J$5,'Données FDC'!$E:$E,Activation!H$9))) -> 169719 | I10: =IF(ISBLANK($F$5),SUMIFS('Données FDC'!$F:$F,'Données FDC'!$A:$A,Activation!$C$5,'Données FDC'!$E:$E,Activation!I$9),IF(ISBLANK($J$5),SUMIFS('Données FDC'!$F:$F,'Données FDC'!$B:$B,Activation!$F$5,'Données FDC'!$E:$E,Activation!I$9),SUMIFS('Données FDC'!$F:$F,'Données FDC'!$C:$C,Activation!$J$5,'Données FDC'!$E:$E,Activation!I$9))) -> 354580 | J10: =IF(ISBLANK($F$5),SUMIFS('Données FDC'!$F:$F,'Données FDC'!$A:$A,Activation!$C$5,'Données FDC'!$E:$E,Activation!J$9),IF(ISBLANK($J$5),SUMIFS('Données FDC'!$F:$F,'Données FDC'!$B:$B,Activation!$F$5,'Données FDC'!$E:$E,Activation!J$9),SUMIFS('Données FDC'!$F:$F,'Données FDC'!$C:$C,Activation!$J$5,'Données FDC'!$E:$E,Activation!J$9))) -> 61198 | K10: =IF(ISBLANK($F$5),SUMIFS('Données FDC'!$F:$F,'Données FDC'!$A:$A,Activation!$C$5,'Données FDC'!$E:$E,Activation!K$9),IF(ISBLANK($J$5),SUMIFS('Données FDC'!$F:$F,'Données FDC'!$B:$B,Activation!$F$5,'Données FDC'!$E:$E,Activation!K$9),SUMIFS('Données FDC'!$F:$F,'Données FDC'!$C:$C,Activation!$J$5,'Données FDC'!$E:$E,Activation!K$9))) -> 17840 | L10: =IF(ISBLANK($F$5),SUMIFS('Données FDC'!$F:$F,'Données FDC'!$A:$A,Activation!$C$5,'Données FDC'!$E:$E,Activation!L$9),IF(ISBLANK($J$5),SUMIFS('Données FDC'!$F:$F,'Données FDC'!$B:$B,Activation!$F$5,'Données FDC'!$E:$E,Activation!L$9),SUMIFS('Données FDC'!$F:$F,'Données FDC'!$C:$C,Activation!$J$5,'Données FDC'!$E:$E,Activation!L$9))) -> 10586 | M10: =IF(ISBLANK($F$5),SUMIFS('Données FDC'!$F:$F,'Données FDC'!$A:$A,Activation!$C$5,'Données FDC'!$E:$E,Activation!M$9),IF(ISBLANK($J$5),SUMIFS('Données FDC'!$F:$F,'Données FDC'!$B:$B,Activation!$F$5,'Données FDC'!$E:$E,Activation!M$9),SUMIFS('Données FDC'!$F:$F,'Données FDC'!$C:$C,Activation!$J$5,'Données FDC'!$E:$E,Activation!M$9))) -> 75085 | N10: =IF(ISBLANK($F$5),SUMIFS('Données FDC'!$F:$F,'Données FDC'!$A:$A,Activation!$C$5,'Données FDC'!$E:$E,Activation!N$9),IF(ISBLANK($J$5),SUMIFS('Données FDC'!$F:$F,'Données FDC'!$B:$B,Activation!$F$5,'Données FDC'!$E:$E,Activation!N$9),SUMIFS('Données FDC'!$F:$F,'Données FDC'!$C:$C,Activation!$J$5,'Données FDC'!$E:$E,Activation!N$9))) -> 87854 | O10: =IF(ISBLANK($F$5),SUMIFS('Données FDC'!$F:$F,'Données FDC'!$A:$A,Activation!$C$5,'Données FDC'!$E:$E,Activation!O$9),IF(ISBLANK($J$5),SUMIFS('Données FDC'!$F:$F,'Données FDC'!$B:$B,Activation!$F$5,'Données FDC'!$E:$E,Activation!O$9),SUMIFS('Données FDC'!$F:$F,'Données FDC'!$C:$C,Activation!$J$5,'Données FDC'!$E:$E,Activation!O$9))) -> 63366 | P10: =IF(ISBLANK($F$5),SUMIFS('Données FDC'!$F:$F,'Données FDC'!$A:$A,Activation!$C$5,'Données FDC'!$E:$E,Activation!P$9),IF(ISBLANK($J$5),SUMIFS('Données FDC'!$F:$F,'Données FDC'!$B:$B,Activation!$F$5,'Données FDC'!$E:$E,Activation!P$9),SUMIFS('Données FDC'!$F:$F,'Données FDC'!$C:$C,Activation!$J$5,'Données FDC'!$E:$E,Activation!P$9))) -> 217976
C11: Poids | D11: =SUM(F11:P11) -> 1 | F11: =F10/$D10 -> 0.184521103 | G11: =G10/$D10 -> 0.1078962501 | H11: 0.1134849417 | I11: 0.2370947898 | J11: 0.04092088371 | K11: 0.01192896116 | L11: 0.007078474377 | M11: 0.0502066171 | N11: 0.05874478442 | O11: 0.0423705467 | P11: 0.1457526479
C12: Poids CEGEE | D12: =SUM(F12:P12) -> 1 | F12: =SUMIF('Données FDC'!$E:$E,Activation!F$9,'Données FDC'!$F:$F)/SUM('Données FDC'!$F:$F) -> 0.184521103 | G12: =SUMIF('Données FDC'!$E:$E,Activation!G$9,'Données FDC'!$F:$F)/SUM('Données FDC'!$F:$F) -> 0.1078962501 | H12: =SUMIF('Données FDC'!$E:$E,Activation!H$9,'Données FDC'!$F:$F)/SUM('Données FDC'!$F:$F) -> 0.1134849417 | I12: =SUMIF('Données FDC'!$E:$E,Activation!I$9,'Données FDC'!$F:$F)/SUM('Données FDC'!$F:$F) -> 0.2370947898 | J12: =SUMIF('Données FDC'!$E:$E,Activation!J$9,'Données FDC'!$F:$F)/SUM('Données FDC'!$F:$F) -> 0.04092088371 | K12: =SUMIF('Données FDC'!$E:$E,Activation!K$9,'Données FDC'!$F:$F)/SUM('Données FDC'!$F:$F) -> 0.01192896116 | L12: =SUMIF('Données FDC'!$E:$E,Activation!L$9,'Données FDC'!$F:$F)/SUM('Données FDC'!$F:$F) -> 0.007078474377 | M12: =SUMIF('Données FDC'!$E:$E,Activation!M$9,'Données FDC'!$F:$F)/SUM('Données FDC'!$F:$F) -> 0.0502066171 | N12: =SUMIF('Données FDC'!$E:$E,Activation!N$9,'Données FDC'!$F:$F)/SUM('Données FDC'!$F:$F) -> 0.05874478442 | O12: =SUMIF('Données FDC'!$E:$E,Activation!O$9,'Données FDC'!$F:$F)/SUM('Données FDC'!$F:$F) -> 0.0423705467 | P12: =SUMIF('Données FDC'!$E:$E,Activation!P$9,'Données FDC'!$F:$F)/SUM('Données FDC'!$F:$F) -> 0.1457526479
C13: Variation annuelle en nb | D13: =SUM(F13:P13) -> -44465 | F13: =F10-IF(ISBLANK($F$5),SUMIFS('Données FDC déc 2018'!$F:$F,'Données FDC déc 2018'!$A:$A,Activation!$C$5,'Données FDC déc 2018'!$E:$E,Activation!F$9),IF(ISBLANK($J$5),SUMIFS('Données FDC déc 2018'!$F:$F,'Données FDC déc 2018'!$B:$B,Activation!$F$5,'Données FDC déc 2018'!$E:$E,Activation!F$9),SUMIFS('Données FDC déc 2018'!$F:$F,'Données FDC déc 2018'!$C:$C,Activation!$J$5,'Données FDC déc 2018'!$E:$E,Activation!F$9))) -> 1827 | G13: =G10-IF(ISBLANK($F$5),SUMIFS('Données FDC déc 2018'!$F:$F,'Données FDC déc 2018'!$A:$A,Activation!$C$5,'Données FDC déc 2018'!$E:$E,Activation!G$9),IF(ISBLANK($J$5),SUMIFS('Données FDC déc 2018'!$F:$F,'Données FDC déc 2018'!$B:$B,Activation!$F$5,'Données FDC déc 2018'!$E:$E,Activation!G$9),SUMIFS('Données FDC déc 2018'!$F:$F,'Données FDC déc 2018'!$C:$C,Activation!$J$5,'Données FDC déc 2018'!$E:$E,Activation!G$9))) -> -2332 | H13: =H10-IF(ISBLANK($F$5),SUMIFS('Données FDC déc 2018'!$F:$F,'Données FDC déc 2018'!$A:$A,Activation!$C$5,'Données FDC déc 2018'!$E:$E,Activation!H$9),IF(ISBLANK($J$5),SUMIFS('Données FDC déc 2018'!$F:$F,'Données FDC déc 2018'!$B:$B,Activation!$F$5,'Données FDC déc 2018'!$E:$E,Activation!H$9),SUMIFS('Données FDC déc 2018'!$F:$F,'Données FDC déc 2018'!$C:$C,Activation!$J$5,'Données FDC déc 2018'!$E:$E,Activation!H$9))) -> -4849 | I13: =I10-IF(ISBLANK($F$5),SUMIFS('Données FDC déc 2018'!$F:$F,'Données FDC déc 2018'!$A:$A,Activation!$C$5,'Données FDC déc 2018'!$E:$E,Activation!I$9),IF(ISBLANK($J$5),SUMIFS('Données FDC déc 2018'!$F:$F,'Données FDC déc 2018'!$B:$B,Activation!$F$5,'Données FDC déc 2018'!$E:$E,Activation!I$9),SUMIFS('Données FDC déc 2018'!$F:$F,'Données FDC déc 2018'!$C:$C,Activation!$J$5,'Données FDC déc 2018'!$E:$E,Activation!I$9))) -> -12048 | J13: =J10-IF(ISBLANK($F$5),SUMIFS('Données FDC déc 2018'!$F:$F,'Données FDC déc 2018'!$A:$A,Activation!$C$5,'Données FDC déc 2018'!$E:$E,Activation!J$9),IF(ISBLANK($J$5),SUMIFS('Données FDC déc 2018'!$F:$F,'Données FDC déc 2018'!$B:$B,Activation!$F$5,'Données FDC déc 2018'!$E:$E,Activation!J$9),SUMIFS('Données FDC déc 2018'!$F:$F,'Données FDC déc 2018'!$C:$C,Activation!$J$5,'Données FDC déc 2018'!$E:$E,Activation!J$9))) -> 230 | K13: =K10-IF(ISBLANK($F$5),SUMIFS('Données FDC déc 2018'!$F:$F,'Données FDC déc 2018'!$A:$A,Activation!$C$5,'Données FDC déc 2018'!$E:$E,Activation!K$9),IF(ISBLANK($J$5),SUMIFS('Données FDC déc 2018'!$F:$F,'Données FDC déc 2018'!$B:$B,Activation!$F$5,'Données FDC déc 2018'!$E:$E,Activation!K$9),SUMIFS('Données FDC déc 2018'!$F:$F,'Données FDC déc 2018'!$C:$C,Activation!$J$5,'Données FDC déc 2018'!$E:$E,Activation!K$9))) -> -1323 | L13: =L10-IF(ISBLANK($F$5),SUMIFS('Données FDC déc 2018'!$F:$F,'Données FDC déc 2018'!$A:$A,Activation!$C$5,'Données FDC déc 2018'!$E:$E,Activation!L$9),IF(ISBLANK($J$5),SUMIFS('Données FDC déc 2018'!$F:$F,'Données FDC déc 2018'!$B:$B,Activation!$F$5,'Données FDC déc 2018'!$E:$E,Activation!L$9),SUMIFS('Données FDC déc 2018'!$F:$F,'Données FDC déc 2018'!$C:$C,Activation!$J$5,'Données FDC déc 2018'!$E:$E,Activation!L$9))) -> -725 | M13: =M10-IF(ISBLANK($F$5),SUMIFS('Données FDC déc 2018'!$F:$F,'Données FDC déc 2018'!$A:$A,Activation!$C$5,'Données FDC déc 2018'!$E:$E,Activation!M$9),IF(ISBLANK($J$5),SUMIFS('Données FDC déc 2018'!$F:$F,'Données FDC déc 2018'!$B:$B,Activation!$F$5,'Données FDC déc 2018'!$E:$E,Activation!M$9),SUMIFS('Données FDC déc 2018'!$F:$F,'Données FDC déc 2018'!$C:$C,Activation!$J$5,'Données FDC déc 2018'!$E:$E,Activation!M$9))) -> -3614 | N13: =N10-IF(ISBLANK($F$5),SUMIFS('Données FDC déc 2018'!$F:$F,'Données FDC déc 2018'!$A:$A,Activation!$C$5,'Données FDC déc 2018'!$E:$E,Activation!N$9),IF(ISBLANK($J$5),SUMIFS('Données FDC déc 2018'!$F:$F,'Données FDC déc 2018'!$B:$B,Activation!$F$5,'Données FDC déc 2018'!$E:$E,Activation!N$9),SUMIFS('Données FDC déc 2018'!$F:$F,'Données FDC déc 2018'!$C:$C,Activation!$J$5,'Données FDC déc 2018'!$E:$E,Activation!N$9))) -> -8096 | O13: =O10-IF(ISBLANK($F$5),SUMIFS('Données FDC déc 2018'!$F:$F,'Données FDC déc 2018'!$A:$A,Activation!$C$5,'Données FDC déc 2018'!$E:$E,Activation!O$9),IF(ISBLANK($J$5),SUMIFS('Données FDC déc 2018'!$F:$F,'Données FDC déc 2018'!$B:$B,Activation!$F$5,'Données FDC déc 2018'!$E:$E,Activation!O$9),SUMIFS('Données FDC déc 2018'!$F:$F,'Données FDC déc 2018'!$C:$C,Activation!$J$5,'Données FDC déc 2018'!$E:$E,Activation!O$9))) -> -927 | P13: =P10-IF(ISBLANK($F$5),SUMIFS('Données FDC déc 2018'!$F:$F,'Données FDC déc 2018'!$A:$A,Activation!$C$5,'Données FDC déc 2018'!$E:$E,Activation!P$9),IF(ISBLANK($J$5),SUMIFS('Données FDC déc 2018'!$F:$F,'Données FDC déc 2018'!$B:$B,Activation!$F$5,'Données FDC déc 2018'!$E:$E,Activation!P$9),SUMIFS('Données FDC déc 2018'!$F:$F,'Données FDC déc 2018'!$C:$C,Activation!$J$5,'Données FDC déc 2018'!$E:$E,Activation!P$9))) -> -12608
C14: Variation annuelle en % | D14: =D13/IF(ISBLANK($F$5),SUMIFS('Données FDC déc 2018'!$F:$F,'Données FDC déc 2018'!$A:$A,Activation!$C$5),IF(ISBLANK($J$5),SUMIFS('Données FDC déc 2018'!$F:$F,'Données FDC déc 2018'!$B:$B,Activation!$F$5),SUMIFS('Données FDC déc 2018'!$F:$F,'Données FDC déc 2018'!$C:$C,Activation!$J$5))) -> -0.02887365786 | F14: =F13/IF(ISBLANK($F$5),SUMIFS('Données FDC déc 2018'!$F:$F,'Données FDC déc 2018'!$A:$A,Activation!$C$5,'Données FDC déc 2018'!$E:$E,Activation!F$9),IF(ISBLANK($J$5),SUMIFS('Données FDC déc 2018'!$F:$F,'Données FDC déc 2018'!$B:$B,Activation!$F$5,'Données FDC déc 2018'!$E:$E,Activation!F$9),SUMIFS('Données FDC déc 2018'!$F:$F,'Données FDC déc 2018'!$C:$C,Activation!$J$5,'Données FDC déc 2018'!$E:$E,Activation!F$9))) -> 0.006664769743 | G14: =G13/IF(ISBLANK($F$5),SUMIFS('Données FDC déc 2018'!$F:$F,'Données FDC déc 2018'!$A:$A,Activation!$C$5,'Données FDC déc 2018'!$E:$E,Activation!G$9),IF(ISBLANK($J$5),SUMIFS('Données FDC déc 2018'!$F:$F,'Données FDC déc 2018'!$B:$B,Activation!$F$5,'Données FDC déc 2018'!$E:$E,Activation!G$9),SUMIFS('Données FDC déc 2018'!$F:$F,'Données FDC déc 2018'!$C:$C,Activation!$J$5,'Données FDC déc 2018'!$E:$E,Activation!G$9))) -> -0.01424618035 | H14: =H13/IF(ISBLANK($F$5),SUMIFS('Données FDC déc 2018'!$F:$F,'Données FDC déc 2018'!$A:$A,Activation!$C$5,'Données FDC déc 2018'!$E:$E,Activation!H$9),IF(ISBLANK($J$5),SUMIFS('Données FDC déc 2018'!$F:$F,'Données FDC déc 2018'!$B:$B,Activation!$F$5,'Données FDC déc 2018'!$E:$E,Activation!H$9),SUMIFS('Données FDC déc 2018'!$F:$F,'Données FDC déc 2018'!$C:$C,Activation!$J$5,'Données FDC déc 2018'!$E:$E,Activation!H$9))) -> -0.02777714129 | I14: =I13/IF(ISBLANK($F$5),SUMIFS('Données FDC déc 2018'!$F:$F,'Données FDC déc 2018'!$A:$A,Activation!$C$5,'Données FDC déc 2018'!$E:$E,Activation!I$9),IF(ISBLANK($J$5),SUMIFS('Données FDC déc 2018'!$F:$F,'Données FDC déc 2018'!$B:$B,Activation!$F$5,'Données FDC déc 2018'!$E:$E,Activation!I$9),SUMIFS('Données FDC déc 2018'!$F:$F,'Données FDC déc 2018'!$C:$C,Activation!$J$5,'Données FDC déc 2018'!$E:$E,Activation!I$9))) -> -0.03286164723 | J14: =J13/IF(ISBLANK($F$5),SUMIFS('Données FDC déc 2018'!$F:$F,'Données FDC déc 2018'!$A:$A,Activation!$C$5,'Données FDC déc 2018'!$E:$E,Activation!J$9),IF(ISBLANK($J$5),SUMIFS('Données FDC déc 2018'!$F:$F,'Données FDC déc 2018'!$B:$B,Activation!$F$5,'Données FDC déc 2018'!$E:$E,Activation!J$9),SUMIFS('Données FDC déc 2018'!$F:$F,'Données FDC déc 2018'!$C:$C,Activation!$J$5,'Données FDC déc 2018'!$E:$E,Activation!J$9))) -> 0.003772470804 | K14: =K13/IF(ISBLANK($F$5),SUMIFS('Données FDC déc 2018'!$F:$F,'Données FDC déc 2018'!$A:$A,Activation!$C$5,'Données FDC déc 2018'!$E:$E,Activation!K$9),IF(ISBLANK($J$5),SUMIFS('Données FDC déc 2018'!$F:$F,'Données FDC déc 2018'!$B:$B,Activation!$F$5,'Données FDC déc 2018'!$E:$E,Activation!K$9),SUMIFS('Données FDC déc 2018'!$F:$F,'Données FDC déc 2018'!$C:$C,Activation!$J$5,'Données FDC déc 2018'!$E:$E,Activation!K$9))) -> -0.06903929447 | L14: =L13/IF(ISBLANK($F$5),SUMIFS('Données FDC déc 2018'!$F:$F,'Données FDC déc 2018'!$A:$A,Activation!$C$5,'Données FDC déc 2018'!$E:$E,Activation!L$9),IF(ISBLANK($J$5),SUMIFS('Données FDC déc 2018'!$F:$F,'Données FDC déc 2018'!$B:$B,Activation!$F$5,'Données FDC déc 2018'!$E:$E,Activation!L$9),SUMIFS('Données FDC déc 2018'!$F:$F,'Données FDC déc 2018'!$C:$C,Activation!$J$5,'Données FDC déc 2018'!$E:$E,Activation!L$9))) -> -0.06409689683 | M14: =M13/IF(ISBLANK($F$5),SUMIFS('Données FDC déc 2018'!$F:$F,'Données FDC déc 2018'!$A:$A,Activation!$C$5,'Données FDC déc 2018'!$E:$E,Activation!M$9),IF(ISBLANK($J$5),SUMIFS('Données FDC déc 2018'!$F:$F,'Données FDC déc 2018'!$B:$B,Activation!$F$5,'Données FDC déc 2018'!$E:$E,Activation!M$9),SUMIFS('Données FDC déc 2018'!$F:$F,'Données FDC déc 2018'!$C:$C,Activation!$J$5,'Données FDC déc 2018'!$E:$E,Activation!M$9))) -> -0.04592180333 | N14: =N13/IF(ISBLANK($F$5),SUMIFS('Données FDC déc 2018'!$F:$F,'Données FDC déc 2018'!$A:$A,Activation!$C$5,'Données FDC déc 2018'!$E:$E,Activation!N$9),IF(ISBLANK($J$5),SUMIFS('Données FDC déc 2018'!$F:$F,'Données FDC déc 2018'!$B:$B,Activation!$F$5,'Données FDC déc 2018'!$E:$E,Activation!N$9),SUMIFS('Données FDC déc 2018'!$F:$F,'Données FDC déc 2018'!$C:$C,Activation!$J$5,'Données FDC déc 2018'!$E:$E,Activation!N$9))) -> -0.08437727983 | O14: =O13/IF(ISBLANK($F$5),SUMIFS('Données FDC déc 2018'!$F:$F,'Données FDC déc 2018'!$A:$A,Activation!$C$5,'Données FDC déc 2018'!$E:$E,Activation!O$9),IF(ISBLANK($J$5),SUMIFS('Données FDC déc 2018'!$F:$F,'Données FDC déc 2018'!$B:$B,Activation!$F$5,'Données FDC déc 2018'!$E:$E,Activation!O$9),SUMIFS('Données FDC déc 2018'!$F:$F,'Données FDC déc 2018'!$C:$C,Activation!$J$5,'Données FDC déc 2018'!$E:$E,Activation!O$9))) -> -0.01441836592 | P14: =P13/IF(ISBLANK($F$5),SUMIFS('Données FDC déc 2018'!$F:$F,'Données FDC déc 2018'!$A:$A,Activation!$C$5,'Données FDC déc 2018'!$E:$E,Activation!P$9),IF(ISBLANK($J$5),SUMIFS('Données FDC déc 2018'!$F:$F,'Données FDC déc 2018'!$B:$B,Activation!$F$5,'Données FDC déc 2018'!$E:$E,Activation!P$9),SUMIFS('Données FDC déc 2018'!$F:$F,'Données FDC déc 2018'!$C:$C,Activation!$J$5,'Données FDC déc 2018'!$E:$E,Activation!P$9))) -> -0.05467855532
C15: Variation en % CEGEE | D15: =SUM('Données FDC'!$F:$F)/SUM('Données FDC déc 2018'!$F:$F)-1 -> -0.02887365786 | F15: =IF(ISBLANK($F$5),SUMIFS('Données FDC'!$F:$F,'Données FDC'!$E:$E,Activation!F$9),IF(ISBLANK($J$5),SUMIFS('Données FDC'!$F:$F,'Données FDC'!$E:$E,Activation!F$9),SUMIFS('Données FDC'!$F:$F,'Données FDC'!$E:$E,Activation!F$9)))/(IF(ISBLANK($F$5),SUMIFS('Données FDC déc 2018'!$F:$F,'Données FDC déc 2018'!$E:$E,Activation!F$9),IF(ISBLANK($J$5),SUMIFS('Données FDC déc 2018'!$F:$F,'Données FDC déc 2018'!$E:$E,Activation!F$9),SUMIFS('Données FDC déc 2018'!$F:$F,'Données FDC déc 2018'!$E:$E,Activation!F$9))))-1 -> 0.006664769743 | G15: =IF(ISBLANK($F$5),SUMIFS('Données FDC'!$F:$F,'Données FDC'!$E:$E,Activation!G$9),IF(ISBLANK($J$5),SUMIFS('Données FDC'!$F:$F,'Données FDC'!$E:$E,Activation!G$9),SUMIFS('Données FDC'!$F:$F,'Données FDC'!$E:$E,Activation!G$9)))/(IF(ISBLANK($F$5),SUMIFS('Données FDC déc 2018'!$F:$F,'Données FDC déc 2018'!$E:$E,Activation!G$9),IF(ISBLANK($J$5),SUMIFS('Données FDC déc 2018'!$F:$F,'Données FDC déc 2018'!$E:$E,Activation!G$9),SUMIFS('Données FDC déc 2018'!$F:$F,'Données FDC déc 2018'!$E:$E,Activation!G$9))))-1 -> -0.01424618035 | H15: =IF(ISBLANK($F$5),SUMIFS('Données FDC'!$F:$F,'Données FDC'!$E:$E,Activation!H$9),IF(ISBLANK($J$5),SUMIFS('Données FDC'!$F:$F,'Données FDC'!$E:$E,Activation!H$9),SUMIFS('Données FDC'!$F:$F,'Données FDC'!$E:$E,Activation!H$9)))/(IF(ISBLANK($F$5),SUMIFS('Données FDC déc 2018'!$F:$F,'Données FDC déc 2018'!$E:$E,Activation!H$9),IF(ISBLANK($J$5),SUMIFS('Données FDC déc 2018'!$F:$F,'Données FDC déc 2018'!$E:$E,Activation!H$9),SUMIFS('Données FDC déc 2018'!$F:$F,'Données FDC déc 2018'!$E:$E,Activation!H$9))))-1 -> -0.02777714129 | I15: =IF(ISBLANK($F$5),SUMIFS('Données FDC'!$F:$F,'Données FDC'!$E:$E,Activation!I$9),IF(ISBLANK($J$5),SUMIFS('Données FDC'!$F:$F,'Données FDC'!$E:$E,Activation!I$9),SUMIFS('Données FDC'!$F:$F,'Données FDC'!$E:$E,Activation!I$9)))/(IF(ISBLANK($F$5),SUMIFS('Données FDC déc 2018'!$F:$F,'Données FDC déc 2018'!$E:$E,Activation!I$9),IF(ISBLANK($J$5),SUMIFS('Données FDC déc 2018'!$F:$F,'Données FDC déc 2018'!$E:$E,Activation!I$9),SUMIFS('Données FDC déc 2018'!$F:$F,'Données FDC déc 2018'!$E:$E,Activation!I$9))))-1 -> -0.03286164723 | J15: =IF(ISBLANK($F$5),SUMIFS('Données FDC'!$F:$F,'Données FDC'!$E:$E,Activation!J$9),IF(ISBLANK($J$5),SUMIFS('Données FDC'!$F:$F,'Données FDC'!$E:$E,Activation!J$9),SUMIFS('Données FDC'!$F:$F,'Données FDC'!$E:$E,Activation!J$9)))/(IF(ISBLANK($F$5),SUMIFS('Données FDC déc 2018'!$F:$F,'Données FDC déc 2018'!$E:$E,Activation!J$9),IF(ISBLANK($J$5),SUMIFS('Données FDC déc 2018'!$F:$F,'Données FDC déc 2018'!$E:$E,Activation!J$9),SUMIFS('Données FDC déc 2018'!$F:$F,'Données FDC déc 2018'!$E:$E,Activation!J$9))))-1 -> 0.003772470804 | K15: =IF(ISBLANK($F$5),SUMIFS('Données FDC'!$F:$F,'Données FDC'!$E:$E,Activation!K$9),IF(ISBLANK($J$5),SUMIFS('Données FDC'!$F:$F,'Données FDC'!$E:$E,Activation!K$9),SUMIFS('Données FDC'!$F:$F,'Données FDC'!$E:$E,Activation!K$9)))/(IF(ISBLANK($F$5),SUMIFS('Données FDC déc 2018'!$F:$F,'Données FDC déc 2018'!$E:$E,Activation!K$9),IF(ISBLANK($J$5),SUMIFS('Données FDC déc 2018'!$F:$F,'Données FDC déc 2018'!$E:$E,Activation!K$9),SUMIFS('Données FDC déc 2018'!$F:$F,'Données FDC déc 2018'!$E:$E,Activation!K$9))))-1 -> -0.06903929447 | L15: =IF(ISBLANK($F$5),SUMIFS('Données FDC'!$F:$F,'Données FDC'!$E:$E,Activation!L$9),IF(ISBLANK($J$5),SUMIFS('Données FDC'!$F:$F,'Données FDC'!$E:$E,Activation!L$9),SUMIFS('Données FDC'!$F:$F,'Données FDC'!$E:$E,Activation!L$9)))/(IF(ISBLANK($F$5),SUMIFS('Données FDC déc 2018'!$F:$F,'Données FDC déc 2018'!$E:$E,Activation!L$9),IF(ISBLANK($J$5),SUMIFS('Données FDC déc 2018'!$F:$F,'Données FDC déc 2018'!$E:$E,Activation!L$9),SUMIFS('Données FDC déc 2018'!$F:$F,'Données FDC déc 2018'!$E:$E,Activation!L$9))))-1 -> -0.06409689683 | M15: =IF(ISBLANK($F$5),SUMIFS('Données FDC'!$F:$F,'Données FDC'!$E:$E,Activation!M$9),IF(ISBLANK($J$5),SUMIFS('Données FDC'!$F:$F,'Données FDC'!$E:$E,Activation!M$9),SUMIFS('Données FDC'!$F:$F,'Données FDC'!$E:$E,Activation!M$9)))/(IF(ISBLANK($F$5),SUMIFS('Données FDC déc 2018'!$F:$F,'Données FDC déc 2018'!$E:$E,Activation!M$9),IF(ISBLANK($J$5),SUMIFS('Données FDC déc 2018'!$F:$F,'Données FDC déc 2018'!$E:$E,Activation!M$9),SUMIFS('Données FDC déc 2018'!$F:$F,'Données FDC déc 2018'!$E:$E,Activation!M$9))))-1 -> -0.04592180333 | N15: =IF(ISBLANK($F$5),SUMIFS('Données FDC'!$F:$F,'Données FDC'!$E:$E,Activation!N$9),IF(ISBLANK($J$5),SUMIFS('Données FDC'!$F:$F,'Données FDC'!$E:$E,Activation!N$9),SUMIFS('Données FDC'!$F:$F,'Données FDC'!$E:$E,Activation!N$9)))/(IF(ISBLANK($F$5),SUMIFS('Données FDC déc 2018'!$F:$F,'Données FDC déc 2018'!$E:$E,Activation!N$9),IF(ISBLANK($J$5),SUMIFS('Données FDC déc 2018'!$F:$F,'Données FDC déc 2018'!$E:$E,Activation!N$9),SUMIFS('Données FDC déc 2018'!$F:$F,'Données FDC déc 2018'!$E:$E,Activation!N$9))))-1 -> -0.08437727983 | O15: =IF(ISBLANK($F$5),SUMIFS('Données FDC'!$F:$F,'Données FDC'!$E:$E,Activation!O$9),IF(ISBLANK($J$5),SUMIFS('Données FDC'!$F:$F,'Données FDC'!$E:$E,Activation!O$9),SUMIFS('Données FDC'!$F:$F,'Données FDC'!$E:$E,Activation!O$9)))/(IF(ISBLANK($F$5),SUMIFS('Données FDC déc 2018'!$F:$F,'Données FDC déc 2018'!$E:$E,Activation!O$9),IF(ISBLANK($J$5),SUMIFS('Données FDC déc 2018'!$F:$F,'Données FDC déc 2018'!$E:$E,Activation!O$9),SUMIFS('Données FDC déc 2018'!$F:$F,'Données FDC déc 2018'!$E:$E,Activation!O$9))))-1 -> -0.01441836592 | P15: =IF(ISBLANK($F$5),SUMIFS('Données FDC'!$F:$F,'Données FDC'!$E:$E,Activation!P$9),IF(ISBLANK($J$5),SUMIFS('Données FDC'!$F:$F,'Données FDC'!$E:$E,Activation!P$9),SUMIFS('Données FDC'!$F:$F,'Données FDC'!$E:$E,Activation!P$9)))/(IF(ISBLANK($F$5),SUMIFS('Données FDC déc 2018'!$F:$F,'Données FDC déc 2018'!$E:$E,Activation!P$9),IF(ISBLANK($J$5),SUMIFS('Données FDC déc 2018'!$F:$F,'Données FDC déc 2018'!$E:$E,Activation!P$9),SUMIFS('Données FDC déc 2018'!$F:$F,'Données FDC déc 2018'!$E:$E,Activation!P$9))))-1 -> -0.05467855532
C16: Nouveaux clients | D16: =SUM(F16:P16) -> 27016 | F16: =IF(ISBLANK($F$5),SUMIFS('Données FDC'!$N:$N,'Données FDC'!$A:$A,Activation!$C$5,'Données FDC'!$E:$E,Activation!F$9),IF(ISBLANK($J$5),SUMIFS('Données FDC'!$N:$N,'Données FDC'!$B:$B,Activation!$F$5,'Données FDC'!$E:$E,Activation!F$9),SUMIFS('Données FDC'!$N:$N,'Données FDC'!$C:$C,Activation!$J$5,'Données FDC'!$E:$E,Activation!F$9))) -> 2172 | G16: =IF(ISBLANK($F$5),SUMIFS('Données FDC'!$N:$N,'Données FDC'!$A:$A,Activation!$C$5,'Données FDC'!$E:$E,Activation!G$9),IF(ISBLANK($J$5),SUMIFS('Données FDC'!$N:$N,'Données FDC'!$B:$B,Activation!$F$5,'Données FDC'!$E:$E,Activation!G$9),SUMIFS('Données FDC'!$N:$N,'Données FDC'!$C:$C,Activation!$J$5,'Données FDC'!$E:$E,Activation!G$9))) -> 2168 | H16: =IF(ISBLANK($F$5),SUMIFS('Données FDC'!$N:$N,'Données FDC'!$A:$A,Activation!$C$5,'Données FDC'!$E:$E,Activation!H$9),IF(ISBLANK($J$5),SUMIFS('Données FDC'!$N:$N,'Données FDC'!$B:$B,Activation!$F$5,'Données FDC'!$E:$E,Activation!H$9),SUMIFS('Données FDC'!$N:$N,'Données FDC'!$C:$C,Activation!$J$5,'Données FDC'!$E:$E,Activation!H$9))) -> 1671 | I16: =IF(ISBLANK($F$5),SUMIFS('Données FDC'!$N:$N,'Données FDC'!$A:$A,Activation!$C$5,'Données FDC'!$E:$E,Activation!I$9),IF(ISBLANK($J$5),SUMIFS('Données FDC'!$N:$N,'Données FDC'!$B:$B,Activation!$F$5,'Données FDC'!$E:$E,Activation!I$9),SUMIFS('Données FDC'!$N:$N,'Données FDC'!$C:$C,Activation!$J$5,'Données FDC'!$E:$E,Activation!I$9))) -> 8165 | J16: =IF(ISBLANK($F$5),SUMIFS('Données FDC'!$N:$N,'Données FDC'!$A:$A,Activation!$C$5,'Données FDC'!$E:$E,Activation!J$9),IF(ISBLANK($J$5),SUMIFS('Données FDC'!$N:$N,'Données FDC'!$B:$B,Activation!$F$5,'Données FDC'!$E:$E,Activation!J$9),SUMIFS('Données FDC'!$N:$N,'Données FDC'!$C:$C,Activation!$J$5,'Données FDC'!$E:$E,Activation!J$9))) -> 1497 | K16: =IF(ISBLANK($F$5),SUMIFS('Données FDC'!$N:$N,'Données FDC'!$A:$A,Activation!$C$5,'Données FDC'!$E:$E,Activation!K$9),IF(ISBLANK($J$5),SUMIFS('Données FDC'!$N:$N,'Données FDC'!$B:$B,Activation!$F$5,'Données FDC'!$E:$E,Activation!K$9),SUMIFS('Données FDC'!$N:$N,'Données FDC'!$C:$C,Activation!$J$5,'Données FDC'!$E:$E,Activation!K$9))) -> 1447 | L16: =IF(ISBLANK($F$5),SUMIFS('Données FDC'!$N:$N,'Données FDC'!$A:$A,Activation!$C$5,'Données FDC'!$E:$E,Activation!L$9),IF(ISBLANK($J$5),SUMIFS('Données FDC'!$N:$N,'Données FDC'!$B:$B,Activation!$F$5,'Données FDC'!$E:$E,Activation!L$9),SUMIFS('Données FDC'!$N:$N,'Données FDC'!$C:$C,Activation!$J$5,'Données FDC'!$E:$E,Activation!L$9))) -> 131 | M16: =IF(ISBLANK($F$5),SUMIFS('Données FDC'!$N:$N,'Données FDC'!$A:$A,Activation!$C$5,'Données FDC'!$E:$E,Activation!M$9),IF(ISBLANK($J$5),SUMIFS('Données FDC'!$N:$N,'Données FDC'!$B:$B,Activation!$F$5,'Données FDC'!$E:$E,Activation!M$9),SUMIFS('Données FDC'!$N:$N,'Données FDC'!$C:$C,Activation!$J$5,'Données FDC'!$E:$E,Activation!M$9))) -> 2314 | N16: =IF(ISBLANK($F$5),SUMIFS('Données FDC'!$N:$N,'Données FDC'!$A:$A,Activation!$C$5,'Données FDC'!$E:$E,Activation!N$9),IF(ISBLANK($J$5),SUMIFS('Données FDC'!$N:$N,'Données FDC'!$B:$B,Activation!$F$5,'Données FDC'!$E:$E,Activation!N$9),SUMIFS('Données FDC'!$N:$N,'Données FDC'!$C:$C,Activation!$J$5,'Données FDC'!$E:$E,Activation!N$9))) -> 4367 | O16: =IF(ISBLANK($F$5),SUMIFS('Données FDC'!$N:$N,'Données FDC'!$A:$A,Activation!$C$5,'Données FDC'!$E:$E,Activation!O$9),IF(ISBLANK($J$5),SUMIFS('Données FDC'!$N:$N,'Données FDC'!$B:$B,Activation!$F$5,'Données FDC'!$E:$E,Activation!O$9),SUMIFS('Données FDC'!$N:$N,'Données FDC'!$C:$C,Activation!$J$5,'Données FDC'!$E:$E,Activation!O$9))) -> 2730 | P16: =IF(ISBLANK($F$5),SUMIFS('Données FDC'!$N:$N,'Données FDC'!$A:$A,Activation!$C$5,'Données FDC'!$E:$E,Activation!P$9),IF(ISBLANK($J$5),SUMIFS('Données FDC'!$N:$N,'Données FDC'!$B:$B,Activation!$F$5,'Données FDC'!$E:$E,Activation!P$9),SUMIFS('Données FDC'!$N:$N,'Données FDC'!$C:$C,Activation!$J$5,'Données FDC'!$E:$E,Activation!P$9))) -> 354
C17: % Conquête | D17: =D16/E10 -> 0.01754302802 | F17: =F16/IF(ISBLANK($F$5),SUMIFS('Données FDC déc 2018'!$F:$F,'Données FDC déc 2018'!$A:$A,Activation!$C$5,'Données FDC déc 2018'!$E:$E,Activation!F$9),IF(ISBLANK($J$5),SUMIFS('Données FDC déc 2018'!$F:$F,'Données FDC déc 2018'!$B:$B,Activation!$F$5,'Données FDC déc 2018'!$E:$E,Activation!F$9),SUMIFS('Données FDC déc 2018'!$F:$F,'Données FDC déc 2018'!$C:$C,Activation!$J$5,'Données FDC déc 2018'!$E:$E,Activation!F$9))) -> 0.007923305901 | G17: =G16/IF(ISBLANK($F$5),SUMIFS('Données FDC déc 2018'!$F:$F,'Données FDC déc 2018'!$A:$A,Activation!$C$5,'Données FDC déc 2018'!$E:$E,Activation!G$9),IF(ISBLANK($J$5),SUMIFS('Données FDC déc 2018'!$F:$F,'Données FDC déc 2018'!$B:$B,Activation!$F$5,'Données FDC déc 2018'!$E:$E,Activation!G$9),SUMIFS('Données FDC déc 2018'!$F:$F,'Données FDC déc 2018'!$C:$C,Activation!$J$5,'Données FDC déc 2018'!$E:$E,Activation!G$9))) -> 0.01324430489 | H17: =H16/IF(ISBLANK($F$5),SUMIFS('Données FDC déc 2018'!$F:$F,'Données FDC déc 2018'!$A:$A,Activation!$C$5,'Données FDC déc 2018'!$E:$E,Activation!H$9),IF(ISBLANK($J$5),SUMIFS('Données FDC déc 2018'!$F:$F,'Données FDC déc 2018'!$B:$B,Activation!$F$5,'Données FDC déc 2018'!$E:$E,Activation!H$9),SUMIFS('Données FDC déc 2018'!$F:$F,'Données FDC déc 2018'!$C:$C,Activation!$J$5,'Données FDC déc 2018'!$E:$E,Activation!H$9))) -> 0.009572201091 | I17: =I16/IF(ISBLANK($F$5),SUMIFS('Données FDC déc 2018'!$F:$F,'Données FDC déc 2018'!$A:$A,Activation!$C$5,'Données FDC déc 2018'!$E:$E,Activation!I$9),IF(ISBLANK($J$5),SUMIFS('Données FDC déc 2018'!$F:$F,'Données FDC déc 2018'!$B:$B,Activation!$F$5,'Données FDC déc 2018'!$E:$E,Activation!I$9),SUMIFS('Données FDC déc 2018'!$F:$F,'Données FDC déc 2018'!$C:$C,Activation!$J$5,'Données FDC déc 2018'!$E:$E,Activation!I$9))) -> 0.02227053035 | J17: =J16/IF(ISBLANK($F$5),SUMIFS('Données FDC déc 2018'!$F:$F,'Données FDC déc 2018'!$A:$A,Activation!$C$5,'Données FDC déc 2018'!$E:$E,Activation!J$9),IF(ISBLANK($J$5),SUMIFS('Données FDC déc 2018'!$F:$F,'Données FDC déc 2018'!$B:$B,Activation!$F$5,'Données FDC déc 2018'!$E:$E,Activation!J$9),SUMIFS('Données FDC déc 2018'!$F:$F,'Données FDC déc 2018'!$C:$C,Activation!$J$5,'Données FDC déc 2018'!$E:$E,Activation!J$9))) -> 0.02455386432 | K17: =K16/IF(ISBLANK($F$5),SUMIFS('Données FDC déc 2018'!$F:$F,'Données FDC déc 2018'!$A:$A,Activation!$C$5,'Données FDC déc 2018'!$E:$E,Activation!K$9),IF(ISBLANK($J$5),SUMIFS('Données FDC déc 2018'!$F:$F,'Données FDC déc 2018'!$B:$B,Activation!$F$5,'Données FDC déc 2018'!$E:$E,Activation!K$9),SUMIFS('Données FDC déc 2018'!$F:$F,'Données FDC déc 2018'!$C:$C,Activation!$J$5,'Données FDC déc 2018'!$E:$E,Activation!K$9))) -> 0.07551009758 | L17: =L16/IF(ISBLANK($F$5),SUMIFS('Données FDC déc 2018'!$F:$F,'Données FDC déc 2018'!$A:$A,Activation!$C$5,'Données FDC déc 2018'!$E:$E,Activation!L$9),IF(ISBLANK($J$5),SUMIFS('Données FDC déc 2018'!$F:$F,'Données FDC déc 2018'!$B:$B,Activation!$F$5,'Données FDC déc 2018'!$E:$E,Activation!L$9),SUMIFS('Données FDC déc 2018'!$F:$F,'Données FDC déc 2018'!$C:$C,Activation!$J$5,'Données FDC déc 2018'!$E:$E,Activation!L$9))) -> 0.01158164619 | M17: =M16/IF(ISBLANK($F$5),SUMIFS('Données FDC déc 2018'!$F:$F,'Données FDC déc 2018'!$A:$A,Activation!$C$5,'Données FDC déc 2018'!$E:$E,Activation!M$9),IF(ISBLANK($J$5),SUMIFS('Données FDC déc 2018'!$F:$F,'Données FDC déc 2018'!$B:$B,Activation!$F$5,'Données FDC déc 2018'!$E:$E,Activation!M$9),SUMIFS('Données FDC déc 2018'!$F:$F,'Données FDC déc 2018'!$C:$C,Activation!$J$5,'Données FDC déc 2018'!$E:$E,Activation!M$9))) -> 0.02940316904 | N17: =N16/IF(ISBLANK($F$5),SUMIFS('Données FDC déc 2018'!$F:$F,'Données FDC déc 2018'!$A:$A,Activation!$C$5,'Données FDC déc 2018'!$E:$E,Activation!N$9),IF(ISBLANK($J$5),SUMIFS('Données FDC déc 2018'!$F:$F,'Données FDC déc 2018'!$B:$B,Activation!$F$5,'Données FDC déc 2018'!$E:$E,Activation!N$9),SUMIFS('Données FDC déc 2018'!$F:$F,'Données FDC déc 2018'!$C:$C,Activation!$J$5,'Données FDC déc 2018'!$E:$E,Activation!N$9))) -> 0.04551328817 | O17: =O16/IF(ISBLANK($F$5),SUMIFS('Données FDC déc 2018'!$F:$F,'Données FDC déc 2018'!$A:$A,Activation!$C$5,'Données FDC déc 2018'!$E:$E,Activation!O$9),IF(ISBLANK($J$5),SUMIFS('Données FDC déc 2018'!$F:$F,'Données FDC déc 2018'!$B:$B,Activation!$F$5,'Données FDC déc 2018'!$E:$E,Activation!O$9),SUMIFS('Données FDC déc 2018'!$F:$F,'Données FDC déc 2018'!$C:$C,Activation!$J$5,'Données FDC déc 2018'!$E:$E,Activation!O$9))) -> 0.04246185432 | P17: =P16/IF(ISBLANK($F$5),SUMIFS('Données FDC déc 2018'!$F:$F,'Données FDC déc 2018'!$A:$A,Activation!$C$5,'Données FDC déc 2018'!$E:$E,Activation!P$9),IF(ISBLANK($J$5),SUMIFS('Données FDC déc 2018'!$F:$F,'Données FDC déc 2018'!$B:$B,Activation!$F$5,'Données FDC déc 2018'!$E:$E,Activation!P$9),SUMIFS('Données FDC déc 2018'!$F:$F,'Données FDC déc 2018'!$C:$C,Activation!$J$5,'Données FDC déc 2018'!$E:$E,Activation!P$9))) -> 0.00153523228
C18: % Conquête CEGEE | D18: =SUM('Données FDC'!$N:$N)/SUM('Données FDC déc 2018'!$F:$F) -> 0.01754302802 | F18: =SUMIF('Données FDC'!$E:$E,Activation!F$9,'Données FDC'!$N:$N)/SUMIF('Données FDC déc 2018'!$E:$E,Activation!F$9,'Données FDC déc 2018'!$F:$F) -> 0.007923305901 | G18: =SUMIF('Données FDC'!$E:$E,Activation!G$9,'Données FDC'!$N:$N)/SUMIF('Données FDC déc 2018'!$E:$E,Activation!G$9,'Données FDC déc 2018'!$F:$F) -> 0.01324430489 | H18: =SUMIF('Données FDC'!$E:$E,Activation!H$9,'Données FDC'!$N:$N)/SUMIF('Données FDC déc 2018'!$E:$E,Activation!H$9,'Données FDC déc 2018'!$F:$F) -> 0.009572201091 | I18: =SUMIF('Données FDC'!$E:$E,Activation!I$9,'Données FDC'!$N:$N)/SUMIF('Données FDC déc 2018'!$E:$E,Activation!I$9,'Données FDC déc 2018'!$F:$F) -> 0.02227053035 | J18: =SUMIF('Données FDC'!$E:$E,Activation!J$9,'Données FDC'!$N:$N)/SUMIF('Données FDC déc 2018'!$E:$E,Activation!J$9,'Données FDC déc 2018'!$F:$F) -> 0.02455386432 | K18: =SUMIF('Données FDC'!$E:$E,Activation!K$9,'Données FDC'!$N:$N)/SUMIF('Données FDC déc 2018'!$E:$E,Activation!K$9,'Données FDC déc 2018'!$F:$F) -> 0.07551009758 | L18: =SUMIF('Données FDC'!$E:$E,Activation!L$9,'Données FDC'!$N:$N)/SUMIF('Données FDC déc 2018'!$E:$E,Activation!L$9,'Données FDC déc 2018'!$F:$F) -> 0.01158164619 | M18: =SUMIF('Données FDC'!$E:$E,Activation!M$9,'Données FDC'!$N:$N)/SUMIF('Données FDC déc 2018'!$E:$E,Activation!M$9,'Données FDC déc 2018'!$F:$F) -> 0.02940316904 | N18: =SUMIF('Données FDC'!$E:$E,Activation!N$9,'Données FDC'!$N:$N)/SUMIF('Données FDC déc 2018'!$E:$E,Activation!N$9,'Données FDC déc 2018'!$F:$F) -> 0.04551328817 | O18: =SUMIF('Données FDC'!$E:$E,Activation!O$9,'Données FDC'!$N:$N)/SUMIF('Données FDC déc 2018'!$E:$E,Activation!O$9,'Données FDC déc 2018'!$F:$F) -> 0.04246185432 | P18: =SUMIF('Données FDC'!$E:$E,Activation!P$9,'Données FDC'!$N:$N)/SUMIF('Données FDC déc 2018'!$E:$E,Activation!P$9,'Données FDC déc 2018'!$F:$F) -> 0.00153523228
C19: Clients sortants | D19: =SUM(F19:P19) -> 71481 | F19: =IF(ISBLANK($F$5),SUMIFS('Données FDC'!$O:$O,'Données FDC'!$A:$A,Activation!$C$5,'Données FDC'!$E:$E,Activation!F$9),IF(ISBLANK($J$5),SUMIFS('Données FDC'!$O:$O,'Données FDC'!$B:$B,Activation!$F$5,'Données FDC'!$E:$E,Activation!F$9),SUMIFS('Données FDC'!$O:$O,'Données FDC'!$C:$C,Activation!$J$5,'Données FDC'!$E:$E,Activation!F$9))) -> 1767 | G19: =IF(ISBLANK($F$5),SUMIFS('Données FDC'!$O:$O,'Données FDC'!$A:$A,Activation!$C$5,'Données FDC'!$E:$E,Activation!G$9),IF(ISBLANK($J$5),SUMIFS('Données FDC'!$O:$O,'Données FDC'!$B:$B,Activation!$F$5,'Données FDC'!$E:$E,Activation!G$9),SUMIFS('Données FDC'!$O:$O,'Données FDC'!$C:$C,Activation!$J$5,'Données FDC'!$E:$E,Activation!G$9))) -> 4502 | H19: =IF(ISBLANK($F$5),SUMIFS('Données FDC'!$O:$O,'Données FDC'!$A:$A,Activation!$C$5,'Données FDC'!$E:$E,Activation!H$9),IF(ISBLANK($J$5),SUMIFS('Données FDC'!$O:$O,'Données FDC'!$B:$B,Activation!$F$5,'Données FDC'!$E:$E,Activation!H$9),SUMIFS('Données FDC'!$O:$O,'Données FDC'!$C:$C,Activation!$J$5,'Données FDC'!$E:$E,Activation!H$9))) -> 5009 | I19: =IF(ISBLANK($F$5),SUMIFS('Données FDC'!$O:$O,'Données FDC'!$A:$A,Activation!$C$5,'Données FDC'!$E:$E,Activation!I$9),IF(ISBLANK($J$5),SUMIFS('Données FDC'!$O:$O,'Données FDC'!$B:$B,Activation!$F$5,'Données FDC'!$E:$E,Activation!I$9),SUMIFS('Données FDC'!$O:$O,'Données FDC'!$C:$C,Activation!$J$5,'Données FDC'!$E:$E,Activation!I$9))) -> 23764 | J19: =IF(ISBLANK($F$5),SUMIFS('Données FDC'!$O:$O,'Données FDC'!$A:$A,Activation!$C$5,'Données FDC'!$E:$E,Activation!J$9),IF(ISBLANK($J$5),SUMIFS('Données FDC'!$O:$O,'Données FDC'!$B:$B,Activation!$F$5,'Données FDC'!$E:$E,Activation!J$9),SUMIFS('Données FDC'!$O:$O,'Données FDC'!$C:$C,Activation!$J$5,'Données FDC'!$E:$E,Activation!J$9))) -> 815 | K19: =IF(ISBLANK($F$5),SUMIFS('Données FDC'!$O:$O,'Données FDC'!$A:$A,Activation!$C$5,'Données FDC'!$E:$E,Activation!K$9),IF(ISBLANK($J$5),SUMIFS('Données FDC'!$O:$O,'Données FDC'!$B:$B,Activation!$F$5,'Données FDC'!$E:$E,Activation!K$9),SUMIFS('Données FDC'!$O:$O,'Données FDC'!$C:$C,Activation!$J$5,'Données FDC'!$E:$E,Activation!K$9))) -> 1530 | L19: =IF(ISBLANK($F$5),SUMIFS('Données FDC'!$O:$O,'Données FDC'!$A:$A,Activation!$C$5,'Données FDC'!$E:$E,Activation!L$9),IF(ISBLANK($J$5),SUMIFS('Données FDC'!$O:$O,'Données FDC'!$B:$B,Activation!$F$5,'Données FDC'!$E:$E,Activation!L$9),SUMIFS('Données FDC'!$O:$O,'Données FDC'!$C:$C,Activation!$J$5,'Données FDC'!$E:$E,Activation!L$9))) -> 178 | M19: =IF(ISBLANK($F$5),SUMIFS('Données FDC'!$O:$O,'Données FDC'!$A:$A,Activation!$C$5,'Données FDC'!$E:$E,Activation!M$9),IF(ISBLANK($J$5),SUMIFS('Données FDC'!$O:$O,'Données FDC'!$B:$B,Activation!$F$5,'Données FDC'!$E:$E,Activation!M$9),SUMIFS('Données FDC'!$O:$O,'Données FDC'!$C:$C,Activation!$J$5,'Données FDC'!$E:$E,Activation!M$9))) -> 5536 | N19: =IF(ISBLANK($F$5),SUMIFS('Données FDC'!$O:$O,'Données FDC'!$A:$A,Activation!$C$5,'Données FDC'!$E:$E,Activation!N$9),IF(ISBLANK($J$5),SUMIFS('Données FDC'!$O:$O,'Données FDC'!$B:$B,Activation!$F$5,'Données FDC'!$E:$E,Activation!N$9),SUMIFS('Données FDC'!$O:$O,'Données FDC'!$C:$C,Activation!$J$5,'Données FDC'!$E:$E,Activation!N$9))) -> 2148 | O19: =IF(ISBLANK($F$5),SUMIFS('Données FDC'!$O:$O,'Données FDC'!$A:$A,Activation!$C$5,'Données FDC'!$E:$E,Activation!O$9),IF(ISBLANK($J$5),SUMIFS('Données FDC'!$O:$O,'Données FDC'!$B:$B,Activation!$F$5,'Données FDC'!$E:$E,Activation!O$9),SUMIFS('Données FDC'!$O:$O,'Données FDC'!$C:$C,Activation!$J$5,'Données FDC'!$E:$E,Activation!O$9))) -> 2510 | P19: =IF(ISBLANK($F$5),SUMIFS('Données FDC'!$O:$O,'Données FDC'!$A:$A,Activation!$C$5,'Données FDC'!$E:$E,Activation!P$9),IF(ISBLANK($J$5),SUMIFS('Données FDC'!$O:$O,'Données FDC'!$B:$B,Activation!$F$5,'Données FDC'!$E:$E,Activation!P$9),SUMIFS('Données FDC'!$O:$O,'Données FDC'!$C:$C,Activation!$J$5,'Données FDC'!$E:$E,Activation!P$9))) -> 23722
C20: % Attrition | D20: =D19/E10 -> 0.04641668588 | F20: =F19/IF(ISBLANK($F$5),SUMIFS('Données FDC déc 2018'!$F:$F,'Données FDC déc 2018'!$A:$A,Activation!$C$5,'Données FDC déc 2018'!$E:$E,Activation!F$9),IF(ISBLANK($J$5),SUMIFS('Données FDC déc 2018'!$F:$F,'Données FDC déc 2018'!$B:$B,Activation!$F$5,'Données FDC déc 2018'!$E:$E,Activation!F$9),SUMIFS('Données FDC déc 2018'!$F:$F,'Données FDC déc 2018'!$C:$C,Activation!$J$5,'Données FDC déc 2018'!$E:$E,Activation!F$9))) -> 0.006445893889 | G20: =G19/IF(ISBLANK($F$5),SUMIFS('Données FDC déc 2018'!$F:$F,'Données FDC déc 2018'!$A:$A,Activation!$C$5,'Données FDC déc 2018'!$E:$E,Activation!G$9),IF(ISBLANK($J$5),SUMIFS('Données FDC déc 2018'!$F:$F,'Données FDC déc 2018'!$B:$B,Activation!$F$5,'Données FDC déc 2018'!$E:$E,Activation!G$9),SUMIFS('Données FDC déc 2018'!$F:$F,'Données FDC déc 2018'!$C:$C,Activation!$J$5,'Données FDC déc 2018'!$E:$E,Activation!G$9))) -> 0.02750270323 | H20: =H19/IF(ISBLANK($F$5),SUMIFS('Données FDC déc 2018'!$F:$F,'Données FDC déc 2018'!$A:$A,Activation!$C$5,'Données FDC déc 2018'!$E:$E,Activation!H$9),IF(ISBLANK($J$5),SUMIFS('Données FDC déc 2018'!$F:$F,'Données FDC déc 2018'!$B:$B,Activation!$F$5,'Données FDC déc 2018'!$E:$E,Activation!H$9),SUMIFS('Données FDC déc 2018'!$F:$F,'Données FDC déc 2018'!$C:$C,Activation!$J$5,'Données FDC déc 2018'!$E:$E,Activation!H$9))) -> 0.02869368957 | I20: =I19/IF(ISBLANK($F$5),SUMIFS('Données FDC déc 2018'!$F:$F,'Données FDC déc 2018'!$A:$A,Activation!$C$5,'Données FDC déc 2018'!$E:$E,Activation!I$9),IF(ISBLANK($J$5),SUMIFS('Données FDC déc 2018'!$F:$F,'Données FDC déc 2018'!$B:$B,Activation!$F$5,'Données FDC déc 2018'!$E:$E,Activation!I$9),SUMIFS('Données FDC déc 2018'!$F:$F,'Données FDC déc 2018'!$C:$C,Activation!$J$5,'Données FDC déc 2018'!$E:$E,Activation!I$9))) -> 0.06481774442 | J20: =J19/IF(ISBLANK($F$5),SUMIFS('Données FDC déc 2018'!$F:$F,'Données FDC déc 2018'!$A:$A,Activation!$C$5,'Données FDC déc 2018'!$E:$E,Activation!J$9),IF(ISBLANK($J$5),SUMIFS('Données FDC déc 2018'!$F:$F,'Données FDC déc 2018'!$B:$B,Activation!$F$5,'Données FDC déc 2018'!$E:$E,Activation!J$9),SUMIFS('Données FDC déc 2018'!$F:$F,'Données FDC déc 2018'!$C:$C,Activation!$J$5,'Données FDC déc 2018'!$E:$E,Activation!J$9))) -> 0.01336766829 | K20: =K19/IF(ISBLANK($F$5),SUMIFS('Données FDC déc 2018'!$F:$F,'Données FDC déc 2018'!$A:$A,Activation!$C$5,'Données FDC déc 2018'!$E:$E,Activation!K$9),IF(ISBLANK($J$5),SUMIFS('Données FDC déc 2018'!$F:$F,'Données FDC déc 2018'!$B:$B,Activation!$F$5,'Données FDC déc 2018'!$E:$E,Activation!K$9),SUMIFS('Données FDC déc 2018'!$F:$F,'Données FDC déc 2018'!$C:$C,Activation!$J$5,'Données FDC déc 2018'!$E:$E,Activation!K$9))) -> 0.07984136096 | L20: =L19/IF(ISBLANK($F$5),SUMIFS('Données FDC déc 2018'!$F:$F,'Données FDC déc 2018'!$A:$A,Activation!$C$5,'Données FDC déc 2018'!$E:$E,Activation!L$9),IF(ISBLANK($J$5),SUMIFS('Données FDC déc 2018'!$F:$F,'Données FDC déc 2018'!$B:$B,Activation!$F$5,'Données FDC déc 2018'!$E:$E,Activation!L$9),SUMIFS('Données FDC déc 2018'!$F:$F,'Données FDC déc 2018'!$C:$C,Activation!$J$5,'Données FDC déc 2018'!$E:$E,Activation!L$9))) -> 0.01573689329 | M20: =M19/IF(ISBLANK($F$5),SUMIFS('Données FDC déc 2018'!$F:$F,'Données FDC déc 2018'!$A:$A,Activation!$C$5,'Données FDC déc 2018'!$E:$E,Activation!M$9),IF(ISBLANK($J$5),SUMIFS('Données FDC déc 2018'!$F:$F,'Données FDC déc 2018'!$B:$B,Activation!$F$5,'Données FDC déc 2018'!$E:$E,Activation!M$9),SUMIFS('Données FDC déc 2018'!$F:$F,'Données FDC déc 2018'!$C:$C,Activation!$J$5,'Données FDC déc 2018'!$E:$E,Activation!M$9))) -> 0.07034396879 | N20: =N19/IF(ISBLANK($F$5),SUMIFS('Données FDC déc 2018'!$F:$F,'Données FDC déc 2018'!$A:$A,Activation!$C$5,'Données FDC déc 2018'!$E:$E,Activation!N$9),IF(ISBLANK($J$5),SUMIFS('Données FDC déc 2018'!$F:$F,'Données FDC déc 2018'!$B:$B,Activation!$F$5,'Données FDC déc 2018'!$E:$E,Activation!N$9),SUMIFS('Données FDC déc 2018'!$F:$F,'Données FDC déc 2018'!$C:$C,Activation!$J$5,'Données FDC déc 2018'!$E:$E,Activation!N$9))) -> 0.02238665972 | O20: =O19/IF(ISBLANK($F$5),SUMIFS('Données FDC déc 2018'!$F:$F,'Données FDC déc 2018'!$A:$A,Activation!$C$5,'Données FDC déc 2018'!$E:$E,Activation!O$9),IF(ISBLANK($J$5),SUMIFS('Données FDC déc 2018'!$F:$F,'Données FDC déc 2018'!$B:$B,Activation!$F$5,'Données FDC déc 2018'!$E:$E,Activation!O$9),SUMIFS('Données FDC déc 2018'!$F:$F,'Données FDC déc 2018'!$C:$C,Activation!$J$5,'Données FDC déc 2018'!$E:$E,Activation!O$9))) -> 0.03904001991 | P20: =P19/IF(ISBLANK($F$5),SUMIFS('Données FDC déc 2018'!$F:$F,'Données FDC déc 2018'!$A:$A,Activation!$C$5,'Données FDC déc 2018'!$E:$E,Activation!P$9),IF(ISBLANK($J$5),SUMIFS('Données FDC déc 2018'!$F:$F,'Données FDC déc 2018'!$B:$B,Activation!$F$5,'Données FDC déc 2018'!$E:$E,Activation!P$9),SUMIFS('Données FDC déc 2018'!$F:$F,'Données FDC déc 2018'!$C:$C,Activation!$J$5,'Données FDC déc 2018'!$E:$E,Activation!P$9))) -> 0.10287791
C21: % Attrition CEGEE | D21: =SUM('Données FDC'!$O:$O)/SUM('Données FDC déc 2018'!$F:$F) -> 0.04641668588 | F21: =SUMIF('Données FDC'!$E:$E,Activation!F$9,'Données FDC'!$O:$O)/SUMIF('Données FDC déc 2018'!$E:$E,Activation!F$9,'Données FDC déc 2018'!$F:$F) -> 0.006445893889 | G21: =SUMIF('Données FDC'!$E:$E,Activation!G$9,'Données FDC'!$O:$O)/SUMIF('Données FDC déc 2018'!$E:$E,Activation!G$9,'Données FDC déc 2018'!$F:$F) -> 0.02750270323 | H21: =SUMIF('Données FDC'!$E:$E,Activation!H$9,'Données FDC'!$O:$O)/SUMIF('Données FDC déc 2018'!$E:$E,Activation!H$9,'Données FDC déc 2018'!$F:$F) -> 0.02869368957 | I21: =SUMIF('Données FDC'!$E:$E,Activation!I$9,'Données FDC'!$O:$O)/SUMIF('Données FDC déc 2018'!$E:$E,Activation!I$9,'Données FDC déc 2018'!$F:$F) -> 0.06481774442 | J21: =SUMIF('Données FDC'!$E:$E,Activation!J$9,'Données FDC'!$O:$O)/SUMIF('Données FDC déc 2018'!$E:$E,Activation!J$9,'Données FDC déc 2018'!$F:$F) -> 0.01336766829 | K21: =SUMIF('Données FDC'!$E:$E,Activation!K$9,'Données FDC'!$O:$O)/SUMIF('Données FDC déc 2018'!$E:$E,Activation!K$9,'Données FDC déc 2018'!$F:$F) -> 0.07984136096 | L21: =SUMIF('Données FDC'!$E:$E,Activation!L$9,'Données FDC'!$O:$O)/SUMIF('Données FDC déc 2018'!$E:$E,Activation!L$9,'Données FDC déc 2018'!$F:$F) -> 0.01573689329 | M21: =SUMIF('Données FDC'!$E:$E,Activation!M$9,'Données FDC'!$O:$O)/SUMIF('Données FDC déc 2018'!$E:$E,Activation!M$9,'Données FDC déc 2018'!$F:$F) -> 0.07034396879 | N21: =SUMIF('Données FDC'!$E:$E,Activation!N$9,'Données FDC'!$O:$O)/SUMIF('Données FDC déc 2018'!$E:$E,Activation!N$9,'Données FDC déc 2018'!$F:$F) -> 0.02238665972 | O21: =SUMIF('Données FDC'!$E:$E,Activation!O$9,'Données FDC'!$O:$O)/SUMIF('Données FDC déc 2018'!$E:$E,Activation!O$9,'Données FDC déc 2018'!$F:$F) -> 0.03904001991 | P21: =SUMIF('Données FDC'!$E:$E,Activation!P$9,'Données FDC'!$O:$O)/SUMIF('Données FDC déc 2018'!$E:$E,Activation!P$9,'Données FDC déc 2018'!$F:$F) -> 0.10287791
B22: Age | C22: Moyenne | D22: =IF(ISBLANK($F$5),SUMIFS('Données pour moyenne'!$S:$S,'Données pour moyenne'!$Q:$Q,Activation!$C$5),IF(ISBLANK($J$5),SUMIFS('Données pour moyenne'!$H:$H,'Données pour moyenne'!$F:$F,Activation!$F$5),SUMIFS('Données pour moyenne'!$C:$C,'Données pour moyenne'!$A:$A,Activation!$J$5))) -> 46 | E22: =IF(ISBLANK($F$5),SUMIFS('Données pour moyenne 2018'!$S:$S,'Données pour moyenne 2018'!$Q:$Q,Activation!$C$5),IF(ISBLANK($J$5),SUMIFS('Données pour moyenne 2018'!$H:$H,'Données pour moyenne 2018'!$F:$F,Activation!$F$5),SUMIFS('Données pour moyenne 2018'!$C:$C,'Données pour moyenne 2018'!$A:$A,Activation!$J$5))) -> 46 | F22: =IF(ISBLANK($F$5),SUMIFS('Données pour moyenne'!$Y:$Y,'Données pour moyenne'!$V:$V,Activation!$C$5,'Données pour moyenne'!$X:$X,Activation!F$9),IF(ISBLANK($J$5),SUMIFS('Données pour moyenne'!$N:$N,'Données pour moyenne'!$K:$K,Activation!$F$5,'Données pour moyenne'!$M:$M,Activation!F$9),SUMIFS('Données FDC'!$P:$P,'Données FDC'!$C:$C,Activation!$J$5,'Données FDC'!$E:$E,Activation!F$9))) -> 50 | G22: =IF(ISBLANK($F$5),SUMIFS('Données pour moyenne'!$Y:$Y,'Données pour moyenne'!$V:$V,Activation!$C$5,'Données pour moyenne'!$X:$X,Activation!G$9),IF(ISBLANK($J$5),SUMIFS('Données pour moyenne'!$N:$N,'Données pour moyenne'!$K:$K,Activation!$F$5,'Données pour moyenne'!$M:$M,Activation!G$9),SUMIFS('Données FDC'!$P:$P,'Données FDC'!$C:$C,Activation!$J$5,'Données FDC'!$E:$E,Activation!G$9))) -> 52 | H22: =IF(ISBLANK($F$5),SUMIFS('Données pour moyenne'!$Y:$Y,'Données pour moyenne'!$V:$V,Activation!$C$5,'Données pour moyenne'!$X:$X,Activation!H$9),IF(ISBLANK($J$5),SUMIFS('Données pour moyenne'!$N:$N,'Données pour moyenne'!$K:$K,Activation!$F$5,'Données pour moyenne'!$M:$M,Activation!H$9),SUMIFS('Données FDC'!$P:$P,'Données FDC'!$C:$C,Activation!$J$5,'Données FDC'!$E:$E,Activation!H$9))) -> 64 | I22: =IF(ISBLANK($F$5),SUMIFS('Données pour moyenne'!$Y:$Y,'Données pour moyenne'!$V:$V,Activation!$C$5,'Données pour moyenne'!$X:$X,Activation!I$9),IF(ISBLANK($J$5),SUMIFS('Données pour moyenne'!$N:$N,'Données pour moyenne'!$K:$K,Activation!$F$5,'Données pour moyenne'!$M:$M,Activation!I$9),SUMIFS('Données FDC'!$P:$P,'Données FDC'!$C:$C,Activation!$J$5,'Données FDC'!$E:$E,Activation!I$9))) -> 57 | J22: =IF(ISBLANK($F$5),SUMIFS('Données pour moyenne'!$Y:$Y,'Données pour moyenne'!$V:$V,Activation!$C$5,'Données pour moyenne'!$X:$X,Activation!J$9),IF(ISBLANK($J$5),SUMIFS('Données pour moyenne'!$N:$N,'Données pour moyenne'!$K:$K,Activation!$F$5,'Données pour moyenne'!$M:$M,Activation!J$9),SUMIFS('Données FDC'!$P:$P,'Données FDC'!$C:$C,Activation!$J$5,'Données FDC'!$E:$E,Activation!J$9))) -> 22 | K22: =IF(ISBLANK($F$5),SUMIFS('Données pour moyenne'!$Y:$Y,'Données pour moyenne'!$V:$V,Activation!$C$5,'Données pour moyenne'!$X:$X,Activation!K$9),IF(ISBLANK($J$5),SUMIFS('Données pour moyenne'!$N:$N,'Données pour moyenne'!$K:$K,Activation!$F$5,'Données pour moyenne'!$M:$M,Activation!K$9),SUMIFS('Données FDC'!$P:$P,'Données FDC'!$C:$C,Activation!$J$5,'Données FDC'!$E:$E,Activation!K$9))) -> 21 | L22: =IF(ISBLANK($F$5),SUMIFS('Données pour moyenne'!$Y:$Y,'Données pour moyenne'!$V:$V,Activation!$C$5,'Données pour moyenne'!$X:$X,Activation!L$9),IF(ISBLANK($J$5),SUMIFS('Données pour moyenne'!$N:$N,'Données pour moyenne'!$K:$K,Activation!$F$5,'Données pour moyenne'!$M:$M,Activation!L$9),SUMIFS('Données FDC'!$P:$P,'Données FDC'!$C:$C,Activation!$J$5,'Données FDC'!$E:$E,Activation!L$9))) -> 19 | M22: =IF(ISBLANK($F$5),SUMIFS('Données pour moyenne'!$Y:$Y,'Données pour moyenne'!$V:$V,Activation!$C$5,'Données pour moyenne'!$X:$X,Activation!M$9),IF(ISBLANK($J$5),SUMIFS('Données pour moyenne'!$N:$N,'Données pour moyenne'!$K:$K,Activation!$F$5,'Données pour moyenne'!$M:$M,Activation!M$9),SUMIFS('Données FDC'!$P:$P,'Données FDC'!$C:$C,Activation!$J$5,'Données FDC'!$E:$E,Activation!M$9))) -> 20 | N22: =IF(ISBLANK($F$5),SUMIFS('Données pour moyenne'!$Y:$Y,'Données pour moyenne'!$V:$V,Activation!$C$5,'Données pour moyenne'!$X:$X,Activation!N$9),IF(ISBLANK($J$5),SUMIFS('Données pour moyenne'!$N:$N,'Données pour moyenne'!$K:$K,Activation!$F$5,'Données pour moyenne'!$M:$M,Activation!N$9),SUMIFS('Données FDC'!$P:$P,'Données FDC'!$C:$C,Activation!$J$5,'Données FDC'!$E:$E,Activation!N$9))) -> 8 | O22: =IF(ISBLANK($F$5),SUMIFS('Données pour moyenne'!$Y:$Y,'Données pour moyenne'!$V:$V,Activation!$C$5,'Données pour moyenne'!$X:$X,Activation!O$9),IF(ISBLANK($J$5),SUMIFS('Données pour moyenne'!$N:$N,'Données pour moyenne'!$K:$K,Activation!$F$5,'Données pour moyenne'!$M:$M,Activation!O$9),SUMIFS('Données FDC'!$P:$P,'Données FDC'!$C:$C,Activation!$J$5,'Données FDC'!$E:$E,Activation!O$9))) -> 10 | P22: =IF(ISBLANK($F$5),SUMIFS('Données pour moyenne'!$Y:$Y,'Données pour moyenne'!$V:$V,Activation!$C$5,'Données pour moyenne'!$X:$X,Activation!P$9),IF(ISBLANK($J$5),SUMIFS('Données pour moyenne'!$N:$N,'Données pour moyenne'!$K:$K,Activation!$F$5,'Données pour moyenne'!$M:$M,Activation!P$9),SUMIFS('Données FDC'!$P:$P,'Données FDC'!$C:$C,Activation!$J$5,'Données FDC'!$E:$E,Activation!P$9))) -> 50
C23: Moyenne CEGEE | D23: ='Données pour moyenne'!AC2 -> 46 | E23: ='Données pour moyenne 2018'!AC2 -> 46 | F23: =VLOOKUP(F$9,'Données pour moyenne'!$AF:$AG,2,FALSE) -> 50 | G23: =VLOOKUP(G$9,'Données pour moyenne'!$AF:$AG,2,FALSE) -> 52 | H23: =VLOOKUP(H$9,'Données pour moyenne'!$AF:$AG,2,FALSE) -> 64 | I23: =VLOOKUP(I$9,'Données pour moyenne'!$AF:$AG,2,FALSE) -> 57 | J23: =VLOOKUP(J$9,'Données pour moyenne'!$AF:$AG,2,FALSE) -> 22 | K23: =VLOOKUP(K$9,'Données pour moyenne'!$AF:$AG,2,FALSE) -> 21 | L23: =VLOOKUP(L$9,'Données pour moyenne'!$AF:$AG,2,FALSE) -> 19 | M23: =VLOOKUP(M$9,'Données pour moyenne'!$AF:$AG,2,FALSE) -> 20 | N23: =VLOOKUP(N$9,'Données pour moyenne'!$AF:$AG,2,FALSE) -> 8 | O23: =VLOOKUP(O$9,'Données pour moyenne'!$AF:$AG,2,FALSE) -> 10 | P23: =VLOOKUP(P$9,'Données pour moyenne'!$AF:$AG,2,FALSE) -> 50
B24: PNB client annuel (en €) | C24: Moyenne | D24: =IF(ISBLANK($F$5),SUMIFS('Données pour moyenne'!$BJ:$BJ,'Données pour moyenne'!$BH:$BH,Activation!$C$5),IF(ISBLANK($J$5),SUMIFS('Données pour moyenne'!$BA:$BA,'Données pour moyenne'!$AY:$AY,Activation!$F$5),SUMIFS('Données pour moyenne'!$AR:$AR,'Données pour moyenne'!$AP:$AP,Activation!$J$5))) -> 307.79872 | E24: =IF(ISBLANK($F$5),SUMIFS('Données pour moyenne 2018'!$BJ:$BJ,'Données pour moyenne 2018'!$BH:$BH,Activation!$C$5),IF(ISBLANK($J$5),SUMIFS('Données pour moyenne 2018'!$BA:$BA,'Données pour moyenne 2018'!$AY:$AY,Activation!$F$5),SUMIFS('Données pour moyenne 2018'!$AR:$AR,'Données pour moyenne 2018'!$AP:$AP,Activation!$J$5))) -> 323.4841 | F24: =IF(ISBLANK($F$5),SUMIFS('Données pour moyenne'!$BF:$BF,'Données pour moyenne'!$BC:$BC,Activation!$C$5,'Données pour moyenne'!$BE:$BE,Activation!F$9),IF(ISBLANK($J$5),SUMIFS('Données pour moyenne'!$AW:$AW,'Données pour moyenne'!$AT:$AT,Activation!$F$5,'Données pour moyenne'!$AV:$AV,Activation!F$9),SUMIFS('Données pour moyenne'!$AM:$AM,'Données pour moyenne'!$AJ:$AJ,Activation!$J$5,'Données pour moyenne'!$AL:$AL,Activation!F$9))) -> 591.91189 | G24: =IF(ISBLANK($F$5),SUMIFS('Données pour moyenne'!$BF:$BF,'Données pour moyenne'!$BC:$BC,Activation!$C$5,'Données pour moyenne'!$BE:$BE,Activation!G$9),IF(ISBLANK($J$5),SUMIFS('Données pour moyenne'!$AW:$AW,'Données pour moyenne'!$AT:$AT,Activation!$F$5,'Données pour moyenne'!$AV:$AV,Activation!G$9),SUMIFS('Données pour moyenne'!$AM:$AM,'Données pour moyenne'!$AJ:$AJ,Activation!$J$5,'Données pour moyenne'!$AL:$AL,Activation!G$9))) -> 326.63482 | H24: =IF(ISBLANK($F$5),SUMIFS('Données pour moyenne'!$BF:$BF,'Données pour moyenne'!$BC:$BC,Activation!$C$5,'Données pour moyenne'!$BE:$BE,Activation!H$9),IF(ISBLANK($J$5),SUMIFS('Données pour moyenne'!$AW:$AW,'Données pour moyenne'!$AT:$AT,Activation!$F$5,'Données pour moyenne'!$AV:$AV,Activation!H$9),SUMIFS('Données pour moyenne'!$AM:$AM,'Données pour moyenne'!$AJ:$AJ,Activation!$J$5,'Données pour moyenne'!$AL:$AL,Activation!H$9))) -> 412.00176 | I24: =IF(ISBLANK($F$5),SUMIFS('Données pour moyenne'!$BF:$BF,'Données pour moyenne'!$BC:$BC,Activation!$C$5,'Données pour moyenne'!$BE:$BE,Activation!I$9),IF(ISBLANK($J$5),SUMIFS('Données pour moyenne'!$AW:$AW,'Données pour moyenne'!$AT:$AT,Activation!$F$5,'Données pour moyenne'!$AV:$AV,Activation!I$9),SUMIFS('Données pour moyenne'!$AM:$AM,'Données pour moyenne'!$AJ:$AJ,Activation!$J$5,'Données pour moyenne'!$AL:$AL,Activation!I$9))) -> 98.18728 | J24: =IF(ISBLANK($F$5),SUMIFS('Données pour moyenne'!$BF:$BF,'Données pour moyenne'!$BC:$BC,Activation!$C$5,'Données pour moyenne'!$BE:$BE,Activation!J$9),IF(ISBLANK($J$5),SUMIFS('Données pour moyenne'!$AW:$AW,'Données pour moyenne'!$AT:$AT,Activation!$F$5,'Données pour moyenne'!$AV:$AV,Activation!J$9),SUMIFS('Données pour moyenne'!$AM:$AM,'Données pour moyenne'!$AJ:$AJ,Activation!$J$5,'Données pour moyenne'!$AL:$AL,Activation!J$9))) -> 217.50649 | K24: =IF(ISBLANK($F$5),SUMIFS('Données pour moyenne'!$BF:$BF,'Données pour moyenne'!$BC:$BC,Activation!$C$5,'Données pour moyenne'!$BE:$BE,Activation!K$9),IF(ISBLANK($J$5),SUMIFS('Données pour moyenne'!$AW:$AW,'Données pour moyenne'!$AT:$AT,Activation!$F$5,'Données pour moyenne'!$AV:$AV,Activation!K$9),SUMIFS('Données pour moyenne'!$AM:$AM,'Données pour moyenne'!$AJ:$AJ,Activation!$J$5,'Données pour moyenne'!$AL:$AL,Activation!K$9))) -> 148.4504 | L24: =IF(ISBLANK($F$5),SUMIFS('Données pour moyenne'!$BF:$BF,'Données pour moyenne'!$BC:$BC,Activation!$C$5,'Données pour moyenne'!$BE:$BE,Activation!L$9),IF(ISBLANK($J$5),SUMIFS('Données pour moyenne'!$AW:$AW,'Données pour moyenne'!$AT:$AT,Activation!$F$5,'Données pour moyenne'!$AV:$AV,Activation!L$9),SUMIFS('Données pour moyenne'!$AM:$AM,'Données pour moyenne'!$AJ:$AJ,Activation!$J$5,'Données pour moyenne'!$AL:$AL,Activation!L$9))) -> 100.09047 | M24: =IF(ISBLANK($F$5),SUMIFS('Données pour moyenne'!$BF:$BF,'Données pour moyenne'!$BC:$BC,Activation!$C$5,'Données pour moyenne'!$BE:$BE,Activation!M$9),IF(ISBLANK($J$5),SUMIFS('Données pour moyenne'!$AW:$AW,'Données pour moyenne'!$AT:$AT,Activation!$F$5,'Données pour moyenne'!$AV:$AV,Activation!M$9),SUMIFS('Données pour moyenne'!$AM:$AM,'Données pour moyenne'!$AJ:$AJ,Activation!$J$5,'Données pour moyenne'!$AL:$AL,Activation!M$9))) -> 17.702
C25: Moyenne CEGEE | D25: ='Données pour moyenne'!BN2 -> 307.79872 | E25: ='Données pour moyenne 2018'!BN2 -> 323.4841 | F25: =SUMIF('Données pour moyenne'!$BQ:$BQ,Activation!F$9,'Données pour moyenne'!$BR:$BR) -> 591.91189 | G25: =SUMIF('Données pour moyenne'!$BQ:$BQ,Activation!G$9,'Données pour moyenne'!$BR:$BR) -> 326.63482 | H25: =SUMIF('Données pour moyenne'!$BQ:$BQ,Activation!H$9,'Données pour moyenne'!$BR:$BR) -> 412.00176 | I25: =SUMIF('Données pour moyenne'!$BQ:$BQ,Activation!I$9,'Données pour moyenne'!$BR:$BR) -> 98.18728 | J25: =SUMIF('Données pour moyenne'!$BQ:$BQ,Activation!J$9,'Données pour moyenne'!$BR:$BR) -> 217.50649 | K25: =SUMIF('Données pour moyenne'!$BQ:$BQ,Activation!K$9,'Données pour moyenne'!$BR:$BR) -> 148.4504 | L25: =SUMIF('Données pour moyenne'!$BQ:$BQ,Activation!L$9,'Données pour moyenne'!$BR:$BR) -> 100.09047 | M25: =SUMIF('Données pour moyenne'!$BQ:$BQ,Activation!M$9,'Données pour moyenne'!$BR:$BR) -> 17.702
C26: Variation | D26: =D24/(IF(ISBLANK($F$5),SUMIFS('Données pour moyenne 2018'!$BJ:$BJ,'Données pour moyenne 2018'!$BH:$BH,Activation!$C$5),IF(ISBLANK($J$5),SUMIFS('Données pour moyenne 2018'!$BA:$BA,'Données pour moyenne 2018'!$AY:$AY,Activation!$F$5),SUMIFS('Données pour moyenne 2018'!$AR:$AR,'Données pour moyenne 2018'!$AP:$AP,Activation!$J$5))))-1 -> -0.04848887472 | F26: =F24/(IF(ISBLANK($F$5),SUMIFS('Données pour moyenne 2018'!$BF:$BF,'Données pour moyenne 2018'!$BC:$BC,Activation!$C$5,'Données pour moyenne 2018'!$BE:$BE,Activation!F$9),IF(ISBLANK($J$5),SUMIFS('Données pour moyenne 2018'!$AW:$AW,'Données pour moyenne 2018'!$AT:$AT,Activation!$F$5,'Données pour moyenne 2018'!$AV:$AV,Activation!F$9),SUMIFS('Données pour moyenne 2018'!$AM:$AM,'Données pour moyenne 2018'!$AJ:$AJ,Activation!$J$5,'Données pour moyenne 2018'!$AL:$AL,Activation!F$9))))-1 -> -0.02511138443 | G26: =G24/(IF(ISBLANK($F$5),SUMIFS('Données pour moyenne 2018'!$BF:$BF,'Données pour moyenne 2018'!$BC:$BC,Activation!$C$5,'Données pour moyenne 2018'!$BE:$BE,Activation!G$9),IF(ISBLANK($J$5),SUMIFS('Données pour moyenne 2018'!$AW:$AW,'Données pour moyenne 2018'!$AT:$AT,Activation!$F$5,'Données pour moyenne 2018'!$AV:$AV,Activation!G$9),SUMIFS('Données pour moyenne 2018'!$AM:$AM,'Données pour moyenne 2018'!$AJ:$AJ,Activation!$J$5,'Données pour moyenne 2018'!$AL:$AL,Activation!G$9))))-1 -> -0.09411703104 | H26: =H24/(IF(ISBLANK($F$5),SUMIFS('Données pour moyenne 2018'!$BF:$BF,'Données pour moyenne 2018'!$BC:$BC,Activation!$C$5,'Données pour moyenne 2018'!$BE:$BE,Activation!H$9),IF(ISBLANK($J$5),SUMIFS('Données pour moyenne 2018'!$AW:$AW,'Données pour moyenne 2018'!$AT:$AT,Activation!$F$5,'Données pour moyenne 2018'!$AV:$AV,Activation!H$9),SUMIFS('Données pour moyenne 2018'!$AM:$AM,'Données pour moyenne 2018'!$AJ:$AJ,Activation!$J$5,'Données pour moyenne 2018'!$AL:$AL,Activation!H$9))))-1 -> -0.08545981885 | I26: =I24/(IF(ISBLANK($F$5),SUMIFS('Données pour moyenne 2018'!$BF:$BF,'Données pour moyenne 2018'!$BC:$BC,Activation!$C$5,'Données pour moyenne 2018'!$BE:$BE,Activation!I$9),IF(ISBLANK($J$5),SUMIFS('Données pour moyenne 2018'!$AW:$AW,'Données pour moyenne 2018'!$AT:$AT,Activation!$F$5,'Données pour moyenne 2018'!$AV:$AV,Activation!I$9),SUMIFS('Données pour moyenne 2018'!$AM:$AM,'Données pour moyenne 2018'!$AJ:$AJ,Activation!$J$5,'Données pour moyenne 2018'!$AL:$AL,Activation!I$9))))-1 -> -0.0828252567 | J26: =J24/(IF(ISBLANK($F$5),SUMIFS('Données pour moyenne 2018'!$BF:$BF,'Données pour moyenne 2018'!$BC:$BC,Activation!$C$5,'Données pour moyenne 2018'!$BE:$BE,Activation!J$9),IF(ISBLANK($J$5),SUMIFS('Données pour moyenne 2018'!$AW:$AW,'Données pour moyenne 2018'!$AT:$AT,Activation!$F$5,'Données pour moyenne 2018'!$AV:$AV,Activation!J$9),SUMIFS('Données pour moyenne 2018'!$AM:$AM,'Données pour moyenne 2018'!$AJ:$AJ,Activation!$J$5,'Données pour moyenne 2018'!$AL:$AL,Activation!J$9))))-1 -> -0.06147630076 | K26: =K24/(IF(ISBLANK($F$5),SUMIFS('Données pour moyenne 2018'!$BF:$BF,'Données pour moyenne 2018'!$BC:$BC,Activation!$C$5,'Données pour moyenne 2018'!$BE:$BE,Activation!K$9),IF(ISBLANK($J$5),SUMIFS('Données pour moyenne 2018'!$AW:$AW,'Données pour moyenne 2018'!$AT:$AT,Activation!$F$5,'Données pour moyenne 2018'!$AV:$AV,Activation!K$9),SUMIFS('Données pour moyenne 2018'!$AM:$AM,'Données pour moyenne 2018'!$AJ:$AJ,Activation!$J$5,'Données pour moyenne 2018'!$AL:$AL,Activation!K$9))))-1 -> -0.08106489961 | L26: =L24/(IF(ISBLANK($F$5),SUMIFS('Données pour moyenne 2018'!$BF:$BF,'Données pour moyenne 2018'!$BC:$BC,Activation!$C$5,'Données pour moyenne 2018'!$BE:$BE,Activation!L$9),IF(ISBLANK($J$5),SUMIFS('Données pour moyenne 2018'!$AW:$AW,'Données pour moyenne 2018'!$AT:$AT,Activation!$F$5,'Données pour moyenne 2018'!$AV:$AV,Activation!L$9),SUMIFS('Données pour moyenne 2018'!$AM:$AM,'Données pour moyenne 2018'!$AJ:$AJ,Activation!$J$5,'Données pour moyenne 2018'!$AL:$AL,Activation!L$9))))-1 -> -0.1008421985 | M26: =M24/(IF(ISBLANK($F$5),SUMIFS('Données pour moyenne 2018'!$BF:$BF,'Données pour moyenne 2018'!$BC:$BC,Activation!$C$5,'Données pour moyenne 2018'!$BE:$BE,Activation!M$9),IF(ISBLANK($J$5),SUMIFS('Données pour moyenne 2018'!$AW:$AW,'Données pour moyenne 2018'!$AT:$AT,Activation!$F$5,'Données pour moyenne 2018'!$AV:$AV,Activation!M$9),SUMIFS('Données pour moyenne 2018'!$AM:$AM,'Données pour moyenne 2018'!$AJ:$AJ,Activation!$J$5,'Données pour moyenne 2018'!$AL:$AL,Activation!M$9))))-1 -> -0.09115739581
C27: Variation CEGEE | D27: =(D25-E25)/E25 -> -0.04848887472 | F27: =(F25/SUMIF('Données pour moyenne 2018'!$BQ:$BQ,Activation!F$9,'Données pour moyenne 2018'!$BR:$BR))-1 -> -0.02511138443 | G27: =(G25/SUMIF('Données pour moyenne 2018'!$BQ:$BQ,Activation!G$9,'Données pour moyenne 2018'!$BR:$BR))-1 -> -0.09411703104 | H27: =(H25/SUMIF('Données pour moyenne 2018'!$BQ:$BQ,Activation!H$9,'Données pour moyenne 2018'!$BR:$BR))-1 -> -0.08545981885 | I27: =(I25/SUMIF('Données pour moyenne 2018'!$BQ:$BQ,Activation!I$9,'Données pour moyenne 2018'!$BR:$BR))-1 -> -0.0828252567 | J27: =(J25/SUMIF('Données pour moyenne 2018'!$BQ:$BQ,Activation!J$9,'Données pour moyenne 2018'!$BR:$BR))-1 -> -0.06147630076 | K27: =(K25/SUMIF('Données pour moyenne 2018'!$BQ:$BQ,Activation!K$9,'Données pour moyenne 2018'!$BR:$BR))-1 -> -0.08106489961 | L27: =(L25/SUMIF('Données pour moyenne 2018'!$BQ:$BQ,Activation!L$9,'Données pour moyenne 2018'!$BR:$BR))-1 -> -0.1008421985 | M27: =(M25/SUMIF('Données pour moyenne 2018'!$BQ:$BQ,Activation!M$9,'Données pour moyenne 2018'!$BR:$BR))-1 -> -0.09115739581
B28: SF totale moyenne (en €) | C28: Moyenne | D28: =IF(ISBLANK($F$5),SUMIFS('Données pour moyenne'!$T:$T,'Données pour moyenne'!$Q:$Q,Activation!$C$5),IF(ISBLANK($J$5),SUMIFS('Données pour moyenne'!$I:$I,'Données pour moyenne'!$F:$F,Activation!$F$5),SUMIFS('Données pour moyenne'!$D:$D,'Données pour moyenne'!$A:$A,Activation!$J$5))) -> 20115.73677 | E28: =IF(ISBLANK($F$5),SUMIFS('Données pour moyenne 2018'!$T:$T,'Données pour moyenne 2018'!$Q:$Q,Activation!$C$5),IF(ISBLANK($J$5),SUMIFS('Données pour moyenne 2018'!$I:$I,'Données pour moyenne 2018'!$F:$F,Activation!$F$5),SUMIFS('Données pour moyenne 2018'!$D:$D,'Données pour moyenne 2018'!$A:$A,Activation!$J$5))) -> 19153.04891 | F28: =IF(ISBLANK($F$5),SUMIFS('Données pour moyenne'!$Z:$Z,'Données pour moyenne'!$V:$V,Activation!$C$5,'Données pour moyenne'!$X:$X,Activation!F$9),IF(ISBLANK($J$5),SUMIFS('Données pour moyenne'!$O:$O,'Données pour moyenne'!$K:$K,Activation!$F$5,'Données pour moyenne'!$M:$M,Activation!F$9),SUMIFS('Données FDC'!$Q:$Q,'Données FDC'!$C:$C,Activation!$J$5,'Données FDC'!$E:$E,Activation!F$9))) -> 40289.02587 | G28: =IF(ISBLANK($F$5),SUMIFS('Données pour moyenne'!$Z:$Z,'Données pour moyenne'!$V:$V,Activation!$C$5,'Données pour moyenne'!$X:$X,Activation!G$9),IF(ISBLANK($J$5),SUMIFS('Données pour moyenne'!$O:$O,'Données pour moyenne'!$K:$K,Activation!$F$5,'Données pour moyenne'!$M:$M,Activation!G$9),SUMIFS('Données FDC'!$Q:$Q,'Données FDC'!$C:$C,Activation!$J$5,'Données FDC'!$E:$E,Activation!G$9))) -> 16312.43441 | H28: =IF(ISBLANK($F$5),SUMIFS('Données pour moyenne'!$Z:$Z,'Données pour moyenne'!$V:$V,Activation!$C$5,'Données pour moyenne'!$X:$X,Activation!H$9),IF(ISBLANK($J$5),SUMIFS('Données pour moyenne'!$O:$O,'Données pour moyenne'!$K:$K,Activation!$F$5,'Données pour moyenne'!$M:$M,Activation!H$9),SUMIFS('Données FDC'!$Q:$Q,'Données FDC'!$C:$C,Activation!$J$5,'Données FDC'!$E:$E,Activation!H$9))) -> 66773.2212 | I28: =IF(ISBLANK($F$5),SUMIFS('Données pour moyenne'!$Z:$Z,'Données pour moyenne'!$V:$V,Activation!$C$5,'Données pour moyenne'!$X:$X,Activation!I$9),IF(ISBLANK($J$5),SUMIFS('Données pour moyenne'!$O:$O,'Données pour moyenne'!$K:$K,Activation!$F$5,'Données pour moyenne'!$M:$M,Activation!I$9),SUMIFS('Données FDC'!$Q:$Q,'Données FDC'!$C:$C,Activation!$J$5,'Données FDC'!$E:$E,Activation!I$9))) -> 10163.06668 | J28: =IF(ISBLANK($F$5),SUMIFS('Données pour moyenne'!$Z:$Z,'Données pour moyenne'!$V:$V,Activation!$C$5,'Données pour moyenne'!$X:$X,Activation!J$9),IF(ISBLANK($J$5),SUMIFS('Données pour moyenne'!$O:$O,'Données pour moyenne'!$K:$K,Activation!$F$5,'Données pour moyenne'!$M:$M,Activation!J$9),SUMIFS('Données FDC'!$Q:$Q,'Données FDC'!$C:$C,Activation!$J$5,'Données FDC'!$E:$E,Activation!J$9))) -> 9834.199833 | K28: =IF(ISBLANK($F$5),SUMIFS('Données pour moyenne'!$Z:$Z,'Données pour moyenne'!$V:$V,Activation!$C$5,'Données pour moyenne'!$X:$X,Activation!K$9),IF(ISBLANK($J$5),SUMIFS('Données pour moyenne'!$O:$O,'Données pour moyenne'!$K:$K,Activation!$F$5,'Données pour moyenne'!$M:$M,Activation!K$9),SUMIFS('Données FDC'!$Q:$Q,'Données FDC'!$C:$C,Activation!$J$5,'Données FDC'!$E:$E,Activation!K$9))) -> 1078.508429 | L28: =IF(ISBLANK($F$5),SUMIFS('Données pour moyenne'!$Z:$Z,'Données pour moyenne'!$V:$V,Activation!$C$5,'Données pour moyenne'!$X:$X,Activation!L$9),IF(ISBLANK($J$5),SUMIFS('Données pour moyenne'!$O:$O,'Données pour moyenne'!$K:$K,Activation!$F$5,'Données pour moyenne'!$M:$M,Activation!L$9),SUMIFS('Données FDC'!$Q:$Q,'Données FDC'!$C:$C,Activation!$J$5,'Données FDC'!$E:$E,Activation!L$9))) -> 16507.17723 | M28: =IF(ISBLANK($F$5),SUMIFS('Données pour moyenne'!$Z:$Z,'Données pour moyenne'!$V:$V,Activation!$C$5,'Données pour moyenne'!$X:$X,Activation!M$9),IF(ISBLANK($J$5),SUMIFS('Données pour moyenne'!$O:$O,'Données pour moyenne'!$K:$K,Activation!$F$5,'Données pour moyenne'!$M:$M,Activation!M$9),SUMIFS('Données FDC'!$Q:$Q,'Données FDC'!$C:$C,Activation!$J$5,'Données FDC'!$E:$E,Activation!M$9))) -> 2079.224503 | N28: =IF(ISBLANK($F$5),SUMIFS('Données pour moyenne'!$Z:$Z,'Données pour moyenne'!$V:$V,Activation!$C$5,'Données pour moyenne'!$X:$X,Activation!N$9),IF(ISBLANK($J$5),SUMIFS('Données pour moyenne'!$O:$O,'Données pour moyenne'!$K:$K,Activation!$F$5,'Données pour moyenne'!$M:$M,Activation!N$9),SUMIFS('Données FDC'!$Q:$Q,'Données FDC'!$C:$C,Activation!$J$5,'Données FDC'!$E:$E,Activation!N$9))) -> 4324.460287 | O28: =IF(ISBLANK($F$5),SUMIFS('Données pour moyenne'!$Z:$Z,'Données pour moyenne'!$V:$V,Activation!$C$5,'Données pour moyenne'!$X:$X,Activation!O$9),IF(ISBLANK($J$5),SUMIFS('Données pour moyenne'!$O:$O,'Données pour moyenne'!$K:$K,Activation!$F$5,'Données pour moyenne'!$M:$M,Activation!O$9),SUMIFS('Données FDC'!$Q:$Q,'Données FDC'!$C:$C,Activation!$J$5,'Données FDC'!$E:$E,Activation!O$9))) -> 975.5940212 | P28: =IF(ISBLANK($F$5),SUMIFS('Données pour moyenne'!$Z:$Z,'Données pour moyenne'!$V:$V,Activation!$C$5,'Données pour moyenne'!$X:$X,Activation!P$9),IF(ISBLANK($J$5),SUMIFS('Données pour moyenne'!$O:$O,'Données pour moyenne'!$K:$K,Activation!$F$5,'Données pour moyenne'!$M:$M,Activation!P$9),SUMIFS('Données FDC'!$Q:$Q,'Données FDC'!$C:$C,Activation!$J$5,'Données FDC'!$E:$E,Activation!P$9))) -> 15.39233379
C29: Moyenne CEGEE | D29: ='Données pour moyenne'!AD2 -> 20115.73677 | E29: ='Données pour moyenne 2018'!AD2 -> 19153.04891 | F29: =VLOOKUP(F$9,'Données pour moyenne'!$AF:$AH,3,FALSE) -> 40289.02587 | G29: =VLOOKUP(G$9,'Données pour moyenne'!$AF:$AH,3,FALSE) -> 16312.43441 | H29: =VLOOKUP(H$9,'Données pour moyenne'!$AF:$AH,3,FALSE) -> 66773.2212 | I29: =VLOOKUP(I$9,'Données pour moyenne'!$AF:$AH,3,FALSE) -> 10163.06668 | J29: =VLOOKUP(J$9,'Données pour moyenne'!$AF:$AH,3,FALSE) -> 9834.199833 | K29: =VLOOKUP(K$9,'Données pour moyenne'!$AF:$AH,3,FALSE) -> 1078.508429 | L29: =VLOOKUP(L$9,'Données pour moyenne'!$AF:$AH,3,FALSE) -> 16507.17723 | M29: =VLOOKUP(M$9,'Données pour moyenne'!$AF:$AH,3,FALSE) -> 2079.224503 | N29: =VLOOKUP(N$9,'Données pour moyenne'!$AF:$AH,3,FALSE) -> 4324.460287 | O29: =VLOOKUP(O$9,'Données pour moyenne'!$AF:$AH,3,FALSE) -> 975.5940212 | P29: =VLOOKUP(P$9,'Données pour moyenne'!$AF:$AH,3,FALSE) -> 15.39233379
C30: Variation | D30: =(D28-E28)/E28 -> 0.05026290406 | F30: =F28/(IF(ISBLANK($F$5),SUMIFS('Données pour moyenne 2018'!$Z:$Z,'Données pour moyenne 2018'!$V:$V,Activation!$C$5,'Données pour moyenne 2018'!$X:$X,Activation!F$9),IF(ISBLANK($J$5),SUMIFS('Données pour moyenne 2018'!$O:$O,'Données pour moyenne 2018'!$K:$K,Activation!$F$5,'Données pour moyenne 2018'!$M:$M,Activation!F$9),SUMIFS('Données FDC déc 2018'!$Q:$Q,'Données FDC déc 2018'!$C:$C,Activation!$J$5,'Données FDC déc 2018'!$E:$E,Activation!F$9))))-1 -> 0.03706829398 | G30: =G28/(IF(ISBLANK($F$5),SUMIFS('Données pour moyenne 2018'!$Z:$Z,'Données pour moyenne 2018'!$V:$V,Activation!$C$5,'Données pour moyenne 2018'!$X:$X,Activation!G$9),IF(ISBLANK($J$5),SUMIFS('Données pour moyenne 2018'!$O:$O,'Données pour moyenne 2018'!$K:$K,Activation!$F$5,'Données pour moyenne 2018'!$M:$M,Activation!G$9),SUMIFS('Données FDC déc 2018'!$Q:$Q,'Données FDC déc 2018'!$C:$C,Activation!$J$5,'Données FDC déc 2018'!$E:$E,Activation!G$9))))-1 -> 0.03942748174 | H30: =H28/(IF(ISBLANK($F$5),SUMIFS('Données pour moyenne 2018'!$Z:$Z,'Données pour moyenne 2018'!$V:$V,Activation!$C$5,'Données pour moyenne 2018'!$X:$X,Activation!H$9),IF(ISBLANK($J$5),SUMIFS('Données pour moyenne 2018'!$O:$O,'Données pour moyenne 2018'!$K:$K,Activation!$F$5,'Données pour moyenne 2018'!$M:$M,Activation!H$9),SUMIFS('Données FDC déc 2018'!$Q:$Q,'Données FDC déc 2018'!$C:$C,Activation!$J$5,'Données FDC déc 2018'!$E:$E,Activation!H$9))))-1 -> 0.0324454913 | I30: =I28/(IF(ISBLANK($F$5),SUMIFS('Données pour moyenne 2018'!$Z:$Z,'Données pour moyenne 2018'!$V:$V,Activation!$C$5,'Données pour moyenne 2018'!$X:$X,Activation!I$9),IF(ISBLANK($J$5),SUMIFS('Données pour moyenne 2018'!$O:$O,'Données pour moyenne 2018'!$K:$K,Activation!$F$5,'Données pour moyenne 2018'!$M:$M,Activation!I$9),SUMIFS('Données FDC déc 2018'!$Q:$Q,'Données FDC déc 2018'!$C:$C,Activation!$J$5,'Données FDC déc 2018'!$E:$E,Activation!I$9))))-1 -> 0.03948126573 | J30: =J28/(IF(ISBLANK($F$5),SUMIFS('Données pour moyenne 2018'!$Z:$Z,'Données pour moyenne 2018'!$V:$V,Activation!$C$5,'Données pour moyenne 2018'!$X:$X,Activation!J$9),IF(ISBLANK($J$5),SUMIFS('Données pour moyenne 2018'!$O:$O,'Données pour moyenne 2018'!$K:$K,Activation!$F$5,'Données pour moyenne 2018'!$M:$M,Activation!J$9),SUMIFS('Données FDC déc 2018'!$Q:$Q,'Données FDC déc 2018'!$C:$C,Activation!$J$5,'Données FDC déc 2018'!$E:$E,Activation!J$9))))-1 -> 0.01746430333 | K30: =K28/(IF(ISBLANK($F$5),SUMIFS('Données pour moyenne 2018'!$Z:$Z,'Données pour moyenne 2018'!$V:$V,Activation!$C$5,'Données pour moyenne 2018'!$X:$X,Activation!K$9),IF(ISBLANK($J$5),SUMIFS('Données pour moyenne 2018'!$O:$O,'Données pour moyenne 2018'!$K:$K,Activation!$F$5,'Données pour moyenne 2018'!$M:$M,Activation!K$9),SUMIFS('Données FDC déc 2018'!$Q:$Q,'Données FDC déc 2018'!$C:$C,Activation!$J$5,'Données FDC déc 2018'!$E:$E,Activation!K$9))))-1 -> 0.02036003173 | L30: =L28/(IF(ISBLANK($F$5),SUMIFS('Données pour moyenne 2018'!$Z:$Z,'Données pour moyenne 2018'!$V:$V,Activation!$C$5,'Données pour moyenne 2018'!$X:$X,Activation!L$9),IF(ISBLANK($J$5),SUMIFS('Données pour moyenne 2018'!$O:$O,'Données pour moyenne 2018'!$K:$K,Activation!$F$5,'Données pour moyenne 2018'!$M:$M,Activation!L$9),SUMIFS('Données FDC déc 2018'!$Q:$Q,'Données FDC déc 2018'!$C:$C,Activation!$J$5,'Données FDC déc 2018'!$E:$E,Activation!L$9))))-1 -> 0.03408261836 | M30: =M28/(IF(ISBLANK($F$5),SUMIFS('Données pour moyenne 2018'!$Z:$Z,'Données pour moyenne 2018'!$V:$V,Activation!$C$5,'Données pour moyenne 2018'!$X:$X,Activation!M$9),IF(ISBLANK($J$5),SUMIFS('Données pour moyenne 2018'!$O:$O,'Données pour moyenne 2018'!$K:$K,Activation!$F$5,'Données pour moyenne 2018'!$M:$M,Activation!M$9),SUMIFS('Données FDC déc 2018'!$Q:$Q,'Données FDC déc 2018'!$C:$C,Activation!$J$5,'Données FDC déc 2018'!$E:$E,Activation!M$9))))-1 -> 0.04440246881 | N30: =N28/(IF(ISBLANK($F$5),SUMIFS('Données pour moyenne 2018'!$Z:$Z,'Données pour moyenne 2018'!$V:$V,Activation!$C$5,'Données pour moyenne 2018'!$X:$X,Activation!N$9),IF(ISBLANK($J$5),SUMIFS('Données pour moyenne 2018'!$O:$O,'Données pour moyenne 2018'!$K:$K,Activation!$F$5,'Données pour moyenne 2018'!$M:$M,Activation!N$9),SUMIFS('Données FDC déc 2018'!$Q:$Q,'Données FDC déc 2018'!$C:$C,Activation!$J$5,'Données FDC déc 2018'!$E:$E,Activation!N$9))))-1 -> 0.05177347994 | O30: =O28/(IF(ISBLANK($F$5),SUMIFS('Données pour moyenne 2018'!$Z:$Z,'Données pour moyenne 2018'!$V:$V,Activation!$C$5,'Données pour moyenne 2018'!$X:$X,Activation!O$9),IF(ISBLANK($J$5),SUMIFS('Données pour moyenne 2018'!$O:$O,'Données pour moyenne 2018'!$K:$K,Activation!$F$5,'Données pour moyenne 2018'!$M:$M,Activation!O$9),SUMIFS('Données FDC déc 2018'!$Q:$Q,'Données FDC déc 2018'!$C:$C,Activation!$J$5,'Données FDC déc 2018'!$E:$E,Activation!O$9))))-1 -> 0.09464173828 | P30: =P28/(IF(ISBLANK($F$5),SUMIFS('Données pour moyenne 2018'!$Z:$Z,'Données pour moyenne 2018'!$V:$V,Activation!$C$5,'Données pour moyenne 2018'!$X:$X,Activation!P$9),IF(ISBLANK($J$5),SUMIFS('Données pour moyenne 2018'!$O:$O,'Données pour moyenne 2018'!$K:$K,Activation!$F$5,'Données pour moyenne 2018'!$M:$M,Activation!P$9),SUMIFS('Données FDC déc 2018'!$Q:$Q,'Données FDC déc 2018'!$C:$C,Activation!$J$5,'Données FDC déc 2018'!$E:$E,Activation!P$9))))-1 -> -0.01471000569
C31: Variation CEGEE | D31: =(D29-E29)/E29 -> 0.05026290406 | F31: =F29/VLOOKUP(F$9,'Données pour moyenne 2018'!$AF:$AH,3,FALSE)-1 -> 0.03706829398 | G31: =G29/VLOOKUP(G$9,'Données pour moyenne 2018'!$AF:$AH,3,FALSE)-1 -> 0.03942748174 | H31: =H29/VLOOKUP(H$9,'Données pour moyenne 2018'!$AF:$AH,3,FALSE)-1 -> 0.0324454913 | I31: =I29/VLOOKUP(I$9,'Données pour moyenne 2018'!$AF:$AH,3,FALSE)-1 -> 0.03948126573 | J31: =J29/VLOOKUP(J$9,'Données pour moyenne 2018'!$AF:$AH,3,FALSE)-1 -> 0.01746430333 | K31: =K29/VLOOKUP(K$9,'Données pour moyenne 2018'!$AF:$AH,3,FALSE)-1 -> 0.02036003173 | L31: =L29/VLOOKUP(L$9,'Données pour moyenne 2018'!$AF:$AH,3,FALSE)-1 -> 0.03408261836 | M31: =M29/VLOOKUP(M$9,'Données pour moyenne 2018'!$AF:$AH,3,FALSE)-1 -> 0.04440246881 | N31: =N29/VLOOKUP(N$9,'Données pour moyenne 2018'!$AF:$AH,3,FALSE)-1 -> 0.05177347994 | O31: =O29/VLOOKUP(O$9,'Données pour moyenne 2018'!$AF:$AH,3,FALSE)-1 -> 0.09464173828 | P31: =P29/VLOOKUP(P$9,'Données pour moyenne 2018'!$AF:$AH,3,FALSE)-1 -> -0.01471000569
B32: Encours de collecte (en K€) | C32: Montant | D32: =SUM(F32:P32) -> 30083486.66 | E32: =IF(ISBLANK($F$5),(SUMIFS('Données FDC déc 2018'!$R:$R,'Données FDC déc 2018'!$A:$A,Activation!$C$5))/1000,IF(ISBLANK($J$5),(SUMIFS('Données FDC déc 2018'!$R:$R,'Données FDC déc 2018'!$B:$B,Activation!$F$5))/1000,(SUMIFS('Données FDC déc 2018'!$R:$R,'Données FDC déc 2018'!$C:$C,Activation!$J$5))/1000)) -> 29495408.03 | F32: =IF(ISBLANK($F$5),(SUMIFS('Données FDC'!$R:$R,'Données FDC'!$A:$A,Activation!$C$5,'Données FDC'!$E:$E,Activation!F$9))/1000,IF(ISBLANK($J$5),(SUMIFS('Données FDC'!$R:$R,'Données FDC'!$B:$B,Activation!$F$5,'Données FDC'!$E:$E,Activation!F$9))/1000,(SUMIFS('Données FDC'!$R:$R,'Données FDC'!$C:$C,Activation!$J$5,'Données FDC'!$E:$E,Activation!F$9))/1000)) -> 11117958.13 | G32: =IF(ISBLANK($F$5),(SUMIFS('Données FDC'!$R:$R,'Données FDC'!$A:$A,Activation!$C$5,'Données FDC'!$E:$E,Activation!G$9))/1000,IF(ISBLANK($J$5),(SUMIFS('Données FDC'!$R:$R,'Données FDC'!$B:$B,Activation!$F$5,'Données FDC'!$E:$E,Activation!G$9))/1000,(SUMIFS('Données FDC'!$R:$R,'Données FDC'!$C:$C,Activation!$J$5,'Données FDC'!$E:$E,Activation!G$9))/1000)) -> 2632190.729 | H32: =IF(ISBLANK($F$5),(SUMIFS('Données FDC'!$R:$R,'Données FDC'!$A:$A,Activation!$C$5,'Données FDC'!$E:$E,Activation!H$9))/1000,IF(ISBLANK($J$5),(SUMIFS('Données FDC'!$R:$R,'Données FDC'!$B:$B,Activation!$F$5,'Données FDC'!$E:$E,Activation!H$9))/1000,(SUMIFS('Données FDC'!$R:$R,'Données FDC'!$C:$C,Activation!$J$5,'Données FDC'!$E:$E,Activation!H$9))/1000)) -> 11332684.33 | I32: =IF(ISBLANK($F$5),(SUMIFS('Données FDC'!$R:$R,'Données FDC'!$A:$A,Activation!$C$5,'Données FDC'!$E:$E,Activation!I$9))/1000,IF(ISBLANK($J$5),(SUMIFS('Données FDC'!$R:$R,'Données FDC'!$B:$B,Activation!$F$5,'Données FDC'!$E:$E,Activation!I$9))/1000,(SUMIFS('Données FDC'!$R:$R,'Données FDC'!$C:$C,Activation!$J$5,'Données FDC'!$E:$E,Activation!I$9))/1000)) -> 3603620.182 | J32: =IF(ISBLANK($F$5),(SUMIFS('Données FDC'!$R:$R,'Données FDC'!$A:$A,Activation!$C$5,'Données FDC'!$E:$E,Activation!J$9))/1000,IF(ISBLANK($J$5),(SUMIFS('Données FDC'!$R:$R,'Données FDC'!$B:$B,Activation!$F$5,'Données FDC'!$E:$E,Activation!J$9))/1000,(SUMIFS('Données FDC'!$R:$R,'Données FDC'!$C:$C,Activation!$J$5,'Données FDC'!$E:$E,Activation!J$9))/1000)) -> 601833.3614 | K32: =IF(ISBLANK($F$5),(SUMIFS('Données FDC'!$R:$R,'Données FDC'!$A:$A,Activation!$C$5,'Données FDC'!$E:$E,Activation!K$9))/1000,IF(ISBLANK($J$5),(SUMIFS('Données FDC'!$R:$R,'Données FDC'!$B:$B,Activation!$F$5,'Données FDC'!$E:$E,Activation!K$9))/1000,(SUMIFS('Données FDC'!$R:$R,'Données FDC'!$C:$C,Activation!$J$5,'Données FDC'!$E:$E,Activation!K$9))/1000)) -> 19240.59037 | L32: =IF(ISBLANK($F$5),(SUMIFS('Données FDC'!$R:$R,'Données FDC'!$A:$A,Activation!$C$5,'Données FDC'!$E:$E,Activation!L$9))/1000,IF(ISBLANK($J$5),(SUMIFS('Données FDC'!$R:$R,'Données FDC'!$B:$B,Activation!$F$5,'Données FDC'!$E:$E,Activation!L$9))/1000,(SUMIFS('Données FDC'!$R:$R,'Données FDC'!$C:$C,Activation!$J$5,'Données FDC'!$E:$E,Activation!L$9))/1000)) -> 174744.9781 | M32: =IF(ISBLANK($F$5),(SUMIFS('Données FDC'!$R:$R,'Données FDC'!$A:$A,Activation!$C$5,'Données FDC'!$E:$E,Activation!M$9))/1000,IF(ISBLANK($J$5),(SUMIFS('Données FDC'!$R:$R,'Données FDC'!$B:$B,Activation!$F$5,'Données FDC'!$E:$E,Activation!M$9))/1000,(SUMIFS('Données FDC'!$R:$R,'Données FDC'!$C:$C,Activation!$J$5,'Données FDC'!$E:$E,Activation!M$9))/1000)) -> 156118.5718 | N32: =IF(ISBLANK($F$5),(SUMIFS('Données FDC'!$R:$R,'Données FDC'!$A:$A,Activation!$C$5,'Données FDC'!$E:$E,Activation!N$9))/1000,IF(ISBLANK($J$5),(SUMIFS('Données FDC'!$R:$R,'Données FDC'!$B:$B,Activation!$F$5,'Données FDC'!$E:$E,Activation!N$9))/1000,(SUMIFS('Données FDC'!$R:$R,'Données FDC'!$C:$C,Activation!$J$5,'Données FDC'!$E:$E,Activation!N$9))/1000)) -> 379921.134 | O32: =IF(ISBLANK($F$5),(SUMIFS('Données FDC'!$R:$R,'Données FDC'!$A:$A,Activation!$C$5,'Données FDC'!$E:$E,Activation!O$9))/1000,IF(ISBLANK($J$5),(SUMIFS('Données FDC'!$R:$R,'Données FDC'!$B:$B,Activation!$F$5,'Données FDC'!$E:$E,Activation!O$9))/1000,(SUMIFS('Données FDC'!$R:$R,'Données FDC'!$C:$C,Activation!$J$5,'Données FDC'!$E:$E,Activation!O$9))/1000)) -> 61819.49075 | P32: =IF(ISBLANK($F$5),(SUMIFS('Données FDC'!$R:$R,'Données FDC'!$A:$A,Activation!$C$5,'Données FDC'!$E:$E,Activation!P$9))/1000,IF(ISBLANK($J$5),(SUMIFS('Données FDC'!$R:$R,'Données FDC'!$B:$B,Activation!$F$5,'Données FDC'!$E:$E,Activation!P$9))/1000,(SUMIFS('Données FDC'!$R:$R,'Données FDC'!$C:$C,Activation!$J$5,'Données FDC'!$E:$E,Activation!P$9))/1000)) -> 3355.15935
C33: Variation | D33: =D32/(IF(ISBLANK($F$5),SUMIFS('Données FDC déc 2018'!$R:$R,'Données FDC déc 2018'!$A:$A,Activation!$C$5)/1000,IF(ISBLANK($J$5),SUMIFS('Données FDC déc 2018'!$R:$R,'Données FDC déc 2018'!$B:$B,Activation!$F$5)/1000,SUMIFS('Données FDC déc 2018'!$R:$R,'Données FDC déc 2018'!$C:$C,Activation!$J$5)/1000)))-1 -> 0.0199379723 | F33: =F32/(IF(ISBLANK($F$5),SUMIFS('Données FDC déc 2018'!$R:$R,'Données FDC déc 2018'!$A:$A,Activation!$C$5,'Données FDC déc 2018'!$E:$E,Activation!F$9)/1000,IF(ISBLANK($J$5),SUMIFS('Données FDC déc 2018'!$R:$R,'Données FDC déc 2018'!$B:$B,Activation!$F$5,'Données FDC déc 2018'!$E:$E,Activation!F$9)/1000,SUMIFS('Données FDC déc 2018'!$R:$R,'Données FDC déc 2018'!$C:$C,Activation!$J$5,'Données FDC déc 2018'!$E:$E,Activation!F$9)/1000)))-1 -> 0.04398011538 | G33: =G32/(IF(ISBLANK($F$5),SUMIFS('Données FDC déc 2018'!$R:$R,'Données FDC déc 2018'!$A:$A,Activation!$C$5,'Données FDC déc 2018'!$E:$E,Activation!G$9)/1000,IF(ISBLANK($J$5),SUMIFS('Données FDC déc 2018'!$R:$R,'Données FDC déc 2018'!$B:$B,Activation!$F$5,'Données FDC déc 2018'!$E:$E,Activation!G$9)/1000,SUMIFS('Données FDC déc 2018'!$R:$R,'Données FDC déc 2018'!$C:$C,Activation!$J$5,'Données FDC déc 2018'!$E:$E,Activation!G$9)/1000)))-1 -> 0.02461961041 | H33: =H32/(IF(ISBLANK($F$5),SUMIFS('Données FDC déc 2018'!$R:$R,'Données FDC déc 2018'!$A:$A,Activation!$C$5,'Données FDC déc 2018'!$E:$E,Activation!H$9)/1000,IF(ISBLANK($J$5),SUMIFS('Données FDC déc 2018'!$R:$R,'Données FDC déc 2018'!$B:$B,Activation!$F$5,'Données FDC déc 2018'!$E:$E,Activation!H$9)/1000,SUMIFS('Données FDC déc 2018'!$R:$R,'Données FDC déc 2018'!$C:$C,Activation!$J$5,'Données FDC déc 2018'!$E:$E,Activation!H$9)/1000)))-1 -> 0.003767107028 | I33: =I32/(IF(ISBLANK($F$5),SUMIFS('Données FDC déc 2018'!$R:$R,'Données FDC déc 2018'!$A:$A,Activation!$C$5,'Données FDC déc 2018'!$E:$E,Activation!I$9)/1000,IF(ISBLANK($J$5),SUMIFS('Données FDC déc 2018'!$R:$R,'Données FDC déc 2018'!$B:$B,Activation!$F$5,'Données FDC déc 2018'!$E:$E,Activation!I$9)/1000,SUMIFS('Données FDC déc 2018'!$R:$R,'Données FDC déc 2018'!$C:$C,Activation!$J$5,'Données FDC déc 2018'!$E:$E,Activation!I$9)/1000)))-1 -> 0.005322199113 | J33: =J32/(IF(ISBLANK($F$5),SUMIFS('Données FDC déc 2018'!$R:$R,'Données FDC déc 2018'!$A:$A,Activation!$C$5,'Données FDC déc 2018'!$E:$E,Activation!J$9)/1000,IF(ISBLANK($J$5),SUMIFS('Données FDC déc 2018'!$R:$R,'Données FDC déc 2018'!$B:$B,Activation!$F$5,'Données FDC déc 2018'!$E:$E,Activation!J$9)/1000,SUMIFS('Données FDC déc 2018'!$R:$R,'Données FDC déc 2018'!$C:$C,Activation!$J$5,'Données FDC déc 2018'!$E:$E,Activation!J$9)/1000)))-1 -> 0.0213026577 | K33: =K32/(IF(ISBLANK($F$5),SUMIFS('Données FDC déc 2018'!$R:$R,'Données FDC déc 2018'!$A:$A,Activation!$C$5,'Données FDC déc 2018'!$E:$E,Activation!K$9)/1000,IF(ISBLANK($J$5),SUMIFS('Données FDC déc 2018'!$R:$R,'Données FDC déc 2018'!$B:$B,Activation!$F$5,'Données FDC déc 2018'!$E:$E,Activation!K$9)/1000,SUMIFS('Données FDC déc 2018'!$R:$R,'Données FDC déc 2018'!$C:$C,Activation!$J$5,'Données FDC déc 2018'!$E:$E,Activation!K$9)/1000)))-1 -> -0.05008490497 | L33: =L32/(IF(ISBLANK($F$5),SUMIFS('Données FDC déc 2018'!$R:$R,'Données FDC déc 2018'!$A:$A,Activation!$C$5,'Données FDC déc 2018'!$E:$E,Activation!L$9)/1000,IF(ISBLANK($J$5),SUMIFS('Données FDC déc 2018'!$R:$R,'Données FDC déc 2018'!$B:$B,Activation!$F$5,'Données FDC déc 2018'!$E:$E,Activation!L$9)/1000,SUMIFS('Données FDC déc 2018'!$R:$R,'Données FDC déc 2018'!$C:$C,Activation!$J$5,'Données FDC déc 2018'!$E:$E,Activation!L$9)/1000)))-1 -> -0.03219886852 | M33: =M32/(IF(ISBLANK($F$5),SUMIFS('Données FDC déc 2018'!$R:$R,'Données FDC déc 2018'!$A:$A,Activation!$C$5,'Données FDC déc 2018'!$E:$E,Activation!M$9)/1000,IF(ISBLANK($J$5),SUMIFS('Données FDC déc 2018'!$R:$R,'Données FDC déc 2018'!$B:$B,Activation!$F$5,'Données FDC déc 2018'!$E:$E,Activation!M$9)/1000,SUMIFS('Données FDC déc 2018'!$R:$R,'Données FDC déc 2018'!$C:$C,Activation!$J$5,'Données FDC déc 2018'!$E:$E,Activation!M$9)/1000)))-1 -> -0.00355837595 | N33: =N32/(IF(ISBLANK($F$5),SUMIFS('Données FDC déc 2018'!$R:$R,'Données FDC déc 2018'!$A:$A,Activation!$C$5,'Données FDC déc 2018'!$E:$E,Activation!N$9)/1000,IF(ISBLANK($J$5),SUMIFS('Données FDC déc 2018'!$R:$R,'Données FDC déc 2018'!$B:$B,Activation!$F$5,'Données FDC déc 2018'!$E:$E,Activation!N$9)/1000,SUMIFS('Données FDC déc 2018'!$R:$R,'Données FDC déc 2018'!$C:$C,Activation!$J$5,'Données FDC déc 2018'!$E:$E,Activation!N$9)/1000)))-1 -> -0.0369723053 | O33: =O32/(IF(ISBLANK($F$5),SUMIFS('Données FDC déc 2018'!$R:$R,'Données FDC déc 2018'!$A:$A,Activation!$C$5,'Données FDC déc 2018'!$E:$E,Activation!O$9)/1000,IF(ISBLANK($J$5),SUMIFS('Données FDC déc 2018'!$R:$R,'Données FDC déc 2018'!$B:$B,Activation!$F$5,'Données FDC déc 2018'!$E:$E,Activation!O$9)/1000,SUMIFS('Données FDC déc 2018'!$R:$R,'Données FDC déc 2018'!$C:$C,Activation!$J$5,'Données FDC déc 2018'!$E:$E,Activation!O$9)/1000)))-1 -> 0.07885879315 | P33: =P32/(IF(ISBLANK($F$5),SUMIFS('Données FDC déc 2018'!$R:$R,'Données FDC déc 2018'!$A:$A,Activation!$C$5,'Données FDC déc 2018'!$E:$E,Activation!P$9)/1000,IF(ISBLANK($J$5),SUMIFS('Données FDC déc 2018'!$R:$R,'Données FDC déc 2018'!$B:$B,Activation!$F$5,'Données FDC déc 2018'!$E:$E,Activation!P$9)/1000,SUMIFS('Données FDC déc 2018'!$R:$R,'Données FDC déc 2018'!$C:$C,Activation!$J$5,'Données FDC déc 2018'!$E:$E,Activation!P$9)/1000)))-1 -> -0.06858423914
C34: Variation CEGEE | D34: =(SUM('Données FDC'!$R:$R)/1000)/(SUM('Données FDC déc 2018'!$R:$R)/1000)-1 -> 0.0199379723 | F34: =IF(ISBLANK($F$5),SUMIFS('Données FDC'!$R:$R,'Données FDC'!$E:$E,Activation!F$9)/1000,IF(ISBLANK($J$5),SUMIFS('Données FDC'!$R:$R,'Données FDC'!$E:$E,Activation!F$9)/1000,SUMIFS('Données FDC'!$R:$R,'Données FDC'!$E:$E,Activation!F$9)/1000))/(IF(ISBLANK($F$5),SUMIFS('Données FDC déc 2018'!$R:$R,'Données FDC déc 2018'!$E:$E,Activation!F$9)/1000,IF(ISBLANK($J$5),SUMIFS('Données FDC déc 2018'!$R:$R,'Données FDC déc 2018'!$E:$E,Activation!F$9)/1000,SUMIFS('Données FDC déc 2018'!$R:$R,'Données FDC déc 2018'!$E:$E,Activation!F$9)/1000)))-1 -> 0.04398011538 | G34: =IF(ISBLANK($F$5),SUMIFS('Données FDC'!$R:$R,'Données FDC'!$E:$E,Activation!G$9)/1000,IF(ISBLANK($J$5),SUMIFS('Données FDC'!$R:$R,'Données FDC'!$E:$E,Activation!G$9)/1000,SUMIFS('Données FDC'!$R:$R,'Données FDC'!$E:$E,Activation!G$9)/1000))/(IF(ISBLANK($F$5),SUMIFS('Données FDC déc 2018'!$R:$R,'Données FDC déc 2018'!$E:$E,Activation!G$9)/1000,IF(ISBLANK($J$5),SUMIFS('Données FDC déc 2018'!$R:$R,'Données FDC déc 2018'!$E:$E,Activation!G$9)/1000,SUMIFS('Données FDC déc 2018'!$R:$R,'Données FDC déc 2018'!$E:$E,Activation!G$9)/1000)))-1 -> 0.02461961041 | H34: =IF(ISBLANK($F$5),SUMIFS('Données FDC'!$R:$R,'Données FDC'!$E:$E,Activation!H$9)/1000,IF(ISBLANK($J$5),SUMIFS('Données FDC'!$R:$R,'Données FDC'!$E:$E,Activation!H$9)/1000,SUMIFS('Données FDC'!$R:$R,'Données FDC'!$E:$E,Activation!H$9)/1000))/(IF(ISBLANK($F$5),SUMIFS('Données FDC déc 2018'!$R:$R,'Données FDC déc 2018'!$E:$E,Activation!H$9)/1000,IF(ISBLANK($J$5),SUMIFS('Données FDC déc 2018'!$R:$R,'Données FDC déc 2018'!$E:$E,Activation!H$9)/1000,SUMIFS('Données FDC déc 2018'!$R:$R,'Données FDC déc 2018'!$E:$E,Activation!H$9)/1000)))-1 -> 0.003767107028 | I34: =IF(ISBLANK($F$5),SUMIFS('Données FDC'!$R:$R,'Données FDC'!$E:$E,Activation!I$9)/1000,IF(ISBLANK($J$5),SUMIFS('Données FDC'!$R:$R,'Données FDC'!$E:$E,Activation!I$9)/1000,SUMIFS('Données FDC'!$R:$R,'Données FDC'!$E:$E,Activation!I$9)/1000))/(IF(ISBLANK($F$5),SUMIFS('Données FDC déc 2018'!$R:$R,'Données FDC déc 2018'!$E:$E,Activation!I$9)/1000,IF(ISBLANK($J$5),SUMIFS('Données FDC déc 2018'!$R:$R,'Données FDC déc 2018'!$E:$E,Activation!I$9)/1000,SUMIFS('Données FDC déc 2018'!$R:$R,'Données FDC déc 2018'!$E:$E,Activation!I$9)/1000)))-1 -> 0.005322199113 | J34: =IF(ISBLANK($F$5),SUMIFS('Données FDC'!$R:$R,'Données FDC'!$E:$E,Activation!J$9)/1000,IF(ISBLANK($J$5),SUMIFS('Données FDC'!$R:$R,'Données FDC'!$E:$E,Activation!J$9)/1000,SUMIFS('Données FDC'!$R:$R,'Données FDC'!$E:$E,Activation!J$9)/1000))/(IF(ISBLANK($F$5),SUMIFS('Données FDC déc 2018'!$R:$R,'Données FDC déc 2018'!$E:$E,Activation!J$9)/1000,IF(ISBLANK($J$5),SUMIFS('Données FDC déc 2018'!$R:$R,'Données FDC déc 2018'!$E:$E,Activation!J$9)/1000,SUMIFS('Données FDC déc 2018'!$R:$R,'Données FDC déc 2018'!$E:$E,Activation!J$9)/1000)))-1 -> 0.0213026577 | K34: =IF(ISBLANK($F$5),SUMIFS('Données FDC'!$R:$R,'Données FDC'!$E:$E,Activation!K$9)/1000,IF(ISBLANK($J$5),SUMIFS('Données FDC'!$R:$R,'Données FDC'!$E:$E,Activation!K$9)/1000,SUMIFS('Données FDC'!$R:$R,'Données FDC'!$E:$E,Activation!K$9)/1000))/(IF(ISBLANK($F$5),SUMIFS('Données FDC déc 2018'!$R:$R,'Données FDC déc 2018'!$E:$E,Activation!K$9)/1000,IF(ISBLANK($J$5),SUMIFS('Données FDC déc 2018'!$R:$R,'Données FDC déc 2018'!$E:$E,Activation!K$9)/1000,SUMIFS('Données FDC déc 2018'!$R:$R,'Données FDC déc 2018'!$E:$E,Activation!K$9)/1000)))-1 -> -0.05008490497 | L34: =IF(ISBLANK($F$5),SUMIFS('Données FDC'!$R:$R,'Données FDC'!$E:$E,Activation!L$9)/1000,IF(ISBLANK($J$5),SUMIFS('Données FDC'!$R:$R,'Données FDC'!$E:$E,Activation!L$9)/1000,SUMIFS('Données FDC'!$R:$R,'Données FDC'!$E:$E,Activation!L$9)/1000))/(IF(ISBLANK($F$5),SUMIFS('Données FDC déc 2018'!$R:$R,'Données FDC déc 2018'!$E:$E,Activation!L$9)/1000,IF(ISBLANK($J$5),SUMIFS('Données FDC déc 2018'!$R:$R,'Données FDC déc 2018'!$E:$E,Activation!L$9)/1000,SUMIFS('Données FDC déc 2018'!$R:$R,'Données FDC déc 2018'!$E:$E,Activation!L$9)/1000)))-1 -> -0.03219886852 | M34: =IF(ISBLANK($F$5),SUMIFS('Données FDC'!$R:$R,'Données FDC'!$E:$E,Activation!M$9)/1000,IF(ISBLANK($J$5),SUMIFS('Données FDC'!$R:$R,'Données FDC'!$E:$E,Activation!M$9)/1000,SUMIFS('Données FDC'!$R:$R,'Données FDC'!$E:$E,Activation!M$9)/1000))/(IF(ISBLANK($F$5),SUMIFS('Données FDC déc 2018'!$R:$R,'Données FDC déc 2018'!$E:$E,Activation!M$9)/1000,IF(ISBLANK($J$5),SUMIFS('Données FDC déc 2018'!$R:$R,'Données FDC déc 2018'!$E:$E,Activation!M$9)/1000,SUMIFS('Données FDC déc 2018'!$R:$R,'Données FDC déc 2018'!$E:$E,Activation!M$9)/1000)))-1 -> -0.00355837595 | N34: =IF(ISBLANK($F$5),SUMIFS('Données FDC'!$R:$R,'Données FDC'!$E:$E,Activation!N$9)/1000,IF(ISBLANK($J$5),SUMIFS('Données FDC'!$R:$R,'Données FDC'!$E:$E,Activation!N$9)/1000,SUMIFS('Données FDC'!$R:$R,'Données FDC'!$E:$E,Activation!N$9)/1000))/(IF(ISBLANK($F$5),SUMIFS('Données FDC déc 2018'!$R:$R,'Données FDC déc 2018'!$E:$E,Activation!N$9)/1000,IF(ISBLANK($J$5),SUMIFS('Données FDC déc 2018'!$R:$R,'Données FDC déc 2018'!$E:$E,Activation!N$9)/1000,SUMIFS('Données FDC déc 2018'!$R:$R,'Données FDC déc 2018'!$E:$E,Activation!N$9)/1000)))-1 -> -0.0369723053 | O34: =IF(ISBLANK($F$5),SUMIFS('Données FDC'!$R:$R,'Données FDC'!$E:$E,Activation!O$9)/1000,IF(ISBLANK($J$5),SUMIFS('Données FDC'!$R:$R,'Données FDC'!$E:$E,Activation!O$9)/1000,SUMIFS('Données FDC'!$R:$R,'Données FDC'!$E:$E,Activation!O$9)/1000))/(IF(ISBLANK($F$5),SUMIFS('Données FDC déc 2018'!$R:$R,'Données FDC déc 2018'!$E:$E,Activation!O$9)/1000,IF(ISBLANK($J$5),SUMIFS('Données FDC déc 2018'!$R:$R,'Données FDC déc 2018'!$E:$E,Activation!O$9)/1000,SUMIFS('Données FDC déc 2018'!$R:$R,'Données FDC déc 2018'!$E:$E,Activation!O$9)/1000)))-1 -> 0.07885879315 | P34: =IF(ISBLANK($F$5),SUMIFS('Données FDC'!$R:$R,'Données FDC'!$E:$E,Activation!P$9)/1000,IF(ISBLANK($J$5),SUMIFS('Données FDC'!$R:$R,'Données FDC'!$E:$E,Activation!P$9)/1000,SUMIFS('Données FDC'!$R:$R,'Données FDC'!$E:$E,Activation!P$9)/1000))/(IF(ISBLANK($F$5),SUMIFS('Données FDC déc 2018'!$R:$R,'Données FDC déc 2018'!$E:$E,Activation!P$9)/1000,IF(ISBLANK($J$5),SUMIFS('Données FDC déc 2018'!$R:$R,'Données FDC déc 2018'!$E:$E,Activation!P$9)/1000,SUMIFS('Données FDC déc 2018'!$R:$R,'Données FDC déc 2018'!$E:$E,Activation!P$9)/1000)))-1 -> -0.06858423914
B35: Encours de crédit (en K€) | C35: Montant | D35: =SUM(F35:P35) -> 10784518.41 | E35: =IF(ISBLANK($F$5),(SUMIFS('Données FDC déc 2018'!$S:$S,'Données FDC déc 2018'!$A:$A,Activation!$C$5))/1000,IF(ISBLANK($J$5),(SUMIFS('Données FDC déc 2018'!$S:$S,'Données FDC déc 2018'!$B:$B,Activation!$F$5))/1000,(SUMIFS('Données FDC déc 2018'!$S:$S,'Données FDC déc 2018'!$C:$C,Activation!$J$5))/1000)) -> 10466219.14 | F35: =IF(ISBLANK($F$5),(SUMIFS('Données FDC'!$S:$S,'Données FDC'!$A:$A,Activation!$C$5,'Données FDC'!$E:$E,Activation!F$9))/1000,IF(ISBLANK($J$5),(SUMIFS('Données FDC'!$S:$S,'Données FDC'!$B:$B,Activation!$F$5,'Données FDC'!$E:$E,Activation!F$9))/1000,(SUMIFS('Données FDC'!$S:$S,'Données FDC'!$C:$C,Activation!$J$5,'Données FDC'!$E:$E,Activation!F$9))/1000)) -> 8319254.974 | G35: =IF(ISBLANK($F$5),(SUMIFS('Données FDC'!$S:$S,'Données FDC'!$A:$A,Activation!$C$5,'Données FDC'!$E:$E,Activation!G$9))/1000,IF(ISBLANK($J$5),(SUMIFS('Données FDC'!$S:$S,'Données FDC'!$B:$B,Activation!$F$5,'Données FDC'!$E:$E,Activation!G$9))/1000,(SUMIFS('Données FDC'!$S:$S,'Données FDC'!$C:$C,Activation!$J$5,'Données FDC'!$E:$E,Activation!G$9))/1000)) -> 942299.2096 | H35: =IF(ISBLANK($F$5),(SUMIFS('Données FDC'!$S:$S,'Données FDC'!$A:$A,Activation!$C$5,'Données FDC'!$E:$E,Activation!H$9))/1000,IF(ISBLANK($J$5),(SUMIFS('Données FDC'!$S:$S,'Données FDC'!$B:$B,Activation!$F$5,'Données FDC'!$E:$E,Activation!H$9))/1000,(SUMIFS('Données FDC'!$S:$S,'Données FDC'!$C:$C,Activation!$J$5,'Données FDC'!$E:$E,Activation!H$9))/1000)) -> 809979.61 | I35: =IF(ISBLANK($F$5),(SUMIFS('Données FDC'!$S:$S,'Données FDC'!$A:$A,Activation!$C$5,'Données FDC'!$E:$E,Activation!I$9))/1000,IF(ISBLANK($J$5),(SUMIFS('Données FDC'!$S:$S,'Données FDC'!$B:$B,Activation!$F$5,'Données FDC'!$E:$E,Activation!I$9))/1000,(SUMIFS('Données FDC'!$S:$S,'Données FDC'!$C:$C,Activation!$J$5,'Données FDC'!$E:$E,Activation!I$9))/1000)) -> 450967.6623 | J35: =IF(ISBLANK($F$5),(SUMIFS('Données FDC'!$S:$S,'Données FDC'!$A:$A,Activation!$C$5,'Données FDC'!$E:$E,Activation!J$9))/1000,IF(ISBLANK($J$5),(SUMIFS('Données FDC'!$S:$S,'Données FDC'!$B:$B,Activation!$F$5,'Données FDC'!$E:$E,Activation!J$9))/1000,(SUMIFS('Données FDC'!$S:$S,'Données FDC'!$C:$C,Activation!$J$5,'Données FDC'!$E:$E,Activation!J$9))/1000)) -> 246691.2978 | K35: =IF(ISBLANK($F$5),(SUMIFS('Données FDC'!$S:$S,'Données FDC'!$A:$A,Activation!$C$5,'Données FDC'!$E:$E,Activation!K$9))/1000,IF(ISBLANK($J$5),(SUMIFS('Données FDC'!$S:$S,'Données FDC'!$B:$B,Activation!$F$5,'Données FDC'!$E:$E,Activation!K$9))/1000,(SUMIFS('Données FDC'!$S:$S,'Données FDC'!$C:$C,Activation!$J$5,'Données FDC'!$E:$E,Activation!K$9))/1000)) -> 4515.88463 | L35: =IF(ISBLANK($F$5),(SUMIFS('Données FDC'!$S:$S,'Données FDC'!$A:$A,Activation!$C$5,'Données FDC'!$E:$E,Activation!L$9))/1000,IF(ISBLANK($J$5),(SUMIFS('Données FDC'!$S:$S,'Données FDC'!$B:$B,Activation!$F$5,'Données FDC'!$E:$E,Activation!L$9))/1000,(SUMIFS('Données FDC'!$S:$S,'Données FDC'!$C:$C,Activation!$J$5,'Données FDC'!$E:$E,Activation!L$9))/1000)) -> 5624.4275 | M35: =IF(ISBLANK($F$5),(SUMIFS('Données FDC'!$S:$S,'Données FDC'!$A:$A,Activation!$C$5,'Données FDC'!$E:$E,Activation!M$9))/1000,IF(ISBLANK($J$5),(SUMIFS('Données FDC'!$S:$S,'Données FDC'!$B:$B,Activation!$F$5,'Données FDC'!$E:$E,Activation!M$9))/1000,(SUMIFS('Données FDC'!$S:$S,'Données FDC'!$C:$C,Activation!$J$5,'Données FDC'!$E:$E,Activation!M$9))/1000)) -> 5185.34766
C36: Variation | D36: =D35/(IF(ISBLANK($F$5),SUMIFS('Données FDC déc 2018'!$S:$S,'Données FDC déc 2018'!$A:$A,Activation!$C$5)/1000,IF(ISBLANK($J$5),SUMIFS('Données FDC déc 2018'!$S:$S,'Données FDC déc 2018'!$B:$B,Activation!$F$5)/1000,SUMIFS('Données FDC déc 2018'!$S:$S,'Données FDC déc 2018'!$C:$C,Activation!$J$5)/1000)))-1 -> 0.03041205845 | F36: =F35/(IF(ISBLANK($F$5),SUMIFS('Données FDC déc 2018'!$S:$S,'Données FDC déc 2018'!$A:$A,Activation!$C$5,'Données FDC déc 2018'!$E:$E,Activation!F$9)/1000,IF(ISBLANK($J$5),SUMIFS('Données FDC déc 2018'!$S:$S,'Données FDC déc 2018'!$B:$B,Activation!$F$5,'Données FDC déc 2018'!$E:$E,Activation!F$9)/1000,SUMIFS('Données FDC déc 2018'!$S:$S,'Données FDC déc 2018'!$C:$C,Activation!$J$5,'Données FDC déc 2018'!$E:$E,Activation!F$9)/1000)))-1 -> 0.0231792712 | G36: =G35/(IF(ISBLANK($F$5),SUMIFS('Données FDC déc 2018'!$S:$S,'Données FDC déc 2018'!$A:$A,Activation!$C$5,'Données FDC déc 2018'!$E:$E,Activation!G$9)/1000,IF(ISBLANK($J$5),SUMIFS('Données FDC déc 2018'!$S:$S,'Données FDC déc 2018'!$B:$B,Activation!$F$5,'Données FDC déc 2018'!$E:$E,Activation!G$9)/1000,SUMIFS('Données FDC déc 2018'!$S:$S,'Données FDC déc 2018'!$C:$C,Activation!$J$5,'Données FDC déc 2018'!$E:$E,Activation!G$9)/1000)))-1 -> 0.007327443606 | H36: =H35/(IF(ISBLANK($F$5),SUMIFS('Données FDC déc 2018'!$S:$S,'Données FDC déc 2018'!$A:$A,Activation!$C$5,'Données FDC déc 2018'!$E:$E,Activation!H$9)/1000,IF(ISBLANK($J$5),SUMIFS('Données FDC déc 2018'!$S:$S,'Données FDC déc 2018'!$B:$B,Activation!$F$5,'Données FDC déc 2018'!$E:$E,Activation!H$9)/1000,SUMIFS('Données FDC déc 2018'!$S:$S,'Données FDC déc 2018'!$C:$C,Activation!$J$5,'Données FDC déc 2018'!$E:$E,Activation!H$9)/1000)))-1 -> 0.07611437969 | I36: =I35/(IF(ISBLANK($F$5),SUMIFS('Données FDC déc 2018'!$S:$S,'Données FDC déc 2018'!$A:$A,Activation!$C$5,'Données FDC déc 2018'!$E:$E,Activation!I$9)/1000,IF(ISBLANK($J$5),SUMIFS('Données FDC déc 2018'!$S:$S,'Données FDC déc 2018'!$B:$B,Activation!$F$5,'Données FDC déc 2018'!$E:$E,Activation!I$9)/1000,SUMIFS('Données FDC déc 2018'!$S:$S,'Données FDC déc 2018'!$C:$C,Activation!$J$5,'Données FDC déc 2018'!$E:$E,Activation!I$9)/1000)))-1 -> 0.1109179053 | J36: =J35/(IF(ISBLANK($F$5),SUMIFS('Données FDC déc 2018'!$S:$S,'Données FDC déc 2018'!$A:$A,Activation!$C$5,'Données FDC déc 2018'!$E:$E,Activation!J$9)/1000,IF(ISBLANK($J$5),SUMIFS('Données FDC déc 2018'!$S:$S,'Données FDC déc 2018'!$B:$B,Activation!$F$5,'Données FDC déc 2018'!$E:$E,Activation!J$9)/1000,SUMIFS('Données FDC déc 2018'!$S:$S,'Données FDC déc 2018'!$C:$C,Activation!$J$5,'Données FDC déc 2018'!$E:$E,Activation!J$9)/1000)))-1 -> 0.07205233533 | K36: =IFERROR(K35/(IF(ISBLANK($F$5),SUMIFS('Données FDC déc 2018'!$S:$S,'Données FDC déc 2018'!$A:$A,Activation!$C$5,'Données FDC déc 2018'!$E:$E,Activation!K$9)/1000,IF(ISBLANK($J$5),SUMIFS('Données FDC déc 2018'!$S:$S,'Données FDC déc 2018'!$B:$B,Activation!$F$5,'Données FDC déc 2018'!$E:$E,Activation!K$9)/1000,SUMIFS('Données FDC déc 2018'!$S:$S,'Données FDC déc 2018'!$C:$C,Activation!$J$5,'Données FDC déc 2018'!$E:$E,Activation!K$9)/1000)))-1,"-") -> 0.00968050098 | L36: =IFERROR(L35/(IF(ISBLANK($F$5),SUMIFS('Données FDC déc 2018'!$S:$S,'Données FDC déc 2018'!$A:$A,Activation!$C$5,'Données FDC déc 2018'!$E:$E,Activation!L$9)/1000,IF(ISBLANK($J$5),SUMIFS('Données FDC déc 2018'!$S:$S,'Données FDC déc 2018'!$B:$B,Activation!$F$5,'Données FDC déc 2018'!$E:$E,Activation!L$9)/1000,SUMIFS('Données FDC déc 2018'!$S:$S,'Données FDC déc 2018'!$C:$C,Activation!$J$5,'Données FDC déc 2018'!$E:$E,Activation!L$9)/1000)))-1,"-") -> 0.7564942438 | M36: =IFERROR(M35/(IF(ISBLANK($F$5),SUMIFS('Données FDC déc 2018'!$S:$S,'Données FDC déc 2018'!$A:$A,Activation!$C$5,'Données FDC déc 2018'!$E:$E,Activation!M$9)/1000,IF(ISBLANK($J$5),SUMIFS('Données FDC déc 2018'!$S:$S,'Données FDC déc 2018'!$B:$B,Activation!$F$5,'Données FDC déc 2018'!$E:$E,Activation!M$9)/1000,SUMIFS('Données FDC déc 2018'!$S:$S,'Données FDC déc 2018'!$C:$C,Activation!$J$5,'Données FDC déc 2018'!$E:$E,Activation!M$9)/1000)))-1,"-") -> 0.4841272882
C37: Variation CEGEE | D37: =(SUM('Données FDC'!$S:$S)/1000)/(SUM('Données FDC déc 2018'!$S:$S)/1000)-1 -> 0.03041205845 | F37: =IF(ISBLANK($F$5),SUMIFS('Données FDC'!$S:$S,'Données FDC'!$E:$E,Activation!F$9)/1000,IF(ISBLANK($J$5),SUMIFS('Données FDC'!$S:$S,'Données FDC'!$E:$E,Activation!F$9)/1000,SUMIFS('Données FDC'!$S:$S,'Données FDC'!$E:$E,Activation!F$9)/1000))/(IF(ISBLANK($F$5),SUMIFS('Données FDC déc 2018'!$S:$S,'Données FDC déc 2018'!$E:$E,Activation!F$9)/1000,IF(ISBLANK($J$5),SUMIFS('Données FDC déc 2018'!$S:$S,'Données FDC déc 2018'!$E:$E,Activation!F$9)/1000,SUMIFS('Données FDC déc 2018'!$S:$S,'Données FDC déc 2018'!$E:$E,Activation!F$9)/1000)))-1 -> 0.0231792712 | G37: =IF(ISBLANK($F$5),SUMIFS('Données FDC'!$S:$S,'Données FDC'!$E:$E,Activation!G$9)/1000,IF(ISBLANK($J$5),SUMIFS('Données FDC'!$S:$S,'Données FDC'!$E:$E,Activation!G$9)/1000,SUMIFS('Données FDC'!$S:$S,'Données FDC'!$E:$E,Activation!G$9)/1000))/(IF(ISBLANK($F$5),SUMIFS('Données FDC déc 2018'!$S:$S,'Données FDC déc 2018'!$E:$E,Activation!G$9)/1000,IF(ISBLANK($J$5),SUMIFS('Données FDC déc 2018'!$S:$S,'Données FDC déc 2018'!$E:$E,Activation!G$9)/1000,SUMIFS('Données FDC déc 2018'!$S:$S,'Données FDC déc 2018'!$E:$E,Activation!G$9)/1000)))-1 -> 0.007327443606 | H37: =IF(ISBLANK($F$5),SUMIFS('Données FDC'!$S:$S,'Données FDC'!$E:$E,Activation!H$9)/1000,IF(ISBLANK($J$5),SUMIFS('Données FDC'!$S:$S,'Données FDC'!$E:$E,Activation!H$9)/1000,SUMIFS('Données FDC'!$S:$S,'Données FDC'!$E:$E,Activation!H$9)/1000))/(IF(ISBLANK($F$5),SUMIFS('Données FDC déc 2018'!$S:$S,'Données FDC déc 2018'!$E:$E,Activation!H$9)/1000,IF(ISBLANK($J$5),SUMIFS('Données FDC déc 2018'!$S:$S,'Données FDC déc 2018'!$E:$E,Activation!H$9)/1000,SUMIFS('Données FDC déc 2018'!$S:$S,'Données FDC déc 2018'!$E:$E,Activation!H$9)/1000)))-1 -> 0.07611437969 | I37: =IF(ISBLANK($F$5),SUMIFS('Données FDC'!$S:$S,'Données FDC'!$E:$E,Activation!I$9)/1000,IF(ISBLANK($J$5),SUMIFS('Données FDC'!$S:$S,'Données FDC'!$E:$E,Activation!I$9)/1000,SUMIFS('Données FDC'!$S:$S,'Données FDC'!$E:$E,Activation!I$9)/1000))/(IF(ISBLANK($F$5),SUMIFS('Données FDC déc 2018'!$S:$S,'Données FDC déc 2018'!$E:$E,Activation!I$9)/1000,IF(ISBLANK($J$5),SUMIFS('Données FDC déc 2018'!$S:$S,'Données FDC déc 2018'!$E:$E,Activation!I$9)/1000,SUMIFS('Données FDC déc 2018'!$S:$S,'Données FDC déc 2018'!$E:$E,Activation!I$9)/1000)))-1 -> 0.1109179053 | J37: =IF(ISBLANK($F$5),SUMIFS('Données FDC'!$S:$S,'Données FDC'!$E:$E,Activation!J$9)/1000,IF(ISBLANK($J$5),SUMIFS('Données FDC'!$S:$S,'Données FDC'!$E:$E,Activation!J$9)/1000,SUMIFS('Données FDC'!$S:$S,'Données FDC'!$E:$E,Activation!J$9)/1000))/(IF(ISBLANK($F$5),SUMIFS('Données FDC déc 2018'!$S:$S,'Données FDC déc 2018'!$E:$E,Activation!J$9)/1000,IF(ISBLANK($J$5),SUMIFS('Données FDC déc 2018'!$S:$S,'Données FDC déc 2018'!$E:$E,Activation!J$9)/1000,SUMIFS('Données FDC déc 2018'!$S:$S,'Données FDC déc 2018'!$E:$E,Activation!J$9)/1000)))-1 -> 0.07205233533 | K37: =IF(ISBLANK($F$5),SUMIFS('Données FDC'!$S:$S,'Données FDC'!$E:$E,Activation!K$9)/1000,IF(ISBLANK($J$5),SUMIFS('Données FDC'!$S:$S,'Données FDC'!$E:$E,Activation!K$9)/1000,SUMIFS('Données FDC'!$S:$S,'Données FDC'!$E:$E,Activation!K$9)/1000))/(IF(ISBLANK($F$5),SUMIFS('Données FDC déc 2018'!$S:$S,'Données FDC déc 2018'!$E:$E,Activation!K$9)/1000,IF(ISBLANK($J$5),SUMIFS('Données FDC déc 2018'!$S:$S,'Données FDC déc 2018'!$E:$E,Activation!K$9)/1000,SUMIFS('Données FDC déc 2018'!$S:$S,'Données FDC déc 2018'!$E:$E,Activation!K$9)/1000)))-1 -> 0.00968050098 | L37: =IF(ISBLANK($F$5),SUMIFS('Données FDC'!$S:$S,'Données FDC'!$E:$E,Activation!L$9)/1000,IF(ISBLANK($J$5),SUMIFS('Données FDC'!$S:$S,'Données FDC'!$E:$E,Activation!L$9)/1000,SUMIFS('Données FDC'!$S:$S,'Données FDC'!$E:$E,Activation!L$9)/1000))/(IF(ISBLANK($F$5),SUMIFS('Données FDC déc 2018'!$S:$S,'Données FDC déc 2018'!$E:$E,Activation!L$9)/1000,IF(ISBLANK($J$5),SUMIFS('Données FDC déc 2018'!$S:$S,'Données FDC déc 2018'!$E:$E,Activation!L$9)/1000,SUMIFS('Données FDC déc 2018'!$S:$S,'Données FDC déc 2018'!$E:$E,Activation!L$9)/1000)))-1 -> 0.7564942438 | M37: =IF(ISBLANK($F$5),SUMIFS('Données FDC'!$S:$S,'Données FDC'!$E:$E,Activation!M$9)/1000,IF(ISBLANK($J$5),SUMIFS('Données FDC'!$S:$S,'Données FDC'!$E:$E,Activation!M$9)/1000,SUMIFS('Données FDC'!$S:$S,'Données FDC'!$E:$E,Activation!M$9)/1000))/(IF(ISBLANK($F$5),SUMIFS('Données FDC déc 2018'!$S:$S,'Données FDC déc 2018'!$E:$E,Activation!M$9)/1000,IF(ISBLANK($J$5),SUMIFS('Données FDC déc 2018'!$S:$S,'Données FDC déc 2018'!$E:$E,Activation!M$9)/1000,SUMIFS('Données FDC déc 2018'!$S:$S,'Données FDC déc 2018'!$E:$E,Activation!M$9)/1000)))-1 -> 0.4841272882
B38: Détention Univers Banca | C38: Nombre détenteurs | D38: =SUM(F38:P38) -> 477270 | E38: =IF(ISBLANK($F$5),SUMIFS('Données FDC déc 2018'!$T:$T,'Données FDC déc 2018'!$A:$A,Activation!$C$5),IF(ISBLANK($J$5),SUMIFS('Données FDC déc 2018'!$T:$T,'Données FDC déc 2018'!$B:$B,Activation!$F$5),SUMIFS('Données FDC déc 2018'!$T:$T,'Données FDC déc 2018'!$C:$C,Activation!$J$5))) -> 474160 | F38: =IF(ISBLANK($F$5),SUMIFS('Données FDC'!$T:$T,'Données FDC'!$A:$A,Activation!$C$5,'Données FDC'!$E:$E,Activation!F$9),IF(ISBLANK($J$5),SUMIFS('Données FDC'!$T:$T,'Données FDC'!$B:$B,Activation!$F$5,'Données FDC'!$E:$E,Activation!F$9),SUMIFS('Données FDC'!$T:$T,'Données FDC'!$C:$C,Activation!$J$5,'Données FDC'!$E:$E,Activation!F$9))) -> 261885 | G38: =IF(ISBLANK($F$5),SUMIFS('Données FDC'!$T:$T,'Données FDC'!$A:$A,Activation!$C$5,'Données FDC'!$E:$E,Activation!G$9),IF(ISBLANK($J$5),SUMIFS('Données FDC'!$T:$T,'Données FDC'!$B:$B,Activation!$F$5,'Données FDC'!$E:$E,Activation!G$9),SUMIFS('Données FDC'!$T:$T,'Données FDC'!$C:$C,Activation!$J$5,'Données FDC'!$E:$E,Activation!G$9))) -> 105076 | H38: =IF(ISBLANK($F$5),SUMIFS('Données FDC'!$T:$T,'Données FDC'!$A:$A,Activation!$C$5,'Données FDC'!$E:$E,Activation!H$9),IF(ISBLANK($J$5),SUMIFS('Données FDC'!$T:$T,'Données FDC'!$B:$B,Activation!$F$5,'Données FDC'!$E:$E,Activation!H$9),SUMIFS('Données FDC'!$T:$T,'Données FDC'!$C:$C,Activation!$J$5,'Données FDC'!$E:$E,Activation!H$9))) -> 25889 | I38: =IF(ISBLANK($F$5),SUMIFS('Données FDC'!$T:$T,'Données FDC'!$A:$A,Activation!$C$5,'Données FDC'!$E:$E,Activation!I$9),IF(ISBLANK($J$5),SUMIFS('Données FDC'!$T:$T,'Données FDC'!$B:$B,Activation!$F$5,'Données FDC'!$E:$E,Activation!I$9),SUMIFS('Données FDC'!$T:$T,'Données FDC'!$C:$C,Activation!$J$5,'Données FDC'!$E:$E,Activation!I$9))) -> 10598 | J38: =IF(ISBLANK($F$5),SUMIFS('Données FDC'!$T:$T,'Données FDC'!$A:$A,Activation!$C$5,'Données FDC'!$E:$E,Activation!J$9),IF(ISBLANK($J$5),SUMIFS('Données FDC'!$T:$T,'Données FDC'!$B:$B,Activation!$F$5,'Données FDC'!$E:$E,Activation!J$9),SUMIFS('Données FDC'!$T:$T,'Données FDC'!$C:$C,Activation!$J$5,'Données FDC'!$E:$E,Activation!J$9))) -> 59544 | K38: =IF(ISBLANK($F$5),SUMIFS('Données FDC'!$T:$T,'Données FDC'!$A:$A,Activation!$C$5,'Données FDC'!$E:$E,Activation!K$9),IF(ISBLANK($J$5),SUMIFS('Données FDC'!$T:$T,'Données FDC'!$B:$B,Activation!$F$5,'Données FDC'!$E:$E,Activation!K$9),SUMIFS('Données FDC'!$T:$T,'Données FDC'!$C:$C,Activation!$J$5,'Données FDC'!$E:$E,Activation!K$9))) -> 12555 | L38: =IF(ISBLANK($F$5),SUMIFS('Données FDC'!$T:$T,'Données FDC'!$A:$A,Activation!$C$5,'Données FDC'!$E:$E,Activation!L$9),IF(ISBLANK($J$5),SUMIFS('Données FDC'!$T:$T,'Données FDC'!$B:$B,Activation!$F$5,'Données FDC'!$E:$E,Activation!L$9),SUMIFS('Données FDC'!$T:$T,'Données FDC'!$C:$C,Activation!$J$5,'Données FDC'!$E:$E,Activation!L$9))) -> 755 | M38: =IF(ISBLANK($F$5),SUMIFS('Données FDC'!$T:$T,'Données FDC'!$A:$A,Activation!$C$5,'Données FDC'!$E:$E,Activation!M$9),IF(ISBLANK($J$5),SUMIFS('Données FDC'!$T:$T,'Données FDC'!$B:$B,Activation!$F$5,'Données FDC'!$E:$E,Activation!M$9),SUMIFS('Données FDC'!$T:$T,'Données FDC'!$C:$C,Activation!$J$5,'Données FDC'!$E:$E,Activation!M$9))) -> 326 | N38: =IF(ISBLANK($F$5),SUMIFS('Données FDC'!$T:$T,'Données FDC'!$A:$A,Activation!$C$5,'Données FDC'!$E:$E,Activation!N$9),IF(ISBLANK($J$5),SUMIFS('Données FDC'!$T:$T,'Données FDC'!$B:$B,Activation!$F$5,'Données FDC'!$E:$E,Activation!N$9),SUMIFS('Données FDC'!$T:$T,'Données FDC'!$C:$C,Activation!$J$5,'Données FDC'!$E:$E,Activation!N$9))) -> 625 | O38: =IF(ISBLANK($F$5),SUMIFS('Données FDC'!$T:$T,'Données FDC'!$A:$A,Activation!$C$5,'Données FDC'!$E:$E,Activation!O$9),IF(ISBLANK($J$5),SUMIFS('Données FDC'!$T:$T,'Données FDC'!$B:$B,Activation!$F$5,'Données FDC'!$E:$E,Activation!O$9),SUMIFS('Données FDC'!$T:$T,'Données FDC'!$C:$C,Activation!$J$5,'Données FDC'!$E:$E,Activation!O$9))) -> 0 | P38: =IF(ISBLANK($F$5),SUMIFS('Données FDC'!$T:$T,'Données FDC'!$A:$A,Activation!$C$5,'Données FDC'!$E:$E,Activation!P$9),IF(ISBLANK($J$5),SUMIFS('Données FDC'!$T:$T,'Données FDC'!$B:$B,Activation!$F$5,'Données FDC'!$E:$E,Activation!P$9),SUMIFS('Données FDC'!$T:$T,'Données FDC'!$C:$C,Activation!$J$5,'Données FDC'!$E:$E,Activation!P$9))) -> 17
C39: % détenteurs | D39: =D38/D$10 -> 0.3191331443 | E39: =E38/E$10 -> 0.3078991029 | F39: =F38/IF(ISBLANK($F$5),SUMIFS('Données FDC'!$I:$I,'Données FDC'!$A:$A,Activation!$C$5,'Données FDC'!$E:$E,Activation!F$9),IF(ISBLANK($J$5),SUMIFS('Données FDC'!$I:$I,'Données FDC'!$B:$B,Activation!$F$5,'Données FDC'!$E:$E,Activation!F$9),SUMIFS('Données FDC'!$I:$I,'Données FDC'!$C:$C,Activation!$J$5,'Données FDC'!$E:$E,Activation!F$9))) -> 0.9490134261 | G39: =G38/IF(ISBLANK($F$5),SUMIFS('Données FDC'!$I:$I,'Données FDC'!$A:$A,Activation!$C$5,'Données FDC'!$E:$E,Activation!G$9),IF(ISBLANK($J$5),SUMIFS('Données FDC'!$I:$I,'Données FDC'!$B:$B,Activation!$F$5,'Données FDC'!$E:$E,Activation!G$9),SUMIFS('Données FDC'!$I:$I,'Données FDC'!$C:$C,Activation!$J$5,'Données FDC'!$E:$E,Activation!G$9))) -> 0.6511858504 | H39: =H38/IF(ISBLANK($F$5),SUMIFS('Données FDC'!$I:$I,'Données FDC'!$A:$A,Activation!$C$5,'Données FDC'!$E:$E,Activation!H$9),IF(ISBLANK($J$5),SUMIFS('Données FDC'!$I:$I,'Données FDC'!$B:$B,Activation!$F$5,'Données FDC'!$E:$E,Activation!H$9),SUMIFS('Données FDC'!$I:$I,'Données FDC'!$C:$C,Activation!$J$5,'Données FDC'!$E:$E,Activation!H$9))) -> 0.1525403756 | I39: =I38/IF(ISBLANK($F$5),SUMIFS('Données FDC'!$I:$I,'Données FDC'!$A:$A,Activation!$C$5,'Données FDC'!$E:$E,Activation!I$9),IF(ISBLANK($J$5),SUMIFS('Données FDC'!$I:$I,'Données FDC'!$B:$B,Activation!$F$5,'Données FDC'!$E:$E,Activation!I$9),SUMIFS('Données FDC'!$I:$I,'Données FDC'!$C:$C,Activation!$J$5,'Données FDC'!$E:$E,Activation!I$9))) -> 0.02988888262 | J39: =J38/IF(ISBLANK($F$5),SUMIFS('Données FDC'!$I:$I,'Données FDC'!$A:$A,Activation!$C$5,'Données FDC'!$E:$E,Activation!J$9),IF(ISBLANK($J$5),SUMIFS('Données FDC'!$I:$I,'Données FDC'!$B:$B,Activation!$F$5,'Données FDC'!$E:$E,Activation!J$9),SUMIFS('Données FDC'!$I:$I,'Données FDC'!$C:$C,Activation!$J$5,'Données FDC'!$E:$E,Activation!J$9))) -> 0.972972973 | K39: =K38/IF(ISBLANK($F$5),SUMIFS('Données FDC'!$I:$I,'Données FDC'!$A:$A,Activation!$C$5,'Données FDC'!$E:$E,Activation!K$9),IF(ISBLANK($J$5),SUMIFS('Données FDC'!$I:$I,'Données FDC'!$B:$B,Activation!$F$5,'Données FDC'!$E:$E,Activation!K$9),SUMIFS('Données FDC'!$I:$I,'Données FDC'!$C:$C,Activation!$J$5,'Données FDC'!$E:$E,Activation!K$9))) -> 0.7037556054 | L39: =L38/IF(ISBLANK($F$5),SUMIFS('Données FDC'!$I:$I,'Données FDC'!$A:$A,Activation!$C$5,'Données FDC'!$E:$E,Activation!L$9),IF(ISBLANK($J$5),SUMIFS('Données FDC'!$I:$I,'Données FDC'!$B:$B,Activation!$F$5,'Données FDC'!$E:$E,Activation!L$9),SUMIFS('Données FDC'!$I:$I,'Données FDC'!$C:$C,Activation!$J$5,'Données FDC'!$E:$E,Activation!L$9))) -> 0.07132061213 | M39: =M38/IF(ISBLANK($F$5),SUMIFS('Données FDC'!$I:$I,'Données FDC'!$A:$A,Activation!$C$5,'Données FDC'!$E:$E,Activation!M$9),IF(ISBLANK($J$5),SUMIFS('Données FDC'!$I:$I,'Données FDC'!$B:$B,Activation!$F$5,'Données FDC'!$E:$E,Activation!M$9),SUMIFS('Données FDC'!$I:$I,'Données FDC'!$C:$C,Activation!$J$5,'Données FDC'!$E:$E,Activation!M$9))) -> 0.004341746021 | N39: =N38/IF(ISBLANK($F$5),SUMIFS('Données FDC'!$I:$I,'Données FDC'!$A:$A,Activation!$C$5,'Données FDC'!$E:$E,Activation!N$9),IF(ISBLANK($J$5),SUMIFS('Données FDC'!$I:$I,'Données FDC'!$B:$B,Activation!$F$5,'Données FDC'!$E:$E,Activation!N$9),SUMIFS('Données FDC'!$I:$I,'Données FDC'!$C:$C,Activation!$J$5,'Données FDC'!$E:$E,Activation!N$9))) -> 0.02508025682 | O39: =O38/IF(ISBLANK($F$5),SUMIFS('Données FDC'!$I:$I,'Données FDC'!$A:$A,Activation!$C$5,'Données FDC'!$E:$E,Activation!O$9),IF(ISBLANK($J$5),SUMIFS('Données FDC'!$I:$I,'Données FDC'!$B:$B,Activation!$F$5,'Données FDC'!$E:$E,Activation!O$9),SUMIFS('Données FDC'!$I:$I,'Données FDC'!$C:$C,Activation!$J$5,'Données FDC'!$E:$E,Activation!O$9))) -> 0 | P39: =P38/IF(ISBLANK($F$5),SUMIFS('Données FDC'!$I:$I,'Données FDC'!$A:$A,Activation!$C$5,'Données FDC'!$E:$E,Activation!P$9),IF(ISBLANK($J$5),SUMIFS('Données FDC'!$I:$I,'Données FDC'!$B:$B,Activation!$F$5,'Données FDC'!$E:$E,Activation!P$9),SUMIFS('Données FDC'!$I:$I,'Données FDC'!$C:$C,Activation!$J$5,'Données FDC'!$E:$E,Activation!P$9))) -> 7.799023746e-05
C40: % détenteurs CEGEE | D40: =SUM('Données FDC'!$T:$T)/SUM('Données FDC'!$F:$F) -> 0.3191331443 | E40: =SUM('Données FDC déc 2018'!$T:$T)/SUM('Données FDC déc 2018'!$F:$F) -> 0.3078991029 | F40: =SUMIF('Données FDC'!$E:$E,Activation!F$9,'Données FDC'!$T:$T)/SUMIF('Données FDC'!$E:$E,Activation!F$9,'Données FDC'!$I:$I) -> 0.9490134261 | G40: =SUMIF('Données FDC'!$E:$E,Activation!G$9,'Données FDC'!$T:$T)/SUMIF('Données FDC'!$E:$E,Activation!G$9,'Données FDC'!$I:$I) -> 0.6511858504 | H40: =SUMIF('Données FDC'!$E:$E,Activation!H$9,'Données FDC'!$T:$T)/SUMIF('Données FDC'!$E:$E,Activation!H$9,'Données FDC'!$I:$I) -> 0.1525403756 | I40: =SUMIF('Données FDC'!$E:$E,Activation!I$9,'Données FDC'!$T:$T)/SUMIF('Données FDC'!$E:$E,Activation!I$9,'Données FDC'!$I:$I) -> 0.02988888262 | J40: =SUMIF('Données FDC'!$E:$E,Activation!J$9,'Données FDC'!$T:$T)/SUMIF('Données FDC'!$E:$E,Activation!J$9,'Données FDC'!$I:$I) -> 0.972972973 | K40: =SUMIF('Données FDC'!$E:$E,Activation!K$9,'Données FDC'!$T:$T)/SUMIF('Données FDC'!$E:$E,Activation!K$9,'Données FDC'!$I:$I) -> 0.7037556054 | L40: =SUMIF('Données FDC'!$E:$E,Activation!L$9,'Données FDC'!$T:$T)/SUMIF('Données FDC'!$E:$E,Activation!L$9,'Données FDC'!$I:$I) -> 0.07132061213 | M40: =SUMIF('Données FDC'!$E:$E,Activation!M$9,'Données FDC'!$T:$T)/SUMIF('Données FDC'!$E:$E,Activation!M$9,'Données FDC'!$I:$I) -> 0.004341746021 | N40: =SUMIF('Données FDC'!$E:$E,Activation!N$9,'Données FDC'!$T:$T)/SUMIF('Données FDC'!$E:$E,Activation!N$9,'Données FDC'!$I:$I) -> 0.02508025682 | O40: =SUMIF('Données FDC'!$E:$E,Activation!O$9,'Données FDC'!$T:$T)/SUMIF('Données FDC'!$E:$E,Activation!O$9,'Données FDC'!$I:$I) -> 0 | P40: =SUMIF('Données FDC'!$E:$E,Activation!P$9,'Données FDC'!$T:$T)/SUMIF('Données FDC'!$E:$E,Activation!P$9,'Données FDC'!$I:$I) -> 7.799023746e-05
B41: Détention Univers Crédit | C41: Nombre détenteurs | D41: =SUM(F41:P41) -> 276288 | E41: =IF(ISBLANK($F$5),SUMIFS('Données FDC déc 2018'!$W:$W,'Données FDC déc 2018'!$A:$A,Activation!$C$5),IF(ISBLANK($J$5),SUMIFS('Données FDC déc 2018'!$W:$W,'Données FDC déc 2018'!$B:$B,Activation!$F$5),SUMIFS('Données FDC déc 2018'!$W:$W,'Données FDC déc 2018'!$C:$C,Activation!$J$5))) -> 276838 | F41: =IF(ISBLANK($F$5),SUMIFS('Données FDC'!$W:$W,'Données FDC'!$A:$A,Activation!$C$5,'Données FDC'!$E:$E,Activation!F$9),IF(ISBLANK($J$5),SUMIFS('Données FDC'!$W:$W,'Données FDC'!$B:$B,Activation!$F$5,'Données FDC'!$E:$E,Activation!F$9),SUMIFS('Données FDC'!$W:$W,'Données FDC'!$C:$C,Activation!$J$5,'Données FDC'!$E:$E,Activation!F$9))) -> 181320 | G41: =IF(ISBLANK($F$5),SUMIFS('Données FDC'!$W:$W,'Données FDC'!$A:$A,Activation!$C$5,'Données FDC'!$E:$E,Activation!G$9),IF(ISBLANK($J$5),SUMIFS('Données FDC'!$W:$W,'Données FDC'!$B:$B,Activation!$F$5,'Données FDC'!$E:$E,Activation!G$9),SUMIFS('Données FDC'!$W:$W,'Données FDC'!$C:$C,Activation!$J$5,'Données FDC'!$E:$E,Activation!G$9))) -> 32864 | H41: =IF(ISBLANK($F$5),SUMIFS('Données FDC'!$W:$W,'Données FDC'!$A:$A,Activation!$C$5,'Données FDC'!$E:$E,Activation!H$9),IF(ISBLANK($J$5),SUMIFS('Données FDC'!$W:$W,'Données FDC'!$B:$B,Activation!$F$5,'Données FDC'!$E:$E,Activation!H$9),SUMIFS('Données FDC'!$W:$W,'Données FDC'!$C:$C,Activation!$J$5,'Données FDC'!$E:$E,Activation!H$9))) -> 21868 | I41: =IF(ISBLANK($F$5),SUMIFS('Données FDC'!$W:$W,'Données FDC'!$A:$A,Activation!$C$5,'Données FDC'!$E:$E,Activation!I$9),IF(ISBLANK($J$5),SUMIFS('Données FDC'!$W:$W,'Données FDC'!$B:$B,Activation!$F$5,'Données FDC'!$E:$E,Activation!I$9),SUMIFS('Données FDC'!$W:$W,'Données FDC'!$C:$C,Activation!$J$5,'Données FDC'!$E:$E,Activation!I$9))) -> 19204 | J41: =IF(ISBLANK($F$5),SUMIFS('Données FDC'!$W:$W,'Données FDC'!$A:$A,Activation!$C$5,'Données FDC'!$E:$E,Activation!J$9),IF(ISBLANK($J$5),SUMIFS('Données FDC'!$W:$W,'Données FDC'!$B:$B,Activation!$F$5,'Données FDC'!$E:$E,Activation!J$9),SUMIFS('Données FDC'!$W:$W,'Données FDC'!$C:$C,Activation!$J$5,'Données FDC'!$E:$E,Activation!J$9))) -> 19087 | K41: =IF(ISBLANK($F$5),SUMIFS('Données FDC'!$W:$W,'Données FDC'!$A:$A,Activation!$C$5,'Données FDC'!$E:$E,Activation!K$9),IF(ISBLANK($J$5),SUMIFS('Données FDC'!$W:$W,'Données FDC'!$B:$B,Activation!$F$5,'Données FDC'!$E:$E,Activation!K$9),SUMIFS('Données FDC'!$W:$W,'Données FDC'!$C:$C,Activation!$J$5,'Données FDC'!$E:$E,Activation!K$9))) -> 480 | L41: =IF(ISBLANK($F$5),SUMIFS('Données FDC'!$W:$W,'Données FDC'!$A:$A,Activation!$C$5,'Données FDC'!$E:$E,Activation!L$9),IF(ISBLANK($J$5),SUMIFS('Données FDC'!$W:$W,'Données FDC'!$B:$B,Activation!$F$5,'Données FDC'!$E:$E,Activation!L$9),SUMIFS('Données FDC'!$W:$W,'Données FDC'!$C:$C,Activation!$J$5,'Données FDC'!$E:$E,Activation!L$9))) -> 568 | M41: =IF(ISBLANK($F$5),SUMIFS('Données FDC'!$W:$W,'Données FDC'!$A:$A,Activation!$C$5,'Données FDC'!$E:$E,Activation!M$9),IF(ISBLANK($J$5),SUMIFS('Données FDC'!$W:$W,'Données FDC'!$B:$B,Activation!$F$5,'Données FDC'!$E:$E,Activation!M$9),SUMIFS('Données FDC'!$W:$W,'Données FDC'!$C:$C,Activation!$J$5,'Données FDC'!$E:$E,Activation!M$9))) -> 897
C42: % détenteurs | D42: =D41/IF(ISBLANK($F$5),SUMIFS('Données FDC'!$J:$J,'Données FDC'!$A:$A,Activation!$C$5),IF(ISBLANK($J$5),SUMIFS('Données FDC'!$J:$J,'Données FDC'!$B:$B,Activation!$F$5),SUMIFS('Données FDC'!$J:$J,'Données FDC'!$C:$C,Activation!$J$5))) -> 0.2101986132 | E42: =E41/IF(ISBLANK($F$5),SUMIFS('Données FDC déc 2018'!$J:$J,'Données FDC déc 2018'!$A:$A,Activation!$C$5),IF(ISBLANK($J$5),SUMIFS('Données FDC déc 2018'!$J:$J,'Données FDC déc 2018'!$B:$B,Activation!$F$5),SUMIFS('Données FDC déc 2018'!$J:$J,'Données FDC déc 2018'!$C:$C,Activation!$J$5))) -> 0.205315518 | F42: =F41/IF(ISBLANK($F$5),SUMIFS('Données FDC'!$J:$J,'Données FDC'!$A:$A,Activation!$C$5,'Données FDC'!$E:$E,Activation!F$9),IF(ISBLANK($J$5),SUMIFS('Données FDC'!$J:$J,'Données FDC'!$B:$B,Activation!$F$5,'Données FDC'!$E:$E,Activation!F$9),SUMIFS('Données FDC'!$J:$J,'Données FDC'!$C:$C,Activation!$J$5,'Données FDC'!$E:$E,Activation!F$9))) -> 0.6570636517 | G42: =G41/IF(ISBLANK($F$5),SUMIFS('Données FDC'!$J:$J,'Données FDC'!$A:$A,Activation!$C$5,'Données FDC'!$E:$E,Activation!G$9),IF(ISBLANK($J$5),SUMIFS('Données FDC'!$J:$J,'Données FDC'!$B:$B,Activation!$F$5,'Données FDC'!$E:$E,Activation!G$9),SUMIFS('Données FDC'!$J:$J,'Données FDC'!$C:$C,Activation!$J$5,'Données FDC'!$E:$E,Activation!G$9))) -> 0.2036675529 | H42: =H41/IF(ISBLANK($F$5),SUMIFS('Données FDC'!$J:$J,'Données FDC'!$A:$A,Activation!$C$5,'Données FDC'!$E:$E,Activation!H$9),IF(ISBLANK($J$5),SUMIFS('Données FDC'!$J:$J,'Données FDC'!$B:$B,Activation!$F$5,'Données FDC'!$E:$E,Activation!H$9),SUMIFS('Données FDC'!$J:$J,'Données FDC'!$C:$C,Activation!$J$5,'Données FDC'!$E:$E,Activation!H$9))) -> 0.1288482727 | I42: =I41/IF(ISBLANK($F$5),SUMIFS('Données FDC'!$J:$J,'Données FDC'!$A:$A,Activation!$C$5,'Données FDC'!$E:$E,Activation!I$9),IF(ISBLANK($J$5),SUMIFS('Données FDC'!$J:$J,'Données FDC'!$B:$B,Activation!$F$5,'Données FDC'!$E:$E,Activation!I$9),SUMIFS('Données FDC'!$J:$J,'Données FDC'!$C:$C,Activation!$J$5,'Données FDC'!$E:$E,Activation!I$9))) -> 0.05415985109 | J42: =J41/IF(ISBLANK($F$5),SUMIFS('Données FDC'!$J:$J,'Données FDC'!$A:$A,Activation!$C$5,'Données FDC'!$E:$E,Activation!J$9),IF(ISBLANK($J$5),SUMIFS('Données FDC'!$J:$J,'Données FDC'!$B:$B,Activation!$F$5,'Données FDC'!$E:$E,Activation!J$9),SUMIFS('Données FDC'!$J:$J,'Données FDC'!$C:$C,Activation!$J$5,'Données FDC'!$E:$E,Activation!J$9))) -> 0.3264799959 | K42: =K41/IF(ISBLANK($F$5),SUMIFS('Données FDC'!$J:$J,'Données FDC'!$A:$A,Activation!$C$5,'Données FDC'!$E:$E,Activation!K$9),IF(ISBLANK($J$5),SUMIFS('Données FDC'!$J:$J,'Données FDC'!$B:$B,Activation!$F$5,'Données FDC'!$E:$E,Activation!K$9),SUMIFS('Données FDC'!$J:$J,'Données FDC'!$C:$C,Activation!$J$5,'Données FDC'!$E:$E,Activation!K$9))) -> 0.0296259721 | L42: =L41/IF(ISBLANK($F$5),SUMIFS('Données FDC'!$J:$J,'Données FDC'!$A:$A,Activation!$C$5,'Données FDC'!$E:$E,Activation!L$9),IF(ISBLANK($J$5),SUMIFS('Données FDC'!$J:$J,'Données FDC'!$B:$B,Activation!$F$5,'Données FDC'!$E:$E,Activation!L$9),SUMIFS('Données FDC'!$J:$J,'Données FDC'!$C:$C,Activation!$J$5,'Données FDC'!$E:$E,Activation!L$9))) -> 0.09192425959 | M42: =M41/IF(ISBLANK($F$5),SUMIFS('Données FDC'!$J:$J,'Données FDC'!$A:$A,Activation!$C$5,'Données FDC'!$E:$E,Activation!M$9),IF(ISBLANK($J$5),SUMIFS('Données FDC'!$J:$J,'Données FDC'!$B:$B,Activation!$F$5,'Données FDC'!$E:$E,Activation!M$9),SUMIFS('Données FDC'!$J:$J,'Données FDC'!$C:$C,Activation!$J$5,'Données FDC'!$E:$E,Activation!M$9))) -> 0.0166175735
C43: % détenteurs CEGEE | D43: =SUM('Données FDC'!$W:$W)/SUM('Données FDC'!$J:$J) -> 0.2101986132 | E43: =SUM('Données FDC déc 2018'!$W:$W)/SUM('Données FDC déc 2018'!$J:$J) -> 0.205315518 | F43: =SUMIF('Données FDC'!$E:$E,Activation!F$9,'Données FDC'!$W:$W)/SUMIF('Données FDC'!$E:$E,Activation!F$9,'Données FDC'!$J:$J) -> 0.6570636517 | G43: =SUMIF('Données FDC'!$E:$E,Activation!G$9,'Données FDC'!$W:$W)/SUMIF('Données FDC'!$E:$E,Activation!G$9,'Données FDC'!$J:$J) -> 0.2036675529 | H43: =SUMIF('Données FDC'!$E:$E,Activation!H$9,'Données FDC'!$W:$W)/SUMIF('Données FDC'!$E:$E,Activation!H$9,'Données FDC'!$J:$J) -> 0.1288482727 | I43: =SUMIF('Données FDC'!$E:$E,Activation!I$9,'Données FDC'!$W:$W)/SUMIF('Données FDC'!$E:$E,Activation!I$9,'Données FDC'!$J:$J) -> 0.05415985109 | J43: =SUMIF('Données FDC'!$E:$E,Activation!J$9,'Données FDC'!$W:$W)/SUMIF('Données FDC'!$E:$E,Activation!J$9,'Données FDC'!$J:$J) -> 0.3264799959 | K43: =SUMIF('Données FDC'!$E:$E,Activation!K$9,'Données FDC'!$W:$W)/SUMIF('Données FDC'!$E:$E,Activation!K$9,'Données FDC'!$J:$J) -> 0.0296259721 | L43: =SUMIF('Données FDC'!$E:$E,Activation!L$9,'Données FDC'!$W:$W)/SUMIF('Données FDC'!$E:$E,Activation!L$9,'Données FDC'!$J:$J) -> 0.09192425959 | M43: =SUMIF('Données FDC'!$E:$E,Activation!M$9,'Données FDC'!$W:$W)/SUMIF('Données FDC'!$E:$E,Activation!M$9,'Données FDC'!$J:$J) -> 0.0166175735
B44: Détention Univers Epargne Liquide | C44: Nombre détenteurs | D44: =SUM(F44:P44) -> 814699 | E44: =IF(ISBLANK($F$5),SUMIFS('Données FDC déc 2018'!$U:$U,'Données FDC déc 2018'!$A:$A,Activation!$C$5),IF(ISBLANK($J$5),SUMIFS('Données FDC déc 2018'!$U:$U,'Données FDC déc 2018'!$B:$B,Activation!$F$5),SUMIFS('Données FDC déc 2018'!$U:$U,'Données FDC déc 2018'!$C:$C,Activation!$J$5))) -> 840380 | F44: =IF(ISBLANK($F$5),SUMIFS('Données FDC'!$U:$U,'Données FDC'!$A:$A,Activation!$C$5,'Données FDC'!$E:$E,Activation!F$9),IF(ISBLANK($J$5),SUMIFS('Données FDC'!$U:$U,'Données FDC'!$B:$B,Activation!$F$5,'Données FDC'!$E:$E,Activation!F$9),SUMIFS('Données FDC'!$U:$U,'Données FDC'!$C:$C,Activation!$J$5,'Données FDC'!$E:$E,Activation!F$9))) -> 239478 | G44: =IF(ISBLANK($F$5),SUMIFS('Données FDC'!$U:$U,'Données FDC'!$A:$A,Activation!$C$5,'Données FDC'!$E:$E,Activation!G$9),IF(ISBLANK($J$5),SUMIFS('Données FDC'!$U:$U,'Données FDC'!$B:$B,Activation!$F$5,'Données FDC'!$E:$E,Activation!G$9),SUMIFS('Données FDC'!$U:$U,'Données FDC'!$C:$C,Activation!$J$5,'Données FDC'!$E:$E,Activation!G$9))) -> 74369 | H44: =IF(ISBLANK($F$5),SUMIFS('Données FDC'!$U:$U,'Données FDC'!$A:$A,Activation!$C$5,'Données FDC'!$E:$E,Activation!H$9),IF(ISBLANK($J$5),SUMIFS('Données FDC'!$U:$U,'Données FDC'!$B:$B,Activation!$F$5,'Données FDC'!$E:$E,Activation!H$9),SUMIFS('Données FDC'!$U:$U,'Données FDC'!$C:$C,Activation!$J$5,'Données FDC'!$E:$E,Activation!H$9))) -> 155764 | I44: =IF(ISBLANK($F$5),SUMIFS('Données FDC'!$U:$U,'Données FDC'!$A:$A,Activation!$C$5,'Données FDC'!$E:$E,Activation!I$9),IF(ISBLANK($J$5),SUMIFS('Données FDC'!$U:$U,'Données FDC'!$B:$B,Activation!$F$5,'Données FDC'!$E:$E,Activation!I$9),SUMIFS('Données FDC'!$U:$U,'Données FDC'!$C:$C,Activation!$J$5,'Données FDC'!$E:$E,Activation!I$9))) -> 175785 | J44: =IF(ISBLANK($F$5),SUMIFS('Données FDC'!$U:$U,'Données FDC'!$A:$A,Activation!$C$5,'Données FDC'!$E:$E,Activation!J$9),IF(ISBLANK($J$5),SUMIFS('Données FDC'!$U:$U,'Données FDC'!$B:$B,Activation!$F$5,'Données FDC'!$E:$E,Activation!J$9),SUMIFS('Données FDC'!$U:$U,'Données FDC'!$C:$C,Activation!$J$5,'Données FDC'!$E:$E,Activation!J$9))) -> 50993 | K44: =IF(ISBLANK($F$5),SUMIFS('Données FDC'!$U:$U,'Données FDC'!$A:$A,Activation!$C$5,'Données FDC'!$E:$E,Activation!K$9),IF(ISBLANK($J$5),SUMIFS('Données FDC'!$U:$U,'Données FDC'!$B:$B,Activation!$F$5,'Données FDC'!$E:$E,Activation!K$9),SUMIFS('Données FDC'!$U:$U,'Données FDC'!$C:$C,Activation!$J$5,'Données FDC'!$E:$E,Activation!K$9))) -> 1330 | L44: =IF(ISBLANK($F$5),SUMIFS('Données FDC'!$U:$U,'Données FDC'!$A:$A,Activation!$C$5,'Données FDC'!$E:$E,Activation!L$9),IF(ISBLANK($J$5),SUMIFS('Données FDC'!$U:$U,'Données FDC'!$B:$B,Activation!$F$5,'Données FDC'!$E:$E,Activation!L$9),SUMIFS('Données FDC'!$U:$U,'Données FDC'!$C:$C,Activation!$J$5,'Données FDC'!$E:$E,Activation!L$9))) -> 10352 | M44: =IF(ISBLANK($F$5),SUMIFS('Données FDC'!$U:$U,'Données FDC'!$A:$A,Activation!$C$5,'Données FDC'!$E:$E,Activation!M$9),IF(ISBLANK($J$5),SUMIFS('Données FDC'!$U:$U,'Données FDC'!$B:$B,Activation!$F$5,'Données FDC'!$E:$E,Activation!M$9),SUMIFS('Données FDC'!$U:$U,'Données FDC'!$C:$C,Activation!$J$5,'Données FDC'!$E:$E,Activation!M$9))) -> 31301 | N44: =IF(ISBLANK($F$5),SUMIFS('Données FDC'!$U:$U,'Données FDC'!$A:$A,Activation!$C$5,'Données FDC'!$E:$E,Activation!N$9),IF(ISBLANK($J$5),SUMIFS('Données FDC'!$U:$U,'Données FDC'!$B:$B,Activation!$F$5,'Données FDC'!$E:$E,Activation!N$9),SUMIFS('Données FDC'!$U:$U,'Données FDC'!$C:$C,Activation!$J$5,'Données FDC'!$E:$E,Activation!N$9))) -> 69693 | O44: =IF(ISBLANK($F$5),SUMIFS('Données FDC'!$U:$U,'Données FDC'!$A:$A,Activation!$C$5,'Données FDC'!$E:$E,Activation!O$9),IF(ISBLANK($J$5),SUMIFS('Données FDC'!$U:$U,'Données FDC'!$B:$B,Activation!$F$5,'Données FDC'!$E:$E,Activation!O$9),SUMIFS('Données FDC'!$U:$U,'Données FDC'!$C:$C,Activation!$J$5,'Données FDC'!$E:$E,Activation!O$9))) -> 0 | P44: =IF(ISBLANK($F$5),SUMIFS('Données FDC'!$U:$U,'Données FDC'!$A:$A,Activation!$C$5,'Données FDC'!$E:$E,Activation!P$9),IF(ISBLANK($J$5),SUMIFS('Données FDC'!$U:$U,'Données FDC'!$B:$B,Activation!$F$5,'Données FDC'!$E:$E,Activation!P$9),SUMIFS('Données FDC'!$U:$U,'Données FDC'!$C:$C,Activation!$J$5,'Données FDC'!$E:$E,Activation!P$9))) -> 5634
C45: % détenteurs | D45: =D44/D$10 -> 0.5447596823 | E45: =E44/E$10 -> 0.545706614 | F45: =F44/F$10 -> 0.8678154047 | G45: 0.4608858398 | H45: 0.917775853 | I45: 0.4957555418 | J45: 0.8332461845 | K45: 0.07455156951 | L45: 0.9778953335 | M45: 0.4168742092 | N45: 0.7932820361 | O45: 0 | P45: 0.02584688223
C46: % détenteurs CEGEE | D46: =SUM('Données FDC'!$U:$U)/SUM('Données FDC'!$F:$F) -> 0.5447596823 | E46: =SUM('Données FDC déc 2018'!$U:$U)/SUM('Données FDC déc 2018'!$F:$F) -> 0.545706614 | F46: =SUMIF('Données FDC'!$E:$E,Activation!F$9,'Données FDC'!$U:$U)/SUMIF('Données FDC'!$E:$E,Activation!F$9,'Données FDC'!$F:$F) -> 0.8678154047 | G46: =SUMIF('Données FDC'!$E:$E,Activation!G$9,'Données FDC'!$U:$U)/SUMIF('Données FDC'!$E:$E,Activation!G$9,'Données FDC'!$F:$F) -> 0.4608858398 | H46: =SUMIF('Données FDC'!$E:$E,Activation!H$9,'Données FDC'!$U:$U)/SUMIF('Données FDC'!$E:$E,Activation!H$9,'Données FDC'!$F:$F) -> 0.917775853 | I46: =SUMIF('Données FDC'!$E:$E,Activation!I$9,'Données FDC'!$U:$U)/SUMIF('Données FDC'!$E:$E,Activation!I$9,'Données FDC'!$F:$F) -> 0.4957555418 | J46: =SUMIF('Données FDC'!$E:$E,Activation!J$9,'Données FDC'!$U:$U)/SUMIF('Données FDC'!$E:$E,Activation!J$9,'Données FDC'!$F:$F) -> 0.8332461845 | K46: =SUMIF('Données FDC'!$E:$E,Activation!K$9,'Données FDC'!$U:$U)/SUMIF('Données FDC'!$E:$E,Activation!K$9,'Données FDC'!$F:$F) -> 0.07455156951 | L46: =SUMIF('Données FDC'!$E:$E,Activation!L$9,'Données FDC'!$U:$U)/SUMIF('Données FDC'!$E:$E,Activation!L$9,'Données FDC'!$F:$F) -> 0.9778953335 | M46: =SUMIF('Données FDC'!$E:$E,Activation!M$9,'Données FDC'!$U:$U)/SUMIF('Données FDC'!$E:$E,Activation!M$9,'Données FDC'!$F:$F) -> 0.4168742092 | N46: =SUMIF('Données FDC'!$E:$E,Activation!N$9,'Données FDC'!$U:$U)/SUMIF('Données FDC'!$E:$E,Activation!N$9,'Données FDC'!$F:$F) -> 0.7932820361 | O46: =SUMIF('Données FDC'!$E:$E,Activation!O$9,'Données FDC'!$U:$U)/SUMIF('Données FDC'!$E:$E,Activation!O$9,'Données FDC'!$F:$F) -> 0 | P46: =SUMIF('Données FDC'!$E:$E,Activation!P$9,'Données FDC'!$U:$U)/SUMIF('Données FDC'!$E:$E,Activation!P$9,'Données FDC'!$F:$F) -> 0.02584688223
B47: Détention Univers Epargne Placement | C47: Nombre détenteurs | D47: =SUM(F47:P47) -> 476461 | E47: =IF(ISBLANK($F$5),SUMIFS('Données FDC déc 2018'!$V:$V,'Données FDC déc 2018'!$A:$A,Activation!$C$5),IF(ISBLANK($J$5),SUMIFS('Données FDC déc 2018'!$V:$V,'Données FDC déc 2018'!$B:$B,Activation!$F$5),SUMIFS('Données FDC déc 2018'!$V:$V,'Données FDC déc 2018'!$C:$C,Activation!$J$5))) -> 492958 | F47: =IF(ISBLANK($F$5),SUMIFS('Données FDC'!$V:$V,'Données FDC'!$A:$A,Activation!$C$5,'Données FDC'!$E:$E,Activation!F$9),IF(ISBLANK($J$5),SUMIFS('Données FDC'!$V:$V,'Données FDC'!$B:$B,Activation!$F$5,'Données FDC'!$E:$E,Activation!F$9),SUMIFS('Données FDC'!$V:$V,'Données FDC'!$C:$C,Activation!$J$5,'Données FDC'!$E:$E,Activation!F$9))) -> 192164 | G47: =IF(ISBLANK($F$5),SUMIFS('Données FDC'!$V:$V,'Données FDC'!$A:$A,Activation!$C$5,'Données FDC'!$E:$E,Activation!G$9),IF(ISBLANK($J$5),SUMIFS('Données FDC'!$V:$V,'Données FDC'!$B:$B,Activation!$F$5,'Données FDC'!$E:$E,Activation!G$9),SUMIFS('Données FDC'!$V:$V,'Données FDC'!$C:$C,Activation!$J$5,'Données FDC'!$E:$E,Activation!G$9))) -> 24452 | H47: =IF(ISBLANK($F$5),SUMIFS('Données FDC'!$V:$V,'Données FDC'!$A:$A,Activation!$C$5,'Données FDC'!$E:$E,Activation!H$9),IF(ISBLANK($J$5),SUMIFS('Données FDC'!$V:$V,'Données FDC'!$B:$B,Activation!$F$5,'Données FDC'!$E:$E,Activation!H$9),SUMIFS('Données FDC'!$V:$V,'Données FDC'!$C:$C,Activation!$J$5,'Données FDC'!$E:$E,Activation!H$9))) -> 145816 | I47: =IF(ISBLANK($F$5),SUMIFS('Données FDC'!$V:$V,'Données FDC'!$A:$A,Activation!$C$5,'Données FDC'!$E:$E,Activation!I$9),IF(ISBLANK($J$5),SUMIFS('Données FDC'!$V:$V,'Données FDC'!$B:$B,Activation!$F$5,'Données FDC'!$E:$E,Activation!I$9),SUMIFS('Données FDC'!$V:$V,'Données FDC'!$C:$C,Activation!$J$5,'Données FDC'!$E:$E,Activation!I$9))) -> 42053 | J47: =IF(ISBLANK($F$5),SUMIFS('Données FDC'!$V:$V,'Données FDC'!$A:$A,Activation!$C$5,'Données FDC'!$E:$E,Activation!J$9),IF(ISBLANK($J$5),SUMIFS('Données FDC'!$V:$V,'Données FDC'!$B:$B,Activation!$F$5,'Données FDC'!$E:$E,Activation!J$9),SUMIFS('Données FDC'!$V:$V,'Données FDC'!$C:$C,Activation!$J$5,'Données FDC'!$E:$E,Activation!J$9))) -> 22386 | K47: =IF(ISBLANK($F$5),SUMIFS('Données FDC'!$V:$V,'Données FDC'!$A:$A,Activation!$C$5,'Données FDC'!$E:$E,Activation!K$9),IF(ISBLANK($J$5),SUMIFS('Données FDC'!$V:$V,'Données FDC'!$B:$B,Activation!$F$5,'Données FDC'!$E:$E,Activation!K$9),SUMIFS('Données FDC'!$V:$V,'Données FDC'!$C:$C,Activation!$J$5,'Données FDC'!$E:$E,Activation!K$9))) -> 198 | L47: =IF(ISBLANK($F$5),SUMIFS('Données FDC'!$V:$V,'Données FDC'!$A:$A,Activation!$C$5,'Données FDC'!$E:$E,Activation!L$9),IF(ISBLANK($J$5),SUMIFS('Données FDC'!$V:$V,'Données FDC'!$B:$B,Activation!$F$5,'Données FDC'!$E:$E,Activation!L$9),SUMIFS('Données FDC'!$V:$V,'Données FDC'!$C:$C,Activation!$J$5,'Données FDC'!$E:$E,Activation!L$9))) -> 9617 | M47: =IF(ISBLANK($F$5),SUMIFS('Données FDC'!$V:$V,'Données FDC'!$A:$A,Activation!$C$5,'Données FDC'!$E:$E,Activation!M$9),IF(ISBLANK($J$5),SUMIFS('Données FDC'!$V:$V,'Données FDC'!$B:$B,Activation!$F$5,'Données FDC'!$E:$E,Activation!M$9),SUMIFS('Données FDC'!$V:$V,'Données FDC'!$C:$C,Activation!$J$5,'Données FDC'!$E:$E,Activation!M$9))) -> 3755 | N47: =IF(ISBLANK($F$5),SUMIFS('Données FDC'!$V:$V,'Données FDC'!$A:$A,Activation!$C$5,'Données FDC'!$E:$E,Activation!N$9),IF(ISBLANK($J$5),SUMIFS('Données FDC'!$V:$V,'Données FDC'!$B:$B,Activation!$F$5,'Données FDC'!$E:$E,Activation!N$9),SUMIFS('Données FDC'!$V:$V,'Données FDC'!$C:$C,Activation!$J$5,'Données FDC'!$E:$E,Activation!N$9))) -> 33337 | O47: =IF(ISBLANK($F$5),SUMIFS('Données FDC'!$V:$V,'Données FDC'!$A:$A,Activation!$C$5,'Données FDC'!$E:$E,Activation!O$9),IF(ISBLANK($J$5),SUMIFS('Données FDC'!$V:$V,'Données FDC'!$B:$B,Activation!$F$5,'Données FDC'!$E:$E,Activation!O$9),SUMIFS('Données FDC'!$V:$V,'Données FDC'!$C:$C,Activation!$J$5,'Données FDC'!$E:$E,Activation!O$9))) -> 0 | P47: =IF(ISBLANK($F$5),SUMIFS('Données FDC'!$V:$V,'Données FDC'!$A:$A,Activation!$C$5,'Données FDC'!$E:$E,Activation!P$9),IF(ISBLANK($J$5),SUMIFS('Données FDC'!$V:$V,'Données FDC'!$B:$B,Activation!$F$5,'Données FDC'!$E:$E,Activation!P$9),SUMIFS('Données FDC'!$V:$V,'Données FDC'!$C:$C,Activation!$J$5,'Données FDC'!$E:$E,Activation!P$9))) -> 2683
C48: % détenteurs | D48: =D47/D$10 -> 0.3185921954 | E48: =E47/E$10 -> 0.3201057153 | F48: =F47/F$10 -> 0.6963599138 | G48: 0.1515359969 | H48: 0.8591613196 | I48: 0.1185994698 | J48: 0.3657962679 | K48: 0.01109865471 | L48: 0.9084640091 | M48: 0.05000998868 | N48: 0.3794591026 | O48: 0 | P48: 0.01230869454
C49: % détenteurs CEGEE | D49: =SUM('Données FDC'!$V:$V)/SUM('Données FDC'!$F:$F) -> 0.3185921954 | E49: =SUM('Données FDC déc 2018'!$V:$V)/SUM('Données FDC déc 2018'!$F:$F) -> 0.3201057153 | F49: =SUMIF('Données FDC'!$E:$E,Activation!F$9,'Données FDC'!$V:$V)/SUMIF('Données FDC'!$E:$E,Activation!F$9,'Données FDC'!$F:$F) -> 0.6963599138 | G49: =SUMIF('Données FDC'!$E:$E,Activation!G$9,'Données FDC'!$V:$V)/SUMIF('Données FDC'!$E:$E,Activation!G$9,'Données FDC'!$F:$F) -> 0.1515359969 | H49: =SUMIF('Données FDC'!$E:$E,Activation!H$9,'Données FDC'!$V:$V)/SUMIF('Données FDC'!$E:$E,Activation!H$9,'Données FDC'!$F:$F) -> 0.8591613196 | I49: =SUMIF('Données FDC'!$E:$E,Activation!I$9,'Données FDC'!$V:$V)/SUMIF('Données FDC'!$E:$E,Activation!I$9,'Données FDC'!$F:$F) -> 0.1185994698 | J49: =SUMIF('Données FDC'!$E:$E,Activation!J$9,'Données FDC'!$V:$V)/SUMIF('Données FDC'!$E:$E,Activation!J$9,'Données FDC'!$F:$F) -> 0.3657962679 | K49: =SUMIF('Données FDC'!$E:$E,Activation!K$9,'Données FDC'!$V:$V)/SUMIF('Données FDC'!$E:$E,Activation!K$9,'Données FDC'!$F:$F) -> 0.01109865471 | L49: =SUMIF('Données FDC'!$E:$E,Activation!L$9,'Données FDC'!$V:$V)/SUMIF('Données FDC'!$E:$E,Activation!L$9,'Données FDC'!$F:$F) -> 0.9084640091 | M49: =SUMIF('Données FDC'!$E:$E,Activation!M$9,'Données FDC'!$V:$V)/SUMIF('Données FDC'!$E:$E,Activation!M$9,'Données FDC'!$F:$F) -> 0.05000998868 | N49: =SUMIF('Données FDC'!$E:$E,Activation!N$9,'Données FDC'!$V:$V)/SUMIF('Données FDC'!$E:$E,Activation!N$9,'Données FDC'!$F:$F) -> 0.3794591026 | O49: =SUMIF('Données FDC'!$E:$E,Activation!O$9,'Données FDC'!$V:$V)/SUMIF('Données FDC'!$E:$E,Activation!O$9,'Données FDC'!$F:$F) -> 0 | P49: =SUMIF('Données FDC'!$E:$E,Activation!P$9,'Données FDC'!$V:$V)/SUMIF('Données FDC'!$E:$E,Activation!P$9,'Données FDC'!$F:$F) -> 0.01230869454
B50: Détention Univers Assurance | C50: Nombre détenteurs | D50: =SUM(F50:P50) -> 186738 | E50: =IF(ISBLANK($F$5),SUMIFS('Données FDC déc 2018'!$X:$X,'Données FDC déc 2018'!$A:$A,Activation!$C$5),IF(ISBLANK($J$5),SUMIFS('Données FDC déc 2018'!$X:$X,'Données FDC déc 2018'!$B:$B,Activation!$F$5),SUMIFS('Données FDC déc 2018'!$X:$X,'Données FDC déc 2018'!$C:$C,Activation!$J$5))) -> 176534 | F50: =IF(ISBLANK($F$5),SUMIFS('Données FDC'!$X:$X,'Données FDC'!$A:$A,Activation!$C$5,'Données FDC'!$E:$E,Activation!F$9),IF(ISBLANK($J$5),SUMIFS('Données FDC'!$X:$X,'Données FDC'!$B:$B,Activation!$F$5,'Données FDC'!$E:$E,Activation!F$9),SUMIFS('Données FDC'!$X:$X,'Données FDC'!$C:$C,Activation!$J$5,'Données FDC'!$E:$E,Activation!F$9))) -> 121949 | G50: =IF(ISBLANK($F$5),SUMIFS('Données FDC'!$X:$X,'Données FDC'!$A:$A,Activation!$C$5,'Données FDC'!$E:$E,Activation!G$9),IF(ISBLANK($J$5),SUMIFS('Données FDC'!$X:$X,'Données FDC'!$B:$B,Activation!$F$5,'Données FDC'!$E:$E,Activation!G$9),SUMIFS('Données FDC'!$X:$X,'Données FDC'!$C:$C,Activation!$J$5,'Données FDC'!$E:$E,Activation!G$9))) -> 15532 | H50: =IF(ISBLANK($F$5),SUMIFS('Données FDC'!$X:$X,'Données FDC'!$A:$A,Activation!$C$5,'Données FDC'!$E:$E,Activation!H$9),IF(ISBLANK($J$5),SUMIFS('Données FDC'!$X:$X,'Données FDC'!$B:$B,Activation!$F$5,'Données FDC'!$E:$E,Activation!H$9),SUMIFS('Données FDC'!$X:$X,'Données FDC'!$C:$C,Activation!$J$5,'Données FDC'!$E:$E,Activation!H$9))) -> 24347 | I50: =IF(ISBLANK($F$5),SUMIFS('Données FDC'!$X:$X,'Données FDC'!$A:$A,Activation!$C$5,'Données FDC'!$E:$E,Activation!I$9),IF(ISBLANK($J$5),SUMIFS('Données FDC'!$X:$X,'Données FDC'!$B:$B,Activation!$F$5,'Données FDC'!$E:$E,Activation!I$9),SUMIFS('Données FDC'!$X:$X,'Données FDC'!$C:$C,Activation!$J$5,'Données FDC'!$E:$E,Activation!I$9))) -> 5905 | J50: =IF(ISBLANK($F$5),SUMIFS('Données FDC'!$X:$X,'Données FDC'!$A:$A,Activation!$C$5,'Données FDC'!$E:$E,Activation!J$9),IF(ISBLANK($J$5),SUMIFS('Données FDC'!$X:$X,'Données FDC'!$B:$B,Activation!$F$5,'Données FDC'!$E:$E,Activation!J$9),SUMIFS('Données FDC'!$X:$X,'Données FDC'!$C:$C,Activation!$J$5,'Données FDC'!$E:$E,Activation!J$9))) -> 14768 | K50: =IF(ISBLANK($F$5),SUMIFS('Données FDC'!$X:$X,'Données FDC'!$A:$A,Activation!$C$5,'Données FDC'!$E:$E,Activation!K$9),IF(ISBLANK($J$5),SUMIFS('Données FDC'!$X:$X,'Données FDC'!$B:$B,Activation!$F$5,'Données FDC'!$E:$E,Activation!K$9),SUMIFS('Données FDC'!$X:$X,'Données FDC'!$C:$C,Activation!$J$5,'Données FDC'!$E:$E,Activation!K$9))) -> 291 | L50: =IF(ISBLANK($F$5),SUMIFS('Données FDC'!$X:$X,'Données FDC'!$A:$A,Activation!$C$5,'Données FDC'!$E:$E,Activation!L$9),IF(ISBLANK($J$5),SUMIFS('Données FDC'!$X:$X,'Données FDC'!$B:$B,Activation!$F$5,'Données FDC'!$E:$E,Activation!L$9),SUMIFS('Données FDC'!$X:$X,'Données FDC'!$C:$C,Activation!$J$5,'Données FDC'!$E:$E,Activation!L$9))) -> 392 | M50: =IF(ISBLANK($F$5),SUMIFS('Données FDC'!$X:$X,'Données FDC'!$A:$A,Activation!$C$5,'Données FDC'!$E:$E,Activation!M$9),IF(ISBLANK($J$5),SUMIFS('Données FDC'!$X:$X,'Données FDC'!$B:$B,Activation!$F$5,'Données FDC'!$E:$E,Activation!M$9),SUMIFS('Données FDC'!$X:$X,'Données FDC'!$C:$C,Activation!$J$5,'Données FDC'!$E:$E,Activation!M$9))) -> 558 | P50: =IF(ISBLANK($F$5),SUMIFS('Données FDC'!$X:$X,'Données FDC'!$A:$A,Activation!$C$5,'Données FDC'!$E:$E,Activation!P$9),IF(ISBLANK($J$5),SUMIFS('Données FDC'!$X:$X,'Données FDC'!$B:$B,Activation!$F$5,'Données FDC'!$E:$E,Activation!P$9),SUMIFS('Données FDC'!$X:$X,'Données FDC'!$C:$C,Activation!$J$5,'Données FDC'!$E:$E,Activation!P$9))) -> 2996
C51: % détenteurs | D51: =D50/D$10 -> 0.1248649299 | E51: =E50/E$10 -> 0.1146335841 | F51: =F50/IF(ISBLANK($F$5),SUMIFS('Données FDC'!$J:$J,'Données FDC'!$A:$A,Activation!$C$5,'Données FDC'!$E:$E,Activation!F$9),IF(ISBLANK($J$5),SUMIFS('Données FDC'!$J:$J,'Données FDC'!$B:$B,Activation!$F$5,'Données FDC'!$E:$E,Activation!F$9),SUMIFS('Données FDC'!$J:$J,'Données FDC'!$C:$C,Activation!$J$5,'Données FDC'!$E:$E,Activation!F$9))) -> 0.4419162545 | G51: =G50/IF(ISBLANK($F$5),SUMIFS('Données FDC'!$J:$J,'Données FDC'!$A:$A,Activation!$C$5,'Données FDC'!$E:$E,Activation!G$9),IF(ISBLANK($J$5),SUMIFS('Données FDC'!$J:$J,'Données FDC'!$B:$B,Activation!$F$5,'Données FDC'!$E:$E,Activation!G$9),SUMIFS('Données FDC'!$J:$J,'Données FDC'!$C:$C,Activation!$J$5,'Données FDC'!$E:$E,Activation!G$9))) -> 0.09625622052 | H51: =H50/IF(ISBLANK($F$5),SUMIFS('Données FDC'!$J:$J,'Données FDC'!$A:$A,Activation!$C$5,'Données FDC'!$E:$E,Activation!H$9),IF(ISBLANK($J$5),SUMIFS('Données FDC'!$J:$J,'Données FDC'!$B:$B,Activation!$F$5,'Données FDC'!$E:$E,Activation!H$9),SUMIFS('Données FDC'!$J:$J,'Données FDC'!$C:$C,Activation!$J$5,'Données FDC'!$E:$E,Activation!H$9))) -> 0.1434547694 | I51: =I50/IF(ISBLANK($F$5),SUMIFS('Données FDC'!$J:$J,'Données FDC'!$A:$A,Activation!$C$5,'Données FDC'!$E:$E,Activation!I$9),IF(ISBLANK($J$5),SUMIFS('Données FDC'!$J:$J,'Données FDC'!$B:$B,Activation!$F$5,'Données FDC'!$E:$E,Activation!I$9),SUMIFS('Données FDC'!$J:$J,'Données FDC'!$C:$C,Activation!$J$5,'Données FDC'!$E:$E,Activation!I$9))) -> 0.01665350556 | J51: =J50/IF(ISBLANK($F$5),SUMIFS('Données FDC'!$J:$J,'Données FDC'!$A:$A,Activation!$C$5,'Données FDC'!$E:$E,Activation!J$9),IF(ISBLANK($J$5),SUMIFS('Données FDC'!$J:$J,'Données FDC'!$B:$B,Activation!$F$5,'Données FDC'!$E:$E,Activation!J$9),SUMIFS('Données FDC'!$J:$J,'Données FDC'!$C:$C,Activation!$J$5,'Données FDC'!$E:$E,Activation!J$9))) -> 0.2526042112 | K51: =K50/IF(ISBLANK($F$5),SUMIFS('Données FDC'!$J:$J,'Données FDC'!$A:$A,Activation!$C$5,'Données FDC'!$E:$E,Activation!K$9),IF(ISBLANK($J$5),SUMIFS('Données FDC'!$J:$J,'Données FDC'!$B:$B,Activation!$F$5,'Données FDC'!$E:$E,Activation!K$9),SUMIFS('Données FDC'!$J:$J,'Données FDC'!$C:$C,Activation!$J$5,'Données FDC'!$E:$E,Activation!K$9))) -> 0.01796074559 | L51: =L50/IF(ISBLANK($F$5),SUMIFS('Données FDC'!$J:$J,'Données FDC'!$A:$A,Activation!$C$5,'Données FDC'!$E:$E,Activation!L$9),IF(ISBLANK($J$5),SUMIFS('Données FDC'!$J:$J,'Données FDC'!$B:$B,Activation!$F$5,'Données FDC'!$E:$E,Activation!L$9),SUMIFS('Données FDC'!$J:$J,'Données FDC'!$C:$C,Activation!$J$5,'Données FDC'!$E:$E,Activation!L$9))) -> 0.0634406862 | M51: =M50/IF(ISBLANK($F$5),SUMIFS('Données FDC'!$J:$J,'Données FDC'!$A:$A,Activation!$C$5,'Données FDC'!$E:$E,Activation!M$9),IF(ISBLANK($J$5),SUMIFS('Données FDC'!$J:$J,'Données FDC'!$B:$B,Activation!$F$5,'Données FDC'!$E:$E,Activation!M$9),SUMIFS('Données FDC'!$J:$J,'Données FDC'!$C:$C,Activation!$J$5,'Données FDC'!$E:$E,Activation!M$9))) -> 0.01033735342 | P51: =P50/IF(ISBLANK($F$5),SUMIFS('Données FDC'!$J:$J,'Données FDC'!$A:$A,Activation!$C$5,'Données FDC'!$E:$E,Activation!P$9),IF(ISBLANK($J$5),SUMIFS('Données FDC'!$J:$J,'Données FDC'!$B:$B,Activation!$F$5,'Données FDC'!$E:$E,Activation!P$9),SUMIFS('Données FDC'!$J:$J,'Données FDC'!$C:$C,Activation!$J$5,'Données FDC'!$E:$E,Activation!P$9))) -> 0.01374463244
C52: % détenteurs CEGEE | D52: =SUM('Données FDC'!$X:$X)/SUM('Données FDC'!$F:$F) -> 0.1248649299 | E52: =SUM('Données FDC déc 2018'!$X:$X)/SUM('Données FDC déc 2018'!$F:$F) -> 0.1146335841 | F52: =SUMIF('Données FDC'!$E:$E,Activation!F$9,'Données FDC'!$X:$X)/SUMIF('Données FDC'!$E:$E,Activation!F$9,'Données FDC'!$J:$J) -> 0.4419162545 | G52: =SUMIF('Données FDC'!$E:$E,Activation!G$9,'Données FDC'!$X:$X)/SUMIF('Données FDC'!$E:$E,Activation!G$9,'Données FDC'!$J:$J) -> 0.09625622052 | H52: =SUMIF('Données FDC'!$E:$E,Activation!H$9,'Données FDC'!$X:$X)/SUMIF('Données FDC'!$E:$E,Activation!H$9,'Données FDC'!$J:$J) -> 0.1434547694 | I52: =SUMIF('Données FDC'!$E:$E,Activation!I$9,'Données FDC'!$X:$X)/SUMIF('Données FDC'!$E:$E,Activation!I$9,'Données FDC'!$J:$J) -> 0.01665350556 | J52: =SUMIF('Données FDC'!$E:$E,Activation!J$9,'Données FDC'!$X:$X)/SUMIF('Données FDC'!$E:$E,Activation!J$9,'Données FDC'!$J:$J) -> 0.2526042112 | K52: =SUMIF('Données FDC'!$E:$E,Activation!K$9,'Données FDC'!$X:$X)/SUMIF('Données FDC'!$E:$E,Activation!K$9,'Données FDC'!$J:$J) -> 0.01796074559 | L52: =SUMIF('Données FDC'!$E:$E,Activation!L$9,'Données FDC'!$X:$X)/SUMIF('Données FDC'!$E:$E,Activation!L$9,'Données FDC'!$J:$J) -> 0.0634406862 | M52: =SUMIF('Données FDC'!$E:$E,Activation!M$9,'Données FDC'!$X:$X)/SUMIF('Données FDC'!$E:$E,Activation!M$9,'Données FDC'!$J:$J) -> 0.01033735342 | P52: =SUMIF('Données FDC'!$E:$E,Activation!P$9,'Données FDC'!$X:$X)/SUMIF('Données FDC'!$E:$E,Activation!P$9,'Données FDC'!$J:$J) -> 0.01374463244
B54: EQUIPEMENT BANCARISATION
D56: Tous segments | F56: =F8 -> Segments Activation - 10/2019
D57: =D9 -> 2019-10-01 | E57: 2018-12-01 | F57: BPe | G57: BPne | H57: De | I57: Dne | J57: JBPe | K57: JBPne | L57: JDe | M57: JDne | N57: Ee | O57: Ene | P57: I
B58: Détention Univers Banca (12 ans et plus) | C58: Nombre détenteurs | D58: =D38 -> 477270 | E58: =E38 -> 474160 | F58: 261885 | G58: 105076 | H58: 25889 | I58: 10598 | J58: 59544 | K58: 12555 | L58: 755 | M58: 326 | N58: 625 | O58: 0 | P58: 17
C59: % détenteurs | D59: =D39 -> 0.3191331443 | E59: 0.3078991029 | F59: =F39 -> 0.9490134261 | G59: 0.6511858504 | H59: 0.1525403756 | I59: 0.02988888262 | J59: 0.972972973 | K59: 0.7037556054 | L59: 0.07132061213 | M59: 0.004341746021 | N59: 0.02508025682 | O59: 0 | P59: 7.799023746e-05
C60: % détenteurs CEGEE | D60: =D40 -> 0.3191331443 | E60: 0.3078991029 | F60: =F40 -> 0.9490134261 | G60: 0.6511858504 | H60: 0.1525403756 | I60: 0.02988888262 | J60: 0.972972973 | K60: 0.7037556054 | L60: 0.07132061213 | M60: 0.004341746021 | N60: 0.02508025682 | O60: 0 | P60: 7.799023746e-05
B61: Forfait (12 ans et plus) | C61: Variation | D61: =SUM(F61:P61) -> 6424 | F61: =F62-IF(ISBLANK($F$5),SUMIFS('Données FDC déc 2018'!$AE:$AE,'Données FDC déc 2018'!$A:$A,Activation!$C$5,'Données FDC déc 2018'!$E:$E,Activation!F$9),IF(ISBLANK($J$5),SUMIFS('Données FDC déc 2018'!$AE:$AE,'Données FDC déc 2018'!$B:$B,Activation!$F$5,'Données FDC déc 2018'!$E:$E,Activation!F$9),SUMIFS('Données FDC déc 2018'!$AE:$AE,'Données FDC déc 2018'!$C:$C,Activation!$J$5,'Données FDC déc 2018'!$E:$E,Activation!F$9))) -> 3022 | G61: =G62-IF(ISBLANK($F$5),SUMIFS('Données FDC déc 2018'!$AE:$AE,'Données FDC déc 2018'!$A:$A,Activation!$C$5,'Données FDC déc 2018'!$E:$E,Activation!G$9),IF(ISBLANK($J$5),SUMIFS('Données FDC déc 2018'!$AE:$AE,'Données FDC déc 2018'!$B:$B,Activation!$F$5,'Données FDC déc 2018'!$E:$E,Activation!G$9),SUMIFS('Données FDC déc 2018'!$AE:$AE,'Données FDC déc 2018'!$C:$C,Activation!$J$5,'Données FDC déc 2018'!$E:$E,Activation!G$9))) -> -707 | H61: =H62-IF(ISBLANK($F$5),SUMIFS('Données FDC déc 2018'!$AE:$AE,'Données FDC déc 2018'!$A:$A,Activation!$C$5,'Données FDC déc 2018'!$E:$E,Activation!H$9),IF(ISBLANK($J$5),SUMIFS('Données FDC déc 2018'!$AE:$AE,'Données FDC déc 2018'!$B:$B,Activation!$F$5,'Données FDC déc 2018'!$E:$E,Activation!H$9),SUMIFS('Données FDC déc 2018'!$AE:$AE,'Données FDC déc 2018'!$C:$C,Activation!$J$5,'Données FDC déc 2018'!$E:$E,Activation!H$9))) -> 1549 | I61: =I62-IF(ISBLANK($F$5),SUMIFS('Données FDC déc 2018'!$AE:$AE,'Données FDC déc 2018'!$A:$A,Activation!$C$5,'Données FDC déc 2018'!$E:$E,Activation!I$9),IF(ISBLANK($J$5),SUMIFS('Données FDC déc 2018'!$AE:$AE,'Données FDC déc 2018'!$B:$B,Activation!$F$5,'Données FDC déc 2018'!$E:$E,Activation!I$9),SUMIFS('Données FDC déc 2018'!$AE:$AE,'Données FDC déc 2018'!$C:$C,Activation!$J$5,'Données FDC déc 2018'!$E:$E,Activation!I$9))) -> 1414 | J61: =J62-IF(ISBLANK($F$5),SUMIFS('Données FDC déc 2018'!$AE:$AE,'Données FDC déc 2018'!$A:$A,Activation!$C$5,'Données FDC déc 2018'!$E:$E,Activation!J$9),IF(ISBLANK($J$5),SUMIFS('Données FDC déc 2018'!$AE:$AE,'Données FDC déc 2018'!$B:$B,Activation!$F$5,'Données FDC déc 2018'!$E:$E,Activation!J$9),SUMIFS('Données FDC déc 2018'!$AE:$AE,'Données FDC déc 2018'!$C:$C,Activation!$J$5,'Données FDC déc 2018'!$E:$E,Activation!J$9))) -> 501 | K61: =K62-IF(ISBLANK($F$5),SUMIFS('Données FDC déc 2018'!$AE:$AE,'Données FDC déc 2018'!$A:$A,Activation!$C$5,'Données FDC déc 2018'!$E:$E,Activation!K$9),IF(ISBLANK($J$5),SUMIFS('Données FDC déc 2018'!$AE:$AE,'Données FDC déc 2018'!$B:$B,Activation!$F$5,'Données FDC déc 2018'!$E:$E,Activation!K$9),SUMIFS('Données FDC déc 2018'!$AE:$AE,'Données FDC déc 2018'!$C:$C,Activation!$J$5,'Données FDC déc 2018'!$E:$E,Activation!K$9))) -> -1083 | L61: =L62-IF(ISBLANK($F$5),SUMIFS('Données FDC déc 2018'!$AE:$AE,'Données FDC déc 2018'!$A:$A,Activation!$C$5,'Données FDC déc 2018'!$E:$E,Activation!L$9),IF(ISBLANK($J$5),SUMIFS('Données FDC déc 2018'!$AE:$AE,'Données FDC déc 2018'!$B:$B,Activation!$F$5,'Données FDC déc 2018'!$E:$E,Activation!L$9),SUMIFS('Données FDC déc 2018'!$AE:$AE,'Données FDC déc 2018'!$C:$C,Activation!$J$5,'Données FDC déc 2018'!$E:$E,Activation!L$9))) -> 261 | M61: =M62-IF(ISBLANK($F$5),SUMIFS('Données FDC déc 2018'!$AE:$AE,'Données FDC déc 2018'!$A:$A,Activation!$C$5,'Données FDC déc 2018'!$E:$E,Activation!M$9),IF(ISBLANK($J$5),SUMIFS('Données FDC déc 2018'!$AE:$AE,'Données FDC déc 2018'!$B:$B,Activation!$F$5,'Données FDC déc 2018'!$E:$E,Activation!M$9),SUMIFS('Données FDC déc 2018'!$AE:$AE,'Données FDC déc 2018'!$C:$C,Activation!$J$5,'Données FDC déc 2018'!$E:$E,Activation!M$9))) -> 765 | N61: =N62-IF(ISBLANK($F$5),SUMIFS('Données FDC déc 2018'!$AE:$AE,'Données FDC déc 2018'!$A:$A,Activation!$C$5,'Données FDC déc 2018'!$E:$E,Activation!N$9),IF(ISBLANK($J$5),SUMIFS('Données FDC déc 2018'!$AE:$AE,'Données FDC déc 2018'!$B:$B,Activation!$F$5,'Données FDC déc 2018'!$E:$E,Activation!N$9),SUMIFS('Données FDC déc 2018'!$AE:$AE,'Données FDC déc 2018'!$C:$C,Activation!$J$5,'Données FDC déc 2018'!$E:$E,Activation!N$9))) -> 372 | O61: =O62-IF(ISBLANK($F$5),SUMIFS('Données FDC déc 2018'!$AE:$AE,'Données FDC déc 2018'!$A:$A,Activation!$C$5,'Données FDC déc 2018'!$E:$E,Activation!O$9),IF(ISBLANK($J$5),SUMIFS('Données FDC déc 2018'!$AE:$AE,'Données FDC déc 2018'!$B:$B,Activation!$F$5,'Données FDC déc 2018'!$E:$E,Activation!O$9),SUMIFS('Données FDC déc 2018'!$AE:$AE,'Données FDC déc 2018'!$C:$C,Activation!$J$5,'Données FDC déc 2018'!$E:$E,Activation!O$9))) -> 303 | P61: =P62-IF(ISBLANK($F$5),SUMIFS('Données FDC déc 2018'!$AE:$AE,'Données FDC déc 2018'!$A:$A,Activation!$C$5,'Données FDC déc 2018'!$E:$E,Activation!P$9),IF(ISBLANK($J$5),SUMIFS('Données FDC déc 2018'!$AE:$AE,'Données FDC déc 2018'!$B:$B,Activation!$F$5,'Données FDC déc 2018'!$E:$E,Activation!P$9),SUMIFS('Données FDC déc 2018'!$AE:$AE,'Données FDC déc 2018'!$C:$C,Activation!$J$5,'Données FDC déc 2018'!$E:$E,Activation!P$9))) -> 27
C62: Nombre détenteurs | D62: =SUM(F62:P62) -> 607172 | E62: =IF(ISBLANK($F$5),SUMIFS('Données FDC déc 2018'!$AE:$AE,'Données FDC déc 2018'!$A:$A,Activation!$C$5),IF(ISBLANK($J$5),SUMIFS('Données FDC déc 2018'!$AE:$AE,'Données FDC déc 2018'!$B:$B,Activation!$F$5),SUMIFS('Données FDC déc 2018'!$AE:$AE,'Données FDC déc 2018'!$C:$C,Activation!$J$5))) -> 600748 | F62: =IF(ISBLANK($F$5),SUMIFS('Données FDC'!$AE:$AE,'Données FDC'!$A:$A,Activation!$C$5,'Données FDC'!$E:$E,Activation!F$9),IF(ISBLANK($J$5),SUMIFS('Données FDC'!$AE:$AE,'Données FDC'!$B:$B,Activation!$F$5,'Données FDC'!$E:$E,Activation!F$9),SUMIFS('Données FDC'!$AE:$AE,'Données FDC'!$C:$C,Activation!$J$5,'Données FDC'!$E:$E,Activation!F$9))) -> 268997 | G62: =IF(ISBLANK($F$5),SUMIFS('Données FDC'!$AE:$AE,'Données FDC'!$A:$A,Activation!$C$5,'Données FDC'!$E:$E,Activation!G$9),IF(ISBLANK($J$5),SUMIFS('Données FDC'!$AE:$AE,'Données FDC'!$B:$B,Activation!$F$5,'Données FDC'!$E:$E,Activation!G$9),SUMIFS('Données FDC'!$AE:$AE,'Données FDC'!$C:$C,Activation!$J$5,'Données FDC'!$E:$E,Activation!G$9))) -> 143900 | H62: =IF(ISBLANK($F$5),SUMIFS('Données FDC'!$AE:$AE,'Données FDC'!$A:$A,Activation!$C$5,'Données FDC'!$E:$E,Activation!H$9),IF(ISBLANK($J$5),SUMIFS('Données FDC'!$AE:$AE,'Données FDC'!$B:$B,Activation!$F$5,'Données FDC'!$E:$E,Activation!H$9),SUMIFS('Données FDC'!$AE:$AE,'Données FDC'!$C:$C,Activation!$J$5,'Données FDC'!$E:$E,Activation!H$9))) -> 49000 | I62: =IF(ISBLANK($F$5),SUMIFS('Données FDC'!$AE:$AE,'Données FDC'!$A:$A,Activation!$C$5,'Données FDC'!$E:$E,Activation!I$9),IF(ISBLANK($J$5),SUMIFS('Données FDC'!$AE:$AE,'Données FDC'!$B:$B,Activation!$F$5,'Données FDC'!$E:$E,Activation!I$9),SUMIFS('Données FDC'!$AE:$AE,'Données FDC'!$C:$C,Activation!$J$5,'Données FDC'!$E:$E,Activation!I$9))) -> 50623 | J62: =IF(ISBLANK($F$5),SUMIFS('Données FDC'!$AE:$AE,'Données FDC'!$A:$A,Activation!$C$5,'Données FDC'!$E:$E,Activation!J$9),IF(ISBLANK($J$5),SUMIFS('Données FDC'!$AE:$AE,'Données FDC'!$B:$B,Activation!$F$5,'Données FDC'!$E:$E,Activation!J$9),SUMIFS('Données FDC'!$AE:$AE,'Données FDC'!$C:$C,Activation!$J$5,'Données FDC'!$E:$E,Activation!J$9))) -> 61279 | K62: =IF(ISBLANK($F$5),SUMIFS('Données FDC'!$AE:$AE,'Données FDC'!$A:$A,Activation!$C$5,'Données FDC'!$E:$E,Activation!K$9),IF(ISBLANK($J$5),SUMIFS('Données FDC'!$AE:$AE,'Données FDC'!$B:$B,Activation!$F$5,'Données FDC'!$E:$E,Activation!K$9),SUMIFS('Données FDC'!$AE:$AE,'Données FDC'!$C:$C,Activation!$J$5,'Données FDC'!$E:$E,Activation!K$9))) -> 17142 | L62: =IF(ISBLANK($F$5),SUMIFS('Données FDC'!$AE:$AE,'Données FDC'!$A:$A,Activation!$C$5,'Données FDC'!$E:$E,Activation!L$9),IF(ISBLANK($J$5),SUMIFS('Données FDC'!$AE:$AE,'Données FDC'!$B:$B,Activation!$F$5,'Données FDC'!$E:$E,Activation!L$9),SUMIFS('Données FDC'!$AE:$AE,'Données FDC'!$C:$C,Activation!$J$5,'Données FDC'!$E:$E,Activation!L$9))) -> 3224 | M62: =IF(ISBLANK($F$5),SUMIFS('Données FDC'!$AE:$AE,'Données FDC'!$A:$A,Activation!$C$5,'Données FDC'!$E:$E,Activation!M$9),IF(ISBLANK($J$5),SUMIFS('Données FDC'!$AE:$AE,'Données FDC'!$B:$B,Activation!$F$5,'Données FDC'!$E:$E,Activation!M$9),SUMIFS('Données FDC'!$AE:$AE,'Données FDC'!$C:$C,Activation!$J$5,'Données FDC'!$E:$E,Activation!M$9))) -> 9685 | N62: =IF(ISBLANK($F$5),SUMIFS('Données FDC'!$AE:$AE,'Données FDC'!$A:$A,Activation!$C$5,'Données FDC'!$E:$E,Activation!N$9),IF(ISBLANK($J$5),SUMIFS('Données FDC'!$AE:$AE,'Données FDC'!$B:$B,Activation!$F$5,'Données FDC'!$E:$E,Activation!N$9),SUMIFS('Données FDC'!$AE:$AE,'Données FDC'!$C:$C,Activation!$J$5,'Données FDC'!$E:$E,Activation!N$9))) -> 2284 | O62: =IF(ISBLANK($F$5),SUMIFS('Données FDC'!$AE:$AE,'Données FDC'!$A:$A,Activation!$C$5,'Données FDC'!$E:$E,Activation!O$9),IF(ISBLANK($J$5),SUMIFS('Données FDC'!$AE:$AE,'Données FDC'!$B:$B,Activation!$F$5,'Données FDC'!$E:$E,Activation!O$9),SUMIFS('Données FDC'!$AE:$AE,'Données FDC'!$C:$C,Activation!$J$5,'Données FDC'!$E:$E,Activation!O$9))) -> 990 | P62: =IF(ISBLANK($F$5),SUMIFS('Données FDC'!$AE:$AE,'Données FDC'!$A:$A,Activation!$C$5,'Données FDC'!$E:$E,Activation!P$9),IF(ISBLANK($J$5),SUMIFS('Données FDC'!$AE:$AE,'Données FDC'!$B:$B,Activation!$F$5,'Données FDC'!$E:$E,Activation!P$9),SUMIFS('Données FDC'!$AE:$AE,'Données FDC'!$C:$C,Activation!$J$5,'Données FDC'!$E:$E,Activation!P$9))) -> 48
C63: % détenteurs | D63: =D62/IF(ISBLANK($F$5),SUMIFS('Données FDC'!$I:$I,'Données FDC'!$A:$A,Activation!$C$5),IF(ISBLANK($J$5),SUMIFS('Données FDC'!$I:$I,'Données FDC'!$B:$B,Activation!$F$5),SUMIFS('Données FDC'!$I:$I,'Données FDC'!$C:$C,Activation!$J$5))) -> 0.4350672336 | E63: =E62/IF(ISBLANK($F$5),SUMIFS('Données FDC déc 2018'!$I:$I,'Données FDC déc 2018'!$A:$A,Activation!$C$5),IF(ISBLANK($J$5),SUMIFS('Données FDC déc 2018'!$I:$I,'Données FDC déc 2018'!$B:$B,Activation!$F$5),SUMIFS('Données FDC déc 2018'!$I:$I,'Données FDC déc 2018'!$C:$C,Activation!$J$5))) -> 0.4192822311 | F63: =F62/IF(ISBLANK($F$5),SUMIFS('Données FDC'!$I:$I,'Données FDC'!$A:$A,Activation!$C$5,'Données FDC'!$E:$E,Activation!F$9),IF(ISBLANK($J$5),SUMIFS('Données FDC'!$I:$I,'Données FDC'!$B:$B,Activation!$F$5,'Données FDC'!$E:$E,Activation!F$9),SUMIFS('Données FDC'!$I:$I,'Données FDC'!$C:$C,Activation!$J$5,'Données FDC'!$E:$E,Activation!F$9))) -> 0.9747857441 | G63: =G62/IF(ISBLANK($F$5),SUMIFS('Données FDC'!$I:$I,'Données FDC'!$A:$A,Activation!$C$5,'Données FDC'!$E:$E,Activation!G$9),IF(ISBLANK($J$5),SUMIFS('Données FDC'!$I:$I,'Données FDC'!$B:$B,Activation!$F$5,'Données FDC'!$E:$E,Activation!G$9),SUMIFS('Données FDC'!$I:$I,'Données FDC'!$C:$C,Activation!$J$5,'Données FDC'!$E:$E,Activation!G$9))) -> 0.891789218 | H63: =H62/IF(ISBLANK($F$5),SUMIFS('Données FDC'!$I:$I,'Données FDC'!$A:$A,Activation!$C$5,'Données FDC'!$E:$E,Activation!H$9),IF(ISBLANK($J$5),SUMIFS('Données FDC'!$I:$I,'Données FDC'!$B:$B,Activation!$F$5,'Données FDC'!$E:$E,Activation!H$9),SUMIFS('Données FDC'!$I:$I,'Données FDC'!$C:$C,Activation!$J$5,'Données FDC'!$E:$E,Activation!H$9))) -> 0.2887125189 | I63: =I62/IF(ISBLANK($F$5),SUMIFS('Données FDC'!$I:$I,'Données FDC'!$A:$A,Activation!$C$5,'Données FDC'!$E:$E,Activation!I$9),IF(ISBLANK($J$5),SUMIFS('Données FDC'!$I:$I,'Données FDC'!$B:$B,Activation!$F$5,'Données FDC'!$E:$E,Activation!I$9),SUMIFS('Données FDC'!$I:$I,'Données FDC'!$C:$C,Activation!$J$5,'Données FDC'!$E:$E,Activation!I$9))) -> 0.1427689097 | J63: =J62/IF(ISBLANK($F$5),SUMIFS('Données FDC'!$I:$I,'Données FDC'!$A:$A,Activation!$C$5,'Données FDC'!$E:$E,Activation!J$9),IF(ISBLANK($J$5),SUMIFS('Données FDC'!$I:$I,'Données FDC'!$B:$B,Activation!$F$5,'Données FDC'!$E:$E,Activation!J$9),SUMIFS('Données FDC'!$I:$I,'Données FDC'!$C:$C,Activation!$J$5,'Données FDC'!$E:$E,Activation!J$9))) -> 1.001323573 | K63: =K62/IF(ISBLANK($F$5),SUMIFS('Données FDC'!$I:$I,'Données FDC'!$A:$A,Activation!$C$5,'Données FDC'!$E:$E,Activation!K$9),IF(ISBLANK($J$5),SUMIFS('Données FDC'!$I:$I,'Données FDC'!$B:$B,Activation!$F$5,'Données FDC'!$E:$E,Activation!K$9),SUMIFS('Données FDC'!$I:$I,'Données FDC'!$C:$C,Activation!$J$5,'Données FDC'!$E:$E,Activation!K$9))) -> 0.9608744395 | L63: =L62/IF(ISBLANK($F$5),SUMIFS('Données FDC'!$I:$I,'Données FDC'!$A:$A,Activation!$C$5,'Données FDC'!$E:$E,Activation!L$9),IF(ISBLANK($J$5),SUMIFS('Données FDC'!$I:$I,'Données FDC'!$B:$B,Activation!$F$5,'Données FDC'!$E:$E,Activation!L$9),SUMIFS('Données FDC'!$I:$I,'Données FDC'!$C:$C,Activation!$J$5,'Données FDC'!$E:$E,Activation!L$9))) -> 0.3045531834 | M63: =M62/IF(ISBLANK($F$5),SUMIFS('Données FDC'!$I:$I,'Données FDC'!$A:$A,Activation!$C$5,'Données FDC'!$E:$E,Activation!M$9),IF(ISBLANK($J$5),SUMIFS('Données FDC'!$I:$I,'Données FDC'!$B:$B,Activation!$F$5,'Données FDC'!$E:$E,Activation!M$9),SUMIFS('Données FDC'!$I:$I,'Données FDC'!$C:$C,Activation!$J$5,'Données FDC'!$E:$E,Activation!M$9))) -> 0.1289871479 | N63: =N62/IF(ISBLANK($F$5),SUMIFS('Données FDC'!$I:$I,'Données FDC'!$A:$A,Activation!$C$5,'Données FDC'!$E:$E,Activation!N$9),IF(ISBLANK($J$5),SUMIFS('Données FDC'!$I:$I,'Données FDC'!$B:$B,Activation!$F$5,'Données FDC'!$E:$E,Activation!N$9),SUMIFS('Données FDC'!$I:$I,'Données FDC'!$C:$C,Activation!$J$5,'Données FDC'!$E:$E,Activation!N$9))) -> 0.09165329053 | O63: =O62/IF(ISBLANK($F$5),SUMIFS('Données FDC'!$I:$I,'Données FDC'!$A:$A,Activation!$C$5,'Données FDC'!$E:$E,Activation!O$9),IF(ISBLANK($J$5),SUMIFS('Données FDC'!$I:$I,'Données FDC'!$B:$B,Activation!$F$5,'Données FDC'!$E:$E,Activation!O$9),SUMIFS('Données FDC'!$I:$I,'Données FDC'!$C:$C,Activation!$J$5,'Données FDC'!$E:$E,Activation!O$9))) -> 0.03755405508 | P63: =P62/IF(ISBLANK($F$5),SUMIFS('Données FDC'!$I:$I,'Données FDC'!$A:$A,Activation!$C$5,'Données FDC'!$E:$E,Activation!P$9),IF(ISBLANK($J$5),SUMIFS('Données FDC'!$I:$I,'Données FDC'!$B:$B,Activation!$F$5,'Données FDC'!$E:$E,Activation!P$9),SUMIFS('Données FDC'!$I:$I,'Données FDC'!$C:$C,Activation!$J$5,'Données FDC'!$E:$E,Activation!P$9))) -> 0.0002202077293
C64: % détenteurs CEGEE | D64: =SUM('Données FDC'!$AE:$AE)/SUM('Données FDC'!$I:$I) -> 0.4350672336 | E64: =SUM('Données FDC déc 2018'!$AE:$AE)/SUM('Données FDC déc 2018'!$I:$I) -> 0.4192822311 | F64: =SUMIF('Données FDC'!$E:$E,Activation!F$9,'Données FDC'!$AE:$AE)/SUMIF('Données FDC'!$E:$E,Activation!F$9,'Données FDC'!$I:$I) -> 0.9747857441 | G64: =SUMIF('Données FDC'!$E:$E,Activation!G$9,'Données FDC'!$AE:$AE)/SUMIF('Données FDC'!$E:$E,Activation!G$9,'Données FDC'!$I:$I) -> 0.891789218 | H64: =SUMIF('Données FDC'!$E:$E,Activation!H$9,'Données FDC'!$AE:$AE)/SUMIF('Données FDC'!$E:$E,Activation!H$9,'Données FDC'!$I:$I) -> 0.2887125189 | I64: =SUMIF('Données FDC'!$E:$E,Activation!I$9,'Données FDC'!$AE:$AE)/SUMIF('Données FDC'!$E:$E,Activation!I$9,'Données FDC'!$I:$I) -> 0.1427689097 | J64: =SUMIF('Données FDC'!$E:$E,Activation!J$9,'Données FDC'!$AE:$AE)/SUMIF('Données FDC'!$E:$E,Activation!J$9,'Données FDC'!$I:$I) -> 1.001323573 | K64: =SUMIF('Données FDC'!$E:$E,Activation!K$9,'Données FDC'!$AE:$AE)/SUMIF('Données FDC'!$E:$E,Activation!K$9,'Données FDC'!$I:$I) -> 0.9608744395 | L64: =SUMIF('Données FDC'!$E:$E,Activation!L$9,'Données FDC'!$AE:$AE)/SUMIF('Données FDC'!$E:$E,Activation!L$9,'Données FDC'!$I:$I) -> 0.3045531834 | M64: =SUMIF('Données FDC'!$E:$E,Activation!M$9,'Données FDC'!$AE:$AE)/SUMIF('Données FDC'!$E:$E,Activation!M$9,'Données FDC'!$I:$I) -> 0.1289871479 | N64: =SUMIF('Données FDC'!$E:$E,Activation!N$9,'Données FDC'!$AE:$AE)/SUMIF('Données FDC'!$E:$E,Activation!N$9,'Données FDC'!$I:$I) -> 0.09165329053 | O64: =SUMIF('Données FDC'!$E:$E,Activation!O$9,'Données FDC'!$AE:$AE)/SUMIF('Données FDC'!$E:$E,Activation!O$9,'Données FDC'!$I:$I) -> 0.03755405508 | P64: =SUMIF('Données FDC'!$E:$E,Activation!P$9,'Données FDC'!$AE:$AE)/SUMIF('Données FDC'!$E:$E,Activation!P$9,'Données FDC'!$I:$I) -> 0.0002202077293
B65: Bouquet Liberté (12 ans et plus) | C65: Variation | D65: =SUM(F65:P65) -> 13190 | F65: =F66-IF(ISBLANK($F$5),SUMIFS('Données FDC déc 2018'!$AF:$AF,'Données FDC déc 2018'!$A:$A,Activation!$C$5,'Données FDC déc 2018'!$E:$E,Activation!F$9),IF(ISBLANK($J$5),SUMIFS('Données FDC déc 2018'!$AF:$AF,'Données FDC déc 2018'!$B:$B,Activation!$F$5,'Données FDC déc 2018'!$E:$E,Activation!F$9),SUMIFS('Données FDC déc 2018'!$AF:$AF,'Données FDC déc 2018'!$C:$C,Activation!$J$5,'Données FDC déc 2018'!$E:$E,Activation!F$9))) -> 5818 | G65: =G66-IF(ISBLANK($F$5),SUMIFS('Données FDC déc 2018'!$AF:$AF,'Données FDC déc 2018'!$A:$A,Activation!$C$5,'Données FDC déc 2018'!$E:$E,Activation!G$9),IF(ISBLANK($J$5),SUMIFS('Données FDC déc 2018'!$AF:$AF,'Données FDC déc 2018'!$B:$B,Activation!$F$5,'Données FDC déc 2018'!$E:$E,Activation!G$9),SUMIFS('Données FDC déc 2018'!$AF:$AF,'Données FDC déc 2018'!$C:$C,Activation!$J$5,'Données FDC déc 2018'!$E:$E,Activation!G$9))) -> 828 | H65: =H66-IF(ISBLANK($F$5),SUMIFS('Données FDC déc 2018'!$AF:$AF,'Données FDC déc 2018'!$A:$A,Activation!$C$5,'Données FDC déc 2018'!$E:$E,Activation!H$9),IF(ISBLANK($J$5),SUMIFS('Données FDC déc 2018'!$AF:$AF,'Données FDC déc 2018'!$B:$B,Activation!$F$5,'Données FDC déc 2018'!$E:$E,Activation!H$9),SUMIFS('Données FDC déc 2018'!$AF:$AF,'Données FDC déc 2018'!$C:$C,Activation!$J$5,'Données FDC déc 2018'!$E:$E,Activation!H$9))) -> 1222 | I65: =I66-IF(ISBLANK($F$5),SUMIFS('Données FDC déc 2018'!$AF:$AF,'Données FDC déc 2018'!$A:$A,Activation!$C$5,'Données FDC déc 2018'!$E:$E,Activation!I$9),IF(ISBLANK($J$5),SUMIFS('Données FDC déc 2018'!$AF:$AF,'Données FDC déc 2018'!$B:$B,Activation!$F$5,'Données FDC déc 2018'!$E:$E,Activation!I$9),SUMIFS('Données FDC déc 2018'!$AF:$AF,'Données FDC déc 2018'!$C:$C,Activation!$J$5,'Données FDC déc 2018'!$E:$E,Activation!I$9))) -> 1974 | J65: =J66-IF(ISBLANK($F$5),SUMIFS('Données FDC déc 2018'!$AF:$AF,'Données FDC déc 2018'!$A:$A,Activation!$C$5,'Données FDC déc 2018'!$E:$E,Activation!J$9),IF(ISBLANK($J$5),SUMIFS('Données FDC déc 2018'!$AF:$AF,'Données FDC déc 2018'!$B:$B,Activation!$F$5,'Données FDC déc 2018'!$E:$E,Activation!J$9),SUMIFS('Données FDC déc 2018'!$AF:$AF,'Données FDC déc 2018'!$C:$C,Activation!$J$5,'Données FDC déc 2018'!$E:$E,Activation!J$9))) -> 2123 | K65: =K66-IF(ISBLANK($F$5),SUMIFS('Données FDC déc 2018'!$AF:$AF,'Données FDC déc 2018'!$A:$A,Activation!$C$5,'Données FDC déc 2018'!$E:$E,Activation!K$9),IF(ISBLANK($J$5),SUMIFS('Données FDC déc 2018'!$AF:$AF,'Données FDC déc 2018'!$B:$B,Activation!$F$5,'Données FDC déc 2018'!$E:$E,Activation!K$9),SUMIFS('Données FDC déc 2018'!$AF:$AF,'Données FDC déc 2018'!$C:$C,Activation!$J$5,'Données FDC déc 2018'!$E:$E,Activation!K$9))) -> -711 | L65: =L66-IF(ISBLANK($F$5),SUMIFS('Données FDC déc 2018'!$AF:$AF,'Données FDC déc 2018'!$A:$A,Activation!$C$5,'Données FDC déc 2018'!$E:$E,Activation!L$9),IF(ISBLANK($J$5),SUMIFS('Données FDC déc 2018'!$AF:$AF,'Données FDC déc 2018'!$B:$B,Activation!$F$5,'Données FDC déc 2018'!$E:$E,Activation!L$9),SUMIFS('Données FDC déc 2018'!$AF:$AF,'Données FDC déc 2018'!$C:$C,Activation!$J$5,'Données FDC déc 2018'!$E:$E,Activation!L$9))) -> 290 | M65: =M66-IF(ISBLANK($F$5),SUMIFS('Données FDC déc 2018'!$AF:$AF,'Données FDC déc 2018'!$A:$A,Activation!$C$5,'Données FDC déc 2018'!$E:$E,Activation!M$9),IF(ISBLANK($J$5),SUMIFS('Données FDC déc 2018'!$AF:$AF,'Données FDC déc 2018'!$B:$B,Activation!$F$5,'Données FDC déc 2018'!$E:$E,Activation!M$9),SUMIFS('Données FDC déc 2018'!$AF:$AF,'Données FDC déc 2018'!$C:$C,Activation!$J$5,'Données FDC déc 2018'!$E:$E,Activation!M$9))) -> 930 | N65: =N66-IF(ISBLANK($F$5),SUMIFS('Données FDC déc 2018'!$AF:$AF,'Données FDC déc 2018'!$A:$A,Activation!$C$5,'Données FDC déc 2018'!$E:$E,Activation!N$9),IF(ISBLANK($J$5),SUMIFS('Données FDC déc 2018'!$AF:$AF,'Données FDC déc 2018'!$B:$B,Activation!$F$5,'Données FDC déc 2018'!$E:$E,Activation!N$9),SUMIFS('Données FDC déc 2018'!$AF:$AF,'Données FDC déc 2018'!$C:$C,Activation!$J$5,'Données FDC déc 2018'!$E:$E,Activation!N$9))) -> 384 | O65: =O66-IF(ISBLANK($F$5),SUMIFS('Données FDC déc 2018'!$AF:$AF,'Données FDC déc 2018'!$A:$A,Activation!$C$5,'Données FDC déc 2018'!$E:$E,Activation!O$9),IF(ISBLANK($J$5),SUMIFS('Données FDC déc 2018'!$AF:$AF,'Données FDC déc 2018'!$B:$B,Activation!$F$5,'Données FDC déc 2018'!$E:$E,Activation!O$9),SUMIFS('Données FDC déc 2018'!$AF:$AF,'Données FDC déc 2018'!$C:$C,Activation!$J$5,'Données FDC déc 2018'!$E:$E,Activation!O$9))) -> 303 | P65: =P66-IF(ISBLANK($F$5),SUMIFS('Données FDC déc 2018'!$AF:$AF,'Données FDC déc 2018'!$A:$A,Activation!$C$5,'Données FDC déc 2018'!$E:$E,Activation!P$9),IF(ISBLANK($J$5),SUMIFS('Données FDC déc 2018'!$AF:$AF,'Données FDC déc 2018'!$B:$B,Activation!$F$5,'Données FDC déc 2018'!$E:$E,Activation!P$9),SUMIFS('Données FDC déc 2018'!$AF:$AF,'Données FDC déc 2018'!$C:$C,Activation!$J$5,'Données FDC déc 2018'!$E:$E,Activation!P$9))) -> 29
C66: Nombre détenteurs | D66: =SUM(F66:P66) -> 539834 | E66: =IF(ISBLANK($F$5),SUMIFS('Données FDC déc 2018'!$AF:$AF,'Données FDC déc 2018'!$A:$A,Activation!$C$5),IF(ISBLANK($J$5),SUMIFS('Données FDC déc 2018'!$AF:$AF,'Données FDC déc 2018'!$B:$B,Activation!$F$5),SUMIFS('Données FDC déc 2018'!$AF:$AF,'Données FDC déc 2018'!$C:$C,Activation!$J$5))) -> 526644 | F66: =IF(ISBLANK($F$5),SUMIFS('Données FDC'!$AF:$AF,'Données FDC'!$A:$A,Activation!$C$5,'Données FDC'!$E:$E,Activation!F$9),IF(ISBLANK($J$5),SUMIFS('Données FDC'!$AF:$AF,'Données FDC'!$B:$B,Activation!$F$5,'Données FDC'!$E:$E,Activation!F$9),SUMIFS('Données FDC'!$AF:$AF,'Données FDC'!$C:$C,Activation!$J$5,'Données FDC'!$E:$E,Activation!F$9))) -> 251409 | G66: =IF(ISBLANK($F$5),SUMIFS('Données FDC'!$AF:$AF,'Données FDC'!$A:$A,Activation!$C$5,'Données FDC'!$E:$E,Activation!G$9),IF(ISBLANK($J$5),SUMIFS('Données FDC'!$AF:$AF,'Données FDC'!$B:$B,Activation!$F$5,'Données FDC'!$E:$E,Activation!G$9),SUMIFS('Données FDC'!$AF:$AF,'Données FDC'!$C:$C,Activation!$J$5,'Données FDC'!$E:$E,Activation!G$9))) -> 126454 | H66: =IF(ISBLANK($F$5),SUMIFS('Données FDC'!$AF:$AF,'Données FDC'!$A:$A,Activation!$C$5,'Données FDC'!$E:$E,Activation!H$9),IF(ISBLANK($J$5),SUMIFS('Données FDC'!$AF:$AF,'Données FDC'!$B:$B,Activation!$F$5,'Données FDC'!$E:$E,Activation!H$9),SUMIFS('Données FDC'!$AF:$AF,'Données FDC'!$C:$C,Activation!$J$5,'Données FDC'!$E:$E,Activation!H$9))) -> 38704 | I66: =IF(ISBLANK($F$5),SUMIFS('Données FDC'!$AF:$AF,'Données FDC'!$A:$A,Activation!$C$5,'Données FDC'!$E:$E,Activation!I$9),IF(ISBLANK($J$5),SUMIFS('Données FDC'!$AF:$AF,'Données FDC'!$B:$B,Activation!$F$5,'Données FDC'!$E:$E,Activation!I$9),SUMIFS('Données FDC'!$AF:$AF,'Données FDC'!$C:$C,Activation!$J$5,'Données FDC'!$E:$E,Activation!I$9))) -> 33779 | J66: =IF(ISBLANK($F$5),SUMIFS('Données FDC'!$AF:$AF,'Données FDC'!$A:$A,Activation!$C$5,'Données FDC'!$E:$E,Activation!J$9),IF(ISBLANK($J$5),SUMIFS('Données FDC'!$AF:$AF,'Données FDC'!$B:$B,Activation!$F$5,'Données FDC'!$E:$E,Activation!J$9),SUMIFS('Données FDC'!$AF:$AF,'Données FDC'!$C:$C,Activation!$J$5,'Données FDC'!$E:$E,Activation!J$9))) -> 58637 | K66: =IF(ISBLANK($F$5),SUMIFS('Données FDC'!$AF:$AF,'Données FDC'!$A:$A,Activation!$C$5,'Données FDC'!$E:$E,Activation!K$9),IF(ISBLANK($J$5),SUMIFS('Données FDC'!$AF:$AF,'Données FDC'!$B:$B,Activation!$F$5,'Données FDC'!$E:$E,Activation!K$9),SUMIFS('Données FDC'!$AF:$AF,'Données FDC'!$C:$C,Activation!$J$5,'Données FDC'!$E:$E,Activation!K$9))) -> 16043 | L66: =IF(ISBLANK($F$5),SUMIFS('Données FDC'!$AF:$AF,'Données FDC'!$A:$A,Activation!$C$5,'Données FDC'!$E:$E,Activation!L$9),IF(ISBLANK($J$5),SUMIFS('Données FDC'!$AF:$AF,'Données FDC'!$B:$B,Activation!$F$5,'Données FDC'!$E:$E,Activation!L$9),SUMIFS('Données FDC'!$AF:$AF,'Données FDC'!$C:$C,Activation!$J$5,'Données FDC'!$E:$E,Activation!L$9))) -> 3057 | M66: =IF(ISBLANK($F$5),SUMIFS('Données FDC'!$AF:$AF,'Données FDC'!$A:$A,Activation!$C$5,'Données FDC'!$E:$E,Activation!M$9),IF(ISBLANK($J$5),SUMIFS('Données FDC'!$AF:$AF,'Données FDC'!$B:$B,Activation!$F$5,'Données FDC'!$E:$E,Activation!M$9),SUMIFS('Données FDC'!$AF:$AF,'Données FDC'!$C:$C,Activation!$J$5,'Données FDC'!$E:$E,Activation!M$9))) -> 8714 | N66: =IF(ISBLANK($F$5),SUMIFS('Données FDC'!$AF:$AF,'Données FDC'!$A:$A,Activation!$C$5,'Données FDC'!$E:$E,Activation!N$9),IF(ISBLANK($J$5),SUMIFS('Données FDC'!$AF:$AF,'Données FDC'!$B:$B,Activation!$F$5,'Données FDC'!$E:$E,Activation!N$9),SUMIFS('Données FDC'!$AF:$AF,'Données FDC'!$C:$C,Activation!$J$5,'Données FDC'!$E:$E,Activation!N$9))) -> 2157 | O66: =IF(ISBLANK($F$5),SUMIFS('Données FDC'!$AF:$AF,'Données FDC'!$A:$A,Activation!$C$5,'Données FDC'!$E:$E,Activation!O$9),IF(ISBLANK($J$5),SUMIFS('Données FDC'!$AF:$AF,'Données FDC'!$B:$B,Activation!$F$5,'Données FDC'!$E:$E,Activation!O$9),SUMIFS('Données FDC'!$AF:$AF,'Données FDC'!$C:$C,Activation!$J$5,'Données FDC'!$E:$E,Activation!O$9))) -> 847 | P66: =IF(ISBLANK($F$5),SUMIFS('Données FDC'!$AF:$AF,'Données FDC'!$A:$A,Activation!$C$5,'Données FDC'!$E:$E,Activation!P$9),IF(ISBLANK($J$5),SUMIFS('Données FDC'!$AF:$AF,'Données FDC'!$B:$B,Activation!$F$5,'Données FDC'!$E:$E,Activation!P$9),SUMIFS('Données FDC'!$AF:$AF,'Données FDC'!$C:$C,Activation!$J$5,'Données FDC'!$E:$E,Activation!P$9))) -> 33
C67: % détenteurs | D67: =D66/IF(ISBLANK($F$5),SUMIFS('Données FDC'!$I:$I,'Données FDC'!$A:$A,Activation!$C$5),IF(ISBLANK($J$5),SUMIFS('Données FDC'!$I:$I,'Données FDC'!$B:$B,Activation!$F$5),SUMIFS('Données FDC'!$I:$I,'Données FDC'!$C:$C,Activation!$J$5))) -> 0.3868163963 | E67: =E66/IF(ISBLANK($F$5),SUMIFS('Données FDC déc 2018'!$I:$I,'Données FDC déc 2018'!$A:$A,Activation!$C$5),IF(ISBLANK($J$5),SUMIFS('Données FDC déc 2018'!$I:$I,'Données FDC déc 2018'!$B:$B,Activation!$F$5),SUMIFS('Données FDC déc 2018'!$I:$I,'Données FDC déc 2018'!$C:$C,Activation!$J$5))) -> 0.3675625575 | F67: =F66/IF(ISBLANK($F$5),SUMIFS('Données FDC'!$I:$I,'Données FDC'!$A:$A,Activation!$C$5,'Données FDC'!$E:$E,Activation!F$9),IF(ISBLANK($J$5),SUMIFS('Données FDC'!$I:$I,'Données FDC'!$B:$B,Activation!$F$5,'Données FDC'!$E:$E,Activation!F$9),SUMIFS('Données FDC'!$I:$I,'Données FDC'!$C:$C,Activation!$J$5,'Données FDC'!$E:$E,Activation!F$9))) -> 0.9110507148 | G67: =G66/IF(ISBLANK($F$5),SUMIFS('Données FDC'!$I:$I,'Données FDC'!$A:$A,Activation!$C$5,'Données FDC'!$E:$E,Activation!G$9),IF(ISBLANK($J$5),SUMIFS('Données FDC'!$I:$I,'Données FDC'!$B:$B,Activation!$F$5,'Données FDC'!$E:$E,Activation!G$9),SUMIFS('Données FDC'!$I:$I,'Données FDC'!$C:$C,Activation!$J$5,'Données FDC'!$E:$E,Activation!G$9))) -> 0.7836713952 | H67: =H66/IF(ISBLANK($F$5),SUMIFS('Données FDC'!$I:$I,'Données FDC'!$A:$A,Activation!$C$5,'Données FDC'!$E:$E,Activation!H$9),IF(ISBLANK($J$5),SUMIFS('Données FDC'!$I:$I,'Données FDC'!$B:$B,Activation!$F$5,'Données FDC'!$E:$E,Activation!H$9),SUMIFS('Données FDC'!$I:$I,'Données FDC'!$C:$C,Activation!$J$5,'Données FDC'!$E:$E,Activation!H$9))) -> 0.2280475374 | I67: =I66/IF(ISBLANK($F$5),SUMIFS('Données FDC'!$I:$I,'Données FDC'!$A:$A,Activation!$C$5,'Données FDC'!$E:$E,Activation!I$9),IF(ISBLANK($J$5),SUMIFS('Données FDC'!$I:$I,'Données FDC'!$B:$B,Activation!$F$5,'Données FDC'!$E:$E,Activation!I$9),SUMIFS('Données FDC'!$I:$I,'Données FDC'!$C:$C,Activation!$J$5,'Données FDC'!$E:$E,Activation!I$9))) -> 0.09526482035 | J67: =J66/IF(ISBLANK($F$5),SUMIFS('Données FDC'!$I:$I,'Données FDC'!$A:$A,Activation!$C$5,'Données FDC'!$E:$E,Activation!J$9),IF(ISBLANK($J$5),SUMIFS('Données FDC'!$I:$I,'Données FDC'!$B:$B,Activation!$F$5,'Données FDC'!$E:$E,Activation!J$9),SUMIFS('Données FDC'!$I:$I,'Données FDC'!$C:$C,Activation!$J$5,'Données FDC'!$E:$E,Activation!J$9))) -> 0.9581522272 | K67: =K66/IF(ISBLANK($F$5),SUMIFS('Données FDC'!$I:$I,'Données FDC'!$A:$A,Activation!$C$5,'Données FDC'!$E:$E,Activation!K$9),IF(ISBLANK($J$5),SUMIFS('Données FDC'!$I:$I,'Données FDC'!$B:$B,Activation!$F$5,'Données FDC'!$E:$E,Activation!K$9),SUMIFS('Données FDC'!$I:$I,'Données FDC'!$C:$C,Activation!$J$5,'Données FDC'!$E:$E,Activation!K$9))) -> 0.8992713004 | L67: =L66/IF(ISBLANK($F$5),SUMIFS('Données FDC'!$I:$I,'Données FDC'!$A:$A,Activation!$C$5,'Données FDC'!$E:$E,Activation!L$9),IF(ISBLANK($J$5),SUMIFS('Données FDC'!$I:$I,'Données FDC'!$B:$B,Activation!$F$5,'Données FDC'!$E:$E,Activation!L$9),SUMIFS('Données FDC'!$I:$I,'Données FDC'!$C:$C,Activation!$J$5,'Données FDC'!$E:$E,Activation!L$9))) -> 0.2887776308 | M67: =M66/IF(ISBLANK($F$5),SUMIFS('Données FDC'!$I:$I,'Données FDC'!$A:$A,Activation!$C$5,'Données FDC'!$E:$E,Activation!M$9),IF(ISBLANK($J$5),SUMIFS('Données FDC'!$I:$I,'Données FDC'!$B:$B,Activation!$F$5,'Données FDC'!$E:$E,Activation!M$9),SUMIFS('Données FDC'!$I:$I,'Données FDC'!$C:$C,Activation!$J$5,'Données FDC'!$E:$E,Activation!M$9))) -> 0.1160551375 | N67: =N66/IF(ISBLANK($F$5),SUMIFS('Données FDC'!$I:$I,'Données FDC'!$A:$A,Activation!$C$5,'Données FDC'!$E:$E,Activation!N$9),IF(ISBLANK($J$5),SUMIFS('Données FDC'!$I:$I,'Données FDC'!$B:$B,Activation!$F$5,'Données FDC'!$E:$E,Activation!N$9),SUMIFS('Données FDC'!$I:$I,'Données FDC'!$C:$C,Activation!$J$5,'Données FDC'!$E:$E,Activation!N$9))) -> 0.08655698234 | O67: =O66/IF(ISBLANK($F$5),SUMIFS('Données FDC'!$I:$I,'Données FDC'!$A:$A,Activation!$C$5,'Données FDC'!$E:$E,Activation!O$9),IF(ISBLANK($J$5),SUMIFS('Données FDC'!$I:$I,'Données FDC'!$B:$B,Activation!$F$5,'Données FDC'!$E:$E,Activation!O$9),SUMIFS('Données FDC'!$I:$I,'Données FDC'!$C:$C,Activation!$J$5,'Données FDC'!$E:$E,Activation!O$9))) -> 0.03212958046 | P67: =P66/IF(ISBLANK($F$5),SUMIFS('Données FDC'!$I:$I,'Données FDC'!$A:$A,Activation!$C$5,'Données FDC'!$E:$E,Activation!P$9),IF(ISBLANK($J$5),SUMIFS('Données FDC'!$I:$I,'Données FDC'!$B:$B,Activation!$F$5,'Données FDC'!$E:$E,Activation!P$9),SUMIFS('Données FDC'!$I:$I,'Données FDC'!$C:$C,Activation!$J$5,'Données FDC'!$E:$E,Activation!P$9))) -> 0.0001513928139
C68: % détenteurs CEGEE | D68: =SUM('Données FDC'!$AF:$AF)/SUM('Données FDC'!$I:$I) -> 0.3868163963 | E68: =SUM('Données FDC déc 2018'!$AF:$AF)/SUM('Données FDC déc 2018'!$I:$I) -> 0.3675625575 | F68: =SUMIF('Données FDC'!$E:$E,Activation!F$9,'Données FDC'!$AF:$AF)/SUMIF('Données FDC'!$E:$E,Activation!F$9,'Données FDC'!$I:$I) -> 0.9110507148 | G68: =SUMIF('Données FDC'!$E:$E,Activation!G$9,'Données FDC'!$AF:$AF)/SUMIF('Données FDC'!$E:$E,Activation!G$9,'Données FDC'!$I:$I) -> 0.7836713952 | H68: =SUMIF('Données FDC'!$E:$E,Activation!H$9,'Données FDC'!$AF:$AF)/SUMIF('Données FDC'!$E:$E,Activation!H$9,'Données FDC'!$I:$I) -> 0.2280475374 | I68: =SUMIF('Données FDC'!$E:$E,Activation!I$9,'Données FDC'!$AF:$AF)/SUMIF('Données FDC'!$E:$E,Activation!I$9,'Données FDC'!$I:$I) -> 0.09526482035 | J68: =SUMIF('Données FDC'!$E:$E,Activation!J$9,'Données FDC'!$AF:$AF)/SUMIF('Données FDC'!$E:$E,Activation!J$9,'Données FDC'!$I:$I) -> 0.9581522272 | K68: =SUMIF('Données FDC'!$E:$E,Activation!K$9,'Données FDC'!$AF:$AF)/SUMIF('Données FDC'!$E:$E,Activation!K$9,'Données FDC'!$I:$I) -> 0.8992713004 | L68: =SUMIF('Données FDC'!$E:$E,Activation!L$9,'Données FDC'!$AF:$AF)/SUMIF('Données FDC'!$E:$E,Activation!L$9,'Données FDC'!$I:$I) -> 0.2887776308 | M68: =SUMIF('Données FDC'!$E:$E,Activation!M$9,'Données FDC'!$AF:$AF)/SUMIF('Données FDC'!$E:$E,Activation!M$9,'Données FDC'!$I:$I) -> 0.1160551375 | N68: =SUMIF('Données FDC'!$E:$E,Activation!N$9,'Données FDC'!$AF:$AF)/SUMIF('Données FDC'!$E:$E,Activation!N$9,'Données FDC'!$I:$I) -> 0.08655698234 | O68: =SUMIF('Données FDC'!$E:$E,Activation!O$9,'Données FDC'!$AF:$AF)/SUMIF('Données FDC'!$E:$E,Activation!O$9,'Données FDC'!$I:$I) -> 0.03212958046 | P68: =SUMIF('Données FDC'!$E:$E,Activation!P$9,'Données FDC'!$AF:$AF)/SUMIF('Données FDC'!$E:$E,Activation!P$9,'Données FDC'!$I:$I) -> 0.0001513928139
B69: Carte de paiement (12 ans et plus) | C69: Variation | D69: =SUM(F69:P69) -> 2542 | F69: =F70-IF(ISBLANK($F$5),SUMIFS('Données FDC déc 2018'!$Y:$Y,'Données FDC déc 2018'!$A:$A,Activation!$C$5,'Données FDC déc 2018'!$E:$E,Activation!F$9),IF(ISBLANK($J$5),SUMIFS('Données FDC déc 2018'!$Y:$Y,'Données FDC déc 2018'!$B:$B,Activation!$F$5,'Données FDC déc 2018'!$E:$E,Activation!F$9),SUMIFS('Données FDC déc 2018'!$Y:$Y,'Données FDC déc 2018'!$C:$C,Activation!$J$5,'Données FDC déc 2018'!$E:$E,Activation!F$9))) -> 1884 | G69: =G70-IF(ISBLANK($F$5),SUMIFS('Données FDC déc 2018'!$Y:$Y,'Données FDC déc 2018'!$A:$A,Activation!$C$5,'Données FDC déc 2018'!$E:$E,Activation!G$9),IF(ISBLANK($J$5),SUMIFS('Données FDC déc 2018'!$Y:$Y,'Données FDC déc 2018'!$B:$B,Activation!$F$5,'Données FDC déc 2018'!$E:$E,Activation!G$9),SUMIFS('Données FDC déc 2018'!$Y:$Y,'Données FDC déc 2018'!$C:$C,Activation!$J$5,'Données FDC déc 2018'!$E:$E,Activation!G$9))) -> -801 | H69: =H70-IF(ISBLANK($F$5),SUMIFS('Données FDC déc 2018'!$Y:$Y,'Données FDC déc 2018'!$A:$A,Activation!$C$5,'Données FDC déc 2018'!$E:$E,Activation!H$9),IF(ISBLANK($J$5),SUMIFS('Données FDC déc 2018'!$Y:$Y,'Données FDC déc 2018'!$B:$B,Activation!$F$5,'Données FDC déc 2018'!$E:$E,Activation!H$9),SUMIFS('Données FDC déc 2018'!$Y:$Y,'Données FDC déc 2018'!$C:$C,Activation!$J$5,'Données FDC déc 2018'!$E:$E,Activation!H$9))) -> -60 | I69: =I70-IF(ISBLANK($F$5),SUMIFS('Données FDC déc 2018'!$Y:$Y,'Données FDC déc 2018'!$A:$A,Activation!$C$5,'Données FDC déc 2018'!$E:$E,Activation!I$9),IF(ISBLANK($J$5),SUMIFS('Données FDC déc 2018'!$Y:$Y,'Données FDC déc 2018'!$B:$B,Activation!$F$5,'Données FDC déc 2018'!$E:$E,Activation!I$9),SUMIFS('Données FDC déc 2018'!$Y:$Y,'Données FDC déc 2018'!$C:$C,Activation!$J$5,'Données FDC déc 2018'!$E:$E,Activation!I$9))) -> 757 | J69: =J70-IF(ISBLANK($F$5),SUMIFS('Données FDC déc 2018'!$Y:$Y,'Données FDC déc 2018'!$A:$A,Activation!$C$5,'Données FDC déc 2018'!$E:$E,Activation!J$9),IF(ISBLANK($J$5),SUMIFS('Données FDC déc 2018'!$Y:$Y,'Données FDC déc 2018'!$B:$B,Activation!$F$5,'Données FDC déc 2018'!$E:$E,Activation!J$9),SUMIFS('Données FDC déc 2018'!$Y:$Y,'Données FDC déc 2018'!$C:$C,Activation!$J$5,'Données FDC déc 2018'!$E:$E,Activation!J$9))) -> 160 | K69: =K70-IF(ISBLANK($F$5),SUMIFS('Données FDC déc 2018'!$Y:$Y,'Données FDC déc 2018'!$A:$A,Activation!$C$5,'Données FDC déc 2018'!$E:$E,Activation!K$9),IF(ISBLANK($J$5),SUMIFS('Données FDC déc 2018'!$Y:$Y,'Données FDC déc 2018'!$B:$B,Activation!$F$5,'Données FDC déc 2018'!$E:$E,Activation!K$9),SUMIFS('Données FDC déc 2018'!$Y:$Y,'Données FDC déc 2018'!$C:$C,Activation!$J$5,'Données FDC déc 2018'!$E:$E,Activation!K$9))) -> -1023 | L69: =L70-IF(ISBLANK($F$5),SUMIFS('Données FDC déc 2018'!$Y:$Y,'Données FDC déc 2018'!$A:$A,Activation!$C$5,'Données FDC déc 2018'!$E:$E,Activation!L$9),IF(ISBLANK($J$5),SUMIFS('Données FDC déc 2018'!$Y:$Y,'Données FDC déc 2018'!$B:$B,Activation!$F$5,'Données FDC déc 2018'!$E:$E,Activation!L$9),SUMIFS('Données FDC déc 2018'!$Y:$Y,'Données FDC déc 2018'!$C:$C,Activation!$J$5,'Données FDC déc 2018'!$E:$E,Activation!L$9))) -> 243 | M69: =M70-IF(ISBLANK($F$5),SUMIFS('Données FDC déc 2018'!$Y:$Y,'Données FDC déc 2018'!$A:$A,Activation!$C$5,'Données FDC déc 2018'!$E:$E,Activation!M$9),IF(ISBLANK($J$5),SUMIFS('Données FDC déc 2018'!$Y:$Y,'Données FDC déc 2018'!$B:$B,Activation!$F$5,'Données FDC déc 2018'!$E:$E,Activation!M$9),SUMIFS('Données FDC déc 2018'!$Y:$Y,'Données FDC déc 2018'!$C:$C,Activation!$J$5,'Données FDC déc 2018'!$E:$E,Activation!M$9))) -> 715 | N69: =N70-IF(ISBLANK($F$5),SUMIFS('Données FDC déc 2018'!$Y:$Y,'Données FDC déc 2018'!$A:$A,Activation!$C$5,'Données FDC déc 2018'!$E:$E,Activation!N$9),IF(ISBLANK($J$5),SUMIFS('Données FDC déc 2018'!$Y:$Y,'Données FDC déc 2018'!$B:$B,Activation!$F$5,'Données FDC déc 2018'!$E:$E,Activation!N$9),SUMIFS('Données FDC déc 2018'!$Y:$Y,'Données FDC déc 2018'!$C:$C,Activation!$J$5,'Données FDC déc 2018'!$E:$E,Activation!N$9))) -> 381 | O69: =O70-IF(ISBLANK($F$5),SUMIFS('Données FDC déc 2018'!$Y:$Y,'Données FDC déc 2018'!$A:$A,Activation!$C$5,'Données FDC déc 2018'!$E:$E,Activation!O$9),IF(ISBLANK($J$5),SUMIFS('Données FDC déc 2018'!$Y:$Y,'Données FDC déc 2018'!$B:$B,Activation!$F$5,'Données FDC déc 2018'!$E:$E,Activation!O$9),SUMIFS('Données FDC déc 2018'!$Y:$Y,'Données FDC déc 2018'!$C:$C,Activation!$J$5,'Données FDC déc 2018'!$E:$E,Activation!O$9))) -> 304 | P69: =P70-IF(ISBLANK($F$5),SUMIFS('Données FDC déc 2018'!$Y:$Y,'Données FDC déc 2018'!$A:$A,Activation!$C$5,'Données FDC déc 2018'!$E:$E,Activation!P$9),IF(ISBLANK($J$5),SUMIFS('Données FDC déc 2018'!$Y:$Y,'Données FDC déc 2018'!$B:$B,Activation!$F$5,'Données FDC déc 2018'!$E:$E,Activation!P$9),SUMIFS('Données FDC déc 2018'!$Y:$Y,'Données FDC déc 2018'!$C:$C,Activation!$J$5,'Données FDC déc 2018'!$E:$E,Activation!P$9))) -> -18
C70: Nombre détenteurs | D70: =SUM(F70:P70) -> 578466 | E70: =IF(ISBLANK($F$5),SUMIFS('Données FDC déc 2018'!$Y:$Y,'Données FDC déc 2018'!$A:$A,Activation!$C$5),IF(ISBLANK($J$5),SUMIFS('Données FDC déc 2018'!$Y:$Y,'Données FDC déc 2018'!$B:$B,Activation!$F$5),SUMIFS('Données FDC déc 2018'!$Y:$Y,'Données FDC déc 2018'!$C:$C,Activation!$J$5))) -> 575924 | F70: =IF(ISBLANK($F$5),SUMIFS('Données FDC'!$Y:$Y,'Données FDC'!$A:$A,Activation!$C$5,'Données FDC'!$E:$E,Activation!F$9),IF(ISBLANK($J$5),SUMIFS('Données FDC'!$Y:$Y,'Données FDC'!$B:$B,Activation!$F$5,'Données FDC'!$E:$E,Activation!F$9),SUMIFS('Données FDC'!$Y:$Y,'Données FDC'!$C:$C,Activation!$J$5,'Données FDC'!$E:$E,Activation!F$9))) -> 268282 | G70: =IF(ISBLANK($F$5),SUMIFS('Données FDC'!$Y:$Y,'Données FDC'!$A:$A,Activation!$C$5,'Données FDC'!$E:$E,Activation!G$9),IF(ISBLANK($J$5),SUMIFS('Données FDC'!$Y:$Y,'Données FDC'!$B:$B,Activation!$F$5,'Données FDC'!$E:$E,Activation!G$9),SUMIFS('Données FDC'!$Y:$Y,'Données FDC'!$C:$C,Activation!$J$5,'Données FDC'!$E:$E,Activation!G$9))) -> 122510 | H70: =IF(ISBLANK($F$5),SUMIFS('Données FDC'!$Y:$Y,'Données FDC'!$A:$A,Activation!$C$5,'Données FDC'!$E:$E,Activation!H$9),IF(ISBLANK($J$5),SUMIFS('Données FDC'!$Y:$Y,'Données FDC'!$B:$B,Activation!$F$5,'Données FDC'!$E:$E,Activation!H$9),SUMIFS('Données FDC'!$Y:$Y,'Données FDC'!$C:$C,Activation!$J$5,'Données FDC'!$E:$E,Activation!H$9))) -> 50212 | I70: =IF(ISBLANK($F$5),SUMIFS('Données FDC'!$Y:$Y,'Données FDC'!$A:$A,Activation!$C$5,'Données FDC'!$E:$E,Activation!I$9),IF(ISBLANK($J$5),SUMIFS('Données FDC'!$Y:$Y,'Données FDC'!$B:$B,Activation!$F$5,'Données FDC'!$E:$E,Activation!I$9),SUMIFS('Données FDC'!$Y:$Y,'Données FDC'!$C:$C,Activation!$J$5,'Données FDC'!$E:$E,Activation!I$9))) -> 44559 | J70: =IF(ISBLANK($F$5),SUMIFS('Données FDC'!$Y:$Y,'Données FDC'!$A:$A,Activation!$C$5,'Données FDC'!$E:$E,Activation!J$9),IF(ISBLANK($J$5),SUMIFS('Données FDC'!$Y:$Y,'Données FDC'!$B:$B,Activation!$F$5,'Données FDC'!$E:$E,Activation!J$9),SUMIFS('Données FDC'!$Y:$Y,'Données FDC'!$C:$C,Activation!$J$5,'Données FDC'!$E:$E,Activation!J$9))) -> 60835 | K70: =IF(ISBLANK($F$5),SUMIFS('Données FDC'!$Y:$Y,'Données FDC'!$A:$A,Activation!$C$5,'Données FDC'!$E:$E,Activation!K$9),IF(ISBLANK($J$5),SUMIFS('Données FDC'!$Y:$Y,'Données FDC'!$B:$B,Activation!$F$5,'Données FDC'!$E:$E,Activation!K$9),SUMIFS('Données FDC'!$Y:$Y,'Données FDC'!$C:$C,Activation!$J$5,'Données FDC'!$E:$E,Activation!K$9))) -> 16688 | L70: =IF(ISBLANK($F$5),SUMIFS('Données FDC'!$Y:$Y,'Données FDC'!$A:$A,Activation!$C$5,'Données FDC'!$E:$E,Activation!L$9),IF(ISBLANK($J$5),SUMIFS('Données FDC'!$Y:$Y,'Données FDC'!$B:$B,Activation!$F$5,'Données FDC'!$E:$E,Activation!L$9),SUMIFS('Données FDC'!$Y:$Y,'Données FDC'!$C:$C,Activation!$J$5,'Données FDC'!$E:$E,Activation!L$9))) -> 3136 | M70: =IF(ISBLANK($F$5),SUMIFS('Données FDC'!$Y:$Y,'Données FDC'!$A:$A,Activation!$C$5,'Données FDC'!$E:$E,Activation!M$9),IF(ISBLANK($J$5),SUMIFS('Données FDC'!$Y:$Y,'Données FDC'!$B:$B,Activation!$F$5,'Données FDC'!$E:$E,Activation!M$9),SUMIFS('Données FDC'!$Y:$Y,'Données FDC'!$C:$C,Activation!$J$5,'Données FDC'!$E:$E,Activation!M$9))) -> 9005 | N70: =IF(ISBLANK($F$5),SUMIFS('Données FDC'!$Y:$Y,'Données FDC'!$A:$A,Activation!$C$5,'Données FDC'!$E:$E,Activation!N$9),IF(ISBLANK($J$5),SUMIFS('Données FDC'!$Y:$Y,'Données FDC'!$B:$B,Activation!$F$5,'Données FDC'!$E:$E,Activation!N$9),SUMIFS('Données FDC'!$Y:$Y,'Données FDC'!$C:$C,Activation!$J$5,'Données FDC'!$E:$E,Activation!N$9))) -> 2162 | O70: =IF(ISBLANK($F$5),SUMIFS('Données FDC'!$Y:$Y,'Données FDC'!$A:$A,Activation!$C$5,'Données FDC'!$E:$E,Activation!O$9),IF(ISBLANK($J$5),SUMIFS('Données FDC'!$Y:$Y,'Données FDC'!$B:$B,Activation!$F$5,'Données FDC'!$E:$E,Activation!O$9),SUMIFS('Données FDC'!$Y:$Y,'Données FDC'!$C:$C,Activation!$J$5,'Données FDC'!$E:$E,Activation!O$9))) -> 849 | P70: =IF(ISBLANK($F$5),SUMIFS('Données FDC'!$Y:$Y,'Données FDC'!$A:$A,Activation!$C$5,'Données FDC'!$E:$E,Activation!P$9),IF(ISBLANK($J$5),SUMIFS('Données FDC'!$Y:$Y,'Données FDC'!$B:$B,Activation!$F$5,'Données FDC'!$E:$E,Activation!P$9),SUMIFS('Données FDC'!$Y:$Y,'Données FDC'!$C:$C,Activation!$J$5,'Données FDC'!$E:$E,Activation!P$9))) -> 228
C71: % détenteurs | D71: =D70/IF(ISBLANK($F$5),SUMIFS('Données FDC'!$I:$I,'Données FDC'!$A:$A,Activation!$C$5),IF(ISBLANK($J$5),SUMIFS('Données FDC'!$I:$I,'Données FDC'!$B:$B,Activation!$F$5),SUMIFS('Données FDC'!$I:$I,'Données FDC'!$C:$C,Activation!$J$5))) -> 0.4144980374 | E71: =E70/IF(ISBLANK($F$5),SUMIFS('Données FDC déc 2018'!$I:$I,'Données FDC déc 2018'!$A:$A,Activation!$C$5),IF(ISBLANK($J$5),SUMIFS('Données FDC déc 2018'!$I:$I,'Données FDC déc 2018'!$B:$B,Activation!$F$5),SUMIFS('Données FDC déc 2018'!$I:$I,'Données FDC déc 2018'!$C:$C,Activation!$J$5))) -> 0.4019567267 | F71: =F70/IF(ISBLANK($F$5),SUMIFS('Données FDC'!$I:$I,'Données FDC'!$A:$A,Activation!$C$5,'Données FDC'!$E:$E,Activation!F$9),IF(ISBLANK($J$5),SUMIFS('Données FDC'!$I:$I,'Données FDC'!$B:$B,Activation!$F$5,'Données FDC'!$E:$E,Activation!F$9),SUMIFS('Données FDC'!$I:$I,'Données FDC'!$C:$C,Activation!$J$5,'Données FDC'!$E:$E,Activation!F$9))) -> 0.9721947419 | G71: =G70/IF(ISBLANK($F$5),SUMIFS('Données FDC'!$I:$I,'Données FDC'!$A:$A,Activation!$C$5,'Données FDC'!$E:$E,Activation!G$9),IF(ISBLANK($J$5),SUMIFS('Données FDC'!$I:$I,'Données FDC'!$B:$B,Activation!$F$5,'Données FDC'!$E:$E,Activation!G$9),SUMIFS('Données FDC'!$I:$I,'Données FDC'!$C:$C,Activation!$J$5,'Données FDC'!$E:$E,Activation!G$9))) -> 0.7592293057 | H71: =H70/IF(ISBLANK($F$5),SUMIFS('Données FDC'!$I:$I,'Données FDC'!$A:$A,Activation!$C$5,'Données FDC'!$E:$E,Activation!H$9),IF(ISBLANK($J$5),SUMIFS('Données FDC'!$I:$I,'Données FDC'!$B:$B,Activation!$F$5,'Données FDC'!$E:$E,Activation!H$9),SUMIFS('Données FDC'!$I:$I,'Données FDC'!$C:$C,Activation!$J$5,'Données FDC'!$E:$E,Activation!H$9))) -> 0.2958537347 | I71: =I70/IF(ISBLANK($F$5),SUMIFS('Données FDC'!$I:$I,'Données FDC'!$A:$A,Activation!$C$5,'Données FDC'!$E:$E,Activation!I$9),IF(ISBLANK($J$5),SUMIFS('Données FDC'!$I:$I,'Données FDC'!$B:$B,Activation!$F$5,'Données FDC'!$E:$E,Activation!I$9),SUMIFS('Données FDC'!$I:$I,'Données FDC'!$C:$C,Activation!$J$5,'Données FDC'!$E:$E,Activation!I$9))) -> 0.1256669863 | J71: =J70/IF(ISBLANK($F$5),SUMIFS('Données FDC'!$I:$I,'Données FDC'!$A:$A,Activation!$C$5,'Données FDC'!$E:$E,Activation!J$9),IF(ISBLANK($J$5),SUMIFS('Données FDC'!$I:$I,'Données FDC'!$B:$B,Activation!$F$5,'Données FDC'!$E:$E,Activation!J$9),SUMIFS('Données FDC'!$I:$I,'Données FDC'!$C:$C,Activation!$J$5,'Données FDC'!$E:$E,Activation!J$9))) -> 0.9940684336 | K71: =K70/IF(ISBLANK($F$5),SUMIFS('Données FDC'!$I:$I,'Données FDC'!$A:$A,Activation!$C$5,'Données FDC'!$E:$E,Activation!K$9),IF(ISBLANK($J$5),SUMIFS('Données FDC'!$I:$I,'Données FDC'!$B:$B,Activation!$F$5,'Données FDC'!$E:$E,Activation!K$9),SUMIFS('Données FDC'!$I:$I,'Données FDC'!$C:$C,Activation!$J$5,'Données FDC'!$E:$E,Activation!K$9))) -> 0.935426009 | L71: =L70/IF(ISBLANK($F$5),SUMIFS('Données FDC'!$I:$I,'Données FDC'!$A:$A,Activation!$C$5,'Données FDC'!$E:$E,Activation!L$9),IF(ISBLANK($J$5),SUMIFS('Données FDC'!$I:$I,'Données FDC'!$B:$B,Activation!$F$5,'Données FDC'!$E:$E,Activation!L$9),SUMIFS('Données FDC'!$I:$I,'Données FDC'!$C:$C,Activation!$J$5,'Données FDC'!$E:$E,Activation!L$9))) -> 0.2962403174 | M71: =M70/IF(ISBLANK($F$5),SUMIFS('Données FDC'!$I:$I,'Données FDC'!$A:$A,Activation!$C$5,'Données FDC'!$E:$E,Activation!M$9),IF(ISBLANK($J$5),SUMIFS('Données FDC'!$I:$I,'Données FDC'!$B:$B,Activation!$F$5,'Données FDC'!$E:$E,Activation!M$9),SUMIFS('Données FDC'!$I:$I,'Données FDC'!$C:$C,Activation!$J$5,'Données FDC'!$E:$E,Activation!M$9))) -> 0.1199307452 | N71: =N70/IF(ISBLANK($F$5),SUMIFS('Données FDC'!$I:$I,'Données FDC'!$A:$A,Activation!$C$5,'Données FDC'!$E:$E,Activation!N$9),IF(ISBLANK($J$5),SUMIFS('Données FDC'!$I:$I,'Données FDC'!$B:$B,Activation!$F$5,'Données FDC'!$E:$E,Activation!N$9),SUMIFS('Données FDC'!$I:$I,'Données FDC'!$C:$C,Activation!$J$5,'Données FDC'!$E:$E,Activation!N$9))) -> 0.0867576244 | O71: =O70/IF(ISBLANK($F$5),SUMIFS('Données FDC'!$I:$I,'Données FDC'!$A:$A,Activation!$C$5,'Données FDC'!$E:$E,Activation!O$9),IF(ISBLANK($J$5),SUMIFS('Données FDC'!$I:$I,'Données FDC'!$B:$B,Activation!$F$5,'Données FDC'!$E:$E,Activation!O$9),SUMIFS('Données FDC'!$I:$I,'Données FDC'!$C:$C,Activation!$J$5,'Données FDC'!$E:$E,Activation!O$9))) -> 0.03220544723 | P71: =P70/IF(ISBLANK($F$5),SUMIFS('Données FDC'!$I:$I,'Données FDC'!$A:$A,Activation!$C$5,'Données FDC'!$E:$E,Activation!P$9),IF(ISBLANK($J$5),SUMIFS('Données FDC'!$I:$I,'Données FDC'!$B:$B,Activation!$F$5,'Données FDC'!$E:$E,Activation!P$9),SUMIFS('Données FDC'!$I:$I,'Données FDC'!$C:$C,Activation!$J$5,'Données FDC'!$E:$E,Activation!P$9))) -> 0.001045986714
C72: % détenteurs CEGEE | D72: =SUM('Données FDC'!$Y:$Y)/SUM('Données FDC'!$I:$I) -> 0.4144980374 | E72: =SUM('Données FDC déc 2018'!$Y:$Y)/SUM('Données FDC déc 2018'!$I:$I) -> 0.4019567267 | F72: =SUMIF('Données FDC'!$E:$E,Activation!F$9,'Données FDC'!$Y:$Y)/SUMIF('Données FDC'!$E:$E,Activation!F$9,'Données FDC'!$I:$I) -> 0.9721947419 | G72: =SUMIF('Données FDC'!$E:$E,Activation!G$9,'Données FDC'!$Y:$Y)/SUMIF('Données FDC'!$E:$E,Activation!G$9,'Données FDC'!$I:$I) -> 0.7592293057 | H72: =SUMIF('Données FDC'!$E:$E,Activation!H$9,'Données FDC'!$Y:$Y)/SUMIF('Données FDC'!$E:$E,Activation!H$9,'Données FDC'!$I:$I) -> 0.2958537347 | I72: =SUMIF('Données FDC'!$E:$E,Activation!I$9,'Données FDC'!$Y:$Y)/SUMIF('Données FDC'!$E:$E,Activation!I$9,'Données FDC'!$I:$I) -> 0.1256669863 | J72: =SUMIF('Données FDC'!$E:$E,Activation!J$9,'Données FDC'!$Y:$Y)/SUMIF('Données FDC'!$E:$E,Activation!J$9,'Données FDC'!$I:$I) -> 0.9940684336 | K72: =SUMIF('Données FDC'!$E:$E,Activation!K$9,'Données FDC'!$Y:$Y)/SUMIF('Données FDC'!$E:$E,Activation!K$9,'Données FDC'!$I:$I) -> 0.935426009 | L72: =SUMIF('Données FDC'!$E:$E,Activation!L$9,'Données FDC'!$Y:$Y)/SUMIF('Données FDC'!$E:$E,Activation!L$9,'Données FDC'!$I:$I) -> 0.2962403174 | M72: =SUMIF('Données FDC'!$E:$E,Activation!M$9,'Données FDC'!$Y:$Y)/SUMIF('Données FDC'!$E:$E,Activation!M$9,'Données FDC'!$I:$I) -> 0.1199307452 | N72: =SUMIF('Données FDC'!$E:$E,Activation!N$9,'Données FDC'!$Y:$Y)/SUMIF('Données FDC'!$E:$E,Activation!N$9,'Données FDC'!$I:$I) -> 0.0867576244 | O72: =SUMIF('Données FDC'!$E:$E,Activation!O$9,'Données FDC'!$Y:$Y)/SUMIF('Données FDC'!$E:$E,Activation!O$9,'Données FDC'!$I:$I) -> 0.03220544723 | P72: =SUMIF('Données FDC'!$E:$E,Activation!P$9,'Données FDC'!$Y:$Y)/SUMIF('Données FDC'!$E:$E,Activation!P$9,'Données FDC'!$I:$I) -> 0.001045986714
B73: Izicarte (majeurs) | C73: Variation | D73: =SUM(F73:P73) -> 10388 | F73: =F74-IF(ISBLANK($F$5),SUMIFS('Données FDC déc 2018'!$Z:$Z,'Données FDC déc 2018'!$A:$A,Activation!$C$5,'Données FDC déc 2018'!$E:$E,Activation!F$9),IF(ISBLANK($J$5),SUMIFS('Données FDC déc 2018'!$Z:$Z,'Données FDC déc 2018'!$B:$B,Activation!$F$5,'Données FDC déc 2018'!$E:$E,Activation!F$9),SUMIFS('Données FDC déc 2018'!$Z:$Z,'Données FDC déc 2018'!$C:$C,Activation!$J$5,'Données FDC déc 2018'!$E:$E,Activation!F$9))) -> 6089 | G73: =G74-IF(ISBLANK($F$5),SUMIFS('Données FDC déc 2018'!$Z:$Z,'Données FDC déc 2018'!$A:$A,Activation!$C$5,'Données FDC déc 2018'!$E:$E,Activation!G$9),IF(ISBLANK($J$5),SUMIFS('Données FDC déc 2018'!$Z:$Z,'Données FDC déc 2018'!$B:$B,Activation!$F$5,'Données FDC déc 2018'!$E:$E,Activation!G$9),SUMIFS('Données FDC déc 2018'!$Z:$Z,'Données FDC déc 2018'!$C:$C,Activation!$J$5,'Données FDC déc 2018'!$E:$E,Activation!G$9))) -> 1251 | H73: =H74-IF(ISBLANK($F$5),SUMIFS('Données FDC déc 2018'!$Z:$Z,'Données FDC déc 2018'!$A:$A,Activation!$C$5,'Données FDC déc 2018'!$E:$E,Activation!H$9),IF(ISBLANK($J$5),SUMIFS('Données FDC déc 2018'!$Z:$Z,'Données FDC déc 2018'!$B:$B,Activation!$F$5,'Données FDC déc 2018'!$E:$E,Activation!H$9),SUMIFS('Données FDC déc 2018'!$Z:$Z,'Données FDC déc 2018'!$C:$C,Activation!$J$5,'Données FDC déc 2018'!$E:$E,Activation!H$9))) -> 942 | I73: =I74-IF(ISBLANK($F$5),SUMIFS('Données FDC déc 2018'!$Z:$Z,'Données FDC déc 2018'!$A:$A,Activation!$C$5,'Données FDC déc 2018'!$E:$E,Activation!I$9),IF(ISBLANK($J$5),SUMIFS('Données FDC déc 2018'!$Z:$Z,'Données FDC déc 2018'!$B:$B,Activation!$F$5,'Données FDC déc 2018'!$E:$E,Activation!I$9),SUMIFS('Données FDC déc 2018'!$Z:$Z,'Données FDC déc 2018'!$C:$C,Activation!$J$5,'Données FDC déc 2018'!$E:$E,Activation!I$9))) -> 847 | J73: =J74-IF(ISBLANK($F$5),SUMIFS('Données FDC déc 2018'!$Z:$Z,'Données FDC déc 2018'!$A:$A,Activation!$C$5,'Données FDC déc 2018'!$E:$E,Activation!J$9),IF(ISBLANK($J$5),SUMIFS('Données FDC déc 2018'!$Z:$Z,'Données FDC déc 2018'!$B:$B,Activation!$F$5,'Données FDC déc 2018'!$E:$E,Activation!J$9),SUMIFS('Données FDC déc 2018'!$Z:$Z,'Données FDC déc 2018'!$C:$C,Activation!$J$5,'Données FDC déc 2018'!$E:$E,Activation!J$9))) -> 1063 | K73: =K74-IF(ISBLANK($F$5),SUMIFS('Données FDC déc 2018'!$Z:$Z,'Données FDC déc 2018'!$A:$A,Activation!$C$5,'Données FDC déc 2018'!$E:$E,Activation!K$9),IF(ISBLANK($J$5),SUMIFS('Données FDC déc 2018'!$Z:$Z,'Données FDC déc 2018'!$B:$B,Activation!$F$5,'Données FDC déc 2018'!$E:$E,Activation!K$9),SUMIFS('Données FDC déc 2018'!$Z:$Z,'Données FDC déc 2018'!$C:$C,Activation!$J$5,'Données FDC déc 2018'!$E:$E,Activation!K$9))) -> 63 | L73: =L74-IF(ISBLANK($F$5),SUMIFS('Données FDC déc 2018'!$Z:$Z,'Données FDC déc 2018'!$A:$A,Activation!$C$5,'Données FDC déc 2018'!$E:$E,Activation!L$9),IF(ISBLANK($J$5),SUMIFS('Données FDC déc 2018'!$Z:$Z,'Données FDC déc 2018'!$B:$B,Activation!$F$5,'Données FDC déc 2018'!$E:$E,Activation!L$9),SUMIFS('Données FDC déc 2018'!$Z:$Z,'Données FDC déc 2018'!$C:$C,Activation!$J$5,'Données FDC déc 2018'!$E:$E,Activation!L$9))) -> 50 | M73: =M74-IF(ISBLANK($F$5),SUMIFS('Données FDC déc 2018'!$Z:$Z,'Données FDC déc 2018'!$A:$A,Activation!$C$5,'Données FDC déc 2018'!$E:$E,Activation!M$9),IF(ISBLANK($J$5),SUMIFS('Données FDC déc 2018'!$Z:$Z,'Données FDC déc 2018'!$B:$B,Activation!$F$5,'Données FDC déc 2018'!$E:$E,Activation!M$9),SUMIFS('Données FDC déc 2018'!$Z:$Z,'Données FDC déc 2018'!$C:$C,Activation!$J$5,'Données FDC déc 2018'!$E:$E,Activation!M$9))) -> 83 | P73: =P74-IF(ISBLANK($F$5),SUMIFS('Données FDC déc 2018'!$Z:$Z,'Données FDC déc 2018'!$A:$A,Activation!$C$5,'Données FDC déc 2018'!$E:$E,Activation!P$9),IF(ISBLANK($J$5),SUMIFS('Données FDC déc 2018'!$Z:$Z,'Données FDC déc 2018'!$B:$B,Activation!$F$5,'Données FDC déc 2018'!$E:$E,Activation!P$9),SUMIFS('Données FDC déc 2018'!$Z:$Z,'Données FDC déc 2018'!$C:$C,Activation!$J$5,'Données FDC déc 2018'!$E:$E,Activation!P$9))) -> 0
C74: Nombre détenteurs | D74: =SUM(F74:P74) -> 191590 | E74: =IF(ISBLANK($F$5),SUMIFS('Données FDC déc 2018'!$Z:$Z,'Données FDC déc 2018'!$A:$A,Activation!$C$5),IF(ISBLANK($J$5),SUMIFS('Données FDC déc 2018'!$Z:$Z,'Données FDC déc 2018'!$B:$B,Activation!$F$5),SUMIFS('Données FDC déc 2018'!$Z:$Z,'Données FDC déc 2018'!$C:$C,Activation!$J$5))) -> 181203 | F74: =IF(ISBLANK($F$5),SUMIFS('Données FDC'!$Z:$Z,'Données FDC'!$A:$A,Activation!$C$5,'Données FDC'!$E:$E,Activation!F$9),IF(ISBLANK($J$5),SUMIFS('Données FDC'!$Z:$Z,'Données FDC'!$B:$B,Activation!$F$5,'Données FDC'!$E:$E,Activation!F$9),SUMIFS('Données FDC'!$Z:$Z,'Données FDC'!$C:$C,Activation!$J$5,'Données FDC'!$E:$E,Activation!F$9))) -> 140230 | G74: =IF(ISBLANK($F$5),SUMIFS('Données FDC'!$Z:$Z,'Données FDC'!$A:$A,Activation!$C$5,'Données FDC'!$E:$E,Activation!G$9),IF(ISBLANK($J$5),SUMIFS('Données FDC'!$Z:$Z,'Données FDC'!$B:$B,Activation!$F$5,'Données FDC'!$E:$E,Activation!G$9),SUMIFS('Données FDC'!$Z:$Z,'Données FDC'!$C:$C,Activation!$J$5,'Données FDC'!$E:$E,Activation!G$9))) -> 28649 | H74: =IF(ISBLANK($F$5),SUMIFS('Données FDC'!$Z:$Z,'Données FDC'!$A:$A,Activation!$C$5,'Données FDC'!$E:$E,Activation!H$9),IF(ISBLANK($J$5),SUMIFS('Données FDC'!$Z:$Z,'Données FDC'!$B:$B,Activation!$F$5,'Données FDC'!$E:$E,Activation!H$9),SUMIFS('Données FDC'!$Z:$Z,'Données FDC'!$C:$C,Activation!$J$5,'Données FDC'!$E:$E,Activation!H$9))) -> 10000 | I74: =IF(ISBLANK($F$5),SUMIFS('Données FDC'!$Z:$Z,'Données FDC'!$A:$A,Activation!$C$5,'Données FDC'!$E:$E,Activation!I$9),IF(ISBLANK($J$5),SUMIFS('Données FDC'!$Z:$Z,'Données FDC'!$B:$B,Activation!$F$5,'Données FDC'!$E:$E,Activation!I$9),SUMIFS('Données FDC'!$Z:$Z,'Données FDC'!$C:$C,Activation!$J$5,'Données FDC'!$E:$E,Activation!I$9))) -> 4686 | J74: =IF(ISBLANK($F$5),SUMIFS('Données FDC'!$Z:$Z,'Données FDC'!$A:$A,Activation!$C$5,'Données FDC'!$E:$E,Activation!J$9),IF(ISBLANK($J$5),SUMIFS('Données FDC'!$Z:$Z,'Données FDC'!$B:$B,Activation!$F$5,'Données FDC'!$E:$E,Activation!J$9),SUMIFS('Données FDC'!$Z:$Z,'Données FDC'!$C:$C,Activation!$J$5,'Données FDC'!$E:$E,Activation!J$9))) -> 7456 | K74: =IF(ISBLANK($F$5),SUMIFS('Données FDC'!$Z:$Z,'Données FDC'!$A:$A,Activation!$C$5,'Données FDC'!$E:$E,Activation!K$9),IF(ISBLANK($J$5),SUMIFS('Données FDC'!$Z:$Z,'Données FDC'!$B:$B,Activation!$F$5,'Données FDC'!$E:$E,Activation!K$9),SUMIFS('Données FDC'!$Z:$Z,'Données FDC'!$C:$C,Activation!$J$5,'Données FDC'!$E:$E,Activation!K$9))) -> 356 | L74: =IF(ISBLANK($F$5),SUMIFS('Données FDC'!$Z:$Z,'Données FDC'!$A:$A,Activation!$C$5,'Données FDC'!$E:$E,Activation!L$9),IF(ISBLANK($J$5),SUMIFS('Données FDC'!$Z:$Z,'Données FDC'!$B:$B,Activation!$F$5,'Données FDC'!$E:$E,Activation!L$9),SUMIFS('Données FDC'!$Z:$Z,'Données FDC'!$C:$C,Activation!$J$5,'Données FDC'!$E:$E,Activation!L$9))) -> 73 | M74: =IF(ISBLANK($F$5),SUMIFS('Données FDC'!$Z:$Z,'Données FDC'!$A:$A,Activation!$C$5,'Données FDC'!$E:$E,Activation!M$9),IF(ISBLANK($J$5),SUMIFS('Données FDC'!$Z:$Z,'Données FDC'!$B:$B,Activation!$F$5,'Données FDC'!$E:$E,Activation!M$9),SUMIFS('Données FDC'!$Z:$Z,'Données FDC'!$C:$C,Activation!$J$5,'Données FDC'!$E:$E,Activation!M$9))) -> 139 | P74: =IF(ISBLANK($F$5),SUMIFS('Données FDC'!$Z:$Z,'Données FDC'!$A:$A,Activation!$C$5,'Données FDC'!$E:$E,Activation!P$9),IF(ISBLANK($J$5),SUMIFS('Données FDC'!$Z:$Z,'Données FDC'!$B:$B,Activation!$F$5,'Données FDC'!$E:$E,Activation!P$9),SUMIFS('Données FDC'!$Z:$Z,'Données FDC'!$C:$C,Activation!$J$5,'Données FDC'!$E:$E,Activation!P$9))) -> 1
C75: % détenteurs | D75: =D74/(IF(ISBLANK($F$5),SUMIFS('Données FDC'!$J:$J,'Données FDC'!$A:$A,Activation!$C$5),IF(ISBLANK($J$5),SUMIFS('Données FDC'!$J:$J,'Données FDC'!$B:$B,Activation!$F$5),SUMIFS('Données FDC'!$J:$J,'Données FDC'!$C:$C,Activation!$J$5)))) -> 0.1457607725 | E75: =E74/IF(ISBLANK($F$5),SUMIFS('Données FDC déc 2018'!$J:$J,'Données FDC déc 2018'!$A:$A,Activation!$C$5),IF(ISBLANK($J$5),SUMIFS('Données FDC déc 2018'!$J:$J,'Données FDC déc 2018'!$B:$B,Activation!$F$5),SUMIFS('Données FDC déc 2018'!$J:$J,'Données FDC déc 2018'!$C:$C,Activation!$J$5))) -> 0.1343882986 | F75: =F74/(IF(ISBLANK($F$5),SUMIFS('Données FDC'!$J:$J,'Données FDC'!$A:$A,Activation!$C$5,'Données FDC'!$E:$E,Activation!F$9),IF(ISBLANK($J$5),SUMIFS('Données FDC'!$J:$J,'Données FDC'!$B:$B,Activation!$F$5,'Données FDC'!$E:$E,Activation!F$9),SUMIFS('Données FDC'!$J:$J,'Données FDC'!$C:$C,Activation!$J$5,'Données FDC'!$E:$E,Activation!F$9)))) -> 0.5081625627 | G75: =G74/(IF(ISBLANK($F$5),SUMIFS('Données FDC'!$J:$J,'Données FDC'!$A:$A,Activation!$C$5,'Données FDC'!$E:$E,Activation!G$9),IF(ISBLANK($J$5),SUMIFS('Données FDC'!$J:$J,'Données FDC'!$B:$B,Activation!$F$5,'Données FDC'!$E:$E,Activation!G$9),SUMIFS('Données FDC'!$J:$J,'Données FDC'!$C:$C,Activation!$J$5,'Données FDC'!$E:$E,Activation!G$9)))) -> 0.1775459993 | H75: =H74/(IF(ISBLANK($F$5),SUMIFS('Données FDC'!$J:$J,'Données FDC'!$A:$A,Activation!$C$5,'Données FDC'!$E:$E,Activation!H$9),IF(ISBLANK($J$5),SUMIFS('Données FDC'!$J:$J,'Données FDC'!$B:$B,Activation!$F$5,'Données FDC'!$E:$E,Activation!H$9),SUMIFS('Données FDC'!$J:$J,'Données FDC'!$C:$C,Activation!$J$5,'Données FDC'!$E:$E,Activation!H$9)))) -> 0.05892092223 | I75: =I74/(IF(ISBLANK($F$5),SUMIFS('Données FDC'!$J:$J,'Données FDC'!$A:$A,Activation!$C$5,'Données FDC'!$E:$E,Activation!I$9),IF(ISBLANK($J$5),SUMIFS('Données FDC'!$J:$J,'Données FDC'!$B:$B,Activation!$F$5,'Données FDC'!$E:$E,Activation!I$9),SUMIFS('Données FDC'!$J:$J,'Données FDC'!$C:$C,Activation!$J$5,'Données FDC'!$E:$E,Activation!I$9)))) -> 0.0132156354 | J75: =J74/(IF(ISBLANK($F$5),SUMIFS('Données FDC'!$J:$J,'Données FDC'!$A:$A,Activation!$C$5,'Données FDC'!$E:$E,Activation!J$9),IF(ISBLANK($J$5),SUMIFS('Données FDC'!$J:$J,'Données FDC'!$B:$B,Activation!$F$5,'Données FDC'!$E:$E,Activation!J$9),SUMIFS('Données FDC'!$J:$J,'Données FDC'!$C:$C,Activation!$J$5,'Données FDC'!$E:$E,Activation!J$9)))) -> 0.1275336538 | K75: =K74/(IF(ISBLANK($F$5),SUMIFS('Données FDC'!$J:$J,'Données FDC'!$A:$A,Activation!$C$5,'Données FDC'!$E:$E,Activation!K$9),IF(ISBLANK($J$5),SUMIFS('Données FDC'!$J:$J,'Données FDC'!$B:$B,Activation!$F$5,'Données FDC'!$E:$E,Activation!K$9),SUMIFS('Données FDC'!$J:$J,'Données FDC'!$C:$C,Activation!$J$5,'Données FDC'!$E:$E,Activation!K$9)))) -> 0.02197259598 | L75: =L74/(IF(ISBLANK($F$5),SUMIFS('Données FDC'!$J:$J,'Données FDC'!$A:$A,Activation!$C$5,'Données FDC'!$E:$E,Activation!L$9),IF(ISBLANK($J$5),SUMIFS('Données FDC'!$J:$J,'Données FDC'!$B:$B,Activation!$F$5,'Données FDC'!$E:$E,Activation!L$9),SUMIFS('Données FDC'!$J:$J,'Données FDC'!$C:$C,Activation!$J$5,'Données FDC'!$E:$E,Activation!L$9)))) -> 0.01181420942 | M75: =M74/(IF(ISBLANK($F$5),SUMIFS('Données FDC'!$J:$J,'Données FDC'!$A:$A,Activation!$C$5,'Données FDC'!$E:$E,Activation!M$9),IF(ISBLANK($J$5),SUMIFS('Données FDC'!$J:$J,'Données FDC'!$B:$B,Activation!$F$5,'Données FDC'!$E:$E,Activation!M$9),SUMIFS('Données FDC'!$J:$J,'Données FDC'!$C:$C,Activation!$J$5,'Données FDC'!$E:$E,Activation!M$9)))) -> 0.002575075492 | P75: =P74/(IF(ISBLANK($F$5),SUMIFS('Données FDC'!$J:$J,'Données FDC'!$A:$A,Activation!$C$5,'Données FDC'!$E:$E,Activation!P$9),IF(ISBLANK($J$5),SUMIFS('Données FDC'!$J:$J,'Données FDC'!$B:$B,Activation!$F$5,'Données FDC'!$E:$E,Activation!P$9),SUMIFS('Données FDC'!$J:$J,'Données FDC'!$C:$C,Activation!$J$5,'Données FDC'!$E:$E,Activation!P$9)))) -> 4.587661027e-06
C76: % détenteurs CEGEE | D76: =SUM('Données FDC'!$Z:$Z)/SUM('Données FDC'!$J:$J) -> 0.1457607725 | E76: =SUM('Données FDC déc 2018'!$Z:$Z)/SUM('Données FDC déc 2018'!$J:$J) -> 0.1343882986 | F76: =SUMIF('Données FDC'!$E:$E,Activation!F$9,'Données FDC'!$Z:$Z)/SUMIF('Données FDC'!$E:$E,Activation!F$9,'Données FDC'!$J:$J) -> 0.5081625627 | G76: =SUMIF('Données FDC'!$E:$E,Activation!G$9,'Données FDC'!$Z:$Z)/SUMIF('Données FDC'!$E:$E,Activation!G$9,'Données FDC'!$J:$J) -> 0.1775459993 | H76: =SUMIF('Données FDC'!$E:$E,Activation!H$9,'Données FDC'!$Z:$Z)/SUMIF('Données FDC'!$E:$E,Activation!H$9,'Données FDC'!$J:$J) -> 0.05892092223 | I76: =SUMIF('Données FDC'!$E:$E,Activation!I$9,'Données FDC'!$Z:$Z)/SUMIF('Données FDC'!$E:$E,Activation!I$9,'Données FDC'!$J:$J) -> 0.0132156354 | J76: =SUMIF('Données FDC'!$E:$E,Activation!J$9,'Données FDC'!$Z:$Z)/SUMIF('Données FDC'!$E:$E,Activation!J$9,'Données FDC'!$J:$J) -> 0.1275336538 | K76: =SUMIF('Données FDC'!$E:$E,Activation!K$9,'Données FDC'!$Z:$Z)/SUMIF('Données FDC'!$E:$E,Activation!K$9,'Données FDC'!$J:$J) -> 0.02197259598 | L76: =SUMIF('Données FDC'!$E:$E,Activation!L$9,'Données FDC'!$Z:$Z)/SUMIF('Données FDC'!$E:$E,Activation!L$9,'Données FDC'!$J:$J) -> 0.01181420942 | M76: =SUMIF('Données FDC'!$E:$E,Activation!M$9,'Données FDC'!$Z:$Z)/SUMIF('Données FDC'!$E:$E,Activation!M$9,'Données FDC'!$J:$J) -> 0.002575075492 | P76: =SUMIF('Données FDC'!$E:$E,Activation!P$9,'Données FDC'!$Z:$Z)/SUMIF('Données FDC'!$E:$E,Activation!P$9,'Données FDC'!$J:$J) -> 4.587661027e-06
B77: Cartes HDG (1er, Platinum, Infinite) (majeurs) | C77: Variation | D77: =SUM(F77:P77) -> 22256 | F77: =F78-IF(ISBLANK($F$5),SUMIFS('Données FDC déc 2018'!$AA:$AA,'Données FDC déc 2018'!$A:$A,Activation!$C$5,'Données FDC déc 2018'!$E:$E,Activation!F$9),IF(ISBLANK($J$5),SUMIFS('Données FDC déc 2018'!$AA:$AA,'Données FDC déc 2018'!$B:$B,Activation!$F$5,'Données FDC déc 2018'!$E:$E,Activation!F$9),SUMIFS('Données FDC déc 2018'!$AA:$AA,'Données FDC déc 2018'!$C:$C,Activation!$J$5,'Données FDC déc 2018'!$E:$E,Activation!F$9))) -> 10999 | G77: =G78-IF(ISBLANK($F$5),SUMIFS('Données FDC déc 2018'!$AA:$AA,'Données FDC déc 2018'!$A:$A,Activation!$C$5,'Données FDC déc 2018'!$E:$E,Activation!G$9),IF(ISBLANK($J$5),SUMIFS('Données FDC déc 2018'!$AA:$AA,'Données FDC déc 2018'!$B:$B,Activation!$F$5,'Données FDC déc 2018'!$E:$E,Activation!G$9),SUMIFS('Données FDC déc 2018'!$AA:$AA,'Données FDC déc 2018'!$C:$C,Activation!$J$5,'Données FDC déc 2018'!$E:$E,Activation!G$9))) -> 2906 | H77: =H78-IF(ISBLANK($F$5),SUMIFS('Données FDC déc 2018'!$AA:$AA,'Données FDC déc 2018'!$A:$A,Activation!$C$5,'Données FDC déc 2018'!$E:$E,Activation!H$9),IF(ISBLANK($J$5),SUMIFS('Données FDC déc 2018'!$AA:$AA,'Données FDC déc 2018'!$B:$B,Activation!$F$5,'Données FDC déc 2018'!$E:$E,Activation!H$9),SUMIFS('Données FDC déc 2018'!$AA:$AA,'Données FDC déc 2018'!$C:$C,Activation!$J$5,'Données FDC déc 2018'!$E:$E,Activation!H$9))) -> 1398 | I77: =I78-IF(ISBLANK($F$5),SUMIFS('Données FDC déc 2018'!$AA:$AA,'Données FDC déc 2018'!$A:$A,Activation!$C$5,'Données FDC déc 2018'!$E:$E,Activation!I$9),IF(ISBLANK($J$5),SUMIFS('Données FDC déc 2018'!$AA:$AA,'Données FDC déc 2018'!$B:$B,Activation!$F$5,'Données FDC déc 2018'!$E:$E,Activation!I$9),SUMIFS('Données FDC déc 2018'!$AA:$AA,'Données FDC déc 2018'!$C:$C,Activation!$J$5,'Données FDC déc 2018'!$E:$E,Activation!I$9))) -> 1201 | J77: =J78-IF(ISBLANK($F$5),SUMIFS('Données FDC déc 2018'!$AA:$AA,'Données FDC déc 2018'!$A:$A,Activation!$C$5,'Données FDC déc 2018'!$E:$E,Activation!J$9),IF(ISBLANK($J$5),SUMIFS('Données FDC déc 2018'!$AA:$AA,'Données FDC déc 2018'!$B:$B,Activation!$F$5,'Données FDC déc 2018'!$E:$E,Activation!J$9),SUMIFS('Données FDC déc 2018'!$AA:$AA,'Données FDC déc 2018'!$C:$C,Activation!$J$5,'Données FDC déc 2018'!$E:$E,Activation!J$9))) -> 4844 | K77: =K78-IF(ISBLANK($F$5),SUMIFS('Données FDC déc 2018'!$AA:$AA,'Données FDC déc 2018'!$A:$A,Activation!$C$5,'Données FDC déc 2018'!$E:$E,Activation!K$9),IF(ISBLANK($J$5),SUMIFS('Données FDC déc 2018'!$AA:$AA,'Données FDC déc 2018'!$B:$B,Activation!$F$5,'Données FDC déc 2018'!$E:$E,Activation!K$9),SUMIFS('Données FDC déc 2018'!$AA:$AA,'Données FDC déc 2018'!$C:$C,Activation!$J$5,'Données FDC déc 2018'!$E:$E,Activation!K$9))) -> 421 | L77: =L78-IF(ISBLANK($F$5),SUMIFS('Données FDC déc 2018'!$AA:$AA,'Données FDC déc 2018'!$A:$A,Activation!$C$5,'Données FDC déc 2018'!$E:$E,Activation!L$9),IF(ISBLANK($J$5),SUMIFS('Données FDC déc 2018'!$AA:$AA,'Données FDC déc 2018'!$B:$B,Activation!$F$5,'Données FDC déc 2018'!$E:$E,Activation!L$9),SUMIFS('Données FDC déc 2018'!$AA:$AA,'Données FDC déc 2018'!$C:$C,Activation!$J$5,'Données FDC déc 2018'!$E:$E,Activation!L$9))) -> 155 | M77: =M78-IF(ISBLANK($F$5),SUMIFS('Données FDC déc 2018'!$AA:$AA,'Données FDC déc 2018'!$A:$A,Activation!$C$5,'Données FDC déc 2018'!$E:$E,Activation!M$9),IF(ISBLANK($J$5),SUMIFS('Données FDC déc 2018'!$AA:$AA,'Données FDC déc 2018'!$B:$B,Activation!$F$5,'Données FDC déc 2018'!$E:$E,Activation!M$9),SUMIFS('Données FDC déc 2018'!$AA:$AA,'Données FDC déc 2018'!$C:$C,Activation!$J$5,'Données FDC déc 2018'!$E:$E,Activation!M$9))) -> 331 | P77: =P78-IF(ISBLANK($F$5),SUMIFS('Données FDC déc 2018'!$AA:$AA,'Données FDC déc 2018'!$A:$A,Activation!$C$5,'Données FDC déc 2018'!$E:$E,Activation!P$9),IF(ISBLANK($J$5),SUMIFS('Données FDC déc 2018'!$AA:$AA,'Données FDC déc 2018'!$B:$B,Activation!$F$5,'Données FDC déc 2018'!$E:$E,Activation!P$9),SUMIFS('Données FDC déc 2018'!$AA:$AA,'Données FDC déc 2018'!$C:$C,Activation!$J$5,'Données FDC déc 2018'!$E:$E,Activation!P$9))) -> 1
C78: Nombre détenteurs | D78: =SUM(F78:P78) -> 174524 | E78: =IF(ISBLANK($F$5),SUMIFS('Données FDC déc 2018'!$AA:$AA,'Données FDC déc 2018'!$A:$A,Activation!$C$5),IF(ISBLANK($J$5),SUMIFS('Données FDC déc 2018'!$AA:$AA,'Données FDC déc 2018'!$B:$B,Activation!$F$5),SUMIFS('Données FDC déc 2018'!$AA:$AA,'Données FDC déc 2018'!$C:$C,Activation!$J$5))) -> 152268 | F78: =IF(ISBLANK($F$5),SUMIFS('Données FDC'!$AA:$AA,'Données FDC'!$A:$A,Activation!$C$5,'Données FDC'!$E:$E,Activation!F$9),IF(ISBLANK($J$5),SUMIFS('Données FDC'!$AA:$AA,'Données FDC'!$B:$B,Activation!$F$5,'Données FDC'!$E:$E,Activation!F$9),SUMIFS('Données FDC'!$AA:$AA,'Données FDC'!$C:$C,Activation!$J$5,'Données FDC'!$E:$E,Activation!F$9))) -> 106020 | G78: =IF(ISBLANK($F$5),SUMIFS('Données FDC'!$AA:$AA,'Données FDC'!$A:$A,Activation!$C$5,'Données FDC'!$E:$E,Activation!G$9),IF(ISBLANK($J$5),SUMIFS('Données FDC'!$AA:$AA,'Données FDC'!$B:$B,Activation!$F$5,'Données FDC'!$E:$E,Activation!G$9),SUMIFS('Données FDC'!$AA:$AA,'Données FDC'!$C:$C,Activation!$J$5,'Données FDC'!$E:$E,Activation!G$9))) -> 25065 | H78: =IF(ISBLANK($F$5),SUMIFS('Données FDC'!$AA:$AA,'Données FDC'!$A:$A,Activation!$C$5,'Données FDC'!$E:$E,Activation!H$9),IF(ISBLANK($J$5),SUMIFS('Données FDC'!$AA:$AA,'Données FDC'!$B:$B,Activation!$F$5,'Données FDC'!$E:$E,Activation!H$9),SUMIFS('Données FDC'!$AA:$AA,'Données FDC'!$C:$C,Activation!$J$5,'Données FDC'!$E:$E,Activation!H$9))) -> 8604 | I78: =IF(ISBLANK($F$5),SUMIFS('Données FDC'!$AA:$AA,'Données FDC'!$A:$A,Activation!$C$5,'Données FDC'!$E:$E,Activation!I$9),IF(ISBLANK($J$5),SUMIFS('Données FDC'!$AA:$AA,'Données FDC'!$B:$B,Activation!$F$5,'Données FDC'!$E:$E,Activation!I$9),SUMIFS('Données FDC'!$AA:$AA,'Données FDC'!$C:$C,Activation!$J$5,'Données FDC'!$E:$E,Activation!I$9))) -> 4874 | J78: =IF(ISBLANK($F$5),SUMIFS('Données FDC'!$AA:$AA,'Données FDC'!$A:$A,Activation!$C$5,'Données FDC'!$E:$E,Activation!J$9),IF(ISBLANK($J$5),SUMIFS('Données FDC'!$AA:$AA,'Données FDC'!$B:$B,Activation!$F$5,'Données FDC'!$E:$E,Activation!J$9),SUMIFS('Données FDC'!$AA:$AA,'Données FDC'!$C:$C,Activation!$J$5,'Données FDC'!$E:$E,Activation!J$9))) -> 25122 | K78: =IF(ISBLANK($F$5),SUMIFS('Données FDC'!$AA:$AA,'Données FDC'!$A:$A,Activation!$C$5,'Données FDC'!$E:$E,Activation!K$9),IF(ISBLANK($J$5),SUMIFS('Données FDC'!$AA:$AA,'Données FDC'!$B:$B,Activation!$F$5,'Données FDC'!$E:$E,Activation!K$9),SUMIFS('Données FDC'!$AA:$AA,'Données FDC'!$C:$C,Activation!$J$5,'Données FDC'!$E:$E,Activation!K$9))) -> 3378 | L78: =IF(ISBLANK($F$5),SUMIFS('Données FDC'!$AA:$AA,'Données FDC'!$A:$A,Activation!$C$5,'Données FDC'!$E:$E,Activation!L$9),IF(ISBLANK($J$5),SUMIFS('Données FDC'!$AA:$AA,'Données FDC'!$B:$B,Activation!$F$5,'Données FDC'!$E:$E,Activation!L$9),SUMIFS('Données FDC'!$AA:$AA,'Données FDC'!$C:$C,Activation!$J$5,'Données FDC'!$E:$E,Activation!L$9))) -> 494 | M78: =IF(ISBLANK($F$5),SUMIFS('Données FDC'!$AA:$AA,'Données FDC'!$A:$A,Activation!$C$5,'Données FDC'!$E:$E,Activation!M$9),IF(ISBLANK($J$5),SUMIFS('Données FDC'!$AA:$AA,'Données FDC'!$B:$B,Activation!$F$5,'Données FDC'!$E:$E,Activation!M$9),SUMIFS('Données FDC'!$AA:$AA,'Données FDC'!$C:$C,Activation!$J$5,'Données FDC'!$E:$E,Activation!M$9))) -> 961 | P78: =IF(ISBLANK($F$5),SUMIFS('Données FDC'!$AA:$AA,'Données FDC'!$A:$A,Activation!$C$5,'Données FDC'!$E:$E,Activation!P$9),IF(ISBLANK($J$5),SUMIFS('Données FDC'!$AA:$AA,'Données FDC'!$B:$B,Activation!$F$5,'Données FDC'!$E:$E,Activation!P$9),SUMIFS('Données FDC'!$AA:$AA,'Données FDC'!$C:$C,Activation!$J$5,'Données FDC'!$E:$E,Activation!P$9))) -> 6
C79: % détenteurs | D79: =D78/(IF(ISBLANK($F$5),SUMIFS('Données FDC'!$J:$J,'Données FDC'!$A:$A,Activation!$C$5),IF(ISBLANK($J$5),SUMIFS('Données FDC'!$J:$J,'Données FDC'!$B:$B,Activation!$F$5),SUMIFS('Données FDC'!$J:$J,'Données FDC'!$C:$C,Activation!$J$5)))) -> 0.1327770398 | E79: =E78/IF(ISBLANK($F$5),SUMIFS('Données FDC déc 2018'!$J:$J,'Données FDC déc 2018'!$A:$A,Activation!$C$5),IF(ISBLANK($J$5),SUMIFS('Données FDC déc 2018'!$J:$J,'Données FDC déc 2018'!$B:$B,Activation!$F$5),SUMIFS('Données FDC déc 2018'!$J:$J,'Données FDC déc 2018'!$C:$C,Activation!$J$5))) -> 0.1129288006 | F79: =F78/(IF(ISBLANK($F$5),SUMIFS('Données FDC'!$J:$J,'Données FDC'!$A:$A,Activation!$C$5,'Données FDC'!$E:$E,Activation!F$9),IF(ISBLANK($J$5),SUMIFS('Données FDC'!$J:$J,'Données FDC'!$B:$B,Activation!$F$5,'Données FDC'!$E:$E,Activation!F$9),SUMIFS('Données FDC'!$J:$J,'Données FDC'!$C:$C,Activation!$J$5,'Données FDC'!$E:$E,Activation!F$9)))) -> 0.384193075 | G79: =G78/(IF(ISBLANK($F$5),SUMIFS('Données FDC'!$J:$J,'Données FDC'!$A:$A,Activation!$C$5,'Données FDC'!$E:$E,Activation!G$9),IF(ISBLANK($J$5),SUMIFS('Données FDC'!$J:$J,'Données FDC'!$B:$B,Activation!$F$5,'Données FDC'!$E:$E,Activation!G$9),SUMIFS('Données FDC'!$J:$J,'Données FDC'!$C:$C,Activation!$J$5,'Données FDC'!$E:$E,Activation!G$9)))) -> 0.1553349322 | H79: =H78/(IF(ISBLANK($F$5),SUMIFS('Données FDC'!$J:$J,'Données FDC'!$A:$A,Activation!$C$5,'Données FDC'!$E:$E,Activation!H$9),IF(ISBLANK($J$5),SUMIFS('Données FDC'!$J:$J,'Données FDC'!$B:$B,Activation!$F$5,'Données FDC'!$E:$E,Activation!H$9),SUMIFS('Données FDC'!$J:$J,'Données FDC'!$C:$C,Activation!$J$5,'Données FDC'!$E:$E,Activation!H$9)))) -> 0.05069556149 | I79: =I78/(IF(ISBLANK($F$5),SUMIFS('Données FDC'!$J:$J,'Données FDC'!$A:$A,Activation!$C$5,'Données FDC'!$E:$E,Activation!I$9),IF(ISBLANK($J$5),SUMIFS('Données FDC'!$J:$J,'Données FDC'!$B:$B,Activation!$F$5,'Données FDC'!$E:$E,Activation!I$9),SUMIFS('Données FDC'!$J:$J,'Données FDC'!$C:$C,Activation!$J$5,'Données FDC'!$E:$E,Activation!I$9)))) -> 0.01374584015 | J79: =J78/(IF(ISBLANK($F$5),SUMIFS('Données FDC'!$J:$J,'Données FDC'!$A:$A,Activation!$C$5,'Données FDC'!$E:$E,Activation!J$9),IF(ISBLANK($J$5),SUMIFS('Données FDC'!$J:$J,'Données FDC'!$B:$B,Activation!$F$5,'Données FDC'!$E:$E,Activation!J$9),SUMIFS('Données FDC'!$J:$J,'Données FDC'!$C:$C,Activation!$J$5,'Données FDC'!$E:$E,Activation!J$9)))) -> 0.4297076784 | K79: =K78/(IF(ISBLANK($F$5),SUMIFS('Données FDC'!$J:$J,'Données FDC'!$A:$A,Activation!$C$5,'Données FDC'!$E:$E,Activation!K$9),IF(ISBLANK($J$5),SUMIFS('Données FDC'!$J:$J,'Données FDC'!$B:$B,Activation!$F$5,'Données FDC'!$E:$E,Activation!K$9),SUMIFS('Données FDC'!$J:$J,'Données FDC'!$C:$C,Activation!$J$5,'Données FDC'!$E:$E,Activation!K$9)))) -> 0.2084927787 | L79: =L78/(IF(ISBLANK($F$5),SUMIFS('Données FDC'!$J:$J,'Données FDC'!$A:$A,Activation!$C$5,'Données FDC'!$E:$E,Activation!L$9),IF(ISBLANK($J$5),SUMIFS('Données FDC'!$J:$J,'Données FDC'!$B:$B,Activation!$F$5,'Données FDC'!$E:$E,Activation!L$9),SUMIFS('Données FDC'!$J:$J,'Données FDC'!$C:$C,Activation!$J$5,'Données FDC'!$E:$E,Activation!L$9)))) -> 0.07994821168 | M79: =M78/(IF(ISBLANK($F$5),SUMIFS('Données FDC'!$J:$J,'Données FDC'!$A:$A,Activation!$C$5,'Données FDC'!$E:$E,Activation!M$9),IF(ISBLANK($J$5),SUMIFS('Données FDC'!$J:$J,'Données FDC'!$B:$B,Activation!$F$5,'Données FDC'!$E:$E,Activation!M$9),SUMIFS('Données FDC'!$J:$J,'Données FDC'!$C:$C,Activation!$J$5,'Données FDC'!$E:$E,Activation!M$9)))) -> 0.01780321977 | P79: =P78/(IF(ISBLANK($F$5),SUMIFS('Données FDC'!$J:$J,'Données FDC'!$A:$A,Activation!$C$5,'Données FDC'!$E:$E,Activation!P$9),IF(ISBLANK($J$5),SUMIFS('Données FDC'!$J:$J,'Données FDC'!$B:$B,Activation!$F$5,'Données FDC'!$E:$E,Activation!P$9),SUMIFS('Données FDC'!$J:$J,'Données FDC'!$C:$C,Activation!$J$5,'Données FDC'!$E:$E,Activation!P$9)))) -> 2.752596616e-05
C80: % détenteurs CEGEE | D80: =SUM('Données FDC'!$AA:$AA)/SUM('Données FDC'!$J:$J) -> 0.1327778006 | E80: =SUM('Données FDC déc 2018'!$AA:$AA)/SUM('Données FDC déc 2018'!$J:$J) -> 0.1129288006 | F80: =SUMIF('Données FDC'!$E:$E,Activation!F$9,'Données FDC'!$AA:$AA)/SUMIF('Données FDC'!$E:$E,Activation!F$9,'Données FDC'!$J:$J) -> 0.384193075 | G80: =SUMIF('Données FDC'!$E:$E,Activation!G$9,'Données FDC'!$AA:$AA)/SUMIF('Données FDC'!$E:$E,Activation!G$9,'Données FDC'!$J:$J) -> 0.1553349322 | H80: =SUMIF('Données FDC'!$E:$E,Activation!H$9,'Données FDC'!$AA:$AA)/SUMIF('Données FDC'!$E:$E,Activation!H$9,'Données FDC'!$J:$J) -> 0.05069556149 | I80: =SUMIF('Données FDC'!$E:$E,Activation!I$9,'Données FDC'!$AA:$AA)/SUMIF('Données FDC'!$E:$E,Activation!I$9,'Données FDC'!$J:$J) -> 0.01374584015 | J80: =SUMIF('Données FDC'!$E:$E,Activation!J$9,'Données FDC'!$AA:$AA)/SUMIF('Données FDC'!$E:$E,Activation!J$9,'Données FDC'!$J:$J) -> 0.4297076784 | K80: =SUMIF('Données FDC'!$E:$E,Activation!K$9,'Données FDC'!$AA:$AA)/SUMIF('Données FDC'!$E:$E,Activation!K$9,'Données FDC'!$J:$J) -> 0.2084927787 | L80: =SUMIF('Données FDC'!$E:$E,Activation!L$9,'Données FDC'!$AA:$AA)/SUMIF('Données FDC'!$E:$E,Activation!L$9,'Données FDC'!$J:$J) -> 0.07994821168 | M80: =SUMIF('Données FDC'!$E:$E,Activation!M$9,'Données FDC'!$AA:$AA)/SUMIF('Données FDC'!$E:$E,Activation!M$9,'Données FDC'!$J:$J) -> 0.01780321977 | P80: =SUMIF('Données FDC'!$E:$E,Activation!P$9,'Données FDC'!$AA:$AA)/SUMIF('Données FDC'!$E:$E,Activation!P$9,'Données FDC'!$J:$J) -> 2.752596616e-05
B81: Débit Différé (majeurs) | C81: Variation | D81: =SUM(F81:P81) -> 8952 | F81: =F82-IF(ISBLANK($F$5),SUMIFS('Données FDC déc 2018'!$AB:$AB,'Données FDC déc 2018'!$A:$A,Activation!$C$5,'Données FDC déc 2018'!$E:$E,Activation!F$9),IF(ISBLANK($J$5),SUMIFS('Données FDC déc 2018'!$AB:$AB,'Données FDC déc 2018'!$B:$B,Activation!$F$5,'Données FDC déc 2018'!$E:$E,Activation!F$9),SUMIFS('Données FDC déc 2018'!$AB:$AB,'Données FDC déc 2018'!$C:$C,Activation!$J$5,'Données FDC déc 2018'!$E:$E,Activation!F$9))) -> 4625 | G81: =G82-IF(ISBLANK($F$5),SUMIFS('Données FDC déc 2018'!$AB:$AB,'Données FDC déc 2018'!$A:$A,Activation!$C$5,'Données FDC déc 2018'!$E:$E,Activation!G$9),IF(ISBLANK($J$5),SUMIFS('Données FDC déc 2018'!$AB:$AB,'Données FDC déc 2018'!$B:$B,Activation!$F$5,'Données FDC déc 2018'!$E:$E,Activation!G$9),SUMIFS('Données FDC déc 2018'!$AB:$AB,'Données FDC déc 2018'!$C:$C,Activation!$J$5,'Données FDC déc 2018'!$E:$E,Activation!G$9))) -> 881 | H81: =H82-IF(ISBLANK($F$5),SUMIFS('Données FDC déc 2018'!$AB:$AB,'Données FDC déc 2018'!$A:$A,Activation!$C$5,'Données FDC déc 2018'!$E:$E,Activation!H$9),IF(ISBLANK($J$5),SUMIFS('Données FDC déc 2018'!$AB:$AB,'Données FDC déc 2018'!$B:$B,Activation!$F$5,'Données FDC déc 2018'!$E:$E,Activation!H$9),SUMIFS('Données FDC déc 2018'!$AB:$AB,'Données FDC déc 2018'!$C:$C,Activation!$J$5,'Données FDC déc 2018'!$E:$E,Activation!H$9))) -> 960 | I81: =I82-IF(ISBLANK($F$5),SUMIFS('Données FDC déc 2018'!$AB:$AB,'Données FDC déc 2018'!$A:$A,Activation!$C$5,'Données FDC déc 2018'!$E:$E,Activation!I$9),IF(ISBLANK($J$5),SUMIFS('Données FDC déc 2018'!$AB:$AB,'Données FDC déc 2018'!$B:$B,Activation!$F$5,'Données FDC déc 2018'!$E:$E,Activation!I$9),SUMIFS('Données FDC déc 2018'!$AB:$AB,'Données FDC déc 2018'!$C:$C,Activation!$J$5,'Données FDC déc 2018'!$E:$E,Activation!I$9))) -> 687 | J81: =J82-IF(ISBLANK($F$5),SUMIFS('Données FDC déc 2018'!$AB:$AB,'Données FDC déc 2018'!$A:$A,Activation!$C$5,'Données FDC déc 2018'!$E:$E,Activation!J$9),IF(ISBLANK($J$5),SUMIFS('Données FDC déc 2018'!$AB:$AB,'Données FDC déc 2018'!$B:$B,Activation!$F$5,'Données FDC déc 2018'!$E:$E,Activation!J$9),SUMIFS('Données FDC déc 2018'!$AB:$AB,'Données FDC déc 2018'!$C:$C,Activation!$J$5,'Données FDC déc 2018'!$E:$E,Activation!J$9))) -> 1356 | K81: =K82-IF(ISBLANK($F$5),SUMIFS('Données FDC déc 2018'!$AB:$AB,'Données FDC déc 2018'!$A:$A,Activation!$C$5,'Données FDC déc 2018'!$E:$E,Activation!K$9),IF(ISBLANK($J$5),SUMIFS('Données FDC déc 2018'!$AB:$AB,'Données FDC déc 2018'!$B:$B,Activation!$F$5,'Données FDC déc 2018'!$E:$E,Activation!K$9),SUMIFS('Données FDC déc 2018'!$AB:$AB,'Données FDC déc 2018'!$C:$C,Activation!$J$5,'Données FDC déc 2018'!$E:$E,Activation!K$9))) -> 168 | L81: =L82-IF(ISBLANK($F$5),SUMIFS('Données FDC déc 2018'!$AB:$AB,'Données FDC déc 2018'!$A:$A,Activation!$C$5,'Données FDC déc 2018'!$E:$E,Activation!L$9),IF(ISBLANK($J$5),SUMIFS('Données FDC déc 2018'!$AB:$AB,'Données FDC déc 2018'!$B:$B,Activation!$F$5,'Données FDC déc 2018'!$E:$E,Activation!L$9),SUMIFS('Données FDC déc 2018'!$AB:$AB,'Données FDC déc 2018'!$C:$C,Activation!$J$5,'Données FDC déc 2018'!$E:$E,Activation!L$9))) -> 113 | M81: =M82-IF(ISBLANK($F$5),SUMIFS('Données FDC déc 2018'!$AB:$AB,'Données FDC déc 2018'!$A:$A,Activation!$C$5,'Données FDC déc 2018'!$E:$E,Activation!M$9),IF(ISBLANK($J$5),SUMIFS('Données FDC déc 2018'!$AB:$AB,'Données FDC déc 2018'!$B:$B,Activation!$F$5,'Données FDC déc 2018'!$E:$E,Activation!M$9),SUMIFS('Données FDC déc 2018'!$AB:$AB,'Données FDC déc 2018'!$C:$C,Activation!$J$5,'Données FDC déc 2018'!$E:$E,Activation!M$9))) -> 162 | P81: =P82-IF(ISBLANK($F$5),SUMIFS('Données FDC déc 2018'!$AB:$AB,'Données FDC déc 2018'!$A:$A,Activation!$C$5,'Données FDC déc 2018'!$E:$E,Activation!P$9),IF(ISBLANK($J$5),SUMIFS('Données FDC déc 2018'!$AB:$AB,'Données FDC déc 2018'!$B:$B,Activation!$F$5,'Données FDC déc 2018'!$E:$E,Activation!P$9),SUMIFS('Données FDC déc 2018'!$AB:$AB,'Données FDC déc 2018'!$C:$C,Activation!$J$5,'Données FDC déc 2018'!$E:$E,Activation!P$9))) -> 0
C82: Nombre détenteurs | D82: =SUM(F82:P82) -> 85568 | E82: =IF(ISBLANK($F$5),SUMIFS('Données FDC déc 2018'!$AB:$AB,'Données FDC déc 2018'!$A:$A,Activation!$C$5),IF(ISBLANK($J$5),SUMIFS('Données FDC déc 2018'!$AB:$AB,'Données FDC déc 2018'!$B:$B,Activation!$F$5),SUMIFS('Données FDC déc 2018'!$AB:$AB,'Données FDC déc 2018'!$C:$C,Activation!$J$5))) -> 76616 | F82: =IF(ISBLANK($F$5),SUMIFS('Données FDC'!$AB:$AB,'Données FDC'!$A:$A,Activation!$C$5,'Données FDC'!$E:$E,Activation!F$9),IF(ISBLANK($J$5),SUMIFS('Données FDC'!$AB:$AB,'Données FDC'!$B:$B,Activation!$F$5,'Données FDC'!$E:$E,Activation!F$9),SUMIFS('Données FDC'!$AB:$AB,'Données FDC'!$C:$C,Activation!$J$5,'Données FDC'!$E:$E,Activation!F$9))) -> 54125 | G82: =IF(ISBLANK($F$5),SUMIFS('Données FDC'!$AB:$AB,'Données FDC'!$A:$A,Activation!$C$5,'Données FDC'!$E:$E,Activation!G$9),IF(ISBLANK($J$5),SUMIFS('Données FDC'!$AB:$AB,'Données FDC'!$B:$B,Activation!$F$5,'Données FDC'!$E:$E,Activation!G$9),SUMIFS('Données FDC'!$AB:$AB,'Données FDC'!$C:$C,Activation!$J$5,'Données FDC'!$E:$E,Activation!G$9))) -> 14896 | H82: =IF(ISBLANK($F$5),SUMIFS('Données FDC'!$AB:$AB,'Données FDC'!$A:$A,Activation!$C$5,'Données FDC'!$E:$E,Activation!H$9),IF(ISBLANK($J$5),SUMIFS('Données FDC'!$AB:$AB,'Données FDC'!$B:$B,Activation!$F$5,'Données FDC'!$E:$E,Activation!H$9),SUMIFS('Données FDC'!$AB:$AB,'Données FDC'!$C:$C,Activation!$J$5,'Données FDC'!$E:$E,Activation!H$9))) -> 6326 | I82: =IF(ISBLANK($F$5),SUMIFS('Données FDC'!$AB:$AB,'Données FDC'!$A:$A,Activation!$C$5,'Données FDC'!$E:$E,Activation!I$9),IF(ISBLANK($J$5),SUMIFS('Données FDC'!$AB:$AB,'Données FDC'!$B:$B,Activation!$F$5,'Données FDC'!$E:$E,Activation!I$9),SUMIFS('Données FDC'!$AB:$AB,'Données FDC'!$C:$C,Activation!$J$5,'Données FDC'!$E:$E,Activation!I$9))) -> 3764 | J82: =IF(ISBLANK($F$5),SUMIFS('Données FDC'!$AB:$AB,'Données FDC'!$A:$A,Activation!$C$5,'Données FDC'!$E:$E,Activation!J$9),IF(ISBLANK($J$5),SUMIFS('Données FDC'!$AB:$AB,'Données FDC'!$B:$B,Activation!$F$5,'Données FDC'!$E:$E,Activation!J$9),SUMIFS('Données FDC'!$AB:$AB,'Données FDC'!$C:$C,Activation!$J$5,'Données FDC'!$E:$E,Activation!J$9))) -> 5106 | K82: =IF(ISBLANK($F$5),SUMIFS('Données FDC'!$AB:$AB,'Données FDC'!$A:$A,Activation!$C$5,'Données FDC'!$E:$E,Activation!K$9),IF(ISBLANK($J$5),SUMIFS('Données FDC'!$AB:$AB,'Données FDC'!$B:$B,Activation!$F$5,'Données FDC'!$E:$E,Activation!K$9),SUMIFS('Données FDC'!$AB:$AB,'Données FDC'!$C:$C,Activation!$J$5,'Données FDC'!$E:$E,Activation!K$9))) -> 761 | L82: =IF(ISBLANK($F$5),SUMIFS('Données FDC'!$AB:$AB,'Données FDC'!$A:$A,Activation!$C$5,'Données FDC'!$E:$E,Activation!L$9),IF(ISBLANK($J$5),SUMIFS('Données FDC'!$AB:$AB,'Données FDC'!$B:$B,Activation!$F$5,'Données FDC'!$E:$E,Activation!L$9),SUMIFS('Données FDC'!$AB:$AB,'Données FDC'!$C:$C,Activation!$J$5,'Données FDC'!$E:$E,Activation!L$9))) -> 212 | M82: =IF(ISBLANK($F$5),SUMIFS('Données FDC'!$AB:$AB,'Données FDC'!$A:$A,Activation!$C$5,'Données FDC'!$E:$E,Activation!M$9),IF(ISBLANK($J$5),SUMIFS('Données FDC'!$AB:$AB,'Données FDC'!$B:$B,Activation!$F$5,'Données FDC'!$E:$E,Activation!M$9),SUMIFS('Données FDC'!$AB:$AB,'Données FDC'!$C:$C,Activation!$J$5,'Données FDC'!$E:$E,Activation!M$9))) -> 370 | P82: =IF(ISBLANK($F$5),SUMIFS('Données FDC'!$AB:$AB,'Données FDC'!$A:$A,Activation!$C$5,'Données FDC'!$E:$E,Activation!P$9),IF(ISBLANK($J$5),SUMIFS('Données FDC'!$AB:$AB,'Données FDC'!$B:$B,Activation!$F$5,'Données FDC'!$E:$E,Activation!P$9),SUMIFS('Données FDC'!$AB:$AB,'Données FDC'!$C:$C,Activation!$J$5,'Données FDC'!$E:$E,Activation!P$9))) -> 8
C83: % détenteurs | D83: =D82/(IF(ISBLANK($F$5),SUMIFS('Données FDC'!$J:$J,'Données FDC'!$A:$A,Activation!$C$5),IF(ISBLANK($J$5),SUMIFS('Données FDC'!$J:$J,'Données FDC'!$B:$B,Activation!$F$5),SUMIFS('Données FDC'!$J:$J,'Données FDC'!$C:$C,Activation!$J$5)))) -> 0.06509973266 | E83: =E82/IF(ISBLANK($F$5),SUMIFS('Données FDC déc 2018'!$J:$J,'Données FDC déc 2018'!$A:$A,Activation!$C$5),IF(ISBLANK($J$5),SUMIFS('Données FDC déc 2018'!$J:$J,'Données FDC déc 2018'!$B:$B,Activation!$F$5),SUMIFS('Données FDC déc 2018'!$J:$J,'Données FDC déc 2018'!$C:$C,Activation!$J$5))) -> 0.05682187319 | F83: =F82/(IF(ISBLANK($F$5),SUMIFS('Données FDC'!$J:$J,'Données FDC'!$A:$A,Activation!$C$5,'Données FDC'!$E:$E,Activation!F$9),IF(ISBLANK($J$5),SUMIFS('Données FDC'!$J:$J,'Données FDC'!$B:$B,Activation!$F$5,'Données FDC'!$E:$E,Activation!F$9),SUMIFS('Données FDC'!$J:$J,'Données FDC'!$C:$C,Activation!$J$5,'Données FDC'!$E:$E,Activation!F$9)))) -> 0.1961370513 | G83: =G82/(IF(ISBLANK($F$5),SUMIFS('Données FDC'!$J:$J,'Données FDC'!$A:$A,Activation!$C$5,'Données FDC'!$E:$E,Activation!G$9),IF(ISBLANK($J$5),SUMIFS('Données FDC'!$J:$J,'Données FDC'!$B:$B,Activation!$F$5,'Données FDC'!$E:$E,Activation!G$9),SUMIFS('Données FDC'!$J:$J,'Données FDC'!$C:$C,Activation!$J$5,'Données FDC'!$E:$E,Activation!G$9)))) -> 0.09231474768 | H83: =H82/(IF(ISBLANK($F$5),SUMIFS('Données FDC'!$J:$J,'Données FDC'!$A:$A,Activation!$C$5,'Données FDC'!$E:$E,Activation!H$9),IF(ISBLANK($J$5),SUMIFS('Données FDC'!$J:$J,'Données FDC'!$B:$B,Activation!$F$5,'Données FDC'!$E:$E,Activation!H$9),SUMIFS('Données FDC'!$J:$J,'Données FDC'!$C:$C,Activation!$J$5,'Données FDC'!$E:$E,Activation!H$9)))) -> 0.0372733754 | I83: =I82/(IF(ISBLANK($F$5),SUMIFS('Données FDC'!$J:$J,'Données FDC'!$A:$A,Activation!$C$5,'Données FDC'!$E:$E,Activation!I$9),IF(ISBLANK($J$5),SUMIFS('Données FDC'!$J:$J,'Données FDC'!$B:$B,Activation!$F$5,'Données FDC'!$E:$E,Activation!I$9),SUMIFS('Données FDC'!$J:$J,'Données FDC'!$C:$C,Activation!$J$5,'Données FDC'!$E:$E,Activation!I$9)))) -> 0.01061537594 | J83: =J82/(IF(ISBLANK($F$5),SUMIFS('Données FDC'!$J:$J,'Données FDC'!$A:$A,Activation!$C$5,'Données FDC'!$E:$E,Activation!J$9),IF(ISBLANK($J$5),SUMIFS('Données FDC'!$J:$J,'Données FDC'!$B:$B,Activation!$F$5,'Données FDC'!$E:$E,Activation!J$9),SUMIFS('Données FDC'!$J:$J,'Données FDC'!$C:$C,Activation!$J$5,'Données FDC'!$E:$E,Activation!J$9)))) -> 0.08733729025 | K83: =K82/(IF(ISBLANK($F$5),SUMIFS('Données FDC'!$J:$J,'Données FDC'!$A:$A,Activation!$C$5,'Données FDC'!$E:$E,Activation!K$9),IF(ISBLANK($J$5),SUMIFS('Données FDC'!$J:$J,'Données FDC'!$B:$B,Activation!$F$5,'Données FDC'!$E:$E,Activation!K$9),SUMIFS('Données FDC'!$J:$J,'Données FDC'!$C:$C,Activation!$J$5,'Données FDC'!$E:$E,Activation!K$9)))) -> 0.04696950994 | L83: =L82/(IF(ISBLANK($F$5),SUMIFS('Données FDC'!$J:$J,'Données FDC'!$A:$A,Activation!$C$5,'Données FDC'!$E:$E,Activation!L$9),IF(ISBLANK($J$5),SUMIFS('Données FDC'!$J:$J,'Données FDC'!$B:$B,Activation!$F$5,'Données FDC'!$E:$E,Activation!L$9),SUMIFS('Données FDC'!$J:$J,'Données FDC'!$C:$C,Activation!$J$5,'Données FDC'!$E:$E,Activation!L$9)))) -> 0.03430975886 | M83: =M82/(IF(ISBLANK($F$5),SUMIFS('Données FDC'!$J:$J,'Données FDC'!$A:$A,Activation!$C$5,'Données FDC'!$E:$E,Activation!M$9),IF(ISBLANK($J$5),SUMIFS('Données FDC'!$J:$J,'Données FDC'!$B:$B,Activation!$F$5,'Données FDC'!$E:$E,Activation!M$9),SUMIFS('Données FDC'!$J:$J,'Données FDC'!$C:$C,Activation!$J$5,'Données FDC'!$E:$E,Activation!M$9)))) -> 0.006854517498 | P83: =P82/(IF(ISBLANK($F$5),SUMIFS('Données FDC'!$J:$J,'Données FDC'!$A:$A,Activation!$C$5,'Données FDC'!$E:$E,Activation!P$9),IF(ISBLANK($J$5),SUMIFS('Données FDC'!$J:$J,'Données FDC'!$B:$B,Activation!$F$5,'Données FDC'!$E:$E,Activation!P$9),SUMIFS('Données FDC'!$J:$J,'Données FDC'!$C:$C,Activation!$J$5,'Données FDC'!$E:$E,Activation!P$9)))) -> 3.670128822e-05
C84: % détenteurs CEGEE | D84: =SUM('Données FDC'!$AB:$AB)/SUM('Données FDC'!$J:$J) -> 0.06509973266 | E84: =SUM('Données FDC déc 2018'!$AB:$AB)/SUM('Données FDC déc 2018'!$J:$J) -> 0.05682187319 | F84: =SUMIF('Données FDC'!$E:$E,Activation!F$9,'Données FDC'!$AB:$AB)/SUMIF('Données FDC'!$E:$E,Activation!F$9,'Données FDC'!$J:$J) -> 0.1961370513 | G84: =SUMIF('Données FDC'!$E:$E,Activation!G$9,'Données FDC'!$AB:$AB)/SUMIF('Données FDC'!$E:$E,Activation!G$9,'Données FDC'!$J:$J) -> 0.09231474768 | H84: =SUMIF('Données FDC'!$E:$E,Activation!H$9,'Données FDC'!$AB:$AB)/SUMIF('Données FDC'!$E:$E,Activation!H$9,'Données FDC'!$J:$J) -> 0.0372733754 | I84: =SUMIF('Données FDC'!$E:$E,Activation!I$9,'Données FDC'!$AB:$AB)/SUMIF('Données FDC'!$E:$E,Activation!I$9,'Données FDC'!$J:$J) -> 0.01061537594 | J84: =SUMIF('Données FDC'!$E:$E,Activation!J$9,'Données FDC'!$AB:$AB)/SUMIF('Données FDC'!$E:$E,Activation!J$9,'Données FDC'!$J:$J) -> 0.08733729025 | K84: =SUMIF('Données FDC'!$E:$E,Activation!K$9,'Données FDC'!$AB:$AB)/SUMIF('Données FDC'!$E:$E,Activation!K$9,'Données FDC'!$J:$J) -> 0.04696950994 | L84: =SUMIF('Données FDC'!$E:$E,Activation!L$9,'Données FDC'!$AB:$AB)/SUMIF('Données FDC'!$E:$E,Activation!L$9,'Données FDC'!$J:$J) -> 0.03430975886 | M84: =SUMIF('Données FDC'!$E:$E,Activation!M$9,'Données FDC'!$AB:$AB)/SUMIF('Données FDC'!$E:$E,Activation!M$9,'Données FDC'!$J:$J) -> 0.006854517498 | P84: =SUMIF('Données FDC'!$E:$E,Activation!P$9,'Données FDC'!$AB:$AB)/SUMIF('Données FDC'!$E:$E,Activation!P$9,'Données FDC'!$J:$J) -> 3.670128822e-05
B85: CBR (12-15 ans) | C85: Variation | D85: =SUM(F85:P85) -> -101 | N85: =N86-IF(ISBLANK($F$5),SUMIFS('Données FDC déc 2018'!$AC:$AC,'Données FDC déc 2018'!$A:$A,Activation!$C$5,'Données FDC déc 2018'!$E:$E,Activation!N$9),IF(ISBLANK($J$5),SUMIFS('Données FDC déc 2018'!$AC:$AC,'Données FDC déc 2018'!$B:$B,Activation!$F$5,'Données FDC déc 2018'!$E:$E,Activation!N$9),SUMIFS('Données FDC déc 2018'!$AC:$AC,'Données FDC déc 2018'!$C:$C,Activation!$J$5,'Données FDC déc 2018'!$E:$E,Activation!N$9))) -> -210 | O85: =O86-IF(ISBLANK($F$5),SUMIFS('Données FDC déc 2018'!$AC:$AC,'Données FDC déc 2018'!$A:$A,Activation!$C$5,'Données FDC déc 2018'!$E:$E,Activation!O$9),IF(ISBLANK($J$5),SUMIFS('Données FDC déc 2018'!$AC:$AC,'Données FDC déc 2018'!$B:$B,Activation!$F$5,'Données FDC déc 2018'!$E:$E,Activation!O$9),SUMIFS('Données FDC déc 2018'!$AC:$AC,'Données FDC déc 2018'!$C:$C,Activation!$J$5,'Données FDC déc 2018'!$E:$E,Activation!O$9))) -> 109
